Workbook

Sheet Verificaciones (hidden)
B4: No. Oferta | D4: OFERENTE | E4: Verificación Formulario No. 03 | P4: Datos Declaración Renta 2003 | T4: Variación
E5: Activo Corriente | F5: Activo Fijo | G5: Otros Activos | H5: Total Activo | I5: Pasivo Corriente | J5: Pasivo Mediano y Largo Plazo | K5: Total Pasivo | L5: Patrimonio | M5: Total Pasivo + Patrimonio | N5: Utilidad Antes de Impuesto | O5: Utilidad Neta | P5: Patrimonio Bruto | Q5: Total Pasivo | R5: Patrimonio Liquido | S5: Renta Liquida | T5: Patrimonio Bruto | U5: Total Pasivo | V5: Patrimonio Liquido | W5: Renta Liquida
B7: 1 | D7: CONSORCIO LAS ANIMAS #1
C8: 1.1 | D8: GERMA TORRES SALGADO | E8: 661279000 | F8: 586850000 | H8: =SUM(E8:G8) -> 1248129000 | I8: 133995725 | J8: 243009275 | K8: =SUM(I8:J8) -> 377005000 | L8: =+H8-K8 -> 871124000 | M8: =+K8+L8 -> 1248129000 | N8: 89170000 | O8: 65583000 | P8: 1248129000 | Q8: 353418000 | R8: 894711000 | S8: 93656000 | T8: =(H8-P8)/P8 -> 0 | U8: =+(K8-Q8)/Q8 -> 0.06673966804 | V8: =(L8-R8)/R8 -> -0.02636270259 | W8: =(O8-S8)/S8 -> -0.2997458785
C9: 1.2 | D9: MARIO GIRALDO ENCISO | E9: 902790808 | F9: 22582416 | G9: 15532940 | H9: =SUM(E9:G9) -> 940906164 | I9: 69497421 | J9: 467428657 | K9: =SUM(I9:J9) -> 536926078 | L9: 403980086 | M9: =+K9+L9 -> 940906164 | N9: 18766695 | O9: 20396695 | T9: =(H9-P9)/P9 ->  | U9: =+(K9-Q9)/Q9 ->  | V9: =(L9-R9)/R9 ->  | W9: =(O9-S9)/S9 -> 
C10: 1.3 | D10: MANUEL MOSQUERA | E10: 300353422 | F10: 251940082 | G10: 69532472 | H10: 621825976 | I10: 153716887 | J10: 54587444 | K10: 208304331 | L10: 413521645 | M10: 621825976 | N10: 16241438 | O10: 16221673 | P10: 611957000 | Q10: 208285000 | R10: 403672000 | S10: 17042000 | T10: 0.01612691088 | U10: 9.2810332e-05 | V10: 0.0244001194 | W10: -0.04813560615
C11: 1.4 | D11: JORGE DE JESUS E. | E11: 506655816 | F11: 152054516 | G11: 245059330 | H11: 903769662 | I11: 137779007 | J11: 42562365 | K11: 180341372 | L11: 723428291 | M11: 903769663 | N11: 50395207 | O11: 42647207 | P11: 903769000 | Q11: 180341000 | R11: 723428000 | S11: 46988000 | T11: 7.324880583e-07 | U11: 2.062758885e-06 | V11: 4.022515026e-07 | W11: -0.09238088448
C12: 1.5 | D12: REPRESENTA Y CONS PAI LTDA | E12: 378072865 | F12: 103601233 | G12: 955950 | H12: 482630048 | I12: 36771662 | J12: 134085789 | K12: 170857451 | L12: 311772597 | M12: 482630048 | N12: 15703386 | O12: 7048986 | P12: 482631000 | Q12: 170858000 | R12: 311773000 | S12: 22479000 | T12: -1.97252145e-06 | U12: -3.213194583e-06 | V12: -1.292607121e-06 | W12: -0.6864190578
C13: 1.6 | D13: ASFALTOS DE OCCID S.A. | E13: 69932426 | F13: 460250218 | G13: 107112095 | H13: 637294739 | I13: 29489669 | J13: 80572256 | K13: 110061925 | L13: 527232814 | M13: 637294739 | N13: 8363847 | O13: 3783847 | P13: 637294000 | Q13: 110061000 | R13: 527233000 | S13: 11897000 | T13: 1.159590393e-06 | U13: 8.40443027e-06 | V13: -3.527852012e-07 | W13: -0.6819494831
B14: 2 | D14: CONCAY S.A. | E14: 40069494079 | F14: 5482697057 | G14: 13667555753 | H14: 59219746889 | I14: 21914617588 | J14: 7301680273 | K14: 29216297861 | L14: 30003449028 | M14: 59219746889 | N14: 6682012591 | O14: 6273203591 | P14: 42778874000 | Q14: 22139102000 | R14: 20639772000 | S14: 1168027000 | T14: 0.3843222449 | U14: 0.3196695088 | V14: 0.4536715342 | W14: 4.370769332
B15: 3 | D15: UNION TEMPORAL PAVIMENTACION DEL CHOCO
C16: 3.1 | D16: AULI FERNANDO VELANDIA M | E16: 1044688000 | F16: 114208000 | G16: 507125000 | H16: 1666021000 | I16: 89341000 | J16: 920563000 | K16: 1009904000 | L16: 656117000 | M16: 1666021000 | N16: 82940000 | O16: 65192000 | P16: 1666021000 | Q16: 1009904000 | R16: 656117000 | S16: 82940000 | T16: 0 | U16: 0 | V16: 0 | W16: -0.213986014
C17: 3.2 | D17: HIFO S.A. | E17: 2210583412 | F17: 1796245413 | G17: 950172658 | H17: 4957001483 | I17: 578205453 | J17: 2306752990 | K17: 2884958443 | L17: 2072043050 | M17: 4957001493 | N17: 126050800 | O17: 81933020 | P17: 4957002000 | Q17: 2884958000 | R17: 2072044000 | S17: 126051000 | T17: -1.042969117e-07 | U17: 1.535550951e-07 | V17: -4.584844723e-07 | W17: -0.3500010313
C18: 3.3 | D18: INFICAS S.A. | E18: 1128389590 | F18: 497010730 | G18: 450516529 | H18: 2075916849 | I18: 843827380 | J18: 171544974 | K18: 1015372354 | L18: 1060544495 | M18: 2075916849 | N18: 150152888 | O18: 84818888 | P18: 2075917000 | Q18: 1014364000 | R18: 1061553000 | S18: 186669000 | T18: -7.273893898e-08 | U18: 0.0009940751052 | V18: -0.0009500279308 | W18: -0.5456187798
C19: 3.4 | D19: CATOBRAS LTDA | H19: 0 | K19: 0 | M19: 0
C20: 3.5 | D20: CARLOS MARIO PALACIO CH | E20: 397516649 | F20: 44535519 | H20: 442052168 | I20: 205584360 | K20: 205584360 | L20: 236467808 | M20: 442052168 | N20: 52120000 | O20: 52120000 | P20: 442053000 | Q20: 205584000 | R20: =P20-Q20 -> 236469000 | S20: 52120000 | T20: -1.882127256e-06 | U20: 1.751109036e-06 | V20: -5.040829876e-06 | W20: 0
C21: 3.6 | D21: LUIS CORANDO VELAZQUEZ | E21: 230187357 | F21: 487735892 | G21: 9625046 | H21: 727548295 | I21: 117145481 | J21: 76862715 | K21: 194008196 | L21: 533540099 | M21: 727548295 | P21: 727548000 | Q21: 194008000 | R21: 533540000 | T21: 4.05471529e-07 | U21: 1.010267618e-06 | V21: 1.855530982e-07
B22: 4 | D22: CONSORCIO GOMGO 35
C23: 4.1 | D23: MIGUEL EDGAR ALFONSO | E23: 940500000 | F23: 220000000 | G23: 19500000 | H23: 1180000000 | I23: 50000000 | J23: 50000000 | K23: 100000000 | L23: 1080000000 | M23: 1180000000 | N23: 38000000 | O23: 38000000 | P23: 1180000000 | Q23: 100000000 | R23: 1080000000 | S23: 35000000 | T23: 0 | U23: 0 | V23: 0 | W23: 0.08571428571
C24: 4.2 | D24: ABEL FRANCISCO VALBUENA | E24: 1215892000 | F24: 443008000 | G24: 283790000 | H24: 1942690000 | I24: 374625000 | J24: 55000000 | K24: 429625000 | L24: 1513065000 | M24: 1942690000 | N24: 47375000 | O24: 47375000 | P24: 1942690000 | Q24: 429625000 | R24: 1513065000 | S24: 47375000 | T24: 0 | U24: 0 | V24: 0 | W24: 0
C25: 4.3 | D25: CESAR GOMEZ | E25: 2149248232 | F25: 390736722 | H25: 2539984954 | I25: 1922763807 | J25: 93405043 | K25: 2016168850 | L25: 523816104 | M25: 2539984954 | N25: 41060626 | O25: 54549620 | P25: 2539984000 | Q25: 2016168000 | R25: 523816000 | S25: 71993000 | T25: 3.755929171e-07 | U25: 4.215918515e-07 | V25: 1.985429998e-07 | W25: -0.2422927229
C26: 4.4 | D26: LUIS MAYORGA AGUIRRE | E26: 1286602000 | F26: 529776000 | G26: 367025000 | H26: 2183403000 | I26: 631956000 | J26: 6584000 | K26: 638540000 | L26: 1544863000 | M26: 2183403000 | P26: 2183403000 | Q26: 638540000 | R26: =P26-Q26 -> 1544863000 | T26: 0 | U26: 0 | V26: 0
B27: 5 | D27: CONSORCIO PLAN VIAL CHOCO 2005
C28: 5.1 | D28: VARGAS VELANDIA LTDA | E28: 3662005000 | F28: 457085000 | G28: 114779000 | H28: 4233869000 | I28: 530721000 | J28: 160038000 | K28: 690759000 | L28: 3543110000 | M28: 4233869000 | N28: 457250000 | O28: 297212000 | P28: 4229443000 | Q28: 686333000 | R28: 3543110000 | S28: 457250000 | T28: 0.001046473495 | U28: 0.006448764667 | V28: 0 | W28: -0.3500010935
C29: 5.2 | D29: NACIONAL DE PAVIMENTOS LTDA | E29: 1345051857 | F29: 622683311 | G29: 1888148909 | H29: 3855884077 | I29: 235974264 | J29: 1059293810 | K29: 1295268074 | L29: 2560616003 | M29: 3855884077 | N29: 211804765 | O29: 128144765 | P29: 1968115000 | Q29: 1295268000 | R29: 672847000 | S29: 239030000 | T29: 0.9591762052 | U29: 5.713103389e-08 | V29: 2.805643784 | W29: -0.4638967284
C30: 5.3 | D30: JAIME VARGAS GALINDO | E30: 68481000 | F30: 248149000 | G30: 1829723000 | H30: 2146353000 | I30: 20336000 | J30: 1030069000 | K30: 1050405000 | L30: 1095948000 | M30: 2146353000 | N30: 63435000 | O30: 51635000 | P30: 2146353000 | Q30: 1050405000 | R30: 1095948000 | S30: 63435000 | T30: 0 | U30: 0 | V30: 0 | W30: -0.1860171829
C31: 5.4 | D31: VINDICO S.A. | E31: 9098479232 | F31: 531593591 | G31: =1377315265+27043045 -> 1404358310 | H31: 11034431133 | I31: 1681476244 | J31: 4212950518 | K31: 5894426762 | L31: 5140004372 | M31: 11034431134 | N31: 101528025 | O31: 54379630 | P31: 11007389000 | Q31: 5894427000 | R31: 5112962000 | S31: 122857000 | T31: 0.002456725478 | U31: -4.037712232e-08 | V31: 0.005288983568 | W31: -0.55737459
B34: OBSERVACIONES:
C35: CONSORCIO LAS ANIMAS #1,,se subsana integrante 1,2porque no conciliacines

Sheet BD (hidden)
A1: PROPONENTE | B1: ACTIVO CORRIENTE | C1: ACTIVO TOTAL | D1: PASIVO CORRIENTE | E1: PASIVO TOTAL
A4: DIN DESARROLLO DE INGENIERIA | B4: 725256000 | C4: 730287000 | D4: 242772000 | E4: 314919000
A5: RT-TERRA S.A.S | B5: 425000000 | C5: 500000000 | D5: 0 | E5: 0
A6: INTERESTUDIOS INGENIERIA | B6: 1409393197 | C6: 1981956977 | D6: 101204660 | E6: 375092525
A7: JUAN AMADO LIZARAZO | B7: 3503200208 | C7: 5076171451 | D7: 499066086 | E7: 1922837194
A8: ESAO LTDA | B8: 3404833641 | C8: 4525717988 | D8: 675844461 | E8: 2240857170
A9: DPC INGENIEROS S.AS | B9: 840664949 | C9: 840664949 | D9: 319196008 | E9: 499068939
A10: MS INGENIEROS COLOMBIA S.AS.
A11: MEDINA & RIVERA INGENIEROS ASOCIADOS S.A.S | B11: 42456478993 | C11: 2797936297 | D11: 234817175 | E11: 1074099589
A12: CARLOS FERNANDO ANGEL PEREA | B12: 92339472 | C12: 422954429 | D12: 251254429 | E12: 26865000
A13: YOLANDA CABRERA BALCAZAR | B13: 1080341282 | C13: 1639625550 | D13: 465216320 | E13: 465216320
A14: JORGE ISAAC VELASQUEZ VARGAS | B14: 499772178 | C14: 580272178 | D14: 23348000 | E14: 23348000
A15: GRUPO METRO COLOMBIA S.A | B15: 1254046877 | C15: 1272903631 | D15: 90326298 | E15: 90326298
A16: INGESUELOS COLOMBIA LTDA | B16: 905939302 | C16: 1140994223 | D16: 92117132 | E16: 326788462
A17: VICTOR ARBOLEDA CORDOBA | B17: 1043760836 | C17: 1937760836 | D17: 39153416 | E17: 761019416
A18: ROADCON LTDA | B18: 658241837 | C18: 877331500 | D18: 297026580 | E18: 416343048
A19: INGENIEROS CONSULTORES INCORPORADOS LTDA | B19: 394586228 | C19: 530858526 | D19: 1065310 | E19: 158195841
A20: ERNESTO RAFAEL MERLANO MORALES | B20: 1000000 | C20: 1000000 | D20: 0 | E20: 0
A21: INTERDISEÑOS S.A | B21: 0 | C21: 0 | D21: 0 | E21: 0
A22: COPEBA LTDA | B22: 835256271 | C22: 1158721679 | D22: 215648716 | E22: 232888813
A23: LA VIALIDAD LTDA | B23: 1570627591 | C23: 2670894176 | D23: 310793143 | E23: 705631299
A24: CONSULTORES TECNICOS Y ECONOMICOS | B24: 3309653000 | C24: 3517834000 | D24: 258375000 | E24: 738051000
A25: JOYCO S.A.S | B25: 3175302507 | C25: 4398894848 | D25: 426738104 | E25: 426738104
A26: GINPROSA INGENIERIA SL | B26: 17752725528 | C26: 18354187205 | D26: 9617677456 | E26: 10037674539
A27: COMPAÑIA DE CONSULTORIA Y CONSTRUCCIONES LTDA | B27: 622699890 | C27: 1090242220 | D27: 144836203 | E27: 144836203
A28: SODICO S.A.S
A29: URBANISTA INGENIEROS S.A
A30: ESTRUCTURADOR COLOMBIA SAS | B30: 1428202815 | C30: 1513500044 | D30: 1056068758 | E30: 1056068758
A31: CONSULTORIA Y CONSTRUCCION LTDA CON Y CON | B31: 471291000 | C31: 535366000 | D31: 1000000 | E31: 61938000
A32: INTERVENTORIAS Y CONSULTORIAS EN INGENIERIA S.AS | B32: 423015168 | C32: 457166337 | D32: 15448205 | E32: 53410625
A33: PRODEINCOL S.A.S | B33: 1015917119 | C33: 1304124719 | D33: 280051000 | E33: 304041000
A34: INTERSA S.A | B34: 2073541000 | C34: 2717687000 | D34: 772740000 | E34: 1640701000
A35: DIEGO FONSECA CHAVEZ | B35: 2295556051 | C35: 2365448425 | D35: 7383228 | E35: 11143228
A36: GEOTECNIA Y CIMIENTOS INGEOCIM LTDA | B36: 4357344531 | C36: 4618657622 | D36: 634070204 | E36: 1501447765
A37: CRA SERVICIOS S.A.S | B37: 1507730587 | C37: 1507730587 | D37: 406394370 | E37: 1050171059
A38: WILLIAN ARMANDO CRISTANCHO GARCIA | B38: 1152176600 | C38: 1445167916 | D38: 78361858 | E38: 78361858
A39: ECOVIAS S.A.S | B39: 1994801622 | C39: 2236072136 | D39: 778212111 | E39: 778212111
A40: BATEMAN INGENIEROS S.A.S | B40: 186310179 | C40: 203476845 | D40: 6907774 | E40: 6907774
A41: ELSA MARIA RUEDA LANDINEZ | B41: 300150235 | C41: 557593231 | D41: 9207158 | E41: 52692739
A42: PROEZA CONSULTORES SAS | B42: 6696542254 | C42: 7187392854 | D42: 2790117606 | E42: 4271585509
A43: JPS INGENIERIA SOCIEDAD ANONIMA | B43: 2137403000 | C43: 2184166000 | D43: 571873000 | E43: 1058612000
A44: ARREDONDO MADRID INGENIEROS CIVILES (a:i:m) LIMITADA | B44: 7972994960 | C44: 10750290836 | D44: 2503349498 | E44: 5565861116
A45: COMPAÑÍA COLOMBIANA DE CONSULTORES S.A - CCC S.A | B45: 5127820027 | C45: 7192974133 | D45: 1289820709 | E45: 3271696613
A46: MYRIAM VIVIANA CASTLBLANCO VELA | B46: 140075413 | C46: 680365715 | D46: 41045164 | E46: 81433766
A47: JULIAN ARLY PEDRAZA JIMENEZ | B47: 231598442 | C47: 306518442 | D47: 1145650 | E47: =+D47 -> 1145650
A48: ANTONIO JOSE PEDRAZA JIMENEZ | B48: 422641403 | C48: 648743223 | D48: 11379202 | E48: 33490177
A49: CANO JIMENEZ ESTUDIOS S.A | B49: 12076120580 | C49: 26452616717 | D49: 5019990904 | E49: 14947217226
A50: GERARDO CORREDOR VILLALBA | B50: 705248881 | C50: 1252533703 | D50: 7327558 | E50: 107378902
A51: RESTREPO Y URIBE S.A.S | B51: 10946116056 | C51: 12114861624 | D51: 1924966232 | E51: 7887985819
A52: MARYLUZ MEJIA DE PUMAREJO | B52: 1017105917 | C52: 1489647149 | D52: 26069000 | E52: 26069000
A53: SERTIC S.A.S | B53: 5566613579 | C53: 5833488329 | D53: 2128110742 | E53: 2296040752
A54: CGR S.A.S | B54: 773284933 | C54: 1025353833 | D54: 151208092 | E54: 249348362
A55: DIEGO IGNACIO ARENAS | B55: 0 | C55: 0 | D55: 0 | E55: 0
A56: MOLINA LOPEZ CONSTRUCIONES S.A.S | B56: 297800000 | C56: 300000000 | D56: 1 | E56: 0
A57: CONSTRUCIONES RMC SAS | B57: 0 | C57: 0 | D57: 0 | E57: 0
A58: JUAN CARLOS ROJAS ACERO | B58: 1961036880 | C58: 2549639283 | D58: 40818443 | E58: 190938306
A59: TECHNE LTDA | B59: 0 | C59: 0 | D59: 0 | E59: 0
A60: IPSUM INGENIEROS SAS | B60: 1016488 | C60: 60903362 | D60: 233827 | E60: =+D60 -> 233827
A61: FELD INGENIERIA LTDA | B61: 128813790 | C61: 178813790 | D61: 36564745 | E61: 36564745
A62: GUSTAVO ROSO GOMEZ | B62: 795709321 | C62: 935709321 | D62: 12619841 | E62: 33786051
A63: JAMES ALBERTO KAMMERER JIMENEZ | B63: 291386000 | C63: 371386000 | D63: 7702000 | E63: 7702000
A64: GEICOL S.AS | B64: 2201614818 | C64: 2281916028 | D64: 802652024 | E64: 1129095345
A65: MAB INGENIERIA DE VALOR S.A | B65: 4569174650 | C65: 6713424846 | D65: 1148965107 | E65: 1148965107
A66: INTERVENTORIAS Y CONSTRUCCIONES LTDA | B66: 781252250 | C66: 862480150 | D66: 463086300 | E66: 463086300
A67: SOCIEDAD TECNICA SOTA LTDA | B67: 0 | C67: 0 | D67: 0 | E67: 0
A68: JOSE WILMER CHILITO RIVADENEIRA | B68: 656617464 | C68: 1134117464 | D68: 1000000 | E68: 206925514
A69: LUIS ONESIMO ROSALES ORDOÑEZ | B69: 698296243 | C69: 1922796243 | D69: 11000000 | E69: =+D69 -> 11000000
A70: GNG INGENIERIA S.A.S | B70: 1864257378 | C70: 3023281535 | D70: 316203863 | E70: 1273047695
A71: INCOLTA INTERVENTORIAS Y CONSULTORIAS LTDA | B71: 297777403 | C71: 557534287 | D71: 25304108 | E71: 41180453
A72: CONSULTORIA Y CONSTRUCCIONES COLOMBIA | B72: 226667214 | C72: 230982176 | D72: 20757622 | E72: 20757622
A73: CIZALLA S.A.S | B73: 1730242069 | C73: 3407167827 | D73: 336681750 | E73: 1683393139
A74: SIGA INGENIERIA Y CONSULTORIA S.A SUCURSAL COLOMBIA | B74: 9939225668 | C74: 15828521884 | D74: 5099941285 | E74: 5144575579
A75: TRN INGENERIA Y PLANIFICACION DE INFRAESTRUCTURA S.A SUCURSAL COLOMBIA | B75: 7499974647 | C75: 10540065059 | D75: 4046910335 | E75: 4046910335
A76: RUTH ELENA TABARES | B76: 473214000 | C76: 1263930000 | D76: 20795000 | E76: 199807000
A77: CONSULTORIA CONSTRUHERCA LTDA | B77: 583212000 | C77: 692140000 | D77: 5854000 | E77: 5854000
A78: PROYECTOS E INTERVENTORIAS LTDA | B78: 6046748044 | C78: 6312385656 | D78: 2265649304 | E78: 2592231586
A79: MARTHA CECILIA ORDOÑEZ CAMPO | B79: 962221580 | C79: 1732463833 | D79: 156914378 | E79: 835764180
A80: DIEGO GERARDO ZAPATA ZUÑIGA | B80: 650289671 | C80: 1173229023 | D80: 55477653 | E80: 168900783
A81: CIVING INGENIEROS CONTRATISTAS S EN C | B81: 1505624460 | C81: 2242849799 | D81: 239961721 | E81: 525106167
A82: LKS COLOMBIA S.A.S | B82: 473359088 | C82: =+B82 -> 473359088 | D82: 3359088 | E82: =+D82 -> 3359088
A83: GRUPO POSSO S.A.S | B83: 3925835657 | C83: 5899229050 | D83: 1750071261 | E83: 1808060312
A84: HUGO ALFREDO POSSO PRADO | B84: 1740890020 | C84: 2204364173 | D84: 468965558 | E84: 677328690
A85: CIC CONSULTORES DE INGENIERIA Y CIMENTACIONES S.A.S | B85: 0 | C85: 0 | D85: 0 | E85: 0
A86: MBM INGENIERIA S.A.S | B86: 557806783 | C86: 562606873 | D86: 1755000 | E86: 60461700
A87: TOP SUELOS INGENIERIA S.A.S | B87: 2849188502 | C87: 3586386257 | D87: 1810094901 | E87: 2004133608
A88: INPROTEKTO LIMITADA | B88: 760472921 | C88: 1065091368 | D88: 97390175 | E88: 169451429
A89: MIGUEL MORALES INGENIERIAS S.A.S | B89: 148484516 | C89: 154359465 | D89: 27059271 | E89: 27059271
A90: INGENIERIA Y CONSULTORIA INGECON S.A.S | B90: 1988177550 | C90: 3411810370 | D90: 634775914 | E90: 951428813
A91: PROYECTOS TECNICOS DE COLOMBIA PROYTECO S.A.S | B91: 2580793898 | C91: 2957223104 | D91: 174514168 | E91: 1491748519
A92: RODRIGO OSORIO OSORIO | B92: 524882644 | C92: 606654000 | D92: 928000 | E92: =+D92 -> 928000
A93: CONSULTORIA Y CONSTRUCCION LTDA | B93: 471291000 | C93: 535366000 | D93: 1000000 | E93: 61938000
A94: ESTUDIOS TECNICOS S.A.S | B94: 51226432000 | C94: 52791155000 | D94: 31011374000 | E94: 31011374000
A95: HIDROVIAS S.A.S | B95: 1982128000 | C95: 2109892000 | D95: 1255183000 | E95: 1690174000
A96: INCOPLAN S.A | B96: 5432126070 | C96: 7565688340 | D96: 2042649216 | E96: 2516728999
A97: CIVILTEC INGENIEROS LIMITADA | B97: 2583116407 | C97: 2735326720 | D97: 746305669 | E97: 1186136562
A98: EDINTER S.A.S | B98: 1786953368 | C98: 1832083768 | D98: 64253626 | E98: 64253626
A99: DICONSULTORIA S.A | B99: 3973047703 | C99: 4332046730 | D99: 1126193208 | E99: 1163693208
A100: INGENIERIA DE PROYECTOS S.A.S | B100: 3664902910 | C100: 4793075872 | D100: 417879801 | E100: 1306785735
A101: ALEX JOAQUIN OSORIO ARAQUE | B101: 2282464518 | C101: 2966804947 | D101: 59281350 | E101: 184781877
A102: OSWALDO LUIS GUTIERREZ CHARRY | B102: 97528372 | C102: 203154210 | D102: 12555067 | E102: 18060939
A103: RAFAEL AUGUSTO ZAFRA DULCEY | B103: 433442101 | C103: 481903101 | D103: 26423616 | E103: 43395216
A104: PROYECTOS GEOTECNICOS AMBIENTALES VIALES Y DE INGENIEIRA S.A.S - PI SAS | B104: 449512984 | C104: 717656957 | D104: 77307688 | E104: 184547784
A105: RAMIRO MESA BARRERA | B105: 614233238 | C105: 1528323644 | D105: 66892684 | E105: 215424766
A106: MS INGENIEROS COLOMBIA S.AS. | B106: 2000000 | C106: 2000000 | D106: 1 | E106: 0
A107: JAIME GARZON CHICA | B107: 3359553823 | C107: 4223083859 | D107: 94227134 | E107: 2076833236
A108: URBANISTAS INGENIEROS | B108: 3252713369 | C108: 3316310430 | D108: 94352661.59 | E108: 104365478.1
A109: CONSULTORIA INGENIERIA ESTUDIOS ECONOMICOS LIMITADA CITEC LTDA | B109: 103217643 | C109: 164639765 | D109: 5902799 | E109: 5902799
A110: CIVILTEC INGENIEROS LTDA | B110: 2583116407 | C110: 2735326720 | D110: 746305669 | E110: 1186136562
A111: CARLOS ALBERTO PALTA MUNOZ | B111: 664390154 | C111: 743932804 | D111: 22626136 | E111: 58227698
A112: INGENIERIA INTEGRAL DE OBRAS INGEOBRAS S.A.S | B112: 2005078424 | C112: 3441452937 | D112: 378718253 | E112: 1037473518
A113: GEOTERRA CONSULTORES GEOTECNICOS S.A.S | B113: 386832521 | C113: 420909950 | D113: 165680389 | E113: 165680389
A114: NELSON HUMBERTO AREVALO ROJAS | B114: 535500000 | C114: 947440000 | D114: 5000000 | E114: 5000000
A115: JAIME ALBERTO MOLANO FAJARDO | B115: 390605000 | C115: 528605000 | D115: 5000000 | E115: 259000000
A116: COOPERATIVA D EPROFESIONALES DE COLOMBIA " CREER EN LO NUESTRO" | B116: 3776743730 | C116: 4315551419 | D116: 223255355 | E116: 294177178
A117: VICTOR G RODRIGUEZ RAMIREZ | B117: 42418345 | C117: 55595444 | D117: 3139474 | E117: 38867834
A118: B& H INGENIERIA LTDA | B118: 563096543 | C118: 801533464 | D118: 30518459 | E118: 74112828
A119: PROVER INGENEIRIA URBANISMO Y CONSTUCCION S.L SUCURSAL COLOMBIA | B119: 2500620210 | C119: 3872185822 | D119: 335091128 | E119: 1127122974
A120: MAGDA PUENTES PRIETO | B120: 420124334 | C120: 639663407 | D120: 36262885 | E120: 113997171
A121: ARCELIA ARIAS DIAZ | B121: 590217804 | C121: 994170604 | D121: 37120891 | E121: 285478109
A122: PHI INGENEIRIA S.A.S | B122: 885333527 | C122: 906747522 | D122: 6233641 | E122: 406233641
A123: ERNESTO JOSE CUERVO MADERO | B123: 679078354 | C123: 689598354 | D123: 40532233 | E123: 40532233
A124: GERMAN ROBERTO RUED AREVALO | B124: 393886983 | C124: 393886983 | D124: 53363278 | E124: 53363278
A125: R-TERRA S.A.S | B125: 425000000 | C125: 500000000 | D125: 1 | E125: 1
A126: JORGE EMILIO MONTOYA GOYENECHE | B126: 432000000 | C126: 502000000 | D126: 1 | E126: 1
A127: CODIPRO LTDA | B127: 322566366 | C127: 334391867 | D127: 15627993 | E127: 23192835
A128: VIAS ALFA E.U | B128: 375929433 | C128: 390562433 | D128: 51135688 | E128: 51135688
A129: PROJEKTA LTDA | B129: 1186355193 | C129: 1482894651 | D129: 551335527 | E129: 591999566
A130: ANA ISABEL HENDE CARREÑO | B130: 649359502 | C130: 891901502 | D130: 56265209 | E130: 250157782
A131: ERJAR Y CIA S.A | B131: 1525147160 | C131: 2057294798 | D131: 191414580 | E131: 191414580
A132: GERMAN RAMIREZ BARBOSA | B132: 935199665 | C132: 33776819 | D132: 1654117435 | E132: 507616690
A133: CONCIC S.A.S | B133: 766399611 | C133: 769578074 | D133: 385676837 | E133: 385676837
A134: RD INGENEIROS CIVILES S.A.S | B134: 1227426882 | C134: 1332686694 | D134: 202049922 | E134: 348240907
A135: D&B INGENEIROS CIVILES S.A.S | B135: 858994551 | C135: 1650241298 | D135: 123782133 | E135: 133649315
A136: COMPAÑÍA COLOMBIANA DE CONSULTORES S.A - CCC S.A | B136: 5127820027 | C136: 7192974133 | D136: 1289820709 | E136: 3271696613
A137: PEYCO COLOMBIA
A138: GUSTAVO PEREZ MARIÑO | B138: 1740537106 | C138: 3336462534 | D138: 36238000 | E138: 217567008
A139: ROBERTO GUALDRON BULLA | B139: 700015400 | C139: 889032800 | D139: 194899094 | E139: 194899084
A140: EDGAR LOPEZ JURADO | B140: 244150930 | C140: 474107603 | D140: 17342083 | E140: 17342083
A141: JOSE DARIO FERNANDEZ RAMIREZ | B141: 761730323 | C141: 917560548 | D141: 6109000 | E141: 20209000
A142: OSCAR LISANDRO PASTRANA | B142: 385100000 | C142: 399420000 | D142: 2500000 | E142: 7500000
A143: PAVIMENTAR S.A | B143: 34662788220 | C143: 89884914898 | D143: 13587898135 | E143: 44331564439
A144: INFRAESTRUCTURA NACIONAL | B144: 1475955406 | C144: 1502101446 | D144: 182177490 | E144: 833349163
A145: YAMIL MONTENEGRO CALDERON | B145: 9441033661 | C145: 10849537696 | D145: 3490939102 | E145: 7045902946
A146: CONSTRUCTORA MONTECARLO VIAS S.A.S
A147: INCITECO S.A.S | B147: 3102790556 | C147: 3600864896 | D147: 569514925 | E147: 1641356107
A148: CONSULTORIA Y CONSTRUCCIONES DARLEV S.A.S | B148: 288526344 | C148: 331101828 | D148: 11456316 | E148: 125956316
A149: ALFONSO GOMEZ LEÓN | B149: 1319622736 | C149: 1986411306 | D149: 57093112 | E149: 571877226
A150: ROMULO TOBO USTEGUI | B150: 1798365257 | C150: 2869277409 | D150: 37261611 | E150: 1284613358
A151: JAIRO ARIAS MENDEZ | B151: 579429751 | C151: 695174817 | D151: 150000 | E151: 115410341
A152: CONSTRUVIAL LTDA | B152: 627258000 | C152: 1197660858 | D152: 8380000 | E152: 277813000
A153: BERNARDO ANCIZAR OSSA LOPEZ | B153: 16865020000 | C153: 23351391000 | D153: 7260939000 | E153: 10530759000
A154: COMPAÑÍA NACIONAL DE CONSTRUCTORES E.U | B154: 449311239 | C154: 550519687 | D154: 38638899 | E154: 180900427
A155: INARCO INGENIEROS LTDA | B155: 868790142 | C155: 872990142 | D155: 14172029 | E155: 212434224
A156: ICM INGENIEROS S.A | B156: 33606927414 | C156: 49888039546 | D156: 7554743432 | E156: 20226739014
A157: EAR INGENIEROS LTDA | B157: 4409825365 | C157: 5618742721 | D157: 134864506 | E157: 1994499618
A158: GEPAV S.A.S | B158: 1389593858 | C158: 1530369429 | D158: 385757926 | E158: 385757926
A159: ESTRUCTURAS ESPECIALES S.A | B159: 12870674636 | C159: 15340262577 | D159: 6984695419 | E159: 7644349032
A160: FERNANDO LOPEZ ROJAS | B160: 2671805572 | C160: 4394237368 | D160: 90563289 | E160: 853063289
A161: JAVIER FERNANDO LOPEZ VASQUEZ | B161: 765205776 | C161: 1008232956 | D161: 18636000 | E161: 163457331
A162: JR INGENIEROS LIMITADA | B162: 1298590982 | C162: 1395058781 | D162: 357839831 | E162: 470675367
A163: INCCA LTDA | B163: 370592042 | C163: 1126158651 | D163: 13701695 | E163: 466859589
A164: NUBIA YANETH ALVARADO TORRES | B164: 457971254 | C164: 696086469 | D164: 25238326 | E164: 111297016
A165: BERNARDO GIL ZAPATA | B165: 1658315929 | C165: 2058232731 | D165: 143877470 | E165: 1209196097
A166: REDES Y EDIFICACIONES S.A | B166: 33614367292 | C166: 42420450001 | D166: 23169664748 | E166: 29518731978
A167: CONVIAL S.A.S | B167: 4701529000 | C167: 10134559000 | D167: 1387518000 | E167: 4212234000
A168: INGENIERIA Y CIONSTRUCIONES S.A.S | B168: 8182048000 | C168: 12735747000 | D168: 3233967000 | E168: 5539840000
A169: INGECON S.A | B169: 15959509780 | C169: 20886947884 | D169: 665437814 | E169: 4542335203
A170: EDIFICACIONES Y VIAS S.A | B170: 4779893000 | C170: 6765189000 | D170: 1363455000 | E170: 4050697000
A171: CARMELO JOAQUIN ROSALES AMELL | B171: 4724254680 | C171: 8300262350 | D171: 2139417356 | E171: 3413562938
A172: ATL INGENIEROS CONTRATISTAS LTDA | B172: 4481808609 | C172: 7139401341 | D172: 1510406484 | E172: 4274047833
A173: JULIO BAHAMON VANEGAS | B173: 860486568 | C173: 973476921 | D173: 103972270 | E173: 192043380
A174: INGENIERIA DE PROYECTOS AML S.A.S | B174: 595435000 | C174: 675435000 | D174: 161950000 | E174: 161950000
A175: VIAS Y CANALES S.A.S | B175: 2006029000 | C175: 3192576000 | D175: 191029000 | E175: 1892799000
A176: JOSE CAMILO CASTRO RUIZ | B176: 1183488111 | C176: 1421208506 | D176: 8714800 | E176: 159640300
A177: MARIA JULIANA LOZANO SEPULVEDA | B177: 1227640605 | C177: 2169036605 | D177: 101548000 | E177: 812694000
A178: FRANCISCO NEFTALI SERPA ANAYA | B178: 342962786 | C178: 821101886 | D178: 40066154 | E178: 224546037
A179: ERWIN CARDENAS SCHENEEMAN | B179: 1641144835 | C179: 2144962489 | D179: 13494071 | E179: 999724748
A180: FIDEL MODESTO MOSQUERA ORDOÑEZ | B180: 282973205 | C180: 525410526 | D180: 22957610 | E180: 103770128
A181: CASTRO TCHERASSI S.A | B181: 84343749463 | C181: 160679150088 | D181: 53087883033 | E181: 83174426891
A182: EDUARDO PEDRAZA RINALDY | B182: 1088714572 | C182: 1776306536 | D182: 65823222 | E182: 410636755
A183: LUIS FERNANDO HOYOS PEREZ | B183: 2050605225 | C183: 2192627853 | D183: 334117109 | E183: 567383034
A184: VICTOR RAUL NEIRA DELBASTO | B184: 655031118 | C184: 1193217118 | D184: 45225855 | E184: 291716076
A185: CONSTCAT INTERNACIONAL AI.E SUCURSAL COLOMBIA | B185: 290505909985 | C185: 374938983590 | D185: 163486163583 | E185: 220650173436
A186: CADSA S.A.S | B186: 1562224060 | C186: 1847757066 | D186: 504980407 | E186: 877134117
A187: WANKA INGENEIRIA S.A.S | B187: 705333022 | C187: 881498026 | D187: 4299989 | E187: 68756109
A188: JOSE ALBERTO ROJAS PRIETO | B188: 1380270604 | C188: 1560758294 | D188: 11580000 | E188: 78538677
A189: OLT LOGISTICS S.A.S | B189: 9115280000 | C189: 12375300000 | D189: 60145000 | E189: 60145000
A190: OLT CONSTRUCTORES EU | B190: 1415446865 | C190: 1771428976 | D190: 23369307 | E190: 206152819
A191: CONSTRUSOCIAL S.A.S | B191: 2634507941 | C191: 2863994465 | D191: 282396225 | E191: 1467098800
A192: CDF INGENEIRIA S.A.S | B192: 130000000 | C192: =+B192 -> 130000000 | D192: 1300000 | E192: 1300000
A193: GERMAN VILLANUEVA CALDERON | B193: 3508144111 | C193: 5453128793 | D193: 181175003 | E193: 2610309557
A194: ASFALTAR S.A | B194: 6919279449 | C194: 16175298162 | D194: 2423816472 | E194: 8081540951
A195: HIFO S.A | B195: 5494249063 | C195: 7418127851 | D195: 1454428123 | E195: 2555790933
A196: CONSTRUCIONES Y CONSULTORIAS E INTERVENTORIAS DE OBRAS CIVILES | B196: 2015756000 | C196: 2742365000 | D196: 79609000 | E196: 1096155000
A197: SOCIEDAD CONSORCIO PROESCO S.A.S | B197: 488315000 | C197: 619243000 | D197: 2135000 | E197: 92035000
A198: MANUEL ALBERTO MARTINEZ RODRIGUEZ | B198: 938811000 | C198: 1401803000 | D198: 6349000 | E198: 129350000
A199: KEVIN ALBERTO VILLEGAS DE LA HOZ | B199: 759500000 | C199: 823000000 | D199: 3445000 | E199: 116895000
A200: RAFAEL ANGEL CEPEDA CORONADO
A201: GUILLERMO LEON ACERO CASTELLANOS | B201: 1168634059 | C201: 1300876751 | D201: 66424362 | E201: 148907132
A202: =+A201 -> GUILLERMO LEON ACERO CASTELLANOS
... 238 more rows

Sheet POA
A1: Modulo | B1: PO | C1: N | D1: Anticipo | F1: SMMLV 2014
A2: 1 | B2: 4167150295 | C2: 3 | D2: =+B2*0.1 -> 416715029.5 | F2: 616000
A3: 2
A4: 3
A5: 4

Sheet Puntajes
B2: EXPERIENCIA | F2: CAPACIDAD TÉCNICA
B3: Mayor a | C3: Menor o Igual a | D3: Puntaje | F3: Desde | G3: Hasta | H3: Puntaje
B4: 0 | C4: 3 | D4: 60 | F4: 1 | G4: 5 | H4: 20
B5: 3 | C5: 6 | D5: 80 | F5: 6 | G5: 10 | H5: 30
B6: 6 | C6: 10 | D6: 100 | F6: 11 | G6: Mayores | H6: 40
B7: 10 | C7: Mayores | D7: 120
B10: CAPACIDAD FINANCIERA
B11: Mayor a | C11: Menor o Igual a | D11: Puntaje
B12: 0 | C12: 0.5 | D12: 20
B13: 0.5 | C13: 0.75 | D13: 25
B14: 0.75 | C14: 1 | D14: 30
B15: 1 | C15: 1.5 | D15: 35
B16: 1.5 | C16: Mayores | D16: 40

Sheet Capacidad Financiera
B2: INSTITUTO NACIONAL DE VIAS
B3: DIRECCIÓN DE CONTRATACIÓN
B4: LICITACIÓN PÚBLICA No. LP-DO-SRN-XXX-2014
B5: EVALUACIÓN FINANCIERA
B7: DATOS DEL INTERESADO | E7: INFORMACIÓN FINANCIERA - RUP | Q7: INDICE-LIQUIDEZ | S7: INDICE-ENDEUDAMIENTO | V7: RAZON DE COBERTURA DE INTERESES | X7: EVALUACIÓN CAPACIDAD FINANCIERA | Y7: CALIDAD DE MIPYME | AA7: RENTABILIDAD DEL PATRIMONIO (ROE) | AC7: RENTABILIDAD DEL ACTIVO (ROA) | AE7: EVALUACIÓN CAPACIDAD ORGANIZACIÓN
B8: OFERTA | C8: PROPONENTE | D8: PORCENTAJE DE PARTICIPACION | E8: ACTIVO CORRIENTE | F8: ACTIVO TOTAL | G8: PASIVO CORRIENTE | H8: PASIVO TOTAL | I8: PATRIMONIO (Activo Total - Pasivo Total ) | L8: MÓDULO | M8: PLAZO | N8: MODULOS ADJUDICADOS | O8: VALOR CAPITAL DE TRABAJO DEMANDADO MODULOS ADJUDICADOS | P8: VALOR PRESUPUESTO OFICIAL ANUAL(PO) | Q8: Fórmula: Liquidez=AC/PC>=1,2 | S8: Fórmula: Endeudamiento=Pas.T/Act.Tot.<=70% | U8: VALOR PATRIMONIO REQUERIDO MODULOS ADJUDICADOS | V8: Fórmula: Razon Cobertura Intereses=UO/GI>=1,0 | X8: HABIL/NO HABIL | Y8: SMMLV 2011 | Z8: 535600 | AA8: Fórmula: ROE=UO/Pat.>=3% | AC8: Fórmula: ROA=UO/Act.Tot.>=1% | AE8: HABIL/NO HABIL
J9: UTILIDAD OPERACIONAL | K9: GASTOS DE INTERESES | Q9: Req. Min. Solvencia: > = | R9: 1.2 | S9: Req. Min. Endeudamiento: < = | T9: 0.7 | V9: Req. Min. Cobertura Intereses: > = | W9: 1 | Y9: SMMLV 2012 | Z9: 566700 | AA9: Req. Min. ROE: > = | AB9: 0.03 | AC9: Req. Min. ROA: > = | AD9: 0.01
Q10: INDICADOR | R10: RESULTADO | S10: INDICADOR | T10: RESULTADO | V10: INDICADOR | W10: RESULTADO | Y10: CALIDAD DE MIPYME EN SMMLV | Z10: 30000 | AA10: INDICADOR | AB10: RESULTADO | AC10: INDICADOR | AD10: RESULTADO
B12: 1 | C12: CONVIAL S.A.S. | D12: =IF(SUM(D13:D22)=0,"",SUM(D13:D22)) -> 1 | E12: =SUM(E13:E22) -> 6053046144 | F12: =SUM(F13:F22) -> 12281220650 | G12: =SUM(G13:G22) -> 2192379442 | H12: =SUM(H13:H22) -> 4939465837 | I12: =+F12-H12 -> 7341754813 | J12: =SUM(J13:J22) -> 2558742901 | K12: =SUM(K13:K22) -> 449501180 | L12: 1 | M12: =IF(ISERROR(VLOOKUP(L12,POA!$A$2:$C$25,3,0)),"",VLOOKUP(L12,POA!$A$2:$C$25,3,0)) -> 3 | O12: =+SUM(O13:O22) -> 0 | P12: =IF(ISERROR(VLOOKUP(L12,POA!$A$2:$C$25,2,0)),"",VLOOKUP(L12,POA!$A$2:$C$25,2,0)) -> 4167150295 | Q12: =SUM(E12/G12) -> 2.760948232 | R12: =IF(Q12=0,"",IF(Q12>=$R$9,"HABIL","NO HABIL")) -> HABIL | S12: =SUM(H12/F12) -> 0.4021966527 | T12: =IF(S12=0,"",IF(S12<=$T$9,"HABIL","NO HABIL")) -> HABIL | U12: =+SUM(U13:U22) -> 0 | V12: =SUM(J12/K12) -> 5.692405304 | W12: =IF(V12=0,"",IF(V12>=$W$9,"HABIL","NO HABIL")) -> HABIL | X12: =IF(R12=0,"",IF(R12="NO HABIL","NO HABIL",IF(T12="NO HABIL","NO HABIL",IF(W12="NO HABIL","NO HABIL",IF(W12="NO HABIL","NO HABIL","HABIL"))))) -> HABIL | AA12: =SUM(J12/I12) -> 0.3485192527 | AB12: =IF(AA12=0,"",IF(AA12>=$AB$9,"HABIL","NO HABIL")) -> HABIL | AC12: =SUM(J12/F12) -> 0.2083459759 | AD12: =IF(AC12=0,"",IF(AC12>=$AD$9,"HABIL","NO HABIL")) -> HABIL | AE12: =IF(AB12=0,"",IF(AB12="NO HABIL","NO HABIL",IF(AD12="NO HABIL","NO HABIL",IF(AD12="NO HABIL","NO HABIL","HABIL")))) -> HABIL
B13: =IF(C13="","",B12+0.1) -> 1.1 | C13: CONVIAL S.A.S. | D13: 1 | E13: 6053046144 | F13: 12281220650 | G13: 2192379442 | H13: 4939465837 | I13: =IF(ISERROR(F13-H13),"",F13-H13) -> 7341754813 | J13: 2558742901 | K13: 449501180 | M13: =IF(ISERROR(VLOOKUP(L13,POA!$A$2:$C$25,3,0)),"",VLOOKUP(L13,POA!$A$2:$C$25,3,0)) ->  | O13: =IF(ISERROR(VLOOKUP(N13,POA!$A$2:$F$25,4,0)),"",VLOOKUP(N13,POA!$A$2:$F$25,4,0)) ->  | P13: =IF(ISERROR(VLOOKUP(L13,POA!$A$2:$C$25,2,0)),"",VLOOKUP(L13,POA!$A$2:$C$25,2,0)) ->  | R13: =IF(Q13=0,"",IF(Q12>=$R$9,"HABIL","NO HABIL")) ->  | T13: =IF(S13=0,"",IF(S13<=$T$9,"HABIL","NO HABIL")) ->  | U13: =IF(ISERROR(VLOOKUP(N13,POA!$A$2:$F$25,5,0)),"",VLOOKUP(N13,POA!$A$2:$F$25,5,0)) ->  | W13: =IF(V13=0,"",IF(V13>=$W$9,"HABIL","NO HABIL")) ->  | Y13: =IF(ISERROR(F13/$Z$9),"",F13/$Z$9) -> 21671.46753 | Z13: =+IF(Y13<$Z$10,"MIPYME","NO CUMPLE") -> MIPYME | AB13: =IF(AA13=0,"",IF(AA13>=$AB$9,"HABIL","NO HABIL")) ->  | AD13: =IF(AC13=0,"",IF(AC13>=$AD$9,"HABIL","NO HABIL")) -> 
I14: =IF(ISERROR(F14-H14),"",F14-H14) -> 0 | M14: =IF(ISERROR(VLOOKUP(L14,POA!$A$2:$C$25,3,0)),"",VLOOKUP(L14,POA!$A$2:$C$25,3,0)) ->  | O14: =IF(ISERROR(VLOOKUP(N14,POA!$A$2:$F$25,4,0)),"",VLOOKUP(N14,POA!$A$2:$F$25,4,0)) ->  | P14: =IF(ISERROR(VLOOKUP(L14,POA!$A$2:$C$25,2,0)),"",VLOOKUP(L14,POA!$A$2:$C$25,2,0)) ->  | R14: =IF(Q14=0,"",IF(Q12>=$R$9,"HABIL","NO HABIL")) ->  | U14: =IF(ISERROR(VLOOKUP(N14,POA!$A$2:$F$25,5,0)),"",VLOOKUP(N14,POA!$A$2:$F$25,5,0)) ->  | Y14: =IF(ISERROR(F14/$Z$9),"",F14/$Z$9) -> 0 | Z14: =+IF(Y14<$Z$10,"MIPYME","NO CUMPLE") -> MIPYME
I15: 0 | M15: =IF(ISERROR(VLOOKUP(L15,POA!$A$2:$C$25,3,0)),"",VLOOKUP(L15,POA!$A$2:$C$25,3,0)) ->  | O15: =IF(ISERROR(VLOOKUP(N15,POA!$A$2:$F$25,4,0)),"",VLOOKUP(N15,POA!$A$2:$F$25,4,0)) ->  | P15: =IF(ISERROR(VLOOKUP(L15,POA!$A$2:$C$25,2,0)),"",VLOOKUP(L15,POA!$A$2:$C$25,2,0)) ->  | R15: =IF(Q15=0,"",IF(Q12>=$R$9,"HABIL","NO HABIL")) ->  | U15: =IF(ISERROR(VLOOKUP(N15,POA!$A$2:$F$25,5,0)),"",VLOOKUP(N15,POA!$A$2:$F$25,5,0)) ->  | Y15: 0 | Z15: MIPYME
E16: =IF(ISERROR(VLOOKUP(C16,#REF!,2,0)),"",VLOOKUP(C16,#REF!,2,0)) ->  | G16: =IF(ISERROR(VLOOKUP(C16,#REF!,4,0)),"",VLOOKUP(C16,#REF!,4,0)) ->  | I16: =IF(ISERROR(F16-H16),"",F16-H16) -> 0 | M16: =IF(ISERROR(VLOOKUP(L16,POA!$A$2:$C$25,3,0)),"",VLOOKUP(L16,POA!$A$2:$C$25,3,0)) ->  | O16: =IF(ISERROR(VLOOKUP(N16,POA!$A$2:$F$25,4,0)),"",VLOOKUP(N16,POA!$A$2:$F$25,4,0)) ->  | P16: =IF(ISERROR(VLOOKUP(L16,POA!$A$2:$C$25,2,0)),"",VLOOKUP(L16,POA!$A$2:$C$25,2,0)) ->  | R16: =IF(L16=0,"",IF(Q12>=$R$9,"HABIL","NO HABIL")) ->  | U16: =IF(ISERROR(VLOOKUP(N16,POA!$A$2:$F$25,5,0)),"",VLOOKUP(N16,POA!$A$2:$F$25,5,0)) ->  | Y16: 0 | Z16: MIPYME
E17: =IF(ISERROR(VLOOKUP(C17,#REF!,2,0)),"",VLOOKUP(C17,#REF!,2,0)) ->  | G17: =IF(ISERROR(VLOOKUP(C17,#REF!,4,0)),"",VLOOKUP(C17,#REF!,4,0)) ->  | I17: 0 | M17: =IF(ISERROR(VLOOKUP(L17,POA!$A$2:$C$25,3,0)),"",VLOOKUP(L17,POA!$A$2:$C$25,3,0)) ->  | O17: =IF(ISERROR(VLOOKUP(N17,POA!$A$2:$F$25,4,0)),"",VLOOKUP(N17,POA!$A$2:$F$25,4,0)) ->  | P17: =IF(ISERROR(VLOOKUP(L17,POA!$A$2:$C$25,2,0)),"",VLOOKUP(L17,POA!$A$2:$C$25,2,0)) ->  | R17: =IF(L17=0,"",IF(Q12>=$R$9,"HABIL","NO HABIL")) ->  | U17: =IF(ISERROR(VLOOKUP(N17,POA!$A$2:$F$25,5,0)),"",VLOOKUP(N17,POA!$A$2:$F$25,5,0)) ->  | Y17: 0 | Z17: MIPYME
E18: =IF(ISERROR(VLOOKUP(C18,#REF!,2,0)),"",VLOOKUP(C18,#REF!,2,0)) ->  | G18: =IF(ISERROR(VLOOKUP(C18,#REF!,4,0)),"",VLOOKUP(C18,#REF!,4,0)) ->  | I18: 0 | M18: =IF(ISERROR(VLOOKUP(L18,POA!$A$2:$C$25,3,0)),"",VLOOKUP(L18,POA!$A$2:$C$25,3,0)) ->  | O18: =IF(ISERROR(VLOOKUP(N18,POA!$A$2:$F$25,4,0)),"",VLOOKUP(N18,POA!$A$2:$F$25,4,0)) ->  | P18: =IF(ISERROR(VLOOKUP(L18,POA!$A$2:$C$25,2,0)),"",VLOOKUP(L18,POA!$A$2:$C$25,2,0)) ->  | R18: =IF(L18=0,"",IF(Q12>=$R$9,"HABIL","NO HABIL")) ->  | U18: =IF(ISERROR(VLOOKUP(N18,POA!$A$2:$F$25,5,0)),"",VLOOKUP(N18,POA!$A$2:$F$25,5,0)) ->  | Y18: 0 | Z18: MIPYME
B19: =IF(C19="","",B18+0.1) ->  | E19: =IF(ISERROR(VLOOKUP(C19,#REF!,2,0)),"",VLOOKUP(C19,#REF!,2,0)) ->  | G19: =IF(ISERROR(VLOOKUP(C19,#REF!,4,0)),"",VLOOKUP(C19,#REF!,4,0)) ->  | I19: =IF(ISERROR(F19-H19),"",F19-H19) -> 0 | M19: =IF(ISERROR(VLOOKUP(L19,POA!$A$2:$C$25,3,0)),"",VLOOKUP(L19,POA!$A$2:$C$25,3,0)) ->  | O19: =IF(ISERROR(VLOOKUP(N19,POA!$A$2:$F$25,4,0)),"",VLOOKUP(N19,POA!$A$2:$F$25,4,0)) ->  | P19: =IF(ISERROR(VLOOKUP(L19,POA!$A$2:$C$25,2,0)),"",VLOOKUP(L19,POA!$A$2:$C$25,2,0)) ->  | R19: =IF(L19=0,"",IF(Q12>=$R$9,"HABIL","NO HABIL")) ->  | U19: =IF(ISERROR(VLOOKUP(N19,POA!$A$2:$F$25,5,0)),"",VLOOKUP(N19,POA!$A$2:$F$25,5,0)) ->  | Y19: 0 | Z19: MIPYME
B20: =IF(C20="","",B19+0.1) ->  | E20: =IF(ISERROR(VLOOKUP(C20,#REF!,2,0)),"",VLOOKUP(C20,#REF!,2,0)) ->  | G20: =IF(ISERROR(VLOOKUP(C20,#REF!,4,0)),"",VLOOKUP(C20,#REF!,4,0)) ->  | I20: =IF(ISERROR(F20-H20),"",F20-H20) -> 0 | M20: =IF(ISERROR(VLOOKUP(L20,POA!$A$2:$C$25,3,0)),"",VLOOKUP(L20,POA!$A$2:$C$25,3,0)) ->  | O20: =IF(ISERROR(VLOOKUP(N20,POA!$A$2:$F$25,4,0)),"",VLOOKUP(N20,POA!$A$2:$F$25,4,0)) ->  | P20: =IF(ISERROR(VLOOKUP(L20,POA!$A$2:$C$25,2,0)),"",VLOOKUP(L20,POA!$A$2:$C$25,2,0)) ->  | R20: =IF(L20=0,"",IF(Q12>=$R$9,"HABIL","NO HABIL")) ->  | U20: =IF(ISERROR(VLOOKUP(N20,POA!$A$2:$F$25,5,0)),"",VLOOKUP(N20,POA!$A$2:$F$25,5,0)) ->  | Y20: 0 | Z20: MIPYME
B21: =IF(C21="","",B20+0.1) ->  | E21: =IF(ISERROR(VLOOKUP(C21,#REF!,2,0)),"",VLOOKUP(C21,#REF!,2,0)) ->  | G21: =IF(ISERROR(VLOOKUP(C21,#REF!,4,0)),"",VLOOKUP(C21,#REF!,4,0)) ->  | I21: =IF(ISERROR(F21-H21),"",F21-H21) -> 0 | M21: =IF(ISERROR(VLOOKUP(L21,POA!$A$2:$C$25,3,0)),"",VLOOKUP(L21,POA!$A$2:$C$25,3,0)) ->  | O21: =IF(ISERROR(VLOOKUP(N21,POA!$A$2:$F$25,4,0)),"",VLOOKUP(N21,POA!$A$2:$F$25,4,0)) ->  | P21: =IF(ISERROR(VLOOKUP(L21,POA!$A$2:$C$25,2,0)),"",VLOOKUP(L21,POA!$A$2:$C$25,2,0)) ->  | R21: =IF(L21=0,"",IF(Q12>=$R$9,"HABIL","NO HABIL")) ->  | U21: =IF(ISERROR(VLOOKUP(N21,POA!$A$2:$F$25,5,0)),"",VLOOKUP(N21,POA!$A$2:$F$25,5,0)) ->  | Y21: 0 | Z21: MIPYME
B22: =IF(C22="","",B21+0.1) ->  | E22: =IF(ISERROR(VLOOKUP(C22,#REF!,2,0)),"",VLOOKUP(C22,#REF!,2,0)) ->  | G22: =IF(ISERROR(VLOOKUP(C22,#REF!,4,0)),"",VLOOKUP(C22,#REF!,4,0)) ->  | I22: =IF(ISERROR(F22-H22),"",F22-H22) -> 0 | M22: =IF(ISERROR(VLOOKUP(L22,POA!$A$2:$C$25,3,0)),"",VLOOKUP(L22,POA!$A$2:$C$25,3,0)) ->  | O22: =IF(ISERROR(VLOOKUP(N22,POA!$A$2:$F$25,4,0)),"",VLOOKUP(N22,POA!$A$2:$F$25,4,0)) ->  | P22: =IF(ISERROR(VLOOKUP(L22,POA!$A$2:$C$25,2,0)),"",VLOOKUP(L22,POA!$A$2:$C$25,2,0)) ->  | R22: =IF(L22=0,"",IF(Q12>=$R$9,"HABIL","NO HABIL")) ->  | U22: =IF(ISERROR(VLOOKUP(N22,POA!$A$2:$F$25,5,0)),"",VLOOKUP(N22,POA!$A$2:$F$25,5,0)) ->  | Y22: =IF(ISERROR(F22/$Z$9),"",F22/$Z$9) -> 0 | Z22: MIPYME
B23: 2 | C23: CONSORCIO VIC DROMOS | D23: =IF(SUM(D24:D33)=0,"",SUM(D24:D33)) -> 1 | E23: =SUM(E24:E33) -> 19310298148 | F23: =SUM(F24:F33) -> 45979486554 | G23: =SUM(G24:G33) -> 12152799048 | H23: =SUM(H24:H33) -> 19900604620 | I23: =+F23-H23 -> 26078881934 | J23: =SUM(J24:J33) -> 2831943682 | K23: =SUM(K24:K33) -> 416206422 | L23: 1 | M23: =IF(ISERROR(VLOOKUP(L23,POA!$A$2:$C$25,3,0)),"",VLOOKUP(L23,POA!$A$2:$C$25,3,0)) -> 3 | O23: =+SUM(O24:O33) -> 0 | P23: =IF(ISERROR(VLOOKUP(L23,POA!$A$2:$C$25,2,0)),"",VLOOKUP(L23,POA!$A$2:$C$25,2,0)) -> 4167150295 | Q23: =SUM(E23/G23) -> 1.588958895 | R23: =IF(Q23=0,"",IF(Q23>=$R$9,"HABIL","NO HABIL")) -> HABIL | S23: =SUM(H23/F23) -> 0.432814851 | T23: =IF(S23=0,"",IF(S23<=$T$9,"HABIL","NO HABIL")) -> HABIL | U23: =+SUM(U24:U33) -> 0 | V23: =SUM(J23/K23) -> 6.804180648 | W23: =IF(V23=0,"",IF(V23>=$W$9,"HABIL","NO HABIL")) -> HABIL | X23: =IF(R23=0,"",IF(R23="NO HABIL","NO HABIL",IF(T23="NO HABIL","NO HABIL",IF(W23="NO HABIL","NO HABIL",IF(W23="NO HABIL","NO HABIL","HABIL"))))) -> HABIL | AA23: =SUM(J23/I23) -> 0.108591453 | AB23: =IF(AA23=0,"",IF(AA23>=$AB$9,"HABIL","NO HABIL")) -> HABIL | AC23: =SUM(J23/F23) -> 0.06159145946 | AD23: =IF(AC23=0,"",IF(AC23>=$AD$9,"HABIL","NO HABIL")) -> HABIL | AE23: =IF(AB23=0,"",IF(AB23="NO HABIL","NO HABIL",IF(AD23="NO HABIL","NO HABIL",IF(AD23="NO HABIL","NO HABIL","HABIL")))) -> HABIL
B24: =IF(C24="","",B23+0.1) -> 2.1 | C24: VIC S.A.S. | D24: 0.5 | E24: 1893054765 | F24: 3289853791 | G24: 934408738 | H24: 1194026279 | I24: =IF(ISERROR(F24-H24),"",F24-H24) -> 2095827512 | J24: 325915411 | K24: 73151927 | M24: =IF(ISERROR(VLOOKUP(L24,POA!$A$2:$C$25,3,0)),"",VLOOKUP(L24,POA!$A$2:$C$25,3,0)) ->  | O24: =IF(ISERROR(VLOOKUP(N24,POA!$A$2:$F$25,4,0)),"",VLOOKUP(N24,POA!$A$2:$F$25,4,0)) ->  | P24: =IF(ISERROR(VLOOKUP(L24,POA!$A$2:$C$25,2,0)),"",VLOOKUP(L24,POA!$A$2:$C$25,2,0)) ->  | R24: =IF(Q24=0,"",IF(Q23>=$R$9,"HABIL","NO HABIL")) ->  | T24: =IF(S24=0,"",IF(S24<=$T$9,"HABIL","NO HABIL")) ->  | U24: =IF(ISERROR(VLOOKUP(N24,POA!$A$2:$F$25,5,0)),"",VLOOKUP(N24,POA!$A$2:$F$25,5,0)) ->  | W24: =IF(V24=0,"",IF(V24>=$W$9,"HABIL","NO HABIL")) ->  | Y24: =IF(ISERROR(F24/$Z$9),"",F24/$Z$9) -> 5805.28285 | Z24: =+IF(Y24<$Z$10,"MIPYME","NO CUMPLE") -> MIPYME | AB24: =IF(AA24=0,"",IF(AA24>=$AB$9,"HABIL","NO HABIL")) ->  | AD24: =IF(AC24=0,"",IF(AC24>=$AD$9,"HABIL","NO HABIL")) -> 
B25: 2.2 | C25: DROMOS PAVIMENTOS S.A. | D25: 0.5 | E25: 17417243383 | F25: 42689632763 | G25: 11218390310 | H25: 18706578341 | I25: 23983054422 | J25: 2506028271 | K25: 343054495 | M25: =IF(ISERROR(VLOOKUP(L25,POA!$A$2:$C$25,3,0)),"",VLOOKUP(L25,POA!$A$2:$C$25,3,0)) ->  | O25: =IF(ISERROR(VLOOKUP(N25,POA!$A$2:$F$25,4,0)),"",VLOOKUP(N25,POA!$A$2:$F$25,4,0)) ->  | P25: =IF(ISERROR(VLOOKUP(L25,POA!$A$2:$C$25,2,0)),"",VLOOKUP(L25,POA!$A$2:$C$25,2,0)) ->  | R25: =IF(Q25=0,"",IF(Q23>=$R$9,"HABIL","NO HABIL")) ->  | U25: =IF(ISERROR(VLOOKUP(N25,POA!$A$2:$F$25,5,0)),"",VLOOKUP(N25,POA!$A$2:$F$25,5,0)) ->  | Y25: =IF(ISERROR(F25/$Z$9),"",F25/$Z$9) -> 75330.21486 | Z25: =+IF(Y25<$Z$10,"MIPYME","NO CUMPLE") -> NO CUMPLE
I26: =IF(ISERROR(F26-H26),"",F26-H26) -> 0 | M26: =IF(ISERROR(VLOOKUP(L26,POA!$A$2:$C$25,3,0)),"",VLOOKUP(L26,POA!$A$2:$C$25,3,0)) ->  | O26: =IF(ISERROR(VLOOKUP(N26,POA!$A$2:$F$25,4,0)),"",VLOOKUP(N26,POA!$A$2:$F$25,4,0)) ->  | P26: =IF(ISERROR(VLOOKUP(L26,POA!$A$2:$C$25,2,0)),"",VLOOKUP(L26,POA!$A$2:$C$25,2,0)) ->  | R26: =IF(Q26=0,"",IF(Q23>=$R$9,"HABIL","NO HABIL")) ->  | U26: =IF(ISERROR(VLOOKUP(N26,POA!$A$2:$F$25,5,0)),"",VLOOKUP(N26,POA!$A$2:$F$25,5,0)) ->  | Y26: 0 | Z26: MIPYME
E27: =IF(ISERROR(VLOOKUP(C27,#REF!,2,0)),"",VLOOKUP(C27,#REF!,2,0)) ->  | G27: =IF(ISERROR(VLOOKUP(C27,#REF!,4,0)),"",VLOOKUP(C27,#REF!,4,0)) ->  | I27: 0 | M27: =IF(ISERROR(VLOOKUP(L27,POA!$A$2:$C$25,3,0)),"",VLOOKUP(L27,POA!$A$2:$C$25,3,0)) ->  | O27: =IF(ISERROR(VLOOKUP(N27,POA!$A$2:$F$25,4,0)),"",VLOOKUP(N27,POA!$A$2:$F$25,4,0)) ->  | P27: =IF(ISERROR(VLOOKUP(L27,POA!$A$2:$C$25,2,0)),"",VLOOKUP(L27,POA!$A$2:$C$25,2,0)) ->  | R27: =IF(L27=0,"",IF(Q23>=$R$9,"HABIL","NO HABIL")) ->  | U27: =IF(ISERROR(VLOOKUP(N27,POA!$A$2:$F$25,5,0)),"",VLOOKUP(N27,POA!$A$2:$F$25,5,0)) ->  | Y27: 0 | Z27: MIPYME
E28: =IF(ISERROR(VLOOKUP(C28,#REF!,2,0)),"",VLOOKUP(C28,#REF!,2,0)) ->  | G28: =IF(ISERROR(VLOOKUP(C28,#REF!,4,0)),"",VLOOKUP(C28,#REF!,4,0)) ->  | I28: 0 | M28: =IF(ISERROR(VLOOKUP(L28,POA!$A$2:$C$25,3,0)),"",VLOOKUP(L28,POA!$A$2:$C$25,3,0)) ->  | O28: =IF(ISERROR(VLOOKUP(N28,POA!$A$2:$F$25,4,0)),"",VLOOKUP(N28,POA!$A$2:$F$25,4,0)) ->  | P28: =IF(ISERROR(VLOOKUP(L28,POA!$A$2:$C$25,2,0)),"",VLOOKUP(L28,POA!$A$2:$C$25,2,0)) ->  | R28: =IF(L28=0,"",IF(Q23>=$R$9,"HABIL","NO HABIL")) ->  | U28: =IF(ISERROR(VLOOKUP(N28,POA!$A$2:$F$25,5,0)),"",VLOOKUP(N28,POA!$A$2:$F$25,5,0)) ->  | Y28: 0 | Z28: MIPYME
E29: =IF(ISERROR(VLOOKUP(C29,#REF!,2,0)),"",VLOOKUP(C29,#REF!,2,0)) ->  | G29: =IF(ISERROR(VLOOKUP(C29,#REF!,4,0)),"",VLOOKUP(C29,#REF!,4,0)) ->  | I29: 0 | M29: =IF(ISERROR(VLOOKUP(L29,POA!$A$2:$C$25,3,0)),"",VLOOKUP(L29,POA!$A$2:$C$25,3,0)) ->  | O29: =IF(ISERROR(VLOOKUP(N29,POA!$A$2:$F$25,4,0)),"",VLOOKUP(N29,POA!$A$2:$F$25,4,0)) ->  | P29: =IF(ISERROR(VLOOKUP(L29,POA!$A$2:$C$25,2,0)),"",VLOOKUP(L29,POA!$A$2:$C$25,2,0)) ->  | R29: =IF(L29=0,"",IF(Q23>=$R$9,"HABIL","NO HABIL")) ->  | U29: =IF(ISERROR(VLOOKUP(N29,POA!$A$2:$F$25,5,0)),"",VLOOKUP(N29,POA!$A$2:$F$25,5,0)) ->  | Y29: 0 | Z29: MIPYME
B30: =IF(C30="","",B29+0.1) ->  | E30: =IF(ISERROR(VLOOKUP(C30,#REF!,2,0)),"",VLOOKUP(C30,#REF!,2,0)) ->  | G30: =IF(ISERROR(VLOOKUP(C30,#REF!,4,0)),"",VLOOKUP(C30,#REF!,4,0)) ->  | I30: =IF(ISERROR(F30-H30),"",F30-H30) -> 0 | M30: =IF(ISERROR(VLOOKUP(L30,POA!$A$2:$C$25,3,0)),"",VLOOKUP(L30,POA!$A$2:$C$25,3,0)) ->  | O30: =IF(ISERROR(VLOOKUP(N30,POA!$A$2:$F$25,4,0)),"",VLOOKUP(N30,POA!$A$2:$F$25,4,0)) ->  | P30: =IF(ISERROR(VLOOKUP(L30,POA!$A$2:$C$25,2,0)),"",VLOOKUP(L30,POA!$A$2:$C$25,2,0)) ->  | R30: =IF(L30=0,"",IF(Q23>=$R$9,"HABIL","NO HABIL")) ->  | U30: =IF(ISERROR(VLOOKUP(N30,POA!$A$2:$F$25,5,0)),"",VLOOKUP(N30,POA!$A$2:$F$25,5,0)) ->  | Y30: 0 | Z30: MIPYME
B31: =IF(C31="","",B30+0.1) ->  | E31: =IF(ISERROR(VLOOKUP(C31,#REF!,2,0)),"",VLOOKUP(C31,#REF!,2,0)) ->  | G31: =IF(ISERROR(VLOOKUP(C31,#REF!,4,0)),"",VLOOKUP(C31,#REF!,4,0)) ->  | I31: =IF(ISERROR(F31-H31),"",F31-H31) -> 0 | M31: =IF(ISERROR(VLOOKUP(L31,POA!$A$2:$C$25,3,0)),"",VLOOKUP(L31,POA!$A$2:$C$25,3,0)) ->  | O31: =IF(ISERROR(VLOOKUP(N31,POA!$A$2:$F$25,4,0)),"",VLOOKUP(N31,POA!$A$2:$F$25,4,0)) ->  | P31: =IF(ISERROR(VLOOKUP(L31,POA!$A$2:$C$25,2,0)),"",VLOOKUP(L31,POA!$A$2:$C$25,2,0)) ->  | R31: =IF(L31=0,"",IF(Q23>=$R$9,"HABIL","NO HABIL")) ->  | U31: =IF(ISERROR(VLOOKUP(N31,POA!$A$2:$F$25,5,0)),"",VLOOKUP(N31,POA!$A$2:$F$25,5,0)) ->  | Y31: 0 | Z31: MIPYME
B32: =IF(C32="","",B31+0.1) ->  | E32: =IF(ISERROR(VLOOKUP(C32,#REF!,2,0)),"",VLOOKUP(C32,#REF!,2,0)) ->  | G32: =IF(ISERROR(VLOOKUP(C32,#REF!,4,0)),"",VLOOKUP(C32,#REF!,4,0)) ->  | I32: =IF(ISERROR(F32-H32),"",F32-H32) -> 0 | M32: =IF(ISERROR(VLOOKUP(L32,POA!$A$2:$C$25,3,0)),"",VLOOKUP(L32,POA!$A$2:$C$25,3,0)) ->  | O32: =IF(ISERROR(VLOOKUP(N32,POA!$A$2:$F$25,4,0)),"",VLOOKUP(N32,POA!$A$2:$F$25,4,0)) ->  | P32: =IF(ISERROR(VLOOKUP(L32,POA!$A$2:$C$25,2,0)),"",VLOOKUP(L32,POA!$A$2:$C$25,2,0)) ->  | R32: =IF(L32=0,"",IF(Q23>=$R$9,"HABIL","NO HABIL")) ->  | U32: =IF(ISERROR(VLOOKUP(N32,POA!$A$2:$F$25,5,0)),"",VLOOKUP(N32,POA!$A$2:$F$25,5,0)) ->  | Y32: 0 | Z32: MIPYME
B33: =IF(C33="","",B32+0.1) ->  | E33: =IF(ISERROR(VLOOKUP(C33,#REF!,2,0)),"",VLOOKUP(C33,#REF!,2,0)) ->  | G33: =IF(ISERROR(VLOOKUP(C33,#REF!,4,0)),"",VLOOKUP(C33,#REF!,4,0)) ->  | I33: =IF(ISERROR(F33-H33),"",F33-H33) -> 0 | M33: =IF(ISERROR(VLOOKUP(L33,POA!$A$2:$C$25,3,0)),"",VLOOKUP(L33,POA!$A$2:$C$25,3,0)) ->  | O33: =IF(ISERROR(VLOOKUP(N33,POA!$A$2:$F$25,4,0)),"",VLOOKUP(N33,POA!$A$2:$F$25,4,0)) ->  | P33: =IF(ISERROR(VLOOKUP(L33,POA!$A$2:$C$25,2,0)),"",VLOOKUP(L33,POA!$A$2:$C$25,2,0)) ->  | R33: =IF(L33=0,"",IF(Q23>=$R$9,"HABIL","NO HABIL")) ->  | U33: =IF(ISERROR(VLOOKUP(N33,POA!$A$2:$F$25,5,0)),"",VLOOKUP(N33,POA!$A$2:$F$25,5,0)) ->  | Y33: =IF(ISERROR(F33/$Z$9),"",F33/$Z$9) -> 0 | Z33: MIPYME
B34: 3 | C34: EQUIPOS CONSTRUCCIONES Y OBRAS S.A. | D34: =IF(SUM(D35:D44)=0,"",SUM(D35:D44)) -> 1 | E34: =SUM(E35:E44) -> 8410906369 | F34: =SUM(F35:F44) -> 2.051535396e+10 | G34: =SUM(G35:G44) -> 2808408842 | H34: =SUM(H35:H44) -> 5289970321 | I34: =+F34-H34 -> 1.522538364e+10 | J34: =SUM(J35:J44) -> 2351613363 | K34: =SUM(K35:K44) -> 564863468 | L34: 1 | M34: =IF(ISERROR(VLOOKUP(L34,POA!$A$2:$C$25,3,0)),"",VLOOKUP(L34,POA!$A$2:$C$25,3,0)) -> 3 | O34: =+SUM(O35:O44) -> 0 | P34: =IF(ISERROR(VLOOKUP(L34,POA!$A$2:$C$25,2,0)),"",VLOOKUP(L34,POA!$A$2:$C$25,2,0)) -> 4167150295 | Q34: =SUM(E34/G34) -> 2.994900972 | R34: =IF(Q34=0,"",IF(Q34>=$R$9,"HABIL","NO HABIL")) -> HABIL | S34: =SUM(H34/F34) -> 0.2578542067 | T34: =IF(S34=0,"",IF(S34<=$T$9,"HABIL","NO HABIL")) -> HABIL | U34: =+SUM(U35:U44) -> 0 | V34: =SUM(J34/K34) -> 4.163153569 | W34: =IF(V34=0,"",IF(V34>=$W$9,"HABIL","NO HABIL")) -> HABIL | X34: =IF(R34=0,"",IF(R34="NO HABIL","NO HABIL",IF(T34="NO HABIL","NO HABIL",IF(W34="NO HABIL","NO HABIL",IF(W34="NO HABIL","NO HABIL","HABIL"))))) -> HABIL | AA34: =SUM(J34/I34) -> 0.1544534718 | AB34: =IF(AA34=0,"",IF(AA34>=$AB$9,"HABIL","NO HABIL")) -> HABIL | AC34: =SUM(J34/F34) -> 0.1146269944 | AD34: =IF(AC34=0,"",IF(AC34>=$AD$9,"HABIL","NO HABIL")) -> HABIL | AE34: =IF(AB34=0,"",IF(AB34="NO HABIL","NO HABIL",IF(AD34="NO HABIL","NO HABIL",IF(AD34="NO HABIL","NO HABIL","HABIL")))) -> HABIL
B35: =IF(C35="","",B34+0.1) -> 3.1 | C35: EQUIPOS CONSTRUCCIONES Y OBRAS S.A. | D35: 1 | E35: 8410906369 | F35: 2.051535396e+10 | G35: 2808408842 | H35: 5289970321 | I35: =IF(ISERROR(F35-H35),"",F35-H35) -> 1.522538364e+10 | J35: 2351613363 | K35: 564863468 | M35: =IF(ISERROR(VLOOKUP(L35,POA!$A$2:$C$25,3,0)),"",VLOOKUP(L35,POA!$A$2:$C$25,3,0)) ->  | O35: =IF(ISERROR(VLOOKUP(N35,POA!$A$2:$F$25,4,0)),"",VLOOKUP(N35,POA!$A$2:$F$25,4,0)) ->  | P35: =IF(ISERROR(VLOOKUP(L35,POA!$A$2:$C$25,2,0)),"",VLOOKUP(L35,POA!$A$2:$C$25,2,0)) ->  | R35: =IF(Q35=0,"",IF(Q34>=$R$9,"HABIL","NO HABIL")) ->  | T35: =IF(S35=0,"",IF(S35<=$T$9,"HABIL","NO HABIL")) ->  | U35: =IF(ISERROR(VLOOKUP(N35,POA!$A$2:$F$25,5,0)),"",VLOOKUP(N35,POA!$A$2:$F$25,5,0)) ->  | W35: =IF(V35=0,"",IF(V35>=$W$9,"HABIL","NO HABIL")) ->  | Y35: =IF(ISERROR(F35/$Z$9),"",F35/$Z$9) -> 36201.43632 | Z35: =+IF(Y35<$Z$10,"MIPYME","NO CUMPLE") -> NO CUMPLE | AB35: =IF(AA35=0,"",IF(AA35>=$AB$9,"HABIL","NO HABIL")) ->  | AD35: =IF(AC35=0,"",IF(AC35>=$AD$9,"HABIL","NO HABIL")) -> 
I36: 0 | M36: =IF(ISERROR(VLOOKUP(L36,POA!$A$2:$C$25,3,0)),"",VLOOKUP(L36,POA!$A$2:$C$25,3,0)) ->  | O36: =IF(ISERROR(VLOOKUP(N36,POA!$A$2:$F$25,4,0)),"",VLOOKUP(N36,POA!$A$2:$F$25,4,0)) ->  | P36: =IF(ISERROR(VLOOKUP(L36,POA!$A$2:$C$25,2,0)),"",VLOOKUP(L36,POA!$A$2:$C$25,2,0)) ->  | R36: =IF(Q36=0,"",IF(Q34>=$R$9,"HABIL","NO HABIL")) ->  | U36: =IF(ISERROR(VLOOKUP(N36,POA!$A$2:$F$25,5,0)),"",VLOOKUP(N36,POA!$A$2:$F$25,5,0)) ->  | Y36: =IF(ISERROR(F36/$Z$9),"",F36/$Z$9) -> 0 | Z36: =+IF(Y36<$Z$10,"MIPYME","NO CUMPLE") -> MIPYME
I37: 0 | M37: =IF(ISERROR(VLOOKUP(L37,POA!$A$2:$C$25,3,0)),"",VLOOKUP(L37,POA!$A$2:$C$25,3,0)) ->  | O37: =IF(ISERROR(VLOOKUP(N37,POA!$A$2:$F$25,4,0)),"",VLOOKUP(N37,POA!$A$2:$F$25,4,0)) ->  | P37: =IF(ISERROR(VLOOKUP(L37,POA!$A$2:$C$25,2,0)),"",VLOOKUP(L37,POA!$A$2:$C$25,2,0)) ->  | R37: =IF(Q37=0,"",IF(Q34>=$R$9,"HABIL","NO HABIL")) ->  | U37: =IF(ISERROR(VLOOKUP(N37,POA!$A$2:$F$25,5,0)),"",VLOOKUP(N37,POA!$A$2:$F$25,5,0)) ->  | Y37: 0 | Z37: MIPYME
E38: =IF(ISERROR(VLOOKUP(C38,#REF!,2,0)),"",VLOOKUP(C38,#REF!,2,0)) ->  | G38: =IF(ISERROR(VLOOKUP(C38,#REF!,4,0)),"",VLOOKUP(C38,#REF!,4,0)) ->  | I38: 0 | M38: =IF(ISERROR(VLOOKUP(L38,POA!$A$2:$C$25,3,0)),"",VLOOKUP(L38,POA!$A$2:$C$25,3,0)) ->  | O38: =IF(ISERROR(VLOOKUP(N38,POA!$A$2:$F$25,4,0)),"",VLOOKUP(N38,POA!$A$2:$F$25,4,0)) ->  | P38: =IF(ISERROR(VLOOKUP(L38,POA!$A$2:$C$25,2,0)),"",VLOOKUP(L38,POA!$A$2:$C$25,2,0)) ->  | R38: =IF(L38=0,"",IF(Q34>=$R$9,"HABIL","NO HABIL")) ->  | U38: =IF(ISERROR(VLOOKUP(N38,POA!$A$2:$F$25,5,0)),"",VLOOKUP(N38,POA!$A$2:$F$25,5,0)) ->  | Y38: 0 | Z38: MIPYME
E39: =IF(ISERROR(VLOOKUP(C39,#REF!,2,0)),"",VLOOKUP(C39,#REF!,2,0)) ->  | G39: =IF(ISERROR(VLOOKUP(C39,#REF!,4,0)),"",VLOOKUP(C39,#REF!,4,0)) ->  | I39: 0 | M39: =IF(ISERROR(VLOOKUP(L39,POA!$A$2:$C$25,3,0)),"",VLOOKUP(L39,POA!$A$2:$C$25,3,0)) ->  | O39: =IF(ISERROR(VLOOKUP(N39,POA!$A$2:$F$25,4,0)),"",VLOOKUP(N39,POA!$A$2:$F$25,4,0)) ->  | P39: =IF(ISERROR(VLOOKUP(L39,POA!$A$2:$C$25,2,0)),"",VLOOKUP(L39,POA!$A$2:$C$25,2,0)) ->  | R39: =IF(L39=0,"",IF(Q34>=$R$9,"HABIL","NO HABIL")) ->  | U39: =IF(ISERROR(VLOOKUP(N39,POA!$A$2:$F$25,5,0)),"",VLOOKUP(N39,POA!$A$2:$F$25,5,0)) ->  | Y39: 0 | Z39: MIPYME
E40: =IF(ISERROR(VLOOKUP(C40,#REF!,2,0)),"",VLOOKUP(C40,#REF!,2,0)) ->  | G40: =IF(ISERROR(VLOOKUP(C40,#REF!,4,0)),"",VLOOKUP(C40,#REF!,4,0)) ->  | I40: 0 | M40: =IF(ISERROR(VLOOKUP(L40,POA!$A$2:$C$25,3,0)),"",VLOOKUP(L40,POA!$A$2:$C$25,3,0)) ->  | O40: =IF(ISERROR(VLOOKUP(N40,POA!$A$2:$F$25,4,0)),"",VLOOKUP(N40,POA!$A$2:$F$25,4,0)) ->  | P40: =IF(ISERROR(VLOOKUP(L40,POA!$A$2:$C$25,2,0)),"",VLOOKUP(L40,POA!$A$2:$C$25,2,0)) ->  | R40: =IF(L40=0,"",IF(Q34>=$R$9,"HABIL","NO HABIL")) ->  | U40: =IF(ISERROR(VLOOKUP(N40,POA!$A$2:$F$25,5,0)),"",VLOOKUP(N40,POA!$A$2:$F$25,5,0)) ->  | Y40: 0 | Z40: MIPYME
B41: =IF(C41="","",B40+0.1) ->  | E41: =IF(ISERROR(VLOOKUP(C41,#REF!,2,0)),"",VLOOKUP(C41,#REF!,2,0)) ->  | G41: =IF(ISERROR(VLOOKUP(C41,#REF!,4,0)),"",VLOOKUP(C41,#REF!,4,0)) ->  | I41: =IF(ISERROR(F41-H41),"",F41-H41) -> 0 | M41: =IF(ISERROR(VLOOKUP(L41,POA!$A$2:$C$25,3,0)),"",VLOOKUP(L41,POA!$A$2:$C$25,3,0)) ->  | O41: =IF(ISERROR(VLOOKUP(N41,POA!$A$2:$F$25,4,0)),"",VLOOKUP(N41,POA!$A$2:$F$25,4,0)) ->  | P41: =IF(ISERROR(VLOOKUP(L41,POA!$A$2:$C$25,2,0)),"",VLOOKUP(L41,POA!$A$2:$C$25,2,0)) ->  | R41: =IF(L41=0,"",IF(Q34>=$R$9,"HABIL","NO HABIL")) ->  | U41: =IF(ISERROR(VLOOKUP(N41,POA!$A$2:$F$25,5,0)),"",VLOOKUP(N41,POA!$A$2:$F$25,5,0)) ->  | Y41: 0 | Z41: MIPYME
B42: =IF(C42="","",B41+0.1) ->  | E42: =IF(ISERROR(VLOOKUP(C42,#REF!,2,0)),"",VLOOKUP(C42,#REF!,2,0)) ->  | G42: =IF(ISERROR(VLOOKUP(C42,#REF!,4,0)),"",VLOOKUP(C42,#REF!,4,0)) ->  | I42: =IF(ISERROR(F42-H42),"",F42-H42) -> 0 | M42: =IF(ISERROR(VLOOKUP(L42,POA!$A$2:$C$25,3,0)),"",VLOOKUP(L42,POA!$A$2:$C$25,3,0)) ->  | O42: =IF(ISERROR(VLOOKUP(N42,POA!$A$2:$F$25,4,0)),"",VLOOKUP(N42,POA!$A$2:$F$25,4,0)) ->  | P42: =IF(ISERROR(VLOOKUP(L42,POA!$A$2:$C$25,2,0)),"",VLOOKUP(L42,POA!$A$2:$C$25,2,0)) ->  | R42: =IF(L42=0,"",IF(Q34>=$R$9,"HABIL","NO HABIL")) ->  | U42: =IF(ISERROR(VLOOKUP(N42,POA!$A$2:$F$25,5,0)),"",VLOOKUP(N42,POA!$A$2:$F$25,5,0)) ->  | Y42: 0 | Z42: MIPYME
B43: =IF(C43="","",B42+0.1) ->  | E43: =IF(ISERROR(VLOOKUP(C43,#REF!,2,0)),"",VLOOKUP(C43,#REF!,2,0)) ->  | G43: =IF(ISERROR(VLOOKUP(C43,#REF!,4,0)),"",VLOOKUP(C43,#REF!,4,0)) ->  | I43: =IF(ISERROR(F43-H43),"",F43-H43) -> 0 | M43: =IF(ISERROR(VLOOKUP(L43,POA!$A$2:$C$25,3,0)),"",VLOOKUP(L43,POA!$A$2:$C$25,3,0)) ->  | O43: =IF(ISERROR(VLOOKUP(N43,POA!$A$2:$F$25,4,0)),"",VLOOKUP(N43,POA!$A$2:$F$25,4,0)) ->  | P43: =IF(ISERROR(VLOOKUP(L43,POA!$A$2:$C$25,2,0)),"",VLOOKUP(L43,POA!$A$2:$C$25,2,0)) ->  | R43: =IF(L43=0,"",IF(Q34>=$R$9,"HABIL","NO HABIL")) ->  | U43: =IF(ISERROR(VLOOKUP(N43,POA!$A$2:$F$25,5,0)),"",VLOOKUP(N43,POA!$A$2:$F$25,5,0)) ->  | Y43: 0 | Z43: MIPYME
B44: =IF(C44="","",B43+0.1) ->  | E44: =IF(ISERROR(VLOOKUP(C44,#REF!,2,0)),"",VLOOKUP(C44,#REF!,2,0)) ->  | G44: =IF(ISERROR(VLOOKUP(C44,#REF!,4,0)),"",VLOOKUP(C44,#REF!,4,0)) ->  | I44: =IF(ISERROR(F44-H44),"",F44-H44) -> 0 | M44: =IF(ISERROR(VLOOKUP(L44,POA!$A$2:$C$25,3,0)),"",VLOOKUP(L44,POA!$A$2:$C$25,3,0)) ->  | O44: =IF(ISERROR(VLOOKUP(N44,POA!$A$2:$F$25,4,0)),"",VLOOKUP(N44,POA!$A$2:$F$25,4,0)) ->  | P44: =IF(ISERROR(VLOOKUP(L44,POA!$A$2:$C$25,2,0)),"",VLOOKUP(L44,POA!$A$2:$C$25,2,0)) ->  | R44: =IF(L44=0,"",IF(Q34>=$R$9,"HABIL","NO HABIL")) ->  | U44: =IF(ISERROR(VLOOKUP(N44,POA!$A$2:$F$25,5,0)),"",VLOOKUP(N44,POA!$A$2:$F$25,5,0)) ->  | Y44: =IF(ISERROR(F44/$Z$9),"",F44/$Z$9) -> 0 | Z44: MIPYME
B45: 4 | C45: CONSORCIO IPV | D45: =IF(SUM(D46:D55)=0,"",SUM(D46:D55)) -> 1 | E45: =SUM(E46:E55) -> 5127406552 | F45: =SUM(F46:F55) -> 7409140128 | G45: =SUM(G46:G55) -> 108677433 | H45: =SUM(H46:H55) -> 3450533432 | I45: =+F45-H45 -> 3958606696 | J45: =SUM(J46:J55) -> 594969981 | K45: =SUM(K46:K55) -> 73441217 | L45: 1 | M45: =IF(ISERROR(VLOOKUP(L45,POA!$A$2:$C$25,3,0)),"",VLOOKUP(L45,POA!$A$2:$C$25,3,0)) -> 3 | O45: =+SUM(O46:O55) -> 0 | P45: =IF(ISERROR(VLOOKUP(L45,POA!$A$2:$C$25,2,0)),"",VLOOKUP(L45,POA!$A$2:$C$25,2,0)) -> 4167150295 | Q45: =SUM(E45/G45) -> 47.18004843 | R45: =IF(Q45=0,"",IF(Q45>=$R$9,"HABIL","NO HABIL")) -> HABIL | S45: =SUM(H45/F45) -> 0.465713075 | T45: =IF(S45=0,"",IF(S45<=$T$9,"HABIL","NO HABIL")) -> HABIL | U45: =+SUM(U46:U55) -> 0 | V45: =SUM(J45/K45) -> 8.101308847 | W45: =IF(V45=0,"",IF(V45>=$W$9,"HABIL","NO HABIL")) -> HABIL | X45: =IF(R45=0,"",IF(R45="NO HABIL","NO HABIL",IF(T45="NO HABIL","NO HABIL",IF(W45="NO HABIL","NO HABIL",IF(W45="NO HABIL","NO HABIL","HABIL"))))) -> HABIL | AA45: =SUM(J45/I45) -> 0.1502978262 | AB45: =IF(AA45=0,"",IF(AA45>=$AB$9,"HABIL","NO HABIL")) -> HABIL | AC45: =SUM(J45/F45) -> 0.08030216337 | AD45: =IF(AC45=0,"",IF(AC45>=$AD$9,"HABIL","NO HABIL")) -> HABIL | AE45: =IF(AB45=0,"",IF(AB45="NO HABIL","NO HABIL",IF(AD45="NO HABIL","NO HABIL",IF(AD45="NO HABIL","NO HABIL","HABIL")))) -> HABIL
B46: =IF(C46="","",B45+0.1) -> 4.1 | C46: INGENIERIA DE PUENTES Y VIAS S.A.S. | D46: 0.3 | E46: 2356947366 | F46: 2806947366 | G46: 75460790 | H46: 1664300957 | I46: =IF(ISERROR(F46-H46),"",F46-H46) -> 1142646409 | J46: 185884976 | K46: 47211217 | M46: =IF(ISERROR(VLOOKUP(L46,POA!$A$2:$C$25,3,0)),"",VLOOKUP(L46,POA!$A$2:$C$25,3,0)) ->  | O46: =IF(ISERROR(VLOOKUP(N46,POA!$A$2:$F$25,4,0)),"",VLOOKUP(N46,POA!$A$2:$F$25,4,0)) ->  | P46: =IF(ISERROR(VLOOKUP(L46,POA!$A$2:$C$25,2,0)),"",VLOOKUP(L46,POA!$A$2:$C$25,2,0)) ->  | R46: =IF(Q46=0,"",IF(Q45>=$R$9,"HABIL","NO HABIL")) ->  | T46: =IF(S46=0,"",IF(S46<=$T$9,"HABIL","NO HABIL")) ->  | U46: =IF(ISERROR(VLOOKUP(N46,POA!$A$2:$F$25,5,0)),"",VLOOKUP(N46,POA!$A$2:$F$25,5,0)) ->  | W46: =IF(V46=0,"",IF(V46>=$W$9,"HABIL","NO HABIL")) ->  | Y46: =IF(ISERROR(F46/$Z$9),"",F46/$Z$9) -> 4953.145167 | Z46: =+IF(Y46<$Z$10,"MIPYME","NO CUMPLE") -> MIPYME | AB46: =IF(AA46=0,"",IF(AA46>=$AB$9,"HABIL","NO HABIL")) ->  | AD46: =IF(AC46=0,"",IF(AC46>=$AD$9,"HABIL","NO HABIL")) -> 
B47: 4.2 | C47: RENAN CARDOZO CARDOZO | D47: 0.2 | E47: 1404885338 | F47: 2110854604 | G47: 25000000 | H47: 751163300 | I47: 1359691304 | J47: 256000000 | K47: 17500000 | M47: =IF(ISERROR(VLOOKUP(L47,POA!$A$2:$C$25,3,0)),"",VLOOKUP(L47,POA!$A$2:$C$25,3,0)) ->  | O47: =IF(ISERROR(VLOOKUP(N47,POA!$A$2:$F$25,4,0)),"",VLOOKUP(N47,POA!$A$2:$F$25,4,0)) ->  | P47: =IF(ISERROR(VLOOKUP(L47,POA!$A$2:$C$25,2,0)),"",VLOOKUP(L47,POA!$A$2:$C$25,2,0)) ->  | R47: =IF(Q47=0,"",IF(Q45>=$R$9,"HABIL","NO HABIL")) ->  | U47: =IF(ISERROR(VLOOKUP(N47,POA!$A$2:$F$25,5,0)),"",VLOOKUP(N47,POA!$A$2:$F$25,5,0)) ->  | Y47: =IF(ISERROR(F47/$Z$9),"",F47/$Z$9) -> 3724.81843 | Z47: =+IF(Y47<$Z$10,"MIPYME","NO CUMPLE") -> MIPYME
B48: 4.3 | C48: OMAR CARDOZO CARDOZO | D48: 0.2 | E48: 1012017040 | F48: 1769404040 | G48: 7610751 | H48: 1034463283 | I48: 734940757 | J48: 125654000 | K48: 8730000 | M48: =IF(ISERROR(VLOOKUP(L48,POA!$A$2:$C$25,3,0)),"",VLOOKUP(L48,POA!$A$2:$C$25,3,0)) ->  | O48: =IF(ISERROR(VLOOKUP(N48,POA!$A$2:$F$25,4,0)),"",VLOOKUP(N48,POA!$A$2:$F$25,4,0)) ->  | P48: =IF(ISERROR(VLOOKUP(L48,POA!$A$2:$C$25,2,0)),"",VLOOKUP(L48,POA!$A$2:$C$25,2,0)) ->  | R48: =IF(Q48=0,"",IF(Q45>=$R$9,"HABIL","NO HABIL")) ->  | U48: =IF(ISERROR(VLOOKUP(N48,POA!$A$2:$F$25,5,0)),"",VLOOKUP(N48,POA!$A$2:$F$25,5,0)) ->  | Y48: 3122.294053 | Z48: MIPYME
B49: 4.4 | C49: LUIS MORENO RUBIO | D49: 0.3 | E49: 353556808 | F49: 721934118 | G49: 605892 | H49: 605892 | I49: 721328226 | J49: 27431005 | K49: 0 | M49: =IF(ISERROR(VLOOKUP(L49,POA!$A$2:$C$25,3,0)),"",VLOOKUP(L49,POA!$A$2:$C$25,3,0)) ->  | O49: =IF(ISERROR(VLOOKUP(N49,POA!$A$2:$F$25,4,0)),"",VLOOKUP(N49,POA!$A$2:$F$25,4,0)) ->  | P49: =IF(ISERROR(VLOOKUP(L49,POA!$A$2:$C$25,2,0)),"",VLOOKUP(L49,POA!$A$2:$C$25,2,0)) ->  | R49: =IF(L49=0,"",IF(Q45>=$R$9,"HABIL","NO HABIL")) ->  | U49: =IF(ISERROR(VLOOKUP(N49,POA!$A$2:$F$25,5,0)),"",VLOOKUP(N49,POA!$A$2:$F$25,5,0)) ->  | Y49: 1273.926448 | Z49: MIPYME
E50: =IF(ISERROR(VLOOKUP(C50,#REF!,2,0)),"",VLOOKUP(C50,#REF!,2,0)) ->  | G50: =IF(ISERROR(VLOOKUP(C50,#REF!,4,0)),"",VLOOKUP(C50,#REF!,4,0)) ->  | I50: =IF(ISERROR(F50-H50),"",F50-H50) -> 0 | M50: =IF(ISERROR(VLOOKUP(L50,POA!$A$2:$C$25,3,0)),"",VLOOKUP(L50,POA!$A$2:$C$25,3,0)) ->  | O50: =IF(ISERROR(VLOOKUP(N50,POA!$A$2:$F$25,4,0)),"",VLOOKUP(N50,POA!$A$2:$F$25,4,0)) ->  | P50: =IF(ISERROR(VLOOKUP(L50,POA!$A$2:$C$25,2,0)),"",VLOOKUP(L50,POA!$A$2:$C$25,2,0)) ->  | R50: =IF(L50=0,"",IF(Q45>=$R$9,"HABIL","NO HABIL")) ->  | U50: =IF(ISERROR(VLOOKUP(N50,POA!$A$2:$F$25,5,0)),"",VLOOKUP(N50,POA!$A$2:$F$25,5,0)) ->  | Y50: 0 | Z50: MIPYME
E51: =IF(ISERROR(VLOOKUP(C51,#REF!,2,0)),"",VLOOKUP(C51,#REF!,2,0)) ->  | G51: =IF(ISERROR(VLOOKUP(C51,#REF!,4,0)),"",VLOOKUP(C51,#REF!,4,0)) ->  | I51: 0 | M51: =IF(ISERROR(VLOOKUP(L51,POA!$A$2:$C$25,3,0)),"",VLOOKUP(L51,POA!$A$2:$C$25,3,0)) ->  | O51: =IF(ISERROR(VLOOKUP(N51,POA!$A$2:$F$25,4,0)),"",VLOOKUP(N51,POA!$A$2:$F$25,4,0)) ->  | P51: =IF(ISERROR(VLOOKUP(L51,POA!$A$2:$C$25,2,0)),"",VLOOKUP(L51,POA!$A$2:$C$25,2,0)) ->  | R51: =IF(L51=0,"",IF(Q45>=$R$9,"HABIL","NO HABIL")) ->  | U51: =IF(ISERROR(VLOOKUP(N51,POA!$A$2:$F$25,5,0)),"",VLOOKUP(N51,POA!$A$2:$F$25,5,0)) ->  | Y51: 0 | Z51: MIPYME
B52: =IF(C52="","",B51+0.1) ->  | E52: =IF(ISERROR(VLOOKUP(C52,#REF!,2,0)),"",VLOOKUP(C52,#REF!,2,0)) ->  | G52: =IF(ISERROR(VLOOKUP(C52,#REF!,4,0)),"",VLOOKUP(C52,#REF!,4,0)) ->  | I52: =IF(ISERROR(F52-H52),"",F52-H52) -> 0 | M52: =IF(ISERROR(VLOOKUP(L52,POA!$A$2:$C$25,3,0)),"",VLOOKUP(L52,POA!$A$2:$C$25,3,0)) ->  | O52: =IF(ISERROR(VLOOKUP(N52,POA!$A$2:$F$25,4,0)),"",VLOOKUP(N52,POA!$A$2:$F$25,4,0)) ->  | P52: =IF(ISERROR(VLOOKUP(L52,POA!$A$2:$C$25,2,0)),"",VLOOKUP(L52,POA!$A$2:$C$25,2,0)) ->  | R52: =IF(L52=0,"",IF(Q45>=$R$9,"HABIL","NO HABIL")) ->  | U52: =IF(ISERROR(VLOOKUP(N52,POA!$A$2:$F$25,5,0)),"",VLOOKUP(N52,POA!$A$2:$F$25,5,0)) ->  | Y52: 0 | Z52: MIPYME
B53: =IF(C53="","",B52+0.1) ->  | E53: =IF(ISERROR(VLOOKUP(C53,#REF!,2,0)),"",VLOOKUP(C53,#REF!,2,0)) ->  | G53: =IF(ISERROR(VLOOKUP(C53,#REF!,4,0)),"",VLOOKUP(C53,#REF!,4,0)) ->  | I53: =IF(ISERROR(F53-H53),"",F53-H53) -> 0 | M53: =IF(ISERROR(VLOOKUP(L53,POA!$A$2:$C$25,3,0)),"",VLOOKUP(L53,POA!$A$2:$C$25,3,0)) ->  | O53: =IF(ISERROR(VLOOKUP(N53,POA!$A$2:$F$25,4,0)),"",VLOOKUP(N53,POA!$A$2:$F$25,4,0)) ->  | P53: =IF(ISERROR(VLOOKUP(L53,POA!$A$2:$C$25,2,0)),"",VLOOKUP(L53,POA!$A$2:$C$25,2,0)) ->  | R53: =IF(L53=0,"",IF(Q45>=$R$9,"HABIL","NO HABIL")) ->  | U53: =IF(ISERROR(VLOOKUP(N53,POA!$A$2:$F$25,5,0)),"",VLOOKUP(N53,POA!$A$2:$F$25,5,0)) ->  | Y53: 0 | Z53: MIPYME
B54: =IF(C54="","",B53+0.1) ->  | E54: =IF(ISERROR(VLOOKUP(C54,#REF!,2,0)),"",VLOOKUP(C54,#REF!,2,0)) ->  | G54: =IF(ISERROR(VLOOKUP(C54,#REF!,4,0)),"",VLOOKUP(C54,#REF!,4,0)) ->  | I54: =IF(ISERROR(F54-H54),"",F54-H54) -> 0 | M54: =IF(ISERROR(VLOOKUP(L54,POA!$A$2:$C$25,3,0)),"",VLOOKUP(L54,POA!$A$2:$C$25,3,0)) ->  | O54: =IF(ISERROR(VLOOKUP(N54,POA!$A$2:$F$25,4,0)),"",VLOOKUP(N54,POA!$A$2:$F$25,4,0)) ->  | P54: =IF(ISERROR(VLOOKUP(L54,POA!$A$2:$C$25,2,0)),"",VLOOKUP(L54,POA!$A$2:$C$25,2,0)) ->  | R54: =IF(L54=0,"",IF(Q45>=$R$9,"HABIL","NO HABIL")) ->  | U54: =IF(ISERROR(VLOOKUP(N54,POA!$A$2:$F$25,5,0)),"",VLOOKUP(N54,POA!$A$2:$F$25,5,0)) ->  | Y54: 0 | Z54: MIPYME
B55: =IF(C55="","",B54+0.1) ->  | E55: =IF(ISERROR(VLOOKUP(C55,#REF!,2,0)),"",VLOOKUP(C55,#REF!,2,0)) ->  | G55: =IF(ISERROR(VLOOKUP(C55,#REF!,4,0)),"",VLOOKUP(C55,#REF!,4,0)) ->  | I55: =IF(ISERROR(F55-H55),"",F55-H55) -> 0 | M55: =IF(ISERROR(VLOOKUP(L55,POA!$A$2:$C$25,3,0)),"",VLOOKUP(L55,POA!$A$2:$C$25,3,0)) ->  | O55: =IF(ISERROR(VLOOKUP(N55,POA!$A$2:$F$25,4,0)),"",VLOOKUP(N55,POA!$A$2:$F$25,4,0)) ->  | P55: =IF(ISERROR(VLOOKUP(L55,POA!$A$2:$C$25,2,0)),"",VLOOKUP(L55,POA!$A$2:$C$25,2,0)) ->  | R55: =IF(L55=0,"",IF(Q45>=$R$9,"HABIL","NO HABIL")) ->  | U55: =IF(ISERROR(VLOOKUP(N55,POA!$A$2:$F$25,5,0)),"",VLOOKUP(N55,POA!$A$2:$F$25,5,0)) ->  | Y55: =IF(ISERROR(F55/$Z$9),"",F55/$Z$9) -> 0 | Z55: MIPYME
B56: 5 | C56: CONSORCIO VIAS COLOMBIA | D56: =IF(SUM(D57:D66)=0,"",SUM(D57:D66)) -> 1 | E56: =SUM(E57:E66) -> 5.941773042e+10 | F56: =SUM(F57:F66) -> 7.874464987e+10 | G56: =SUM(G57:G66) -> 2.460403358e+10 | H56: =SUM(H57:H66) -> 3.402878706e+10 | I56: =+F56-H56 -> 4.471586281e+10 | J56: =SUM(J57:J66) -> 6981773629 | K56: =SUM(K57:K66) -> 392456899.6 | L56: 1 | M56: =IF(ISERROR(VLOOKUP(L56,POA!$A$2:$C$25,3,0)),"",VLOOKUP(L56,POA!$A$2:$C$25,3,0)) -> 3 | O56: =+SUM(O57:O66) -> 0 | P56: =IF(ISERROR(VLOOKUP(L56,POA!$A$2:$C$25,2,0)),"",VLOOKUP(L56,POA!$A$2:$C$25,2,0)) -> 4167150295 | Q56: =SUM(E56/G56) -> 2.414958922 | R56: =IF(Q56=0,"",IF(Q56>=$R$9,"HABIL","NO HABIL")) -> HABIL | S56: =SUM(H56/F56) -> 0.4321409406 | T56: =IF(S56=0,"",IF(S56<=$T$9,"HABIL","NO HABIL")) -> HABIL | U56: =+SUM(U57:U66) -> 0 | V56: =SUM(J56/K56) -> 17.7899118 | W56: =IF(V56=0,"",IF(V56>=$W$9,"HABIL","NO HABIL")) -> HABIL | X56: =IF(R56=0,"",IF(R56="NO HABIL","NO HABIL",IF(T56="NO HABIL","NO HABIL",IF(W56="NO HABIL","NO HABIL",IF(W56="NO HABIL","NO HABIL","HABIL"))))) -> HABIL | AA56: =SUM(J56/I56) -> 0.1561363952 | AB56: =IF(AA56=0,"",IF(AA56>=$AB$9,"HABIL","NO HABIL")) -> HABIL | AC56: =SUM(J56/F56) -> 0.08866346654 | AD56: =IF(AC56=0,"",IF(AC56>=$AD$9,"HABIL","NO HABIL")) -> HABIL | AE56: =IF(AB56=0,"",IF(AB56="NO HABIL","NO HABIL",IF(AD56="NO HABIL","NO HABIL",IF(AD56="NO HABIL","NO HABIL","HABIL")))) -> HABIL
A57: PROC. AD. FIRM. RUP | B57: =IF(C57="","",B56+0.1) -> 5.1 | C57: JV INGENIERIA Y CONSTRUCCIONES S.A.S. | D57: 0.6 | E57: 3957725352 | F57: 4961731607 | G57: 659861429 | H57: 1974861729 | I57: =IF(ISERROR(F57-H57),"",F57-H57) -> 2986869878 | J57: 661240469 | K57: 49384693 | M57: =IF(ISERROR(VLOOKUP(L57,POA!$A$2:$C$25,3,0)),"",VLOOKUP(L57,POA!$A$2:$C$25,3,0)) ->  | O57: =IF(ISERROR(VLOOKUP(N57,POA!$A$2:$F$25,4,0)),"",VLOOKUP(N57,POA!$A$2:$F$25,4,0)) ->  | P57: =IF(ISERROR(VLOOKUP(L57,POA!$A$2:$C$25,2,0)),"",VLOOKUP(L57,POA!$A$2:$C$25,2,0)) ->  | R57: =IF(Q57=0,"",IF(Q56>=$R$9,"HABIL","NO HABIL")) ->  | T57: =IF(S57=0,"",IF(S57<=$T$9,"HABIL","NO HABIL")) ->  | U57: =IF(ISERROR(VLOOKUP(N57,POA!$A$2:$F$25,5,0)),"",VLOOKUP(N57,POA!$A$2:$F$25,5,0)) ->  | W57: =IF(V57=0,"",IF(V57>=$W$9,"HABIL","NO HABIL")) ->  | Y57: =IF(ISERROR(F57/$Z$9),"",F57/$Z$9) -> 8755.481925 | Z57: =+IF(Y57<$Z$10,"MIPYME","NO CUMPLE") -> MIPYME | AB57: =IF(AA57=0,"",IF(AA57>=$AB$9,"HABIL","NO HABIL")) ->  | AD57: =IF(AC57=0,"",IF(AC57>=$AD$9,"HABIL","NO HABIL")) -> 
B58: 5.2 | C58: EXCAVACIONES JOBEPA SL SUCURSAL COLOMBIA | D58: 0.2 | E58: 4.345781884e+10 | F58: 6.05092618e+10 | G58: 1.668897052e+10 | H58: 2.282502524e+10 | I58: 3.768423656e+10 | J58: 5893424431 | K58: 306012188.1 | M58: =IF(ISERROR(VLOOKUP(L58,POA!$A$2:$C$25,3,0)),"",VLOOKUP(L58,POA!$A$2:$C$25,3,0)) ->  | O58: =IF(ISERROR(VLOOKUP(N58,POA!$A$2:$F$25,4,0)),"",VLOOKUP(N58,POA!$A$2:$F$25,4,0)) ->  | P58: =IF(ISERROR(VLOOKUP(L58,POA!$A$2:$C$25,2,0)),"",VLOOKUP(L58,POA!$A$2:$C$25,2,0)) ->  | R58: =IF(Q58=0,"",IF(Q56>=$R$9,"HABIL","NO HABIL")) ->  | U58: =IF(ISERROR(VLOOKUP(N58,POA!$A$2:$F$25,5,0)),"",VLOOKUP(N58,POA!$A$2:$F$25,5,0)) ->  | Y58: =IF(ISERROR(F58/$Z$9),"",F58/$Z$9) -> 106774.7694 | Z58: =+IF(Y58<$Z$10,"MIPYME","NO CUMPLE") -> NO CUMPLE
B59: 5.3 | C59: VIALOBRA SL SUCURSAL COLOMBIA | D59: 0.2 | E59: 1.200218622e+10 | F59: 1.327365647e+10 | G59: 7255201628 | H59: 9228900095 | I59: =IF(ISERROR(F59-H59),"",F59-H59) -> 4044756374 | J59: 427108729 | K59: 37060018.43 | M59: =IF(ISERROR(VLOOKUP(L59,POA!$A$2:$C$25,3,0)),"",VLOOKUP(L59,POA!$A$2:$C$25,3,0)) ->  | O59: =IF(ISERROR(VLOOKUP(N59,POA!$A$2:$F$25,4,0)),"",VLOOKUP(N59,POA!$A$2:$F$25,4,0)) ->  | P59: =IF(ISERROR(VLOOKUP(L59,POA!$A$2:$C$25,2,0)),"",VLOOKUP(L59,POA!$A$2:$C$25,2,0)) ->  | R59: =IF(Q59=0,"",IF(Q56>=$R$9,"HABIL","NO HABIL")) ->  | U59: =IF(ISERROR(VLOOKUP(N59,POA!$A$2:$F$25,5,0)),"",VLOOKUP(N59,POA!$A$2:$F$25,5,0)) ->  | Y59: 23422.72184 | Z59: MIPYME
E60: =IF(ISERROR(VLOOKUP(C60,#REF!,2,0)),"",VLOOKUP(C60,#REF!,2,0)) ->  | G60: =IF(ISERROR(VLOOKUP(C60,#REF!,4,0)),"",VLOOKUP(C60,#REF!,4,0)) ->  | I60: 0 | M60: =IF(ISERROR(VLOOKUP(L60,POA!$A$2:$C$25,3,0)),"",VLOOKUP(L60,POA!$A$2:$C$25,3,0)) ->  | O60: =IF(ISERROR(VLOOKUP(N60,POA!$A$2:$F$25,4,0)),"",VLOOKUP(N60,POA!$A$2:$F$25,4,0)) ->  | P60: =IF(ISERROR(VLOOKUP(L60,POA!$A$2:$C$25,2,0)),"",VLOOKUP(L60,POA!$A$2:$C$25,2,0)) ->  | R60: =IF(L60=0,"",IF(Q56>=$R$9,"HABIL","NO HABIL")) ->  | U60: =IF(ISERROR(VLOOKUP(N60,POA!$A$2:$F$25,5,0)),"",VLOOKUP(N60,POA!$A$2:$F$25,5,0)) ->  | Y60: 0 | Z60: MIPYME
E61: =IF(ISERROR(VLOOKUP(C61,#REF!,2,0)),"",VLOOKUP(C61,#REF!,2,0)) ->  | G61: =IF(ISERROR(VLOOKUP(C61,#REF!,4,0)),"",VLOOKUP(C61,#REF!,4,0)) ->  | I61: 0 | M61: =IF(ISERROR(VLOOKUP(L61,POA!$A$2:$C$25,3,0)),"",VLOOKUP(L61,POA!$A$2:$C$25,3,0)) ->  | O61: =IF(ISERROR(VLOOKUP(N61,POA!$A$2:$F$25,4,0)),"",VLOOKUP(N61,POA!$A$2:$F$25,4,0)) ->  | P61: =IF(ISERROR(VLOOKUP(L61,POA!$A$2:$C$25,2,0)),"",VLOOKUP(L61,POA!$A$2:$C$25,2,0)) ->  | R61: =IF(L61=0,"",IF(Q56>=$R$9,"HABIL","NO HABIL")) ->  | U61: =IF(ISERROR(VLOOKUP(N61,POA!$A$2:$F$25,5,0)),"",VLOOKUP(N61,POA!$A$2:$F$25,5,0)) ->  | Y61: 0 | Z61: MIPYME
E62: =IF(ISERROR(VLOOKUP(C62,#REF!,2,0)),"",VLOOKUP(C62,#REF!,2,0)) ->  | G62: =IF(ISERROR(VLOOKUP(C62,#REF!,4,0)),"",VLOOKUP(C62,#REF!,4,0)) ->  | I62: 0 | M62: =IF(ISERROR(VLOOKUP(L62,POA!$A$2:$C$25,3,0)),"",VLOOKUP(L62,POA!$A$2:$C$25,3,0)) ->  | O62: =IF(ISERROR(VLOOKUP(N62,POA!$A$2:$F$25,4,0)),"",VLOOKUP(N62,POA!$A$2:$F$25,4,0)) ->  | P62: =IF(ISERROR(VLOOKUP(L62,POA!$A$2:$C$25,2,0)),"",VLOOKUP(L62,POA!$A$2:$C$25,2,0)) ->  | R62: =IF(L62=0,"",IF(Q56>=$R$9,"HABIL","NO HABIL")) ->  | U62: =IF(ISERROR(VLOOKUP(N62,POA!$A$2:$F$25,5,0)),"",VLOOKUP(N62,POA!$A$2:$F$25,5,0)) ->  | Y62: 0 | Z62: MIPYME
B63: =IF(C63="","",B62+0.1) ->  | E63: =IF(ISERROR(VLOOKUP(C63,#REF!,2,0)),"",VLOOKUP(C63,#REF!,2,0)) ->  | G63: =IF(ISERROR(VLOOKUP(C63,#REF!,4,0)),"",VLOOKUP(C63,#REF!,4,0)) ->  | I63: =IF(ISERROR(F63-H63),"",F63-H63) -> 0 | M63: =IF(ISERROR(VLOOKUP(L63,POA!$A$2:$C$25,3,0)),"",VLOOKUP(L63,POA!$A$2:$C$25,3,0)) ->  | O63: =IF(ISERROR(VLOOKUP(N63,POA!$A$2:$F$25,4,0)),"",VLOOKUP(N63,POA!$A$2:$F$25,4,0)) ->  | P63: =IF(ISERROR(VLOOKUP(L63,POA!$A$2:$C$25,2,0)),"",VLOOKUP(L63,POA!$A$2:$C$25,2,0)) ->  | R63: =IF(L63=0,"",IF(Q56>=$R$9,"HABIL","NO HABIL")) ->  | U63: =IF(ISERROR(VLOOKUP(N63,POA!$A$2:$F$25,5,0)),"",VLOOKUP(N63,POA!$A$2:$F$25,5,0)) ->  | Y63: 0 | Z63: MIPYME
B64: =IF(C64="","",B63+0.1) ->  | E64: =IF(ISERROR(VLOOKUP(C64,#REF!,2,0)),"",VLOOKUP(C64,#REF!,2,0)) ->  | G64: =IF(ISERROR(VLOOKUP(C64,#REF!,4,0)),"",VLOOKUP(C64,#REF!,4,0)) ->  | I64: =IF(ISERROR(F64-H64),"",F64-H64) -> 0 | M64: =IF(ISERROR(VLOOKUP(L64,POA!$A$2:$C$25,3,0)),"",VLOOKUP(L64,POA!$A$2:$C$25,3,0)) ->  | O64: =IF(ISERROR(VLOOKUP(N64,POA!$A$2:$F$25,4,0)),"",VLOOKUP(N64,POA!$A$2:$F$25,4,0)) ->  | P64: =IF(ISERROR(VLOOKUP(L64,POA!$A$2:$C$25,2,0)),"",VLOOKUP(L64,POA!$A$2:$C$25,2,0)) ->  | R64: =IF(L64=0,"",IF(Q56>=$R$9,"HABIL","NO HABIL")) ->  | U64: =IF(ISERROR(VLOOKUP(N64,POA!$A$2:$F$25,5,0)),"",VLOOKUP(N64,POA!$A$2:$F$25,5,0)) ->  | Y64: 0 | Z64: MIPYME
B65: =IF(C65="","",B64+0.1) ->  | E65: =IF(ISERROR(VLOOKUP(C65,#REF!,2,0)),"",VLOOKUP(C65,#REF!,2,0)) ->  | G65: =IF(ISERROR(VLOOKUP(C65,#REF!,4,0)),"",VLOOKUP(C65,#REF!,4,0)) ->  | I65: =IF(ISERROR(F65-H65),"",F65-H65) -> 0 | M65: =IF(ISERROR(VLOOKUP(L65,POA!$A$2:$C$25,3,0)),"",VLOOKUP(L65,POA!$A$2:$C$25,3,0)) ->  | O65: =IF(ISERROR(VLOOKUP(N65,POA!$A$2:$F$25,4,0)),"",VLOOKUP(N65,POA!$A$2:$F$25,4,0)) ->  | P65: =IF(ISERROR(VLOOKUP(L65,POA!$A$2:$C$25,2,0)),"",VLOOKUP(L65,POA!$A$2:$C$25,2,0)) ->  | R65: =IF(L65=0,"",IF(Q56>=$R$9,"HABIL","NO HABIL")) ->  | U65: =IF(ISERROR(VLOOKUP(N65,POA!$A$2:$F$25,5,0)),"",VLOOKUP(N65,POA!$A$2:$F$25,5,0)) ->  | Y65: 0 | Z65: MIPYME
B66: =IF(C66="","",B65+0.1) ->  | E66: =IF(ISERROR(VLOOKUP(C66,#REF!,2,0)),"",VLOOKUP(C66,#REF!,2,0)) ->  | G66: =IF(ISERROR(VLOOKUP(C66,#REF!,4,0)),"",VLOOKUP(C66,#REF!,4,0)) ->  | I66: =IF(ISERROR(F66-H66),"",F66-H66) -> 0 | M66: =IF(ISERROR(VLOOKUP(L66,POA!$A$2:$C$25,3,0)),"",VLOOKUP(L66,POA!$A$2:$C$25,3,0)) ->  | O66: =IF(ISERROR(VLOOKUP(N66,POA!$A$2:$F$25,4,0)),"",VLOOKUP(N66,POA!$A$2:$F$25,4,0)) ->  | P66: =IF(ISERROR(VLOOKUP(L66,POA!$A$2:$C$25,2,0)),"",VLOOKUP(L66,POA!$A$2:$C$25,2,0)) ->  | R66: =IF(L66=0,"",IF(Q56>=$R$9,"HABIL","NO HABIL")) ->  | U66: =IF(ISERROR(VLOOKUP(N66,POA!$A$2:$F$25,5,0)),"",VLOOKUP(N66,POA!$A$2:$F$25,5,0)) ->  | Y66: =IF(ISERROR(F66/$Z$9),"",F66/$Z$9) -> 0 | Z66: MIPYME
B67: 6 | C67: CONSORCIO SALITRE BRICEÑO | D67: =IF(SUM(D68:D77)=0,"",SUM(D68:D77)) -> 1 | E67: =SUM(E68:E77) -> 13256970890 | F67: =SUM(F68:F77) -> 20474261255 | G67: =SUM(G68:G77) -> 10726944203 | H67: =SUM(H68:H77) -> 11556143093 | I67: =+F67-H67 -> 8918118162 | J67: =SUM(J68:J77) -> 1486974136 | K67: =SUM(K68:K77) -> 136865617 | L67: 1 | M67: =IF(ISERROR(VLOOKUP(L67,POA!$A$2:$C$25,3,0)),"",VLOOKUP(L67,POA!$A$2:$C$25,3,0)) -> 3 | O67: =+SUM(O68:O77) -> 0 | P67: =IF(ISERROR(VLOOKUP(L67,POA!$A$2:$C$25,2,0)),"",VLOOKUP(L67,POA!$A$2:$C$25,2,0)) -> 4167150295 | Q67: =SUM(E67/G67) -> 1.235857169 | R67: =IF(Q67=0,"",IF(Q67>=$R$9,"HABIL","NO HABIL")) -> HABIL | S67: =SUM(H67/F67) -> 0.5644229576 | T67: =IF(S67=0,"",IF(S67<=$T$9,"HABIL","NO HABIL")) -> HABIL | U67: =+SUM(U68:U77) -> 0 | V67: =SUM(J67/K67) -> 10.86448276 | W67: =IF(V67=0,"",IF(V67>=$W$9,"HABIL","NO HABIL")) -> HABIL | X67: =IF(R67=0,"",IF(R67="NO HABIL","NO HABIL",IF(T67="NO HABIL","NO HABIL",IF(W67="NO HABIL","NO HABIL",IF(W67="NO HABIL","NO HABIL","HABIL"))))) -> HABIL | AA67: =SUM(J67/I67) -> 0.1667363124 | AB67: =IF(AA67=0,"",IF(AA67>=$AB$9,"HABIL","NO HABIL")) -> HABIL | AC67: =SUM(J67/F67) -> 0.07262650982 | AD67: =IF(AC67=0,"",IF(AC67>=$AD$9,"HABIL","NO HABIL")) -> HABIL | AE67: =IF(AB67=0,"",IF(AB67="NO HABIL","NO HABIL",IF(AD67="NO HABIL","NO HABIL",IF(AD67="NO HABIL","NO HABIL","HABIL")))) -> HABIL
B68: =IF(C68="","",B67+0.1) -> 6.1 | C68: GEOCING S.A.S. | D68: 0.5 | E68: 3391878042 | F68: 4666016102 | G68: 1976694597 | H68: 2769323817 | I68: =IF(ISERROR(F68-H68),"",F68-H68) -> 1896692285 | J68: 982464382 | K68: 113248139 | M68: =IF(ISERROR(VLOOKUP(L68,POA!$A$2:$C$25,3,0)),"",VLOOKUP(L68,POA!$A$2:$C$25,3,0)) ->  | O68: =IF(ISERROR(VLOOKUP(N68,POA!$A$2:$F$25,4,0)),"",VLOOKUP(N68,POA!$A$2:$F$25,4,0)) ->  | P68: =IF(ISERROR(VLOOKUP(L68,POA!$A$2:$C$25,2,0)),"",VLOOKUP(L68,POA!$A$2:$C$25,2,0)) ->  | R68: =IF(Q68=0,"",IF(Q67>=$R$9,"HABIL","NO HABIL")) ->  | T68: =IF(S68=0,"",IF(S68<=$T$9,"HABIL","NO HABIL")) ->  | U68: =IF(ISERROR(VLOOKUP(N68,POA!$A$2:$F$25,5,0)),"",VLOOKUP(N68,POA!$A$2:$F$25,5,0)) ->  | W68: =IF(V68=0,"",IF(V68>=$W$9,"HABIL","NO HABIL")) ->  | Y68: =IF(ISERROR(F68/$Z$9),"",F68/$Z$9) -> 8233.661729 | Z68: =+IF(Y68<$Z$10,"MIPYME","NO CUMPLE") -> MIPYME | AB68: =IF(AA68=0,"",IF(AA68>=$AB$9,"HABIL","NO HABIL")) ->  | AD68: =IF(AC68=0,"",IF(AC68>=$AD$9,"HABIL","NO HABIL")) -> 
B69: 6.2 | C69: URBAMED INFRAESTRUCTURAS SLU | D69: 0.5 | E69: 9865092848 | F69: 15808245153 | G69: 8750249606 | H69: 8786819276 | I69: 7021425877 | J69: 504509754 | K69: 23617478 | M69: =IF(ISERROR(VLOOKUP(L69,POA!$A$2:$C$25,3,0)),"",VLOOKUP(L69,POA!$A$2:$C$25,3,0)) ->  | O69: =IF(ISERROR(VLOOKUP(N69,POA!$A$2:$F$25,4,0)),"",VLOOKUP(N69,POA!$A$2:$F$25,4,0)) ->  | P69: =IF(ISERROR(VLOOKUP(L69,POA!$A$2:$C$25,2,0)),"",VLOOKUP(L69,POA!$A$2:$C$25,2,0)) ->  | R69: =IF(Q69=0,"",IF(Q67>=$R$9,"HABIL","NO HABIL")) ->  | U69: =IF(ISERROR(VLOOKUP(N69,POA!$A$2:$F$25,5,0)),"",VLOOKUP(N69,POA!$A$2:$F$25,5,0)) ->  | Y69: =IF(ISERROR(F69/$Z$9),"",F69/$Z$9) -> 27895.26231 | Z69: =+IF(Y69<$Z$10,"MIPYME","NO CUMPLE") -> MIPYME
I70: =IF(ISERROR(F70-H70),"",F70-H70) -> 0 | M70: =IF(ISERROR(VLOOKUP(L70,POA!$A$2:$C$25,3,0)),"",VLOOKUP(L70,POA!$A$2:$C$25,3,0)) ->  | O70: =IF(ISERROR(VLOOKUP(N70,POA!$A$2:$F$25,4,0)),"",VLOOKUP(N70,POA!$A$2:$F$25,4,0)) ->  | P70: =IF(ISERROR(VLOOKUP(L70,POA!$A$2:$C$25,2,0)),"",VLOOKUP(L70,POA!$A$2:$C$25,2,0)) ->  | R70: =IF(Q70=0,"",IF(Q67>=$R$9,"HABIL","NO HABIL")) ->  | U70: =IF(ISERROR(VLOOKUP(N70,POA!$A$2:$F$25,5,0)),"",VLOOKUP(N70,POA!$A$2:$F$25,5,0)) ->  | Y70: 0 | Z70: MIPYME
E71: =IF(ISERROR(VLOOKUP(C71,#REF!,2,0)),"",VLOOKUP(C71,#REF!,2,0)) ->  | G71: =IF(ISERROR(VLOOKUP(C71,#REF!,4,0)),"",VLOOKUP(C71,#REF!,4,0)) ->  | I71: 0 | M71: =IF(ISERROR(VLOOKUP(L71,POA!$A$2:$C$25,3,0)),"",VLOOKUP(L71,POA!$A$2:$C$25,3,0)) ->  | O71: =IF(ISERROR(VLOOKUP(N71,POA!$A$2:$F$25,4,0)),"",VLOOKUP(N71,POA!$A$2:$F$25,4,0)) ->  | P71: =IF(ISERROR(VLOOKUP(L71,POA!$A$2:$C$25,2,0)),"",VLOOKUP(L71,POA!$A$2:$C$25,2,0)) ->  | R71: =IF(L71=0,"",IF(Q67>=$R$9,"HABIL","NO HABIL")) ->  | U71: =IF(ISERROR(VLOOKUP(N71,POA!$A$2:$F$25,5,0)),"",VLOOKUP(N71,POA!$A$2:$F$25,5,0)) ->  | Y71: 0 | Z71: MIPYME
E72: =IF(ISERROR(VLOOKUP(C72,#REF!,2,0)),"",VLOOKUP(C72,#REF!,2,0)) ->  | G72: =IF(ISERROR(VLOOKUP(C72,#REF!,4,0)),"",VLOOKUP(C72,#REF!,4,0)) ->  | I72: 0 | M72: =IF(ISERROR(VLOOKUP(L72,POA!$A$2:$C$25,3,0)),"",VLOOKUP(L72,POA!$A$2:$C$25,3,0)) ->  | O72: =IF(ISERROR(VLOOKUP(N72,POA!$A$2:$F$25,4,0)),"",VLOOKUP(N72,POA!$A$2:$F$25,4,0)) ->  | P72: =IF(ISERROR(VLOOKUP(L72,POA!$A$2:$C$25,2,0)),"",VLOOKUP(L72,POA!$A$2:$C$25,2,0)) ->  | R72: =IF(L72=0,"",IF(Q67>=$R$9,"HABIL","NO HABIL")) ->  | U72: =IF(ISERROR(VLOOKUP(N72,POA!$A$2:$F$25,5,0)),"",VLOOKUP(N72,POA!$A$2:$F$25,5,0)) ->  | Y72: 0 | Z72: MIPYME
E73: =IF(ISERROR(VLOOKUP(C73,#REF!,2,0)),"",VLOOKUP(C73,#REF!,2,0)) ->  | G73: =IF(ISERROR(VLOOKUP(C73,#REF!,4,0)),"",VLOOKUP(C73,#REF!,4,0)) ->  | I73: 0 | M73: =IF(ISERROR(VLOOKUP(L73,POA!$A$2:$C$25,3,0)),"",VLOOKUP(L73,POA!$A$2:$C$25,3,0)) ->  | O73: =IF(ISERROR(VLOOKUP(N73,POA!$A$2:$F$25,4,0)),"",VLOOKUP(N73,POA!$A$2:$F$25,4,0)) ->  | P73: =IF(ISERROR(VLOOKUP(L73,POA!$A$2:$C$25,2,0)),"",VLOOKUP(L73,POA!$A$2:$C$25,2,0)) ->  | R73: =IF(L73=0,"",IF(Q67>=$R$9,"HABIL","NO HABIL")) ->  | U73: =IF(ISERROR(VLOOKUP(N73,POA!$A$2:$F$25,5,0)),"",VLOOKUP(N73,POA!$A$2:$F$25,5,0)) ->  | Y73: 0 | Z73: MIPYME
B74: =IF(C74="","",B73+0.1) ->  | E74: =IF(ISERROR(VLOOKUP(C74,#REF!,2,0)),"",VLOOKUP(C74,#REF!,2,0)) ->  | G74: =IF(ISERROR(VLOOKUP(C74,#REF!,4,0)),"",VLOOKUP(C74,#REF!,4,0)) ->  | I74: =IF(ISERROR(F74-H74),"",F74-H74) -> 0 | M74: =IF(ISERROR(VLOOKUP(L74,POA!$A$2:$C$25,3,0)),"",VLOOKUP(L74,POA!$A$2:$C$25,3,0)) ->  | O74: =IF(ISERROR(VLOOKUP(N74,POA!$A$2:$F$25,4,0)),"",VLOOKUP(N74,POA!$A$2:$F$25,4,0)) ->  | P74: =IF(ISERROR(VLOOKUP(L74,POA!$A$2:$C$25,2,0)),"",VLOOKUP(L74,POA!$A$2:$C$25,2,0)) ->  | R74: =IF(L74=0,"",IF(Q67>=$R$9,"HABIL","NO HABIL")) ->  | U74: =IF(ISERROR(VLOOKUP(N74,POA!$A$2:$F$25,5,0)),"",VLOOKUP(N74,POA!$A$2:$F$25,5,0)) ->  | Y74: 0 | Z74: MIPYME
B75: =IF(C75="","",B74+0.1) ->  | E75: =IF(ISERROR(VLOOKUP(C75,#REF!,2,0)),"",VLOOKUP(C75,#REF!,2,0)) ->  | G75: =IF(ISERROR(VLOOKUP(C75,#REF!,4,0)),"",VLOOKUP(C75,#REF!,4,0)) ->  | I75: =IF(ISERROR(F75-H75),"",F75-H75) -> 0 | M75: =IF(ISERROR(VLOOKUP(L75,POA!$A$2:$C$25,3,0)),"",VLOOKUP(L75,POA!$A$2:$C$25,3,0)) ->  | O75: =IF(ISERROR(VLOOKUP(N75,POA!$A$2:$F$25,4,0)),"",VLOOKUP(N75,POA!$A$2:$F$25,4,0)) ->  | P75: =IF(ISERROR(VLOOKUP(L75,POA!$A$2:$C$25,2,0)),"",VLOOKUP(L75,POA!$A$2:$C$25,2,0)) ->  | R75: =IF(L75=0,"",IF(Q67>=$R$9,"HABIL","NO HABIL")) ->  | U75: =IF(ISERROR(VLOOKUP(N75,POA!$A$2:$F$25,5,0)),"",VLOOKUP(N75,POA!$A$2:$F$25,5,0)) ->  | Y75: 0 | Z75: MIPYME
B76: =IF(C76="","",B75+0.1) ->  | E76: =IF(ISERROR(VLOOKUP(C76,#REF!,2,0)),"",VLOOKUP(C76,#REF!,2,0)) ->  | G76: =IF(ISERROR(VLOOKUP(C76,#REF!,4,0)),"",VLOOKUP(C76,#REF!,4,0)) ->  | I76: =IF(ISERROR(F76-H76),"",F76-H76) -> 0 | M76: =IF(ISERROR(VLOOKUP(L76,POA!$A$2:$C$25,3,0)),"",VLOOKUP(L76,POA!$A$2:$C$25,3,0)) ->  | O76: =IF(ISERROR(VLOOKUP(N76,POA!$A$2:$F$25,4,0)),"",VLOOKUP(N76,POA!$A$2:$F$25,4,0)) ->  | P76: =IF(ISERROR(VLOOKUP(L76,POA!$A$2:$C$25,2,0)),"",VLOOKUP(L76,POA!$A$2:$C$25,2,0)) ->  | R76: =IF(L76=0,"",IF(Q67>=$R$9,"HABIL","NO HABIL")) ->  | U76: =IF(ISERROR(VLOOKUP(N76,POA!$A$2:$F$25,5,0)),"",VLOOKUP(N76,POA!$A$2:$F$25,5,0)) ->  | Y76: 0 | Z76: MIPYME
B77: =IF(C77="","",B76+0.1) ->  | E77: =IF(ISERROR(VLOOKUP(C77,#REF!,2,0)),"",VLOOKUP(C77,#REF!,2,0)) ->  | G77: =IF(ISERROR(VLOOKUP(C77,#REF!,4,0)),"",VLOOKUP(C77,#REF!,4,0)) ->  | I77: =IF(ISERROR(F77-H77),"",F77-H77) -> 0 | M77: =IF(ISERROR(VLOOKUP(L77,POA!$A$2:$C$25,3,0)),"",VLOOKUP(L77,POA!$A$2:$C$25,3,0)) ->  | O77: =IF(ISERROR(VLOOKUP(N77,POA!$A$2:$F$25,4,0)),"",VLOOKUP(N77,POA!$A$2:$F$25,4,0)) ->  | P77: =IF(ISERROR(VLOOKUP(L77,POA!$A$2:$C$25,2,0)),"",VLOOKUP(L77,POA!$A$2:$C$25,2,0)) ->  | R77: =IF(L77=0,"",IF(Q67>=$R$9,"HABIL","NO HABIL")) ->  | U77: =IF(ISERROR(VLOOKUP(N77,POA!$A$2:$F$25,5,0)),"",VLOOKUP(N77,POA!$A$2:$F$25,5,0)) ->  | Y77: =IF(ISERROR(F77/$Z$9),"",F77/$Z$9) -> 0 | Z77: MIPYME
B78: 7 | C78: CONSORCIO AC - AINCOL | D78: =IF(SUM(D79:D88)=0,"",SUM(D79:D88)) -> 1 | E78: =SUM(E79:E88) -> 13643706289 | F78: =SUM(F79:F88) -> 14084106289 | G78: =SUM(G79:G88) -> 288376786 | H78: =SUM(H79:H88) -> 331613315 | I78: =+F78-H78 -> 13752492974 | J78: =SUM(J79:J88) -> 1549471378 | K78: =SUM(K79:K88) -> 14086949 | L78: 1 | M78: =IF(ISERROR(VLOOKUP(L78,POA!$A$2:$C$25,3,0)),"",VLOOKUP(L78,POA!$A$2:$C$25,3,0)) -> 3 | O78: =+SUM(O79:O88) -> 0 | P78: =IF(ISERROR(VLOOKUP(L78,POA!$A$2:$C$25,2,0)),"",VLOOKUP(L78,POA!$A$2:$C$25,2,0)) -> 4167150295 | Q78: =SUM(E78/G78) -> 47.3120825 | R78: =IF(Q78=0,"",IF(Q78>=$R$9,"HABIL","NO HABIL")) -> HABIL | S78: =SUM(H78/F78) -> 0.02354521531 | T78: =IF(S78=0,"",IF(S78<=$T$9,"HABIL","NO HABIL")) -> HABIL | U78: =+SUM(U79:U88) -> 0 | V78: =SUM(J78/K78) -> 109.9933973 | W78: =IF(V78=0,"",IF(V78>=$W$9,"HABIL","NO HABIL")) -> HABIL | X78: =IF(R78=0,"",IF(R78="NO HABIL","NO HABIL",IF(T78="NO HABIL","NO HABIL",IF(W78="NO HABIL","NO HABIL",IF(W78="NO HABIL","NO HABIL","HABIL"))))) -> HABIL | AA78: =SUM(J78/I78) -> 0.1126683999 | AB78: =IF(AA78=0,"",IF(AA78>=$AB$9,"HABIL","NO HABIL")) -> HABIL | AC78: =SUM(J78/F78) -> 0.1100155982 | AD78: =IF(AC78=0,"",IF(AC78>=$AD$9,"HABIL","NO HABIL")) -> HABIL | AE78: =IF(AB78=0,"",IF(AB78="NO HABIL","NO HABIL",IF(AD78="NO HABIL","NO HABIL",IF(AD78="NO HABIL","NO HABIL","HABIL")))) -> HABIL
B79: =IF(C79="","",B78+0.1) -> 7.1 | C79: AINCOL S.A.S. | D79: 0.3 | E79: 10748663079 | F79: 11189063079 | G79: 235415000 | H79: 235415000 | I79: =IF(ISERROR(F79-H79),"",F79-H79) -> 10953648079 | J79: 1365506080 | K79: 9368521 | M79: =IF(ISERROR(VLOOKUP(L79,POA!$A$2:$C$25,3,0)),"",VLOOKUP(L79,POA!$A$2:$C$25,3,0)) ->  | O79: =IF(ISERROR(VLOOKUP(N79,POA!$A$2:$F$25,4,0)),"",VLOOKUP(N79,POA!$A$2:$F$25,4,0)) ->  | P79: =IF(ISERROR(VLOOKUP(L79,POA!$A$2:$C$25,2,0)),"",VLOOKUP(L79,POA!$A$2:$C$25,2,0)) ->  | R79: =IF(Q79=0,"",IF(Q78>=$R$9,"HABIL","NO HABIL")) ->  | T79: =IF(S79=0,"",IF(S79<=$T$9,"HABIL","NO HABIL")) ->  | U79: =IF(ISERROR(VLOOKUP(N79,POA!$A$2:$F$25,5,0)),"",VLOOKUP(N79,POA!$A$2:$F$25,5,0)) ->  | W79: =IF(V79=0,"",IF(V79>=$W$9,"HABIL","NO HABIL")) ->  | Y79: =IF(ISERROR(F79/$Z$9),"",F79/$Z$9) -> 19744.24401 | Z79: =+IF(Y79<$Z$10,"MIPYME","NO CUMPLE") -> MIPYME | AB79: =IF(AA79=0,"",IF(AA79>=$AB$9,"HABIL","NO HABIL")) ->  | AD79: =IF(AC79=0,"",IF(AC79>=$AD$9,"HABIL","NO HABIL")) -> 
B80: 7.2 | C80: AC INGENIERIA Y CONSTRUCCIONES S.A.S. | D80: 0.7 | E80: 2895043210 | F80: 2895043210 | G80: 52961786 | H80: 96198315 | I80: 2798844895 | J80: 183965298 | K80: 4718428 | M80: =IF(ISERROR(VLOOKUP(L80,POA!$A$2:$C$25,3,0)),"",VLOOKUP(L80,POA!$A$2:$C$25,3,0)) ->  | O80: =IF(ISERROR(VLOOKUP(N80,POA!$A$2:$F$25,4,0)),"",VLOOKUP(N80,POA!$A$2:$F$25,4,0)) ->  | P80: =IF(ISERROR(VLOOKUP(L80,POA!$A$2:$C$25,2,0)),"",VLOOKUP(L80,POA!$A$2:$C$25,2,0)) ->  | R80: =IF(Q80=0,"",IF(Q78>=$R$9,"HABIL","NO HABIL")) ->  | U80: =IF(ISERROR(VLOOKUP(N80,POA!$A$2:$F$25,5,0)),"",VLOOKUP(N80,POA!$A$2:$F$25,5,0)) ->  | Y80: =IF(ISERROR(F80/$Z$9),"",F80/$Z$9) -> 5108.599277 | Z80: =+IF(Y80<$Z$10,"MIPYME","NO CUMPLE") -> MIPYME
I81: =IF(ISERROR(F81-H81),"",F81-H81) -> 0 | M81: =IF(ISERROR(VLOOKUP(L81,POA!$A$2:$C$25,3,0)),"",VLOOKUP(L81,POA!$A$2:$C$25,3,0)) ->  | O81: =IF(ISERROR(VLOOKUP(N81,POA!$A$2:$F$25,4,0)),"",VLOOKUP(N81,POA!$A$2:$F$25,4,0)) ->  | P81: =IF(ISERROR(VLOOKUP(L81,POA!$A$2:$C$25,2,0)),"",VLOOKUP(L81,POA!$A$2:$C$25,2,0)) ->  | R81: =IF(Q81=0,"",IF(Q78>=$R$9,"HABIL","NO HABIL")) ->  | U81: =IF(ISERROR(VLOOKUP(N81,POA!$A$2:$F$25,5,0)),"",VLOOKUP(N81,POA!$A$2:$F$25,5,0)) ->  | Y81: 0 | Z81: MIPYME
E82: =IF(ISERROR(VLOOKUP(C82,#REF!,2,0)),"",VLOOKUP(C82,#REF!,2,0)) ->  | G82: =IF(ISERROR(VLOOKUP(C82,#REF!,4,0)),"",VLOOKUP(C82,#REF!,4,0)) ->  | I82: 0 | M82: =IF(ISERROR(VLOOKUP(L82,POA!$A$2:$C$25,3,0)),"",VLOOKUP(L82,POA!$A$2:$C$25,3,0)) ->  | O82: =IF(ISERROR(VLOOKUP(N82,POA!$A$2:$F$25,4,0)),"",VLOOKUP(N82,POA!$A$2:$F$25,4,0)) ->  | P82: =IF(ISERROR(VLOOKUP(L82,POA!$A$2:$C$25,2,0)),"",VLOOKUP(L82,POA!$A$2:$C$25,2,0)) ->  | R82: =IF(L82=0,"",IF(Q78>=$R$9,"HABIL","NO HABIL")) ->  | U82: =IF(ISERROR(VLOOKUP(N82,POA!$A$2:$F$25,5,0)),"",VLOOKUP(N82,POA!$A$2:$F$25,5,0)) ->  | Y82: 0 | Z82: MIPYME
E83: =IF(ISERROR(VLOOKUP(C83,#REF!,2,0)),"",VLOOKUP(C83,#REF!,2,0)) ->  | G83: =IF(ISERROR(VLOOKUP(C83,#REF!,4,0)),"",VLOOKUP(C83,#REF!,4,0)) ->  | I83: 0 | M83: =IF(ISERROR(VLOOKUP(L83,POA!$A$2:$C$25,3,0)),"",VLOOKUP(L83,POA!$A$2:$C$25,3,0)) ->  | O83: =IF(ISERROR(VLOOKUP(N83,POA!$A$2:$F$25,4,0)),"",VLOOKUP(N83,POA!$A$2:$F$25,4,0)) ->  | P83: =IF(ISERROR(VLOOKUP(L83,POA!$A$2:$C$25,2,0)),"",VLOOKUP(L83,POA!$A$2:$C$25,2,0)) ->  | R83: =IF(L83=0,"",IF(Q78>=$R$9,"HABIL","NO HABIL")) ->  | U83: =IF(ISERROR(VLOOKUP(N83,POA!$A$2:$F$25,5,0)),"",VLOOKUP(N83,POA!$A$2:$F$25,5,0)) ->  | Y83: 0 | Z83: MIPYME
E84: =IF(ISERROR(VLOOKUP(C84,#REF!,2,0)),"",VLOOKUP(C84,#REF!,2,0)) ->  | G84: =IF(ISERROR(VLOOKUP(C84,#REF!,4,0)),"",VLOOKUP(C84,#REF!,4,0)) ->  | I84: 0 | M84: =IF(ISERROR(VLOOKUP(L84,POA!$A$2:$C$25,3,0)),"",VLOOKUP(L84,POA!$A$2:$C$25,3,0)) ->  | O84: =IF(ISERROR(VLOOKUP(N84,POA!$A$2:$F$25,4,0)),"",VLOOKUP(N84,POA!$A$2:$F$25,4,0)) ->  | P84: =IF(ISERROR(VLOOKUP(L84,POA!$A$2:$C$25,2,0)),"",VLOOKUP(L84,POA!$A$2:$C$25,2,0)) ->  | R84: =IF(L84=0,"",IF(Q78>=$R$9,"HABIL","NO HABIL")) ->  | U84: =IF(ISERROR(VLOOKUP(N84,POA!$A$2:$F$25,5,0)),"",VLOOKUP(N84,POA!$A$2:$F$25,5,0)) ->  | Y84: 0 | Z84: MIPYME
B85: =IF(C85="","",B84+0.1) ->  | E85: =IF(ISERROR(VLOOKUP(C85,#REF!,2,0)),"",VLOOKUP(C85,#REF!,2,0)) ->  | G85: =IF(ISERROR(VLOOKUP(C85,#REF!,4,0)),"",VLOOKUP(C85,#REF!,4,0)) ->  | I85: =IF(ISERROR(F85-H85),"",F85-H85) -> 0 | M85: =IF(ISERROR(VLOOKUP(L85,POA!$A$2:$C$25,3,0)),"",VLOOKUP(L85,POA!$A$2:$C$25,3,0)) ->  | O85: =IF(ISERROR(VLOOKUP(N85,POA!$A$2:$F$25,4,0)),"",VLOOKUP(N85,POA!$A$2:$F$25,4,0)) ->  | P85: =IF(ISERROR(VLOOKUP(L85,POA!$A$2:$C$25,2,0)),"",VLOOKUP(L85,POA!$A$2:$C$25,2,0)) ->  | R85: =IF(L85=0,"",IF(Q78>=$R$9,"HABIL","NO HABIL")) ->  | U85: =IF(ISERROR(VLOOKUP(N85,POA!$A$2:$F$25,5,0)),"",VLOOKUP(N85,POA!$A$2:$F$25,5,0)) ->  | Y85: 0 | Z85: MIPYME
B86: =IF(C86="","",B85+0.1) ->  | E86: =IF(ISERROR(VLOOKUP(C86,#REF!,2,0)),"",VLOOKUP(C86,#REF!,2,0)) ->  | G86: =IF(ISERROR(VLOOKUP(C86,#REF!,4,0)),"",VLOOKUP(C86,#REF!,4,0)) ->  | I86: =IF(ISERROR(F86-H86),"",F86-H86) -> 0 | M86: =IF(ISERROR(VLOOKUP(L86,POA!$A$2:$C$25,3,0)),"",VLOOKUP(L86,POA!$A$2:$C$25,3,0)) ->  | O86: =IF(ISERROR(VLOOKUP(N86,POA!$A$2:$F$25,4,0)),"",VLOOKUP(N86,POA!$A$2:$F$25,4,0)) ->  | P86: =IF(ISERROR(VLOOKUP(L86,POA!$A$2:$C$25,2,0)),"",VLOOKUP(L86,POA!$A$2:$C$25,2,0)) ->  | R86: =IF(L86=0,"",IF(Q78>=$R$9,"HABIL","NO HABIL")) ->  | U86: =IF(ISERROR(VLOOKUP(N86,POA!$A$2:$F$25,5,0)),"",VLOOKUP(N86,POA!$A$2:$F$25,5,0)) ->  | Y86: 0 | Z86: MIPYME
B87: =IF(C87="","",B86+0.1) ->  | E87: =IF(ISERROR(VLOOKUP(C87,#REF!,2,0)),"",VLOOKUP(C87,#REF!,2,0)) ->  | G87: =IF(ISERROR(VLOOKUP(C87,#REF!,4,0)),"",VLOOKUP(C87,#REF!,4,0)) ->  | I87: =IF(ISERROR(F87-H87),"",F87-H87) -> 0 | M87: =IF(ISERROR(VLOOKUP(L87,POA!$A$2:$C$25,3,0)),"",VLOOKUP(L87,POA!$A$2:$C$25,3,0)) ->  | O87: =IF(ISERROR(VLOOKUP(N87,POA!$A$2:$F$25,4,0)),"",VLOOKUP(N87,POA!$A$2:$F$25,4,0)) ->  | P87: =IF(ISERROR(VLOOKUP(L87,POA!$A$2:$C$25,2,0)),"",VLOOKUP(L87,POA!$A$2:$C$25,2,0)) ->  | R87: =IF(L87=0,"",IF(Q78>=$R$9,"HABIL","NO HABIL")) ->  | U87: =IF(ISERROR(VLOOKUP(N87,POA!$A$2:$F$25,5,0)),"",VLOOKUP(N87,POA!$A$2:$F$25,5,0)) ->  | Y87: 0 | Z87: MIPYME
B88: =IF(C88="","",B87+0.1) ->  | E88: =IF(ISERROR(VLOOKUP(C88,#REF!,2,0)),"",VLOOKUP(C88,#REF!,2,0)) ->  | G88: =IF(ISERROR(VLOOKUP(C88,#REF!,4,0)),"",VLOOKUP(C88,#REF!,4,0)) ->  | I88: =IF(ISERROR(F88-H88),"",F88-H88) -> 0 | M88: =IF(ISERROR(VLOOKUP(L88,POA!$A$2:$C$25,3,0)),"",VLOOKUP(L88,POA!$A$2:$C$25,3,0)) ->  | O88: =IF(ISERROR(VLOOKUP(N88,POA!$A$2:$F$25,4,0)),"",VLOOKUP(N88,POA!$A$2:$F$25,4,0)) ->  | P88: =IF(ISERROR(VLOOKUP(L88,POA!$A$2:$C$25,2,0)),"",VLOOKUP(L88,POA!$A$2:$C$25,2,0)) ->  | R88: =IF(L88=0,"",IF(Q78>=$R$9,"HABIL","NO HABIL")) ->  | U88: =IF(ISERROR(VLOOKUP(N88,POA!$A$2:$F$25,5,0)),"",VLOOKUP(N88,POA!$A$2:$F$25,5,0)) ->  | Y88: =IF(ISERROR(F88/$Z$9),"",F88/$Z$9) -> 0 | Z88: MIPYME
B89: 8 | C89: CONSULTORIA Y CONSTRUCCION LTDA. | D89: =IF(SUM(D90:D99)=0,"",SUM(D90:D99)) -> 1 | E89: =SUM(E90:E99) -> 9298906000 | F89: =SUM(F90:F99) -> 9911241000 | G89: =SUM(G90:G99) -> 2275741000 | H89: =SUM(H90:H99) -> 3673356000 | I89: =+F89-H89 -> 6237885000 | J89: =SUM(J90:J99) -> 1097539000 | K89: =SUM(K90:K99) -> 200364000 | L89: 1 | M89: =IF(ISERROR(VLOOKUP(L89,POA!$A$2:$C$25,3,0)),"",VLOOKUP(L89,POA!$A$2:$C$25,3,0)) -> 3 | O89: =+SUM(O90:O99) -> 0 | P89: =IF(ISERROR(VLOOKUP(L89,POA!$A$2:$C$25,2,0)),"",VLOOKUP(L89,POA!$A$2:$C$25,2,0)) -> 4167150295 | Q89: =SUM(E89/G89) -> 4.086100308 | R89: =IF(Q89=0,"",IF(Q89>=$R$9,"HABIL","NO HABIL")) -> HABIL | S89: =SUM(H89/F89) -> 0.3706252325 | T89: =IF(S89=0,"",IF(S89<=$T$9,"HABIL","NO HABIL")) -> HABIL | U89: =+SUM(U90:U99) -> 0 | V89: =SUM(J89/K89) -> 5.47772554 | W89: =IF(V89=0,"",IF(V89>=$W$9,"HABIL","NO HABIL")) -> HABIL | X89: =IF(R89=0,"",IF(R89="NO HABIL","NO HABIL",IF(T89="NO HABIL","NO HABIL",IF(W89="NO HABIL","NO HABIL",IF(W89="NO HABIL","NO HABIL","HABIL"))))) -> HABIL | AA89: =SUM(J89/I89) -> 0.1759472962 | AB89: =IF(AA89=0,"",IF(AA89>=$AB$9,"HABIL","NO HABIL")) -> HABIL | AC89: =SUM(J89/F89) -> 0.1107367887 | AD89: =IF(AC89=0,"",IF(AC89>=$AD$9,"HABIL","NO HABIL")) -> HABIL | AE89: =IF(AB89=0,"",IF(AB89="NO HABIL","NO HABIL",IF(AD89="NO HABIL","NO HABIL",IF(AD89="NO HABIL","NO HABIL","HABIL")))) -> HABIL
B90: =IF(C90="","",B89+0.1) -> 8.1 | C90: CONSULTORIA Y CONSTRUCCION LTDA. | D90: 1 | E90: 9298906000 | F90: 9911241000 | G90: 2275741000 | H90: 3673356000 | I90: =IF(ISERROR(F90-H90),"",F90-H90) -> 6237885000 | J90: 1097539000 | K90: 200364000 | M90: =IF(ISERROR(VLOOKUP(L90,POA!$A$2:$C$25,3,0)),"",VLOOKUP(L90,POA!$A$2:$C$25,3,0)) ->  | O90: =IF(ISERROR(VLOOKUP(N90,POA!$A$2:$F$25,4,0)),"",VLOOKUP(N90,POA!$A$2:$F$25,4,0)) ->  | P90: =IF(ISERROR(VLOOKUP(L90,POA!$A$2:$C$25,2,0)),"",VLOOKUP(L90,POA!$A$2:$C$25,2,0)) ->  | R90: =IF(Q90=0,"",IF(Q89>=$R$9,"HABIL","NO HABIL")) ->  | T90: =IF(S90=0,"",IF(S90<=$T$9,"HABIL","NO HABIL")) ->  | U90: =IF(ISERROR(VLOOKUP(N90,POA!$A$2:$F$25,5,0)),"",VLOOKUP(N90,POA!$A$2:$F$25,5,0)) ->  | W90: =IF(V90=0,"",IF(V90>=$W$9,"HABIL","NO HABIL")) ->  | Y90: =IF(ISERROR(F90/$Z$9),"",F90/$Z$9) -> 17489.39651 | Z90: =+IF(Y90<$Z$10,"MIPYME","NO CUMPLE") -> MIPYME | AB90: =IF(AA90=0,"",IF(AA90>=$AB$9,"HABIL","NO HABIL")) ->  | AD90: =IF(AC90=0,"",IF(AC90>=$AD$9,"HABIL","NO HABIL")) -> 
I91: 0 | M91: =IF(ISERROR(VLOOKUP(L91,POA!$A$2:$C$25,3,0)),"",VLOOKUP(L91,POA!$A$2:$C$25,3,0)) ->  | O91: =IF(ISERROR(VLOOKUP(N91,POA!$A$2:$F$25,4,0)),"",VLOOKUP(N91,POA!$A$2:$F$25,4,0)) ->  | P91: =IF(ISERROR(VLOOKUP(L91,POA!$A$2:$C$25,2,0)),"",VLOOKUP(L91,POA!$A$2:$C$25,2,0)) ->  | R91: =IF(Q91=0,"",IF(Q89>=$R$9,"HABIL","NO HABIL")) ->  | U91: =IF(ISERROR(VLOOKUP(N91,POA!$A$2:$F$25,5,0)),"",VLOOKUP(N91,POA!$A$2:$F$25,5,0)) ->  | Y91: =IF(ISERROR(F91/$Z$9),"",F91/$Z$9) -> 0 | Z91: =+IF(Y91<$Z$10,"MIPYME","NO CUMPLE") -> MIPYME
I92: 0 | M92: =IF(ISERROR(VLOOKUP(L92,POA!$A$2:$C$25,3,0)),"",VLOOKUP(L92,POA!$A$2:$C$25,3,0)) ->  | O92: =IF(ISERROR(VLOOKUP(N92,POA!$A$2:$F$25,4,0)),"",VLOOKUP(N92,POA!$A$2:$F$25,4,0)) ->  | P92: =IF(ISERROR(VLOOKUP(L92,POA!$A$2:$C$25,2,0)),"",VLOOKUP(L92,POA!$A$2:$C$25,2,0)) ->  | R92: =IF(Q92=0,"",IF(Q89>=$R$9,"HABIL","NO HABIL")) ->  | U92: =IF(ISERROR(VLOOKUP(N92,POA!$A$2:$F$25,5,0)),"",VLOOKUP(N92,POA!$A$2:$F$25,5,0)) ->  | Y92: 0 | Z92: MIPYME
E93: =IF(ISERROR(VLOOKUP(C93,#REF!,2,0)),"",VLOOKUP(C93,#REF!,2,0)) ->  | G93: =IF(ISERROR(VLOOKUP(C93,#REF!,4,0)),"",VLOOKUP(C93,#REF!,4,0)) ->  | I93: 0 | M93: =IF(ISERROR(VLOOKUP(L93,POA!$A$2:$C$25,3,0)),"",VLOOKUP(L93,POA!$A$2:$C$25,3,0)) ->  | O93: =IF(ISERROR(VLOOKUP(N93,POA!$A$2:$F$25,4,0)),"",VLOOKUP(N93,POA!$A$2:$F$25,4,0)) ->  | P93: =IF(ISERROR(VLOOKUP(L93,POA!$A$2:$C$25,2,0)),"",VLOOKUP(L93,POA!$A$2:$C$25,2,0)) ->  | R93: =IF(L93=0,"",IF(Q89>=$R$9,"HABIL","NO HABIL")) ->  | U93: =IF(ISERROR(VLOOKUP(N93,POA!$A$2:$F$25,5,0)),"",VLOOKUP(N93,POA!$A$2:$F$25,5,0)) ->  | Y93: 0 | Z93: MIPYME
E94: =IF(ISERROR(VLOOKUP(C94,#REF!,2,0)),"",VLOOKUP(C94,#REF!,2,0)) ->  | G94: =IF(ISERROR(VLOOKUP(C94,#REF!,4,0)),"",VLOOKUP(C94,#REF!,4,0)) ->  | I94: 0 | M94: =IF(ISERROR(VLOOKUP(L94,POA!$A$2:$C$25,3,0)),"",VLOOKUP(L94,POA!$A$2:$C$25,3,0)) ->  | O94: =IF(ISERROR(VLOOKUP(N94,POA!$A$2:$F$25,4,0)),"",VLOOKUP(N94,POA!$A$2:$F$25,4,0)) ->  | P94: =IF(ISERROR(VLOOKUP(L94,POA!$A$2:$C$25,2,0)),"",VLOOKUP(L94,POA!$A$2:$C$25,2,0)) ->  | R94: =IF(L94=0,"",IF(Q89>=$R$9,"HABIL","NO HABIL")) ->  | U94: =IF(ISERROR(VLOOKUP(N94,POA!$A$2:$F$25,5,0)),"",VLOOKUP(N94,POA!$A$2:$F$25,5,0)) ->  | Y94: 0 | Z94: MIPYME
E95: =IF(ISERROR(VLOOKUP(C95,#REF!,2,0)),"",VLOOKUP(C95,#REF!,2,0)) ->  | G95: =IF(ISERROR(VLOOKUP(C95,#REF!,4,0)),"",VLOOKUP(C95,#REF!,4,0)) ->  | I95: 0 | M95: =IF(ISERROR(VLOOKUP(L95,POA!$A$2:$C$25,3,0)),"",VLOOKUP(L95,POA!$A$2:$C$25,3,0)) ->  | O95: =IF(ISERROR(VLOOKUP(N95,POA!$A$2:$F$25,4,0)),"",VLOOKUP(N95,POA!$A$2:$F$25,4,0)) ->  | P95: =IF(ISERROR(VLOOKUP(L95,POA!$A$2:$C$25,2,0)),"",VLOOKUP(L95,POA!$A$2:$C$25,2,0)) ->  | R95: =IF(L95=0,"",IF(Q89>=$R$9,"HABIL","NO HABIL")) ->  | U95: =IF(ISERROR(VLOOKUP(N95,POA!$A$2:$F$25,5,0)),"",VLOOKUP(N95,POA!$A$2:$F$25,5,0)) ->  | Y95: 0 | Z95: MIPYME
B96: =IF(C96="","",B95+0.1) ->  | E96: =IF(ISERROR(VLOOKUP(C96,#REF!,2,0)),"",VLOOKUP(C96,#REF!,2,0)) ->  | G96: =IF(ISERROR(VLOOKUP(C96,#REF!,4,0)),"",VLOOKUP(C96,#REF!,4,0)) ->  | I96: =IF(ISERROR(F96-H96),"",F96-H96) -> 0 | M96: =IF(ISERROR(VLOOKUP(L96,POA!$A$2:$C$25,3,0)),"",VLOOKUP(L96,POA!$A$2:$C$25,3,0)) ->  | O96: =IF(ISERROR(VLOOKUP(N96,POA!$A$2:$F$25,4,0)),"",VLOOKUP(N96,POA!$A$2:$F$25,4,0)) ->  | P96: =IF(ISERROR(VLOOKUP(L96,POA!$A$2:$C$25,2,0)),"",VLOOKUP(L96,POA!$A$2:$C$25,2,0)) ->  | R96: =IF(L96=0,"",IF(Q89>=$R$9,"HABIL","NO HABIL")) ->  | U96: =IF(ISERROR(VLOOKUP(N96,POA!$A$2:$F$25,5,0)),"",VLOOKUP(N96,POA!$A$2:$F$25,5,0)) ->  | Y96: 0 | Z96: MIPYME
B97: =IF(C97="","",B96+0.1) ->  | E97: =IF(ISERROR(VLOOKUP(C97,#REF!,2,0)),"",VLOOKUP(C97,#REF!,2,0)) ->  | G97: =IF(ISERROR(VLOOKUP(C97,#REF!,4,0)),"",VLOOKUP(C97,#REF!,4,0)) ->  | I97: =IF(ISERROR(F97-H97),"",F97-H97) -> 0 | M97: =IF(ISERROR(VLOOKUP(L97,POA!$A$2:$C$25,3,0)),"",VLOOKUP(L97,POA!$A$2:$C$25,3,0)) ->  | O97: =IF(ISERROR(VLOOKUP(N97,POA!$A$2:$F$25,4,0)),"",VLOOKUP(N97,POA!$A$2:$F$25,4,0)) ->  | P97: =IF(ISERROR(VLOOKUP(L97,POA!$A$2:$C$25,2,0)),"",VLOOKUP(L97,POA!$A$2:$C$25,2,0)) ->  | R97: =IF(L97=0,"",IF(Q89>=$R$9,"HABIL","NO HABIL")) ->  | U97: =IF(ISERROR(VLOOKUP(N97,POA!$A$2:$F$25,5,0)),"",VLOOKUP(N97,POA!$A$2:$F$25,5,0)) ->  | Y97: 0 | Z97: MIPYME
B98: =IF(C98="","",B97+0.1) ->  | E98: =IF(ISERROR(VLOOKUP(C98,#REF!,2,0)),"",VLOOKUP(C98,#REF!,2,0)) ->  | G98: =IF(ISERROR(VLOOKUP(C98,#REF!,4,0)),"",VLOOKUP(C98,#REF!,4,0)) ->  | I98: =IF(ISERROR(F98-H98),"",F98-H98) -> 0 | M98: =IF(ISERROR(VLOOKUP(L98,POA!$A$2:$C$25,3,0)),"",VLOOKUP(L98,POA!$A$2:$C$25,3,0)) ->  | O98: =IF(ISERROR(VLOOKUP(N98,POA!$A$2:$F$25,4,0)),"",VLOOKUP(N98,POA!$A$2:$F$25,4,0)) ->  | P98: =IF(ISERROR(VLOOKUP(L98,POA!$A$2:$C$25,2,0)),"",VLOOKUP(L98,POA!$A$2:$C$25,2,0)) ->  | R98: =IF(L98=0,"",IF(Q89>=$R$9,"HABIL","NO HABIL")) ->  | U98: =IF(ISERROR(VLOOKUP(N98,POA!$A$2:$F$25,5,0)),"",VLOOKUP(N98,POA!$A$2:$F$25,5,0)) ->  | Y98: 0 | Z98: MIPYME
B99: =IF(C99="","",B98+0.1) ->  | E99: =IF(ISERROR(VLOOKUP(C99,#REF!,2,0)),"",VLOOKUP(C99,#REF!,2,0)) ->  | G99: =IF(ISERROR(VLOOKUP(C99,#REF!,4,0)),"",VLOOKUP(C99,#REF!,4,0)) ->  | I99: =IF(ISERROR(F99-H99),"",F99-H99) -> 0 | M99: =IF(ISERROR(VLOOKUP(L99,POA!$A$2:$C$25,3,0)),"",VLOOKUP(L99,POA!$A$2:$C$25,3,0)) ->  | O99: =IF(ISERROR(VLOOKUP(N99,POA!$A$2:$F$25,4,0)),"",VLOOKUP(N99,POA!$A$2:$F$25,4,0)) ->  | P99: =IF(ISERROR(VLOOKUP(L99,POA!$A$2:$C$25,2,0)),"",VLOOKUP(L99,POA!$A$2:$C$25,2,0)) ->  | R99: =IF(L99=0,"",IF(Q89>=$R$9,"HABIL","NO HABIL")) ->  | U99: =IF(ISERROR(VLOOKUP(N99,POA!$A$2:$F$25,5,0)),"",VLOOKUP(N99,POA!$A$2:$F$25,5,0)) ->  | Y99: =IF(ISERROR(F99/$Z$9),"",F99/$Z$9) -> 0 | Z99: MIPYME
B100: 9 | C100: CONSORCIO INFRAESTRUCUTRA VIAL | D100: =IF(SUM(D101:D110)=0,"",SUM(D101:D110)) -> 1 | E100: =SUM(E101:E110) -> 13777073117 | F100: =SUM(F101:F110) -> 18919808476 | G100: =SUM(G101:G110) -> 1813666118 | H100: =SUM(H101:H110) -> 6957305887 | I100: =+F100-H100 -> 11962502589 | J100: =SUM(J101:J110) -> 1393195624 | K100: =SUM(K101:K110) -> 18522981 | L100: 1 | M100: =IF(ISERROR(VLOOKUP(L100,POA!$A$2:$C$25,3,0)),"",VLOOKUP(L100,POA!$A$2:$C$25,3,0)) -> 3 | O100: =+SUM(O101:O110) -> 0 | P100: =IF(ISERROR(VLOOKUP(L100,POA!$A$2:$C$25,2,0)),"",VLOOKUP(L100,POA!$A$2:$C$25,2,0)) -> 4167150295 | Q100: =SUM(E100/G100) -> 7.596256544 | R100: =IF(Q100=0,"",IF(Q100>=$R$9,"HABIL","NO HABIL")) -> HABIL | S100: =SUM(H100/F100) -> 0.3677260209 | T100: =IF(S100=0,"",IF(S100<=$T$9,"HABIL","NO HABIL")) -> HABIL | U100: =+SUM(U101:U110) -> 0 | V100: =SUM(J100/K100) -> 75.21443897 | W100: =IF(V100=0,"",IF(V100>=$W$9,"HABIL","NO HABIL")) -> HABIL | X100: =IF(R100=0,"",IF(R100="NO HABIL","NO HABIL",IF(T100="NO HABIL","NO HABIL",IF(W100="NO HABIL","NO HABIL",IF(W100="NO HABIL","NO HABIL","HABIL"))))) -> HABIL | AA100: =SUM(J100/I100) -> 0.1164635588 | AB100: =IF(AA100=0,"",IF(AA100>=$AB$9,"HABIL","NO HABIL")) -> HABIL | AC100: =SUM(J100/F100) -> 0.07363687776 | AD100: =IF(AC100=0,"",IF(AC100>=$AD$9,"HABIL","NO HABIL")) -> HABIL | AE100: =IF(AB100=0,"",IF(AB100="NO HABIL","NO HABIL",IF(AD100="NO HABIL","NO HABIL",IF(AD100="NO HABIL","NO HABIL","HABIL")))) -> HABIL
B101: =IF(C101="","",B100+0.1) -> 9.1 | C101: VNF S.A.S | D101: 0.8 | E101: =IF(ISERROR(VLOOKUP(C101,[1]TD!$4:$65536,2,0)),"",VLOOKUP(C101,[1]TD!$4:$65536,2,0)) -> 7530553117 | F101: =IF(ISERROR(VLOOKUP(C101,[1]TD!$4:$65536,3,0)),"",VLOOKUP(C101,[1]TD!$4:$65536,3,0)) -> 11666991476 | G101: =IF(ISERROR(VLOOKUP(C101,[1]TD!$4:$65536,4,0)),"",VLOOKUP(C101,[1]TD!$4:$65536,4,0)) -> 1727553118 | H101: =IF(ISERROR(VLOOKUP(C101,[1]TD!$4:$65536,5,0)),"",VLOOKUP(C101,[1]TD!$4:$65536,5,0)) -> 4729845887 | I101: =IF(ISERROR(F101-H101),"",F101-H101) -> 6937145589 | J101: =IF(ISERROR(VLOOKUP(C101,[1]TD!$4:$65536,6,0)),"",VLOOKUP(C101,[1]TD!$4:$65536,6,0)) -> 850785624 | K101: =IF(ISERROR(VLOOKUP(C101,[1]TD!$4:$65536,7,0)),"",VLOOKUP(C101,[1]TD!$4:$65536,7,0)) -> 4494981 | M101: =IF(ISERROR(VLOOKUP(L101,POA!$A$2:$C$25,3,0)),"",VLOOKUP(L101,POA!$A$2:$C$25,3,0)) ->  | O101: =IF(ISERROR(VLOOKUP(N101,POA!$A$2:$F$25,4,0)),"",VLOOKUP(N101,POA!$A$2:$F$25,4,0)) ->  | P101: =IF(ISERROR(VLOOKUP(L101,POA!$A$2:$C$25,2,0)),"",VLOOKUP(L101,POA!$A$2:$C$25,2,0)) ->  | R101: =IF(Q101=0,"",IF(Q100>=$R$9,"HABIL","NO HABIL")) ->  | T101: =IF(S101=0,"",IF(S101<=$T$9,"HABIL","NO HABIL")) ->  | U101: =IF(ISERROR(VLOOKUP(N101,POA!$A$2:$F$25,5,0)),"",VLOOKUP(N101,POA!$A$2:$F$25,5,0)) ->  | W101: =IF(V101=0,"",IF(V101>=$W$9,"HABIL","NO HABIL")) ->  | Y101: =IF(ISERROR(F101/$Z$9),"",F101/$Z$9) -> 20587.59745 | Z101: =+IF(Y101<$Z$10,"MIPYME","NO CUMPLE") -> MIPYME | AB101: =IF(AA101=0,"",IF(AA101>=$AB$9,"HABIL","NO HABIL")) ->  | AD101: =IF(AC101=0,"",IF(AC101>=$AD$9,"HABIL","NO HABIL")) -> 
B102: 9.2 | C102: HORACIO VEGA CARDENAS | D102: 0.2 | E102: =IF(ISERROR(VLOOKUP(C102,[1]TD!$4:$65536,2,0)),"",VLOOKUP(C102,[1]TD!$4:$65536,2,0)) -> 6246520000 | F102: =IF(ISERROR(VLOOKUP(C102,[1]TD!$4:$65536,3,0)),"",VLOOKUP(C102,[1]TD!$4:$65536,3,0)) -> 7252817000 | G102: =IF(ISERROR(VLOOKUP(C102,[1]TD!$4:$65536,4,0)),"",VLOOKUP(C102,[1]TD!$4:$65536,4,0)) -> 86113000 | H102: =IF(ISERROR(VLOOKUP(C102,[1]TD!$4:$65536,5,0)),"",VLOOKUP(C102,[1]TD!$4:$65536,5,0)) -> 2227460000 | I102: 5025357000 | J102: =IF(ISERROR(VLOOKUP(C102,[1]TD!$4:$65536,6,0)),"",VLOOKUP(C102,[1]TD!$4:$65536,6,0)) -> 542410000 | K102: =IF(ISERROR(VLOOKUP(C102,[1]TD!$4:$65536,7,0)),"",VLOOKUP(C102,[1]TD!$4:$65536,7,0)) -> 14028000 | M102: =IF(ISERROR(VLOOKUP(L102,POA!$A$2:$C$25,3,0)),"",VLOOKUP(L102,POA!$A$2:$C$25,3,0)) ->  | O102: =IF(ISERROR(VLOOKUP(N102,POA!$A$2:$F$25,4,0)),"",VLOOKUP(N102,POA!$A$2:$F$25,4,0)) ->  | P102: =IF(ISERROR(VLOOKUP(L102,POA!$A$2:$C$25,2,0)),"",VLOOKUP(L102,POA!$A$2:$C$25,2,0)) ->  | R102: =IF(Q102=0,"",IF(Q100>=$R$9,"HABIL","NO HABIL")) ->  | U102: =IF(ISERROR(VLOOKUP(N102,POA!$A$2:$F$25,5,0)),"",VLOOKUP(N102,POA!$A$2:$F$25,5,0)) ->  | Y102: =IF(ISERROR(F102/$Z$9),"",F102/$Z$9) -> 12798.33598 | Z102: =+IF(Y102<$Z$10,"MIPYME","NO CUMPLE") -> MIPYME
I103: =IF(ISERROR(F103-H103),"",F103-H103) -> 0 | M103: =IF(ISERROR(VLOOKUP(L103,POA!$A$2:$C$25,3,0)),"",VLOOKUP(L103,POA!$A$2:$C$25,3,0)) ->  | O103: =IF(ISERROR(VLOOKUP(N103,POA!$A$2:$F$25,4,0)),"",VLOOKUP(N103,POA!$A$2:$F$25,4,0)) ->  | P103: =IF(ISERROR(VLOOKUP(L103,POA!$A$2:$C$25,2,0)),"",VLOOKUP(L103,POA!$A$2:$C$25,2,0)) ->  | R103: =IF(Q103=0,"",IF(Q100>=$R$9,"HABIL","NO HABIL")) ->  | U103: =IF(ISERROR(VLOOKUP(N103,POA!$A$2:$F$25,5,0)),"",VLOOKUP(N103,POA!$A$2:$F$25,5,0)) ->  | Y103: 0 | Z103: MIPYME
E104: =IF(ISERROR(VLOOKUP(C104,#REF!,2,0)),"",VLOOKUP(C104,#REF!,2,0)) ->  | G104: =IF(ISERROR(VLOOKUP(C104,#REF!,4,0)),"",VLOOKUP(C104,#REF!,4,0)) ->  | I104: 0 | M104: =IF(ISERROR(VLOOKUP(L104,POA!$A$2:$C$25,3,0)),"",VLOOKUP(L104,POA!$A$2:$C$25,3,0)) ->  | O104: =IF(ISERROR(VLOOKUP(N104,POA!$A$2:$F$25,4,0)),"",VLOOKUP(N104,POA!$A$2:$F$25,4,0)) ->  | P104: =IF(ISERROR(VLOOKUP(L104,POA!$A$2:$C$25,2,0)),"",VLOOKUP(L104,POA!$A$2:$C$25,2,0)) ->  | R104: =IF(L104=0,"",IF(Q100>=$R$9,"HABIL","NO HABIL")) ->  | U104: =IF(ISERROR(VLOOKUP(N104,POA!$A$2:$F$25,5,0)),"",VLOOKUP(N104,POA!$A$2:$F$25,5,0)) ->  | Y104: 0 | Z104: MIPYME
E105: =IF(ISERROR(VLOOKUP(C105,#REF!,2,0)),"",VLOOKUP(C105,#REF!,2,0)) ->  | G105: =IF(ISERROR(VLOOKUP(C105,#REF!,4,0)),"",VLOOKUP(C105,#REF!,4,0)) ->  | I105: 0 | M105: =IF(ISERROR(VLOOKUP(L105,POA!$A$2:$C$25,3,0)),"",VLOOKUP(L105,POA!$A$2:$C$25,3,0)) ->  | O105: =IF(ISERROR(VLOOKUP(N105,POA!$A$2:$F$25,4,0)),"",VLOOKUP(N105,POA!$A$2:$F$25,4,0)) ->  | P105: =IF(ISERROR(VLOOKUP(L105,POA!$A$2:$C$25,2,0)),"",VLOOKUP(L105,POA!$A$2:$C$25,2,0)) ->  | R105: =IF(L105=0,"",IF(Q100>=$R$9,"HABIL","NO HABIL")) ->  | U105: =IF(ISERROR(VLOOKUP(N105,POA!$A$2:$F$25,5,0)),"",VLOOKUP(N105,POA!$A$2:$F$25,5,0)) ->  | Y105: 0 | Z105: MIPYME
E106: =IF(ISERROR(VLOOKUP(C106,#REF!,2,0)),"",VLOOKUP(C106,#REF!,2,0)) ->  | G106: =IF(ISERROR(VLOOKUP(C106,#REF!,4,0)),"",VLOOKUP(C106,#REF!,4,0)) ->  | I106: 0 | M106: =IF(ISERROR(VLOOKUP(L106,POA!$A$2:$C$25,3,0)),"",VLOOKUP(L106,POA!$A$2:$C$25,3,0)) ->  | O106: =IF(ISERROR(VLOOKUP(N106,POA!$A$2:$F$25,4,0)),"",VLOOKUP(N106,POA!$A$2:$F$25,4,0)) ->  | P106: =IF(ISERROR(VLOOKUP(L106,POA!$A$2:$C$25,2,0)),"",VLOOKUP(L106,POA!$A$2:$C$25,2,0)) ->  | R106: =IF(L106=0,"",IF(Q100>=$R$9,"HABIL","NO HABIL")) ->  | U106: =IF(ISERROR(VLOOKUP(N106,POA!$A$2:$F$25,5,0)),"",VLOOKUP(N106,POA!$A$2:$F$25,5,0)) ->  | Y106: 0 | Z106: MIPYME
B107: =IF(C107="","",B106+0.1) ->  | E107: =IF(ISERROR(VLOOKUP(C107,#REF!,2,0)),"",VLOOKUP(C107,#REF!,2,0)) ->  | G107: =IF(ISERROR(VLOOKUP(C107,#REF!,4,0)),"",VLOOKUP(C107,#REF!,4,0)) ->  | I107: =IF(ISERROR(F107-H107),"",F107-H107) -> 0 | M107: =IF(ISERROR(VLOOKUP(L107,POA!$A$2:$C$25,3,0)),"",VLOOKUP(L107,POA!$A$2:$C$25,3,0)) ->  | O107: =IF(ISERROR(VLOOKUP(N107,POA!$A$2:$F$25,4,0)),"",VLOOKUP(N107,POA!$A$2:$F$25,4,0)) ->  | P107: =IF(ISERROR(VLOOKUP(L107,POA!$A$2:$C$25,2,0)),"",VLOOKUP(L107,POA!$A$2:$C$25,2,0)) ->  | R107: =IF(L107=0,"",IF(Q100>=$R$9,"HABIL","NO HABIL")) ->  | U107: =IF(ISERROR(VLOOKUP(N107,POA!$A$2:$F$25,5,0)),"",VLOOKUP(N107,POA!$A$2:$F$25,5,0)) ->  | Y107: 0 | Z107: MIPYME
B108: =IF(C108="","",B107+0.1) ->  | E108: =IF(ISERROR(VLOOKUP(C108,#REF!,2,0)),"",VLOOKUP(C108,#REF!,2,0)) ->  | G108: =IF(ISERROR(VLOOKUP(C108,#REF!,4,0)),"",VLOOKUP(C108,#REF!,4,0)) ->  | I108: =IF(ISERROR(F108-H108),"",F108-H108) -> 0 | M108: =IF(ISERROR(VLOOKUP(L108,POA!$A$2:$C$25,3,0)),"",VLOOKUP(L108,POA!$A$2:$C$25,3,0)) ->  | O108: =IF(ISERROR(VLOOKUP(N108,POA!$A$2:$F$25,4,0)),"",VLOOKUP(N108,POA!$A$2:$F$25,4,0)) ->  | P108: =IF(ISERROR(VLOOKUP(L108,POA!$A$2:$C$25,2,0)),"",VLOOKUP(L108,POA!$A$2:$C$25,2,0)) ->  | R108: =IF(L108=0,"",IF(Q100>=$R$9,"HABIL","NO HABIL")) ->  | U108: =IF(ISERROR(VLOOKUP(N108,POA!$A$2:$F$25,5,0)),"",VLOOKUP(N108,POA!$A$2:$F$25,5,0)) ->  | Y108: 0 | Z108: MIPYME
B109: =IF(C109="","",B108+0.1) ->  | E109: =IF(ISERROR(VLOOKUP(C109,#REF!,2,0)),"",VLOOKUP(C109,#REF!,2,0)) ->  | G109: =IF(ISERROR(VLOOKUP(C109,#REF!,4,0)),"",VLOOKUP(C109,#REF!,4,0)) ->  | I109: =IF(ISERROR(F109-H109),"",F109-H109) -> 0 | M109: =IF(ISERROR(VLOOKUP(L109,POA!$A$2:$C$25,3,0)),"",VLOOKUP(L109,POA!$A$2:$C$25,3,0)) ->  | O109: =IF(ISERROR(VLOOKUP(N109,POA!$A$2:$F$25,4,0)),"",VLOOKUP(N109,POA!$A$2:$F$25,4,0)) ->  | P109: =IF(ISERROR(VLOOKUP(L109,POA!$A$2:$C$25,2,0)),"",VLOOKUP(L109,POA!$A$2:$C$25,2,0)) ->  | R109: =IF(L109=0,"",IF(Q100>=$R$9,"HABIL","NO HABIL")) ->  | U109: =IF(ISERROR(VLOOKUP(N109,POA!$A$2:$F$25,5,0)),"",VLOOKUP(N109,POA!$A$2:$F$25,5,0)) ->  | Y109: 0 | Z109: MIPYME
B110: =IF(C110="","",B109+0.1) ->  | E110: =IF(ISERROR(VLOOKUP(C110,#REF!,2,0)),"",VLOOKUP(C110,#REF!,2,0)) ->  | G110: =IF(ISERROR(VLOOKUP(C110,#REF!,4,0)),"",VLOOKUP(C110,#REF!,4,0)) ->  | I110: =IF(ISERROR(F110-H110),"",F110-H110) -> 0 | M110: =IF(ISERROR(VLOOKUP(L110,POA!$A$2:$C$25,3,0)),"",VLOOKUP(L110,POA!$A$2:$C$25,3,0)) ->  | O110: =IF(ISERROR(VLOOKUP(N110,POA!$A$2:$F$25,4,0)),"",VLOOKUP(N110,POA!$A$2:$F$25,4,0)) ->  | P110: =IF(ISERROR(VLOOKUP(L110,POA!$A$2:$C$25,2,0)),"",VLOOKUP(L110,POA!$A$2:$C$25,2,0)) ->  | R110: =IF(L110=0,"",IF(Q100>=$R$9,"HABIL","NO HABIL")) ->  | U110: =IF(ISERROR(VLOOKUP(N110,POA!$A$2:$F$25,5,0)),"",VLOOKUP(N110,POA!$A$2:$F$25,5,0)) ->  | Y110: =IF(ISERROR(F110/$Z$9),"",F110/$Z$9) -> 0 | Z110: MIPYME
B111: 10 | C111: CONSORCIO AM 034 | D111: =IF(SUM(D112:D121)=0,"",SUM(D112:D121)) -> 1 | E111: =SUM(E112:E121) -> 2.65932942e+10 | F111: =SUM(F112:F121) -> 4.112149433e+10 | G111: =SUM(G112:G121) -> 1.833796851e+10 | H111: =SUM(H112:H121) -> 2.308891282e+10 | I111: =+F111-H111 -> 1.803258151e+10 | J111: =SUM(J112:J121) -> 1908871706 | K111: =SUM(K112:K121) -> 641477208.7 | L111: 1 | M111: =IF(ISERROR(VLOOKUP(L111,POA!$A$2:$C$25,3,0)),"",VLOOKUP(L111,POA!$A$2:$C$25,3,0)) -> 3 | O111: =+SUM(O112:O121) -> 0 | P111: =IF(ISERROR(VLOOKUP(L111,POA!$A$2:$C$25,2,0)),"",VLOOKUP(L111,POA!$A$2:$C$25,2,0)) -> 4167150295 | Q111: =SUM(E111/G111) -> 1.450176675 | R111: =IF(Q111=0,"",IF(Q111>=$R$9,"HABIL","NO HABIL")) -> HABIL | S111: =SUM(H111/F111) -> 0.5614803936 | T111: =IF(S111=0,"",IF(S111<=$T$9,"HABIL","NO HABIL")) -> HABIL | U111: =+SUM(U112:U121) -> 0 | V111: =SUM(J111/K111) -> 2.975743612 | W111: =IF(V111=0,"",IF(V111>=$W$9,"HABIL","NO HABIL")) -> HABIL | X111: =IF(R111=0,"",IF(R111="NO HABIL","NO HABIL",IF(T111="NO HABIL","NO HABIL",IF(W111="NO HABIL","NO HABIL",IF(W111="NO HABIL","NO HABIL","HABIL"))))) -> HABIL | AA111: =SUM(J111/I111) -> 0.1058568184 | AB111: =IF(AA111=0,"",IF(AA111>=$AB$9,"HABIL","NO HABIL")) -> HABIL | AC111: =SUM(J111/F111) -> 0.04642029034 | AD111: =IF(AC111=0,"",IF(AC111>=$AD$9,"HABIL","NO HABIL")) -> HABIL | AE111: =IF(AB111=0,"",IF(AB111="NO HABIL","NO HABIL",IF(AD111="NO HABIL","NO HABIL",IF(AD111="NO HABIL","NO HABIL","HABIL")))) -> HABIL
B112: =IF(C112="","",B111+0.1) -> 10.1 | C112: ROGELIO ARDILA TORRES | D112: 0.5 | E112: =IF(ISERROR(VLOOKUP(C112,[1]TD!$4:$65536,2,0)),"",VLOOKUP(C112,[1]TD!$4:$65536,2,0)) -> 4279139508 | F112: =IF(ISERROR(VLOOKUP(C112,[1]TD!$4:$65536,3,0)),"",VLOOKUP(C112,[1]TD!$4:$65536,3,0)) -> 7409302251 | G112: =IF(ISERROR(VLOOKUP(C112,[1]TD!$4:$65536,4,0)),"",VLOOKUP(C112,[1]TD!$4:$65536,4,0)) -> 471458818 | H112: =IF(ISERROR(VLOOKUP(C112,[1]TD!$4:$65536,5,0)),"",VLOOKUP(C112,[1]TD!$4:$65536,5,0)) -> 2991784876 | I112: =IF(ISERROR(F112-H112),"",F112-H112) -> 4417517375 | J112: =IF(ISERROR(VLOOKUP(C112,[1]TD!$4:$65536,6,0)),"",VLOOKUP(C112,[1]TD!$4:$65536,6,0)) -> 1052978421 | K112: =IF(ISERROR(VLOOKUP(C112,[1]TD!$4:$65536,7,0)),"",VLOOKUP(C112,[1]TD!$4:$65536,7,0)) -> 172169561 | M112: =IF(ISERROR(VLOOKUP(L112,POA!$A$2:$C$25,3,0)),"",VLOOKUP(L112,POA!$A$2:$C$25,3,0)) ->  | O112: =IF(ISERROR(VLOOKUP(N112,POA!$A$2:$F$25,4,0)),"",VLOOKUP(N112,POA!$A$2:$F$25,4,0)) ->  | P112: =IF(ISERROR(VLOOKUP(L112,POA!$A$2:$C$25,2,0)),"",VLOOKUP(L112,POA!$A$2:$C$25,2,0)) ->  | R112: =IF(Q112=0,"",IF(Q111>=$R$9,"HABIL","NO HABIL")) ->  | T112: =IF(S112=0,"",IF(S112<=$T$9,"HABIL","NO HABIL")) ->  | U112: =IF(ISERROR(VLOOKUP(N112,POA!$A$2:$F$25,5,0)),"",VLOOKUP(N112,POA!$A$2:$F$25,5,0)) ->  | W112: =IF(V112=0,"",IF(V112>=$W$9,"HABIL","NO HABIL")) ->  | Y112: =IF(ISERROR(F112/$Z$9),"",F112/$Z$9) -> 13074.47018 | Z112: =+IF(Y112<$Z$10,"MIPYME","NO CUMPLE") -> MIPYME | AB112: =IF(AA112=0,"",IF(AA112>=$AB$9,"HABIL","NO HABIL")) ->  | AD112: =IF(AC112=0,"",IF(AC112>=$AD$9,"HABIL","NO HABIL")) -> 
B113: 10.2 | C113: PAVIMENTACIONES MORALES SL | D113: 0.5 | E113: 2.231415469e+10 | F113: 3.371219208e+10 | G113: 1.786650969e+10 | H113: 2.009712795e+10 | I113: =IF(ISERROR(F113-H113),"",F113-H113) -> 1.361506413e+10 | J113: 855893285.1 | K113: 469307647.7 | M113: =IF(ISERROR(VLOOKUP(L113,POA!$A$2:$C$25,3,0)),"",VLOOKUP(L113,POA!$A$2:$C$25,3,0)) ->  | O113: =IF(ISERROR(VLOOKUP(N113,POA!$A$2:$F$25,4,0)),"",VLOOKUP(N113,POA!$A$2:$F$25,4,0)) ->  | P113: =IF(ISERROR(VLOOKUP(L113,POA!$A$2:$C$25,2,0)),"",VLOOKUP(L113,POA!$A$2:$C$25,2,0)) ->  | R113: =IF(Q113=0,"",IF(Q111>=$R$9,"HABIL","NO HABIL")) ->  | U113: =IF(ISERROR(VLOOKUP(N113,POA!$A$2:$F$25,5,0)),"",VLOOKUP(N113,POA!$A$2:$F$25,5,0)) ->  | Y113: =IF(ISERROR(F113/$Z$9),"",F113/$Z$9) -> 59488.60434 | Z113: =+IF(Y113<$Z$10,"MIPYME","NO CUMPLE") -> NO CUMPLE
I114: 0 | M114: =IF(ISERROR(VLOOKUP(L114,POA!$A$2:$C$25,3,0)),"",VLOOKUP(L114,POA!$A$2:$C$25,3,0)) ->  | O114: =IF(ISERROR(VLOOKUP(N114,POA!$A$2:$F$25,4,0)),"",VLOOKUP(N114,POA!$A$2:$F$25,4,0)) ->  | P114: =IF(ISERROR(VLOOKUP(L114,POA!$A$2:$C$25,2,0)),"",VLOOKUP(L114,POA!$A$2:$C$25,2,0)) ->  | R114: =IF(Q114=0,"",IF(Q111>=$R$9,"HABIL","NO HABIL")) ->  | U114: =IF(ISERROR(VLOOKUP(N114,POA!$A$2:$F$25,5,0)),"",VLOOKUP(N114,POA!$A$2:$F$25,5,0)) ->  | Y114: 0 | Z114: MIPYME
E115: =IF(ISERROR(VLOOKUP(C115,#REF!,2,0)),"",VLOOKUP(C115,#REF!,2,0)) ->  | G115: =IF(ISERROR(VLOOKUP(C115,#REF!,4,0)),"",VLOOKUP(C115,#REF!,4,0)) ->  | I115: 0 | M115: =IF(ISERROR(VLOOKUP(L115,POA!$A$2:$C$25,3,0)),"",VLOOKUP(L115,POA!$A$2:$C$25,3,0)) ->  | O115: =IF(ISERROR(VLOOKUP(N115,POA!$A$2:$F$25,4,0)),"",VLOOKUP(N115,POA!$A$2:$F$25,4,0)) ->  | P115: =IF(ISERROR(VLOOKUP(L115,POA!$A$2:$C$25,2,0)),"",VLOOKUP(L115,POA!$A$2:$C$25,2,0)) ->  | R115: =IF(L115=0,"",IF(Q111>=$R$9,"HABIL","NO HABIL")) ->  | U115: =IF(ISERROR(VLOOKUP(N115,POA!$A$2:$F$25,5,0)),"",VLOOKUP(N115,POA!$A$2:$F$25,5,0)) ->  | Y115: 0 | Z115: MIPYME
E116: =IF(ISERROR(VLOOKUP(C116,#REF!,2,0)),"",VLOOKUP(C116,#REF!,2,0)) ->  | G116: =IF(ISERROR(VLOOKUP(C116,#REF!,4,0)),"",VLOOKUP(C116,#REF!,4,0)) ->  | I116: 0 | M116: =IF(ISERROR(VLOOKUP(L116,POA!$A$2:$C$25,3,0)),"",VLOOKUP(L116,POA!$A$2:$C$25,3,0)) ->  | O116: =IF(ISERROR(VLOOKUP(N116,POA!$A$2:$F$25,4,0)),"",VLOOKUP(N116,POA!$A$2:$F$25,4,0)) ->  | P116: =IF(ISERROR(VLOOKUP(L116,POA!$A$2:$C$25,2,0)),"",VLOOKUP(L116,POA!$A$2:$C$25,2,0)) ->  | R116: =IF(L116=0,"",IF(Q111>=$R$9,"HABIL","NO HABIL")) ->  | U116: =IF(ISERROR(VLOOKUP(N116,POA!$A$2:$F$25,5,0)),"",VLOOKUP(N116,POA!$A$2:$F$25,5,0)) ->  | Y116: 0 | Z116: MIPYME
E117: =IF(ISERROR(VLOOKUP(C117,#REF!,2,0)),"",VLOOKUP(C117,#REF!,2,0)) ->  | G117: =IF(ISERROR(VLOOKUP(C117,#REF!,4,0)),"",VLOOKUP(C117,#REF!,4,0)) ->  | I117: 0 | M117: =IF(ISERROR(VLOOKUP(L117,POA!$A$2:$C$25,3,0)),"",VLOOKUP(L117,POA!$A$2:$C$25,3,0)) ->  | O117: =IF(ISERROR(VLOOKUP(N117,POA!$A$2:$F$25,4,0)),"",VLOOKUP(N117,POA!$A$2:$F$25,4,0)) ->  | P117: =IF(ISERROR(VLOOKUP(L117,POA!$A$2:$C$25,2,0)),"",VLOOKUP(L117,POA!$A$2:$C$25,2,0)) ->  | R117: =IF(L117=0,"",IF(Q111>=$R$9,"HABIL","NO HABIL")) ->  | U117: =IF(ISERROR(VLOOKUP(N117,POA!$A$2:$F$25,5,0)),"",VLOOKUP(N117,POA!$A$2:$F$25,5,0)) ->  | Y117: 0 | Z117: MIPYME
B118: =IF(C118="","",B117+0.1) ->  | E118: =IF(ISERROR(VLOOKUP(C118,#REF!,2,0)),"",VLOOKUP(C118,#REF!,2,0)) ->  | G118: =IF(ISERROR(VLOOKUP(C118,#REF!,4,0)),"",VLOOKUP(C118,#REF!,4,0)) ->  | I118: =IF(ISERROR(F118-H118),"",F118-H118) -> 0 | M118: =IF(ISERROR(VLOOKUP(L118,POA!$A$2:$C$25,3,0)),"",VLOOKUP(L118,POA!$A$2:$C$25,3,0)) ->  | O118: =IF(ISERROR(VLOOKUP(N118,POA!$A$2:$F$25,4,0)),"",VLOOKUP(N118,POA!$A$2:$F$25,4,0)) ->  | P118: =IF(ISERROR(VLOOKUP(L118,POA!$A$2:$C$25,2,0)),"",VLOOKUP(L118,POA!$A$2:$C$25,2,0)) ->  | R118: =IF(L118=0,"",IF(Q111>=$R$9,"HABIL","NO HABIL")) ->  | U118: =IF(ISERROR(VLOOKUP(N118,POA!$A$2:$F$25,5,0)),"",VLOOKUP(N118,POA!$A$2:$F$25,5,0)) ->  | Y118: 0 | Z118: MIPYME
B119: =IF(C119="","",B118+0.1) ->  | E119: =IF(ISERROR(VLOOKUP(C119,#REF!,2,0)),"",VLOOKUP(C119,#REF!,2,0)) ->  | G119: =IF(ISERROR(VLOOKUP(C119,#REF!,4,0)),"",VLOOKUP(C119,#REF!,4,0)) ->  | I119: =IF(ISERROR(F119-H119),"",F119-H119) -> 0 | M119: =IF(ISERROR(VLOOKUP(L119,POA!$A$2:$C$25,3,0)),"",VLOOKUP(L119,POA!$A$2:$C$25,3,0)) ->  | O119: =IF(ISERROR(VLOOKUP(N119,POA!$A$2:$F$25,4,0)),"",VLOOKUP(N119,POA!$A$2:$F$25,4,0)) ->  | P119: =IF(ISERROR(VLOOKUP(L119,POA!$A$2:$C$25,2,0)),"",VLOOKUP(L119,POA!$A$2:$C$25,2,0)) ->  | R119: =IF(L119=0,"",IF(Q111>=$R$9,"HABIL","NO HABIL")) ->  | U119: =IF(ISERROR(VLOOKUP(N119,POA!$A$2:$F$25,5,0)),"",VLOOKUP(N119,POA!$A$2:$F$25,5,0)) ->  | Y119: 0 | Z119: MIPYME
B120: =IF(C120="","",B119+0.1) ->  | E120: =IF(ISERROR(VLOOKUP(C120,#REF!,2,0)),"",VLOOKUP(C120,#REF!,2,0)) ->  | G120: =IF(ISERROR(VLOOKUP(C120,#REF!,4,0)),"",VLOOKUP(C120,#REF!,4,0)) ->  | I120: =IF(ISERROR(F120-H120),"",F120-H120) -> 0 | M120: =IF(ISERROR(VLOOKUP(L120,POA!$A$2:$C$25,3,0)),"",VLOOKUP(L120,POA!$A$2:$C$25,3,0)) ->  | O120: =IF(ISERROR(VLOOKUP(N120,POA!$A$2:$F$25,4,0)),"",VLOOKUP(N120,POA!$A$2:$F$25,4,0)) ->  | P120: =IF(ISERROR(VLOOKUP(L120,POA!$A$2:$C$25,2,0)),"",VLOOKUP(L120,POA!$A$2:$C$25,2,0)) ->  | R120: =IF(L120=0,"",IF(Q111>=$R$9,"HABIL","NO HABIL")) ->  | U120: =IF(ISERROR(VLOOKUP(N120,POA!$A$2:$F$25,5,0)),"",VLOOKUP(N120,POA!$A$2:$F$25,5,0)) ->  | Y120: 0 | Z120: MIPYME
B121: =IF(C121="","",B120+0.1) ->  | E121: =IF(ISERROR(VLOOKUP(C121,#REF!,2,0)),"",VLOOKUP(C121,#REF!,2,0)) ->  | G121: =IF(ISERROR(VLOOKUP(C121,#REF!,4,0)),"",VLOOKUP(C121,#REF!,4,0)) ->  | I121: =IF(ISERROR(F121-H121),"",F121-H121) -> 0 | M121: =IF(ISERROR(VLOOKUP(L121,POA!$A$2:$C$25,3,0)),"",VLOOKUP(L121,POA!$A$2:$C$25,3,0)) ->  | O121: =IF(ISERROR(VLOOKUP(N121,POA!$A$2:$F$25,4,0)),"",VLOOKUP(N121,POA!$A$2:$F$25,4,0)) ->  | P121: =IF(ISERROR(VLOOKUP(L121,POA!$A$2:$C$25,2,0)),"",VLOOKUP(L121,POA!$A$2:$C$25,2,0)) ->  | R121: =IF(L121=0,"",IF(Q111>=$R$9,"HABIL","NO HABIL")) ->  | U121: =IF(ISERROR(VLOOKUP(N121,POA!$A$2:$F$25,5,0)),"",VLOOKUP(N121,POA!$A$2:$F$25,5,0)) ->  | Y121: =IF(ISERROR(F121/$Z$9),"",F121/$Z$9) -> 0 | Z121: MIPYME
B122: 11 | C122: CONSORCIO INTERVIAS CUNDINAMARCA 2014 | D122: =IF(SUM(D123:D132)=0,"",SUM(D123:D132)) -> 1 | E122: =SUM(E123:E132) -> 2386153562 | F122: =SUM(F123:F132) -> 2450877649 | G122: =SUM(G123:G132) -> 305744751 | H122: =SUM(H123:H132) -> 529963688 | I122: =+F122-H122 -> 1920913961 | J122: =SUM(J123:J132) -> 277970287 | K122: =SUM(K123:K132) -> 38148936.6 | L122: 1 | M122: =IF(ISERROR(VLOOKUP(L122,POA!$A$2:$C$25,3,0)),"",VLOOKUP(L122,POA!$A$2:$C$25,3,0)) -> 3 | O122: =+SUM(O123:O132) -> 0 | P122: =IF(ISERROR(VLOOKUP(L122,POA!$A$2:$C$25,2,0)),"",VLOOKUP(L122,POA!$A$2:$C$25,2,0)) -> 4167150295 | Q122: =SUM(E122/G122) -> 7.804397473 | R122: =IF(Q122=0,"",IF(Q122>=$R$9,"HABIL","NO HABIL")) -> HABIL | S122: =SUM(H122/F122) -> 0.2162342491 | T122: =IF(S122=0,"",IF(S122<=$T$9,"HABIL","NO HABIL")) -> HABIL | U122: =+SUM(U123:U132) -> 0 | V122: =SUM(J122/K122) -> 7.286449159 | W122: =IF(V122=0,"",IF(V122>=$W$9,"HABIL","NO HABIL")) -> HABIL | X122: =IF(R122=0,"",IF(R122="NO HABIL","NO HABIL",IF(T122="NO HABIL","NO HABIL",IF(W122="NO HABIL","NO HABIL",IF(W122="NO HABIL","NO HABIL","HABIL"))))) -> HABIL | AA122: =SUM(J122/I122) -> 0.1447073074 | AB122: =IF(AA122=0,"",IF(AA122>=$AB$9,"HABIL","NO HABIL")) -> HABIL | AC122: =SUM(J122/F122) -> 0.1134166314 | AD122: =IF(AC122=0,"",IF(AC122>=$AD$9,"HABIL","NO HABIL")) -> HABIL | AE122: =IF(AB122=0,"",IF(AB122="NO HABIL","NO HABIL",IF(AD122="NO HABIL","NO HABIL",IF(AD122="NO HABIL","NO HABIL","HABIL")))) -> HABIL
B123: =IF(C123="","",B122+0.1) -> 11.1 | C123: MBM INGENIERIA S.A.S. | D123: 0.4 | E123: 1420521431 | F123: 1447268745 | G123: 197338257 | H123: 197338257 | I123: =IF(ISERROR(F123-H123),"",F123-H123) -> 1249930488 | J123: 110001396 | K123: 1476406.6 | M123: =IF(ISERROR(VLOOKUP(L123,POA!$A$2:$C$25,3,0)),"",VLOOKUP(L123,POA!$A$2:$C$25,3,0)) ->  | O123: =IF(ISERROR(VLOOKUP(N123,POA!$A$2:$F$25,4,0)),"",VLOOKUP(N123,POA!$A$2:$F$25,4,0)) ->  | P123: =IF(ISERROR(VLOOKUP(L123,POA!$A$2:$C$25,2,0)),"",VLOOKUP(L123,POA!$A$2:$C$25,2,0)) ->  | R123: =IF(Q123=0,"",IF(Q122>=$R$9,"HABIL","NO HABIL")) ->  | T123: =IF(S123=0,"",IF(S123<=$T$9,"HABIL","NO HABIL")) ->  | U123: =IF(ISERROR(VLOOKUP(N123,POA!$A$2:$F$25,5,0)),"",VLOOKUP(N123,POA!$A$2:$F$25,5,0)) ->  | W123: =IF(V123=0,"",IF(V123>=$W$9,"HABIL","NO HABIL")) ->  | Y123: =IF(ISERROR(F123/$Z$9),"",F123/$Z$9) -> 2553.853441 | Z123: =+IF(Y123<$Z$10,"MIPYME","NO CUMPLE") -> MIPYME | AB123: =IF(AA123=0,"",IF(AA123>=$AB$9,"HABIL","NO HABIL")) ->  | AD123: =IF(AC123=0,"",IF(AC123>=$AD$9,"HABIL","NO HABIL")) -> 
B124: 11.2 | C124: GUEVARA BAQUERO CIA LTDA. | D124: 0.4 | E124: 510173286 | F124: 510173286 | G124: 32638151 | H124: 32638151 | I124: 477535135 | J124: 48269067 | K124: 30201 | M124: =IF(ISERROR(VLOOKUP(L124,POA!$A$2:$C$25,3,0)),"",VLOOKUP(L124,POA!$A$2:$C$25,3,0)) ->  | O124: =IF(ISERROR(VLOOKUP(N124,POA!$A$2:$F$25,4,0)),"",VLOOKUP(N124,POA!$A$2:$F$25,4,0)) ->  | P124: =IF(ISERROR(VLOOKUP(L124,POA!$A$2:$C$25,2,0)),"",VLOOKUP(L124,POA!$A$2:$C$25,2,0)) ->  | R124: =IF(Q124=0,"",IF(Q122>=$R$9,"HABIL","NO HABIL")) ->  | U124: =IF(ISERROR(VLOOKUP(N124,POA!$A$2:$F$25,5,0)),"",VLOOKUP(N124,POA!$A$2:$F$25,5,0)) ->  | Y124: =IF(ISERROR(F124/$Z$9),"",F124/$Z$9) -> 900.2528428 | Z124: =+IF(Y124<$Z$10,"MIPYME","NO CUMPLE") -> MIPYME
B125: 11.3 | C125: VIGA INGENIERIA S.A.S. | D125: 0.2 | E125: 455458845 | F125: 493435618 | G125: 75768343 | H125: 299987280 | I125: 193448338 | J125: 119699824 | K125: 36642329 | M125: =IF(ISERROR(VLOOKUP(L125,POA!$A$2:$C$25,3,0)),"",VLOOKUP(L125,POA!$A$2:$C$25,3,0)) ->  | O125: =IF(ISERROR(VLOOKUP(N125,POA!$A$2:$F$25,4,0)),"",VLOOKUP(N125,POA!$A$2:$F$25,4,0)) ->  | P125: =IF(ISERROR(VLOOKUP(L125,POA!$A$2:$C$25,2,0)),"",VLOOKUP(L125,POA!$A$2:$C$25,2,0)) ->  | R125: =IF(Q125=0,"",IF(Q122>=$R$9,"HABIL","NO HABIL")) ->  | U125: =IF(ISERROR(VLOOKUP(N125,POA!$A$2:$F$25,5,0)),"",VLOOKUP(N125,POA!$A$2:$F$25,5,0)) ->  | Y125: 870.717519 | Z125: MIPYME
E126: =IF(ISERROR(VLOOKUP(C126,#REF!,2,0)),"",VLOOKUP(C126,#REF!,2,0)) ->  | G126: =IF(ISERROR(VLOOKUP(C126,#REF!,4,0)),"",VLOOKUP(C126,#REF!,4,0)) ->  | I126: =IF(ISERROR(F126-H126),"",F126-H126) -> 0 | M126: =IF(ISERROR(VLOOKUP(L126,POA!$A$2:$C$25,3,0)),"",VLOOKUP(L126,POA!$A$2:$C$25,3,0)) ->  | O126: =IF(ISERROR(VLOOKUP(N126,POA!$A$2:$F$25,4,0)),"",VLOOKUP(N126,POA!$A$2:$F$25,4,0)) ->  | P126: =IF(ISERROR(VLOOKUP(L126,POA!$A$2:$C$25,2,0)),"",VLOOKUP(L126,POA!$A$2:$C$25,2,0)) ->  | R126: =IF(L126=0,"",IF(Q122>=$R$9,"HABIL","NO HABIL")) ->  | U126: =IF(ISERROR(VLOOKUP(N126,POA!$A$2:$F$25,5,0)),"",VLOOKUP(N126,POA!$A$2:$F$25,5,0)) ->  | Y126: 0 | Z126: MIPYME
E127: =IF(ISERROR(VLOOKUP(C127,#REF!,2,0)),"",VLOOKUP(C127,#REF!,2,0)) ->  | G127: =IF(ISERROR(VLOOKUP(C127,#REF!,4,0)),"",VLOOKUP(C127,#REF!,4,0)) ->  | I127: 0 | M127: =IF(ISERROR(VLOOKUP(L127,POA!$A$2:$C$25,3,0)),"",VLOOKUP(L127,POA!$A$2:$C$25,3,0)) ->  | O127: =IF(ISERROR(VLOOKUP(N127,POA!$A$2:$F$25,4,0)),"",VLOOKUP(N127,POA!$A$2:$F$25,4,0)) ->  | P127: =IF(ISERROR(VLOOKUP(L127,POA!$A$2:$C$25,2,0)),"",VLOOKUP(L127,POA!$A$2:$C$25,2,0)) ->  | R127: =IF(L127=0,"",IF(Q122>=$R$9,"HABIL","NO HABIL")) ->  | U127: =IF(ISERROR(VLOOKUP(N127,POA!$A$2:$F$25,5,0)),"",VLOOKUP(N127,POA!$A$2:$F$25,5,0)) ->  | Y127: 0 | Z127: MIPYME
E128: =IF(ISERROR(VLOOKUP(C128,#REF!,2,0)),"",VLOOKUP(C128,#REF!,2,0)) ->  | G128: =IF(ISERROR(VLOOKUP(C128,#REF!,4,0)),"",VLOOKUP(C128,#REF!,4,0)) ->  | I128: 0 | M128: =IF(ISERROR(VLOOKUP(L128,POA!$A$2:$C$25,3,0)),"",VLOOKUP(L128,POA!$A$2:$C$25,3,0)) ->  | O128: =IF(ISERROR(VLOOKUP(N128,POA!$A$2:$F$25,4,0)),"",VLOOKUP(N128,POA!$A$2:$F$25,4,0)) ->  | P128: =IF(ISERROR(VLOOKUP(L128,POA!$A$2:$C$25,2,0)),"",VLOOKUP(L128,POA!$A$2:$C$25,2,0)) ->  | R128: =IF(L128=0,"",IF(Q122>=$R$9,"HABIL","NO HABIL")) ->  | U128: =IF(ISERROR(VLOOKUP(N128,POA!$A$2:$F$25,5,0)),"",VLOOKUP(N128,POA!$A$2:$F$25,5,0)) ->  | Y128: 0 | Z128: MIPYME
B129: =IF(C129="","",B128+0.1) ->  | E129: =IF(ISERROR(VLOOKUP(C129,#REF!,2,0)),"",VLOOKUP(C129,#REF!,2,0)) ->  | G129: =IF(ISERROR(VLOOKUP(C129,#REF!,4,0)),"",VLOOKUP(C129,#REF!,4,0)) ->  | I129: =IF(ISERROR(F129-H129),"",F129-H129) -> 0 | M129: =IF(ISERROR(VLOOKUP(L129,POA!$A$2:$C$25,3,0)),"",VLOOKUP(L129,POA!$A$2:$C$25,3,0)) ->  | O129: =IF(ISERROR(VLOOKUP(N129,POA!$A$2:$F$25,4,0)),"",VLOOKUP(N129,POA!$A$2:$F$25,4,0)) ->  | P129: =IF(ISERROR(VLOOKUP(L129,POA!$A$2:$C$25,2,0)),"",VLOOKUP(L129,POA!$A$2:$C$25,2,0)) ->  | R129: =IF(L129=0,"",IF(Q122>=$R$9,"HABIL","NO HABIL")) ->  | U129: =IF(ISERROR(VLOOKUP(N129,POA!$A$2:$F$25,5,0)),"",VLOOKUP(N129,POA!$A$2:$F$25,5,0)) ->  | Y129: 0 | Z129: MIPYME
B130: =IF(C130="","",B129+0.1) ->  | E130: =IF(ISERROR(VLOOKUP(C130,#REF!,2,0)),"",VLOOKUP(C130,#REF!,2,0)) ->  | G130: =IF(ISERROR(VLOOKUP(C130,#REF!,4,0)),"",VLOOKUP(C130,#REF!,4,0)) ->  | I130: =IF(ISERROR(F130-H130),"",F130-H130) -> 0 | M130: =IF(ISERROR(VLOOKUP(L130,POA!$A$2:$C$25,3,0)),"",VLOOKUP(L130,POA!$A$2:$C$25,3,0)) ->  | O130: =IF(ISERROR(VLOOKUP(N130,POA!$A$2:$F$25,4,0)),"",VLOOKUP(N130,POA!$A$2:$F$25,4,0)) ->  | P130: =IF(ISERROR(VLOOKUP(L130,POA!$A$2:$C$25,2,0)),"",VLOOKUP(L130,POA!$A$2:$C$25,2,0)) ->  | R130: =IF(L130=0,"",IF(Q122>=$R$9,"HABIL","NO HABIL")) ->  | U130: =IF(ISERROR(VLOOKUP(N130,POA!$A$2:$F$25,5,0)),"",VLOOKUP(N130,POA!$A$2:$F$25,5,0)) ->  | Y130: 0 | Z130: MIPYME
B131: =IF(C131="","",B130+0.1) ->  | E131: =IF(ISERROR(VLOOKUP(C131,#REF!,2,0)),"",VLOOKUP(C131,#REF!,2,0)) ->  | G131: =IF(ISERROR(VLOOKUP(C131,#REF!,4,0)),"",VLOOKUP(C131,#REF!,4,0)) ->  | I131: =IF(ISERROR(F131-H131),"",F131-H131) -> 0 | M131: =IF(ISERROR(VLOOKUP(L131,POA!$A$2:$C$25,3,0)),"",VLOOKUP(L131,POA!$A$2:$C$25,3,0)) ->  | O131: =IF(ISERROR(VLOOKUP(N131,POA!$A$2:$F$25,4,0)),"",VLOOKUP(N131,POA!$A$2:$F$25,4,0)) ->  | P131: =IF(ISERROR(VLOOKUP(L131,POA!$A$2:$C$25,2,0)),"",VLOOKUP(L131,POA!$A$2:$C$25,2,0)) ->  | R131: =IF(L131=0,"",IF(Q122>=$R$9,"HABIL","NO HABIL")) ->  | U131: =IF(ISERROR(VLOOKUP(N131,POA!$A$2:$F$25,5,0)),"",VLOOKUP(N131,POA!$A$2:$F$25,5,0)) ->  | Y131: 0 | Z131: MIPYME
B132: =IF(C132="","",B131+0.1) ->  | E132: =IF(ISERROR(VLOOKUP(C132,#REF!,2,0)),"",VLOOKUP(C132,#REF!,2,0)) ->  | G132: =IF(ISERROR(VLOOKUP(C132,#REF!,4,0)),"",VLOOKUP(C132,#REF!,4,0)) ->  | I132: =IF(ISERROR(F132-H132),"",F132-H132) -> 0 | M132: =IF(ISERROR(VLOOKUP(L132,POA!$A$2:$C$25,3,0)),"",VLOOKUP(L132,POA!$A$2:$C$25,3,0)) ->  | O132: =IF(ISERROR(VLOOKUP(N132,POA!$A$2:$F$25,4,0)),"",VLOOKUP(N132,POA!$A$2:$F$25,4,0)) ->  | P132: =IF(ISERROR(VLOOKUP(L132,POA!$A$2:$C$25,2,0)),"",VLOOKUP(L132,POA!$A$2:$C$25,2,0)) ->  | R132: =IF(L132=0,"",IF(Q122>=$R$9,"HABIL","NO HABIL")) ->  | U132: =IF(ISERROR(VLOOKUP(N132,POA!$A$2:$F$25,5,0)),"",VLOOKUP(N132,POA!$A$2:$F$25,5,0)) ->  | Y132: =IF(ISERROR(F132/$Z$9),"",F132/$Z$9) -> 0 | Z132: MIPYME
B133: 12 | C133: UNION TEMPORALSANTA MONICA | D133: =IF(SUM(D134:D143)=0,"",SUM(D134:D143)) -> 1 | E133: =SUM(E134:E143) -> 4526425249 | F133: =SUM(F134:F143) -> 6030775390 | G133: =SUM(G134:G143) -> 267900929 | H133: =SUM(H134:H143) -> 1570888766 | I133: =+F133-H133 -> 4459886624 | J133: =SUM(J134:J143) -> 339059271 | K133: =SUM(K134:K143) -> 756200 | L133: 1 | M133: =IF(ISERROR(VLOOKUP(L133,POA!$A$2:$C$25,3,0)),"",VLOOKUP(L133,POA!$A$2:$C$25,3,0)) -> 3 | O133: =+SUM(O134:O143) -> 0 | P133: =IF(ISERROR(VLOOKUP(L133,POA!$A$2:$C$25,2,0)),"",VLOOKUP(L133,POA!$A$2:$C$25,2,0)) -> 4167150295 | Q133: =SUM(E133/G133) -> 16.89589232 | R133: =IF(Q133=0,"",IF(Q133>=$R$9,"HABIL","NO HABIL")) -> HABIL | S133: =SUM(H133/F133) -> 0.2604787385 | T133: =IF(S133=0,"",IF(S133<=$T$9,"HABIL","NO HABIL")) -> HABIL | U133: =+SUM(U134:U143) -> 0 | V133: =SUM(J133/K133) -> 448.3724821 | W133: =IF(V133=0,"",IF(V133>=$W$9,"HABIL","NO HABIL")) -> HABIL | X133: =IF(R133=0,"",IF(R133="NO HABIL","NO HABIL",IF(T133="NO HABIL","NO HABIL",IF(W133="NO HABIL","NO HABIL",IF(W133="NO HABIL","NO HABIL","HABIL"))))) -> HABIL | AA133: =SUM(J133/I133) -> 0.07602419065 | AB133: =IF(AA133=0,"",IF(AA133>=$AB$9,"HABIL","NO HABIL")) -> HABIL | AC133: =SUM(J133/F133) -> 0.05622150537 | AD133: =IF(AC133=0,"",IF(AC133>=$AD$9,"HABIL","NO HABIL")) -> HABIL | AE133: =IF(AB133=0,"",IF(AB133="NO HABIL","NO HABIL",IF(AD133="NO HABIL","NO HABIL",IF(AD133="NO HABIL","NO HABIL","HABIL")))) -> HABIL
B134: =IF(C134="","",B133+0.1) -> 12.1 | C134: EQUIPOS Y CONSTRUCCIONES VAREGO S.A.S. | D134: 0.3 | E134: 1817327762 | F134: 1918948790 | G134: 109193747 | H134: 585711904 | I134: =IF(ISERROR(F134-H134),"",F134-H134) -> 1333236886 | J134: 110089595 | K134: 133200 | M134: =IF(ISERROR(VLOOKUP(L134,POA!$A$2:$C$25,3,0)),"",VLOOKUP(L134,POA!$A$2:$C$25,3,0)) ->  | O134: =IF(ISERROR(VLOOKUP(N134,POA!$A$2:$F$25,4,0)),"",VLOOKUP(N134,POA!$A$2:$F$25,4,0)) ->  | P134: =IF(ISERROR(VLOOKUP(L134,POA!$A$2:$C$25,2,0)),"",VLOOKUP(L134,POA!$A$2:$C$25,2,0)) ->  | R134: =IF(Q134=0,"",IF(Q133>=$R$9,"HABIL","NO HABIL")) ->  | T134: =IF(S134=0,"",IF(S134<=$T$9,"HABIL","NO HABIL")) ->  | U134: =IF(ISERROR(VLOOKUP(N134,POA!$A$2:$F$25,5,0)),"",VLOOKUP(N134,POA!$A$2:$F$25,5,0)) ->  | W134: =IF(V134=0,"",IF(V134>=$W$9,"HABIL","NO HABIL")) ->  | Y134: =IF(ISERROR(F134/$Z$9),"",F134/$Z$9) -> 3386.181031 | Z134: =+IF(Y134<$Z$10,"MIPYME","NO CUMPLE") -> MIPYME | AB134: =IF(AA134=0,"",IF(AA134>=$AB$9,"HABIL","NO HABIL")) ->  | AD134: =IF(AC134=0,"",IF(AC134>=$AD$9,"HABIL","NO HABIL")) -> 
B135: 12.2 | C135: VAREGO S.A.S. | D135: 0.3 | E135: 870339760 | F135: 2095157830 | G135: 99005026 | H135: 897612073 | I135: 1197545757 | J135: 127669815 | K135: 418000 | M135: =IF(ISERROR(VLOOKUP(L135,POA!$A$2:$C$25,3,0)),"",VLOOKUP(L135,POA!$A$2:$C$25,3,0)) ->  | O135: =IF(ISERROR(VLOOKUP(N135,POA!$A$2:$F$25,4,0)),"",VLOOKUP(N135,POA!$A$2:$F$25,4,0)) ->  | P135: =IF(ISERROR(VLOOKUP(L135,POA!$A$2:$C$25,2,0)),"",VLOOKUP(L135,POA!$A$2:$C$25,2,0)) ->  | R135: =IF(Q135=0,"",IF(Q133>=$R$9,"HABIL","NO HABIL")) ->  | U135: =IF(ISERROR(VLOOKUP(N135,POA!$A$2:$F$25,5,0)),"",VLOOKUP(N135,POA!$A$2:$F$25,5,0)) ->  | Y135: =IF(ISERROR(F135/$Z$9),"",F135/$Z$9) -> 3697.119869 | Z135: =+IF(Y135<$Z$10,"MIPYME","NO CUMPLE") -> MIPYME
B136: 12.3 | C136: INCIVIAS LTDA. | D136: 0.4 | E136: 1838757727 | F136: 2016668770 | G136: 59702156 | H136: 87564789 | I136: 1929103981 | J136: 101299861 | K136: 205000 | M136: =IF(ISERROR(VLOOKUP(L136,POA!$A$2:$C$25,3,0)),"",VLOOKUP(L136,POA!$A$2:$C$25,3,0)) ->  | O136: =IF(ISERROR(VLOOKUP(N136,POA!$A$2:$F$25,4,0)),"",VLOOKUP(N136,POA!$A$2:$F$25,4,0)) ->  | P136: =IF(ISERROR(VLOOKUP(L136,POA!$A$2:$C$25,2,0)),"",VLOOKUP(L136,POA!$A$2:$C$25,2,0)) ->  | R136: =IF(Q136=0,"",IF(Q133>=$R$9,"HABIL","NO HABIL")) ->  | U136: =IF(ISERROR(VLOOKUP(N136,POA!$A$2:$F$25,5,0)),"",VLOOKUP(N136,POA!$A$2:$F$25,5,0)) ->  | Y136: 3558.617911 | Z136: MIPYME
E137: =IF(ISERROR(VLOOKUP(C137,#REF!,2,0)),"",VLOOKUP(C137,#REF!,2,0)) ->  | G137: =IF(ISERROR(VLOOKUP(C137,#REF!,4,0)),"",VLOOKUP(C137,#REF!,4,0)) ->  | I137: 0 | M137: =IF(ISERROR(VLOOKUP(L137,POA!$A$2:$C$25,3,0)),"",VLOOKUP(L137,POA!$A$2:$C$25,3,0)) ->  | O137: =IF(ISERROR(VLOOKUP(N137,POA!$A$2:$F$25,4,0)),"",VLOOKUP(N137,POA!$A$2:$F$25,4,0)) ->  | P137: =IF(ISERROR(VLOOKUP(L137,POA!$A$2:$C$25,2,0)),"",VLOOKUP(L137,POA!$A$2:$C$25,2,0)) ->  | R137: =IF(L137=0,"",IF(Q133>=$R$9,"HABIL","NO HABIL")) ->  | U137: =IF(ISERROR(VLOOKUP(N137,POA!$A$2:$F$25,5,0)),"",VLOOKUP(N137,POA!$A$2:$F$25,5,0)) ->  | Y137: 0 | Z137: MIPYME
E138: =IF(ISERROR(VLOOKUP(C138,#REF!,2,0)),"",VLOOKUP(C138,#REF!,2,0)) ->  | G138: =IF(ISERROR(VLOOKUP(C138,#REF!,4,0)),"",VLOOKUP(C138,#REF!,4,0)) ->  | I138: 0 | M138: =IF(ISERROR(VLOOKUP(L138,POA!$A$2:$C$25,3,0)),"",VLOOKUP(L138,POA!$A$2:$C$25,3,0)) ->  | O138: =IF(ISERROR(VLOOKUP(N138,POA!$A$2:$F$25,4,0)),"",VLOOKUP(N138,POA!$A$2:$F$25,4,0)) ->  | P138: =IF(ISERROR(VLOOKUP(L138,POA!$A$2:$C$25,2,0)),"",VLOOKUP(L138,POA!$A$2:$C$25,2,0)) ->  | R138: =IF(L138=0,"",IF(Q133>=$R$9,"HABIL","NO HABIL")) ->  | U138: =IF(ISERROR(VLOOKUP(N138,POA!$A$2:$F$25,5,0)),"",VLOOKUP(N138,POA!$A$2:$F$25,5,0)) ->  | Y138: 0 | Z138: MIPYME
E139: =IF(ISERROR(VLOOKUP(C139,#REF!,2,0)),"",VLOOKUP(C139,#REF!,2,0)) ->  | G139: =IF(ISERROR(VLOOKUP(C139,#REF!,4,0)),"",VLOOKUP(C139,#REF!,4,0)) ->  | I139: 0 | M139: =IF(ISERROR(VLOOKUP(L139,POA!$A$2:$C$25,3,0)),"",VLOOKUP(L139,POA!$A$2:$C$25,3,0)) ->  | O139: =IF(ISERROR(VLOOKUP(N139,POA!$A$2:$F$25,4,0)),"",VLOOKUP(N139,POA!$A$2:$F$25,4,0)) ->  | P139: =IF(ISERROR(VLOOKUP(L139,POA!$A$2:$C$25,2,0)),"",VLOOKUP(L139,POA!$A$2:$C$25,2,0)) ->  | R139: =IF(L139=0,"",IF(Q133>=$R$9,"HABIL","NO HABIL")) ->  | U139: =IF(ISERROR(VLOOKUP(N139,POA!$A$2:$F$25,5,0)),"",VLOOKUP(N139,POA!$A$2:$F$25,5,0)) ->  | Y139: 0 | Z139: MIPYME
B140: =IF(C140="","",B139+0.1) ->  | E140: =IF(ISERROR(VLOOKUP(C140,#REF!,2,0)),"",VLOOKUP(C140,#REF!,2,0)) ->  | G140: =IF(ISERROR(VLOOKUP(C140,#REF!,4,0)),"",VLOOKUP(C140,#REF!,4,0)) ->  | I140: =IF(ISERROR(F140-H140),"",F140-H140) -> 0 | M140: =IF(ISERROR(VLOOKUP(L140,POA!$A$2:$C$25,3,0)),"",VLOOKUP(L140,POA!$A$2:$C$25,3,0)) ->  | O140: =IF(ISERROR(VLOOKUP(N140,POA!$A$2:$F$25,4,0)),"",VLOOKUP(N140,POA!$A$2:$F$25,4,0)) ->  | P140: =IF(ISERROR(VLOOKUP(L140,POA!$A$2:$C$25,2,0)),"",VLOOKUP(L140,POA!$A$2:$C$25,2,0)) ->  | R140: =IF(L140=0,"",IF(Q133>=$R$9,"HABIL","NO HABIL")) ->  | U140: =IF(ISERROR(VLOOKUP(N140,POA!$A$2:$F$25,5,0)),"",VLOOKUP(N140,POA!$A$2:$F$25,5,0)) ->  | Y140: 0 | Z140: MIPYME
B141: =IF(C141="","",B140+0.1) ->  | E141: =IF(ISERROR(VLOOKUP(C141,#REF!,2,0)),"",VLOOKUP(C141,#REF!,2,0)) ->  | G141: =IF(ISERROR(VLOOKUP(C141,#REF!,4,0)),"",VLOOKUP(C141,#REF!,4,0)) ->  | I141: =IF(ISERROR(F141-H141),"",F141-H141) -> 0 | M141: =IF(ISERROR(VLOOKUP(L141,POA!$A$2:$C$25,3,0)),"",VLOOKUP(L141,POA!$A$2:$C$25,3,0)) ->  | O141: =IF(ISERROR(VLOOKUP(N141,POA!$A$2:$F$25,4,0)),"",VLOOKUP(N141,POA!$A$2:$F$25,4,0)) ->  | P141: =IF(ISERROR(VLOOKUP(L141,POA!$A$2:$C$25,2,0)),"",VLOOKUP(L141,POA!$A$2:$C$25,2,0)) ->  | R141: =IF(L141=0,"",IF(Q133>=$R$9,"HABIL","NO HABIL")) ->  | U141: =IF(ISERROR(VLOOKUP(N141,POA!$A$2:$F$25,5,0)),"",VLOOKUP(N141,POA!$A$2:$F$25,5,0)) ->  | Y141: 0 | Z141: MIPYME
B142: =IF(C142="","",B141+0.1) ->  | E142: =IF(ISERROR(VLOOKUP(C142,#REF!,2,0)),"",VLOOKUP(C142,#REF!,2,0)) ->  | G142: =IF(ISERROR(VLOOKUP(C142,#REF!,4,0)),"",VLOOKUP(C142,#REF!,4,0)) ->  | I142: =IF(ISERROR(F142-H142),"",F142-H142) -> 0 | M142: =IF(ISERROR(VLOOKUP(L142,POA!$A$2:$C$25,3,0)),"",VLOOKUP(L142,POA!$A$2:$C$25,3,0)) ->  | O142: =IF(ISERROR(VLOOKUP(N142,POA!$A$2:$F$25,4,0)),"",VLOOKUP(N142,POA!$A$2:$F$25,4,0)) ->  | P142: =IF(ISERROR(VLOOKUP(L142,POA!$A$2:$C$25,2,0)),"",VLOOKUP(L142,POA!$A$2:$C$25,2,0)) ->  | R142: =IF(L142=0,"",IF(Q133>=$R$9,"HABIL","NO HABIL")) ->  | U142: =IF(ISERROR(VLOOKUP(N142,POA!$A$2:$F$25,5,0)),"",VLOOKUP(N142,POA!$A$2:$F$25,5,0)) ->  | Y142: 0 | Z142: MIPYME
B143: =IF(C143="","",B142+0.1) ->  | E143: =IF(ISERROR(VLOOKUP(C143,#REF!,2,0)),"",VLOOKUP(C143,#REF!,2,0)) ->  | G143: =IF(ISERROR(VLOOKUP(C143,#REF!,4,0)),"",VLOOKUP(C143,#REF!,4,0)) ->  | I143: =IF(ISERROR(F143-H143),"",F143-H143) -> 0 | M143: =IF(ISERROR(VLOOKUP(L143,POA!$A$2:$C$25,3,0)),"",VLOOKUP(L143,POA!$A$2:$C$25,3,0)) ->  | O143: =IF(ISERROR(VLOOKUP(N143,POA!$A$2:$F$25,4,0)),"",VLOOKUP(N143,POA!$A$2:$F$25,4,0)) ->  | P143: =IF(ISERROR(VLOOKUP(L143,POA!$A$2:$C$25,2,0)),"",VLOOKUP(L143,POA!$A$2:$C$25,2,0)) ->  | R143: =IF(L143=0,"",IF(Q133>=$R$9,"HABIL","NO HABIL")) ->  | U143: =IF(ISERROR(VLOOKUP(N143,POA!$A$2:$F$25,5,0)),"",VLOOKUP(N143,POA!$A$2:$F$25,5,0)) ->  | Y143: =IF(ISERROR(F143/$Z$9),"",F143/$Z$9) -> 0 | Z143: MIPYME
B144: 13 | C144: CONSORCIO HD | D144: =IF(SUM(D145:D154)=0,"",SUM(D145:D154)) -> 1 | E144: =SUM(E145:E154) -> 3184170600 | F144: =SUM(F145:F154) -> 3543508766 | G144: =SUM(G145:G154) -> 557057400 | H144: =SUM(H145:H154) -> 764888897 | I144: =+F144-H144 -> 2778619869 | J144: =SUM(J145:J154) -> 204187195 | K144: =SUM(K145:K154) -> 1638691 | L144: 1 | M144: =IF(ISERROR(VLOOKUP(L144,POA!$A$2:$C$25,3,0)),"",VLOOKUP(L144,POA!$A$2:$C$25,3,0)) -> 3 | O144: =+SUM(O145:O154) -> 0 | P144: =IF(ISERROR(VLOOKUP(L144,POA!$A$2:$C$25,2,0)),"",VLOOKUP(L144,POA!$A$2:$C$25,2,0)) -> 4167150295 | Q144: =SUM(E144/G144) -> 5.716054755 | R144: =IF(Q144=0,"",IF(Q144>=$R$9,"HABIL","NO HABIL")) -> HABIL | S144: =SUM(H144/F144) -> 0.2158563581 | T144: =IF(S144=0,"",IF(S144<=$T$9,"HABIL","NO HABIL")) -> HABIL | U144: =+SUM(U145:U154) -> 0 | V144: =SUM(J144/K144) -> 124.6038423 | W144: =IF(V144=0,"",IF(V144>=$W$9,"HABIL","NO HABIL")) -> HABIL | X144: =IF(R144=0,"",IF(R144="NO HABIL","NO HABIL",IF(T144="NO HABIL","NO HABIL",IF(W144="NO HABIL","NO HABIL",IF(W144="NO HABIL","NO HABIL","HABIL"))))) -> HABIL | AA144: =SUM(J144/I144) -> 0.07348511298 | AB144: =IF(AA144=0,"",IF(AA144>=$AB$9,"HABIL","NO HABIL")) -> HABIL | AC144: =SUM(J144/F144) -> 0.05762288412 | AD144: =IF(AC144=0,"",IF(AC144>=$AD$9,"HABIL","NO HABIL")) -> HABIL | AE144: =IF(AB144=0,"",IF(AB144="NO HABIL","NO HABIL",IF(AD144="NO HABIL","NO HABIL",IF(AD144="NO HABIL","NO HABIL","HABIL")))) -> HABIL
B145: =IF(C145="","",B144+0.1) -> 13.1 | C145: OLMEDA S.A.S | D145: 0.33 | E145: =IF(ISERROR(VLOOKUP(C145,[1]TD!$4:$65536,2,0)),"",VLOOKUP(C145,[1]TD!$4:$65536,2,0)) -> 2438502512 | F145: =IF(ISERROR(VLOOKUP(C145,[1]TD!$4:$65536,3,0)),"",VLOOKUP(C145,[1]TD!$4:$65536,3,0)) -> 2458002512 | G145: =IF(ISERROR(VLOOKUP(C145,[1]TD!$4:$65536,4,0)),"",VLOOKUP(C145,[1]TD!$4:$65536,4,0)) -> 410044353 | H145: =IF(ISERROR(VLOOKUP(C145,[1]TD!$4:$65536,5,0)),"",VLOOKUP(C145,[1]TD!$4:$65536,5,0)) -> 520885643 | I145: =IF(ISERROR(F145-H145),"",F145-H145) -> 1937116869 | J145: =IF(ISERROR(VLOOKUP(C145,[1]TD!$4:$65536,6,0)),"",VLOOKUP(C145,[1]TD!$4:$65536,6,0)) -> 115402195 | K145: =IF(ISERROR(VLOOKUP(C145,[1]TD!$4:$65536,7,0)),"",VLOOKUP(C145,[1]TD!$4:$65536,7,0)) -> 14691 | M145: =IF(ISERROR(VLOOKUP(L145,POA!$A$2:$C$25,3,0)),"",VLOOKUP(L145,POA!$A$2:$C$25,3,0)) ->  | O145: =IF(ISERROR(VLOOKUP(N145,POA!$A$2:$F$25,4,0)),"",VLOOKUP(N145,POA!$A$2:$F$25,4,0)) ->  | P145: =IF(ISERROR(VLOOKUP(L145,POA!$A$2:$C$25,2,0)),"",VLOOKUP(L145,POA!$A$2:$C$25,2,0)) ->  | R145: =IF(Q145=0,"",IF(Q144>=$R$9,"HABIL","NO HABIL")) ->  | T145: =IF(S145=0,"",IF(S145<=$T$9,"HABIL","NO HABIL")) ->  | U145: =IF(ISERROR(VLOOKUP(N145,POA!$A$2:$F$25,5,0)),"",VLOOKUP(N145,POA!$A$2:$F$25,5,0)) ->  | W145: =IF(V145=0,"",IF(V145>=$W$9,"HABIL","NO HABIL")) ->  | Y145: =IF(ISERROR(F145/$Z$9),"",F145/$Z$9) -> 4337.396351 | Z145: =+IF(Y145<$Z$10,"MIPYME","NO CUMPLE") -> MIPYME | AB145: =IF(AA145=0,"",IF(AA145>=$AB$9,"HABIL","NO HABIL")) ->  | AD145: =IF(AC145=0,"",IF(AC145>=$AD$9,"HABIL","NO HABIL")) -> 
B146: 13.2 | C146: HD CONSTRUCCIONES S.A.S. | D146: 0.33 | E146: 50000000 | F146: 50000000 | G146: 0 | H146: 0 | I146: 50000000 | J146: 0 | K146: 0 | M146: =IF(ISERROR(VLOOKUP(L146,POA!$A$2:$C$25,3,0)),"",VLOOKUP(L146,POA!$A$2:$C$25,3,0)) ->  | O146: =IF(ISERROR(VLOOKUP(N146,POA!$A$2:$F$25,4,0)),"",VLOOKUP(N146,POA!$A$2:$F$25,4,0)) ->  | P146: =IF(ISERROR(VLOOKUP(L146,POA!$A$2:$C$25,2,0)),"",VLOOKUP(L146,POA!$A$2:$C$25,2,0)) ->  | R146: =IF(Q146=0,"",IF(Q144>=$R$9,"HABIL","NO HABIL")) ->  | U146: =IF(ISERROR(VLOOKUP(N146,POA!$A$2:$F$25,5,0)),"",VLOOKUP(N146,POA!$A$2:$F$25,5,0)) ->  | Y146: =IF(ISERROR(F146/$Z$9),"",F146/$Z$9) -> 88.23010411 | Z146: =+IF(Y146<$Z$10,"MIPYME","NO CUMPLE") -> MIPYME
B147: 13.3 | C147: HECTOR GIRALDO JARAMILLO | D147: 0.34 | E147: 695668088 | F147: 1035506254 | G147: 147013047 | H147: 244003254 | I147: =IF(ISERROR(F147-H147),"",F147-H147) -> 791503000 | J147: 88785000 | K147: 1624000 | M147: =IF(ISERROR(VLOOKUP(L147,POA!$A$2:$C$25,3,0)),"",VLOOKUP(L147,POA!$A$2:$C$25,3,0)) ->  | O147: =IF(ISERROR(VLOOKUP(N147,POA!$A$2:$F$25,4,0)),"",VLOOKUP(N147,POA!$A$2:$F$25,4,0)) ->  | P147: =IF(ISERROR(VLOOKUP(L147,POA!$A$2:$C$25,2,0)),"",VLOOKUP(L147,POA!$A$2:$C$25,2,0)) ->  | R147: =IF(Q147=0,"",IF(Q144>=$R$9,"HABIL","NO HABIL")) ->  | U147: =IF(ISERROR(VLOOKUP(N147,POA!$A$2:$F$25,5,0)),"",VLOOKUP(N147,POA!$A$2:$F$25,5,0)) ->  | Y147: 1827.256492 | Z147: MIPYME
E148: =IF(ISERROR(VLOOKUP(C148,#REF!,2,0)),"",VLOOKUP(C148,#REF!,2,0)) ->  | G148: =IF(ISERROR(VLOOKUP(C148,#REF!,4,0)),"",VLOOKUP(C148,#REF!,4,0)) ->  | I148: 0 | M148: =IF(ISERROR(VLOOKUP(L148,POA!$A$2:$C$25,3,0)),"",VLOOKUP(L148,POA!$A$2:$C$25,3,0)) ->  | O148: =IF(ISERROR(VLOOKUP(N148,POA!$A$2:$F$25,4,0)),"",VLOOKUP(N148,POA!$A$2:$F$25,4,0)) ->  | P148: =IF(ISERROR(VLOOKUP(L148,POA!$A$2:$C$25,2,0)),"",VLOOKUP(L148,POA!$A$2:$C$25,2,0)) ->  | R148: =IF(L148=0,"",IF(Q144>=$R$9,"HABIL","NO HABIL")) ->  | U148: =IF(ISERROR(VLOOKUP(N148,POA!$A$2:$F$25,5,0)),"",VLOOKUP(N148,POA!$A$2:$F$25,5,0)) ->  | Y148: 0 | Z148: MIPYME
E149: =IF(ISERROR(VLOOKUP(C149,#REF!,2,0)),"",VLOOKUP(C149,#REF!,2,0)) ->  | G149: =IF(ISERROR(VLOOKUP(C149,#REF!,4,0)),"",VLOOKUP(C149,#REF!,4,0)) ->  | I149: 0 | M149: =IF(ISERROR(VLOOKUP(L149,POA!$A$2:$C$25,3,0)),"",VLOOKUP(L149,POA!$A$2:$C$25,3,0)) ->  | O149: =IF(ISERROR(VLOOKUP(N149,POA!$A$2:$F$25,4,0)),"",VLOOKUP(N149,POA!$A$2:$F$25,4,0)) ->  | P149: =IF(ISERROR(VLOOKUP(L149,POA!$A$2:$C$25,2,0)),"",VLOOKUP(L149,POA!$A$2:$C$25,2,0)) ->  | R149: =IF(L149=0,"",IF(Q144>=$R$9,"HABIL","NO HABIL")) ->  | U149: =IF(ISERROR(VLOOKUP(N149,POA!$A$2:$F$25,5,0)),"",VLOOKUP(N149,POA!$A$2:$F$25,5,0)) ->  | Y149: 0 | Z149: MIPYME
E150: =IF(ISERROR(VLOOKUP(C150,#REF!,2,0)),"",VLOOKUP(C150,#REF!,2,0)) ->  | G150: =IF(ISERROR(VLOOKUP(C150,#REF!,4,0)),"",VLOOKUP(C150,#REF!,4,0)) ->  | I150: 0 | M150: =IF(ISERROR(VLOOKUP(L150,POA!$A$2:$C$25,3,0)),"",VLOOKUP(L150,POA!$A$2:$C$25,3,0)) ->  | O150: =IF(ISERROR(VLOOKUP(N150,POA!$A$2:$F$25,4,0)),"",VLOOKUP(N150,POA!$A$2:$F$25,4,0)) ->  | P150: =IF(ISERROR(VLOOKUP(L150,POA!$A$2:$C$25,2,0)),"",VLOOKUP(L150,POA!$A$2:$C$25,2,0)) ->  | R150: =IF(L150=0,"",IF(Q144>=$R$9,"HABIL","NO HABIL")) ->  | U150: =IF(ISERROR(VLOOKUP(N150,POA!$A$2:$F$25,5,0)),"",VLOOKUP(N150,POA!$A$2:$F$25,5,0)) ->  | Y150: 0 | Z150: MIPYME
B151: =IF(C151="","",B150+0.1) ->  | E151: =IF(ISERROR(VLOOKUP(C151,#REF!,2,0)),"",VLOOKUP(C151,#REF!,2,0)) ->  | G151: =IF(ISERROR(VLOOKUP(C151,#REF!,4,0)),"",VLOOKUP(C151,#REF!,4,0)) ->  | I151: =IF(ISERROR(F151-H151),"",F151-H151) -> 0 | M151: =IF(ISERROR(VLOOKUP(L151,POA!$A$2:$C$25,3,0)),"",VLOOKUP(L151,POA!$A$2:$C$25,3,0)) ->  | O151: =IF(ISERROR(VLOOKUP(N151,POA!$A$2:$F$25,4,0)),"",VLOOKUP(N151,POA!$A$2:$F$25,4,0)) ->  | P151: =IF(ISERROR(VLOOKUP(L151,POA!$A$2:$C$25,2,0)),"",VLOOKUP(L151,POA!$A$2:$C$25,2,0)) ->  | R151: =IF(L151=0,"",IF(Q144>=$R$9,"HABIL","NO HABIL")) ->  | U151: =IF(ISERROR(VLOOKUP(N151,POA!$A$2:$F$25,5,0)),"",VLOOKUP(N151,POA!$A$2:$F$25,5,0)) ->  | Y151: 0 | Z151: MIPYME
B152: =IF(C152="","",B151+0.1) ->  | E152: =IF(ISERROR(VLOOKUP(C152,#REF!,2,0)),"",VLOOKUP(C152,#REF!,2,0)) ->  | G152: =IF(ISERROR(VLOOKUP(C152,#REF!,4,0)),"",VLOOKUP(C152,#REF!,4,0)) ->  | I152: =IF(ISERROR(F152-H152),"",F152-H152) -> 0 | M152: =IF(ISERROR(VLOOKUP(L152,POA!$A$2:$C$25,3,0)),"",VLOOKUP(L152,POA!$A$2:$C$25,3,0)) ->  | O152: =IF(ISERROR(VLOOKUP(N152,POA!$A$2:$F$25,4,0)),"",VLOOKUP(N152,POA!$A$2:$F$25,4,0)) ->  | P152: =IF(ISERROR(VLOOKUP(L152,POA!$A$2:$C$25,2,0)),"",VLOOKUP(L152,POA!$A$2:$C$25,2,0)) ->  | R152: =IF(L152=0,"",IF(Q144>=$R$9,"HABIL","NO HABIL")) ->  | U152: =IF(ISERROR(VLOOKUP(N152,POA!$A$2:$F$25,5,0)),"",VLOOKUP(N152,POA!$A$2:$F$25,5,0)) ->  | Y152: 0 | Z152: MIPYME
B153: =IF(C153="","",B152+0.1) ->  | E153: =IF(ISERROR(VLOOKUP(C153,#REF!,2,0)),"",VLOOKUP(C153,#REF!,2,0)) ->  | G153: =IF(ISERROR(VLOOKUP(C153,#REF!,4,0)),"",VLOOKUP(C153,#REF!,4,0)) ->  | I153: =IF(ISERROR(F153-H153),"",F153-H153) -> 0 | M153: =IF(ISERROR(VLOOKUP(L153,POA!$A$2:$C$25,3,0)),"",VLOOKUP(L153,POA!$A$2:$C$25,3,0)) ->  | O153: =IF(ISERROR(VLOOKUP(N153,POA!$A$2:$F$25,4,0)),"",VLOOKUP(N153,POA!$A$2:$F$25,4,0)) ->  | P153: =IF(ISERROR(VLOOKUP(L153,POA!$A$2:$C$25,2,0)),"",VLOOKUP(L153,POA!$A$2:$C$25,2,0)) ->  | R153: =IF(L153=0,"",IF(Q144>=$R$9,"HABIL","NO HABIL")) ->  | U153: =IF(ISERROR(VLOOKUP(N153,POA!$A$2:$F$25,5,0)),"",VLOOKUP(N153,POA!$A$2:$F$25,5,0)) ->  | Y153: 0 | Z153: MIPYME
B154: =IF(C154="","",B153+0.1) ->  | E154: =IF(ISERROR(VLOOKUP(C154,#REF!,2,0)),"",VLOOKUP(C154,#REF!,2,0)) ->  | G154: =IF(ISERROR(VLOOKUP(C154,#REF!,4,0)),"",VLOOKUP(C154,#REF!,4,0)) ->  | I154: =IF(ISERROR(F154-H154),"",F154-H154) -> 0 | M154: =IF(ISERROR(VLOOKUP(L154,POA!$A$2:$C$25,3,0)),"",VLOOKUP(L154,POA!$A$2:$C$25,3,0)) ->  | O154: =IF(ISERROR(VLOOKUP(N154,POA!$A$2:$F$25,4,0)),"",VLOOKUP(N154,POA!$A$2:$F$25,4,0)) ->  | P154: =IF(ISERROR(VLOOKUP(L154,POA!$A$2:$C$25,2,0)),"",VLOOKUP(L154,POA!$A$2:$C$25,2,0)) ->  | R154: =IF(L154=0,"",IF(Q144>=$R$9,"HABIL","NO HABIL")) ->  | U154: =IF(ISERROR(VLOOKUP(N154,POA!$A$2:$F$25,5,0)),"",VLOOKUP(N154,POA!$A$2:$F$25,5,0)) ->  | Y154: =IF(ISERROR(F154/$Z$9),"",F154/$Z$9) -> 0 | Z154: MIPYME
B155: 14 | C155: CONSORCIO CONXIE 034-14 | D155: =IF(SUM(D156:D165)=0,"",SUM(D156:D165)) -> 1 | E155: =SUM(E156:E165) -> 10849538445 | F155: =SUM(F156:F165) -> 22978378347 | G155: =SUM(G156:G165) -> 1984519030 | H155: =SUM(H156:H165) -> 5643212780 | I155: =+F155-H155 -> 17335165567 | J155: =SUM(J156:J165) -> 1001678291 | K155: =SUM(K156:K165) -> 182674495 | L155: 1 | M155: =IF(ISERROR(VLOOKUP(L155,POA!$A$2:$C$25,3,0)),"",VLOOKUP(L155,POA!$A$2:$C$25,3,0)) -> 3 | O155: =+SUM(O156:O165) -> 0 | P155: =IF(ISERROR(VLOOKUP(L155,POA!$A$2:$C$25,2,0)),"",VLOOKUP(L155,POA!$A$2:$C$25,2,0)) -> 4167150295 | Q155: =SUM(E155/G155) -> 5.467087128 | R155: =IF(Q155=0,"",IF(Q155>=$R$9,"HABIL","NO HABIL")) -> HABIL | S155: =SUM(H155/F155) -> 0.2455879477 | T155: =IF(S155=0,"",IF(S155<=$T$9,"HABIL","NO HABIL")) -> HABIL | U155: =+SUM(U156:U165) -> 0 | V155: =SUM(J155/K155) -> 5.483405283 | W155: =IF(V155=0,"",IF(V155>=$W$9,"HABIL","NO HABIL")) -> HABIL | X155: =IF(R155=0,"",IF(R155="NO HABIL","NO HABIL",IF(T155="NO HABIL","NO HABIL",IF(W155="NO HABIL","NO HABIL",IF(W155="NO HABIL","NO HABIL","HABIL"))))) -> HABIL | AA155: =SUM(J155/I155) -> 0.05778302417 | AB155: =IF(AA155=0,"",IF(AA155>=$AB$9,"HABIL","NO HABIL")) -> HABIL | AC155: =SUM(J155/F155) -> 0.04359220985 | AD155: =IF(AC155=0,"",IF(AC155>=$AD$9,"HABIL","NO HABIL")) -> HABIL | AE155: =IF(AB155=0,"",IF(AB155="NO HABIL","NO HABIL",IF(AD155="NO HABIL","NO HABIL",IF(AD155="NO HABIL","NO HABIL","HABIL")))) -> HABIL
B156: =IF(C156="","",B155+0.1) -> 14.1 | C156: CONCREARMADO LTDA. | D156: 0.5 | E156: 3252320445 | F156: 10059862347 | G156: 962999030 | H156: 4383239780 | I156: =IF(ISERROR(F156-H156),"",F156-H156) -> 5676622567 | J156: 789091291 | K156: 154840495 | M156: =IF(ISERROR(VLOOKUP(L156,POA!$A$2:$C$25,3,0)),"",VLOOKUP(L156,POA!$A$2:$C$25,3,0)) ->  | O156: =IF(ISERROR(VLOOKUP(N156,POA!$A$2:$F$25,4,0)),"",VLOOKUP(N156,POA!$A$2:$F$25,4,0)) ->  | P156: =IF(ISERROR(VLOOKUP(L156,POA!$A$2:$C$25,2,0)),"",VLOOKUP(L156,POA!$A$2:$C$25,2,0)) ->  | R156: =IF(Q156=0,"",IF(Q155>=$R$9,"HABIL","NO HABIL")) ->  | T156: =IF(S156=0,"",IF(S156<=$T$9,"HABIL","NO HABIL")) ->  | U156: =IF(ISERROR(VLOOKUP(N156,POA!$A$2:$F$25,5,0)),"",VLOOKUP(N156,POA!$A$2:$F$25,5,0)) ->  | W156: =IF(V156=0,"",IF(V156>=$W$9,"HABIL","NO HABIL")) ->  | Y156: =IF(ISERROR(F156/$Z$9),"",F156/$Z$9) -> 17751.65404 | Z156: =+IF(Y156<$Z$10,"MIPYME","NO CUMPLE") -> MIPYME | AB156: =IF(AA156=0,"",IF(AA156>=$AB$9,"HABIL","NO HABIL")) ->  | AD156: =IF(AC156=0,"",IF(AC156>=$AD$9,"HABIL","NO HABIL")) -> 
B157: 14.2 | C157: JAIME VARGAS GALINDO | D157: 0.5 | E157: 7597218000 | F157: 12918516000 | G157: 1021520000 | H157: 1259973000 | I157: 11658543000 | J157: 212587000 | K157: 27834000 | M157: =IF(ISERROR(VLOOKUP(L157,POA!$A$2:$C$25,3,0)),"",VLOOKUP(L157,POA!$A$2:$C$25,3,0)) ->  | O157: =IF(ISERROR(VLOOKUP(N157,POA!$A$2:$F$25,4,0)),"",VLOOKUP(N157,POA!$A$2:$F$25,4,0)) ->  | P157: =IF(ISERROR(VLOOKUP(L157,POA!$A$2:$C$25,2,0)),"",VLOOKUP(L157,POA!$A$2:$C$25,2,0)) ->  | R157: =IF(Q157=0,"",IF(Q155>=$R$9,"HABIL","NO HABIL")) ->  | U157: =IF(ISERROR(VLOOKUP(N157,POA!$A$2:$F$25,5,0)),"",VLOOKUP(N157,POA!$A$2:$F$25,5,0)) ->  | Y157: =IF(ISERROR(F157/$Z$9),"",F157/$Z$9) -> 22796.04023 | Z157: =+IF(Y157<$Z$10,"MIPYME","NO CUMPLE") -> MIPYME
I158: 0 | M158: =IF(ISERROR(VLOOKUP(L158,POA!$A$2:$C$25,3,0)),"",VLOOKUP(L158,POA!$A$2:$C$25,3,0)) ->  | O158: =IF(ISERROR(VLOOKUP(N158,POA!$A$2:$F$25,4,0)),"",VLOOKUP(N158,POA!$A$2:$F$25,4,0)) ->  | P158: =IF(ISERROR(VLOOKUP(L158,POA!$A$2:$C$25,2,0)),"",VLOOKUP(L158,POA!$A$2:$C$25,2,0)) ->  | R158: =IF(Q158=0,"",IF(Q155>=$R$9,"HABIL","NO HABIL")) ->  | U158: =IF(ISERROR(VLOOKUP(N158,POA!$A$2:$F$25,5,0)),"",VLOOKUP(N158,POA!$A$2:$F$25,5,0)) ->  | Y158: 0 | Z158: MIPYME
E159: =IF(ISERROR(VLOOKUP(C159,#REF!,2,0)),"",VLOOKUP(C159,#REF!,2,0)) ->  | G159: =IF(ISERROR(VLOOKUP(C159,#REF!,4,0)),"",VLOOKUP(C159,#REF!,4,0)) ->  | I159: 0 | M159: =IF(ISERROR(VLOOKUP(L159,POA!$A$2:$C$25,3,0)),"",VLOOKUP(L159,POA!$A$2:$C$25,3,0)) ->  | O159: =IF(ISERROR(VLOOKUP(N159,POA!$A$2:$F$25,4,0)),"",VLOOKUP(N159,POA!$A$2:$F$25,4,0)) ->  | P159: =IF(ISERROR(VLOOKUP(L159,POA!$A$2:$C$25,2,0)),"",VLOOKUP(L159,POA!$A$2:$C$25,2,0)) ->  | R159: =IF(L159=0,"",IF(Q155>=$R$9,"HABIL","NO HABIL")) ->  | U159: =IF(ISERROR(VLOOKUP(N159,POA!$A$2:$F$25,5,0)),"",VLOOKUP(N159,POA!$A$2:$F$25,5,0)) ->  | Y159: 0 | Z159: MIPYME
E160: =IF(ISERROR(VLOOKUP(C160,#REF!,2,0)),"",VLOOKUP(C160,#REF!,2,0)) ->  | G160: =IF(ISERROR(VLOOKUP(C160,#REF!,4,0)),"",VLOOKUP(C160,#REF!,4,0)) ->  | I160: 0 | M160: =IF(ISERROR(VLOOKUP(L160,POA!$A$2:$C$25,3,0)),"",VLOOKUP(L160,POA!$A$2:$C$25,3,0)) ->  | O160: =IF(ISERROR(VLOOKUP(N160,POA!$A$2:$F$25,4,0)),"",VLOOKUP(N160,POA!$A$2:$F$25,4,0)) ->  | P160: =IF(ISERROR(VLOOKUP(L160,POA!$A$2:$C$25,2,0)),"",VLOOKUP(L160,POA!$A$2:$C$25,2,0)) ->  | R160: =IF(L160=0,"",IF(Q155>=$R$9,"HABIL","NO HABIL")) ->  | U160: =IF(ISERROR(VLOOKUP(N160,POA!$A$2:$F$25,5,0)),"",VLOOKUP(N160,POA!$A$2:$F$25,5,0)) ->  | Y160: 0 | Z160: MIPYME
E161: =IF(ISERROR(VLOOKUP(C161,#REF!,2,0)),"",VLOOKUP(C161,#REF!,2,0)) ->  | G161: =IF(ISERROR(VLOOKUP(C161,#REF!,4,0)),"",VLOOKUP(C161,#REF!,4,0)) ->  | I161: 0 | M161: =IF(ISERROR(VLOOKUP(L161,POA!$A$2:$C$25,3,0)),"",VLOOKUP(L161,POA!$A$2:$C$25,3,0)) ->  | O161: =IF(ISERROR(VLOOKUP(N161,POA!$A$2:$F$25,4,0)),"",VLOOKUP(N161,POA!$A$2:$F$25,4,0)) ->  | P161: =IF(ISERROR(VLOOKUP(L161,POA!$A$2:$C$25,2,0)),"",VLOOKUP(L161,POA!$A$2:$C$25,2,0)) ->  | R161: =IF(L161=0,"",IF(Q155>=$R$9,"HABIL","NO HABIL")) ->  | U161: =IF(ISERROR(VLOOKUP(N161,POA!$A$2:$F$25,5,0)),"",VLOOKUP(N161,POA!$A$2:$F$25,5,0)) ->  | Y161: 0 | Z161: MIPYME
B162: =IF(C162="","",B161+0.1) ->  | E162: =IF(ISERROR(VLOOKUP(C162,#REF!,2,0)),"",VLOOKUP(C162,#REF!,2,0)) ->  | G162: =IF(ISERROR(VLOOKUP(C162,#REF!,4,0)),"",VLOOKUP(C162,#REF!,4,0)) ->  | I162: =IF(ISERROR(F162-H162),"",F162-H162) -> 0 | M162: =IF(ISERROR(VLOOKUP(L162,POA!$A$2:$C$25,3,0)),"",VLOOKUP(L162,POA!$A$2:$C$25,3,0)) ->  | O162: =IF(ISERROR(VLOOKUP(N162,POA!$A$2:$F$25,4,0)),"",VLOOKUP(N162,POA!$A$2:$F$25,4,0)) ->  | P162: =IF(ISERROR(VLOOKUP(L162,POA!$A$2:$C$25,2,0)),"",VLOOKUP(L162,POA!$A$2:$C$25,2,0)) ->  | R162: =IF(L162=0,"",IF(Q155>=$R$9,"HABIL","NO HABIL")) ->  | U162: =IF(ISERROR(VLOOKUP(N162,POA!$A$2:$F$25,5,0)),"",VLOOKUP(N162,POA!$A$2:$F$25,5,0)) ->  | Y162: 0 | Z162: MIPYME
B163: =IF(C163="","",B162+0.1) ->  | E163: =IF(ISERROR(VLOOKUP(C163,#REF!,2,0)),"",VLOOKUP(C163,#REF!,2,0)) ->  | G163: =IF(ISERROR(VLOOKUP(C163,#REF!,4,0)),"",VLOOKUP(C163,#REF!,4,0)) ->  | I163: =IF(ISERROR(F163-H163),"",F163-H163) -> 0 | M163: =IF(ISERROR(VLOOKUP(L163,POA!$A$2:$C$25,3,0)),"",VLOOKUP(L163,POA!$A$2:$C$25,3,0)) ->  | O163: =IF(ISERROR(VLOOKUP(N163,POA!$A$2:$F$25,4,0)),"",VLOOKUP(N163,POA!$A$2:$F$25,4,0)) ->  | P163: =IF(ISERROR(VLOOKUP(L163,POA!$A$2:$C$25,2,0)),"",VLOOKUP(L163,POA!$A$2:$C$25,2,0)) ->  | R163: =IF(L163=0,"",IF(Q155>=$R$9,"HABIL","NO HABIL")) ->  | U163: =IF(ISERROR(VLOOKUP(N163,POA!$A$2:$F$25,5,0)),"",VLOOKUP(N163,POA!$A$2:$F$25,5,0)) ->  | Y163: 0 | Z163: MIPYME
B164: =IF(C164="","",B163+0.1) ->  | E164: =IF(ISERROR(VLOOKUP(C164,#REF!,2,0)),"",VLOOKUP(C164,#REF!,2,0)) ->  | G164: =IF(ISERROR(VLOOKUP(C164,#REF!,4,0)),"",VLOOKUP(C164,#REF!,4,0)) ->  | I164: =IF(ISERROR(F164-H164),"",F164-H164) -> 0 | M164: =IF(ISERROR(VLOOKUP(L164,POA!$A$2:$C$25,3,0)),"",VLOOKUP(L164,POA!$A$2:$C$25,3,0)) ->  | O164: =IF(ISERROR(VLOOKUP(N164,POA!$A$2:$F$25,4,0)),"",VLOOKUP(N164,POA!$A$2:$F$25,4,0)) ->  | P164: =IF(ISERROR(VLOOKUP(L164,POA!$A$2:$C$25,2,0)),"",VLOOKUP(L164,POA!$A$2:$C$25,2,0)) ->  | R164: =IF(L164=0,"",IF(Q155>=$R$9,"HABIL","NO HABIL")) ->  | U164: =IF(ISERROR(VLOOKUP(N164,POA!$A$2:$F$25,5,0)),"",VLOOKUP(N164,POA!$A$2:$F$25,5,0)) ->  | Y164: 0 | Z164: MIPYME
B165: =IF(C165="","",B164+0.1) ->  | E165: =IF(ISERROR(VLOOKUP(C165,#REF!,2,0)),"",VLOOKUP(C165,#REF!,2,0)) ->  | G165: =IF(ISERROR(VLOOKUP(C165,#REF!,4,0)),"",VLOOKUP(C165,#REF!,4,0)) ->  | I165: =IF(ISERROR(F165-H165),"",F165-H165) -> 0 | M165: =IF(ISERROR(VLOOKUP(L165,POA!$A$2:$C$25,3,0)),"",VLOOKUP(L165,POA!$A$2:$C$25,3,0)) ->  | O165: =IF(ISERROR(VLOOKUP(N165,POA!$A$2:$F$25,4,0)),"",VLOOKUP(N165,POA!$A$2:$F$25,4,0)) ->  | P165: =IF(ISERROR(VLOOKUP(L165,POA!$A$2:$C$25,2,0)),"",VLOOKUP(L165,POA!$A$2:$C$25,2,0)) ->  | R165: =IF(L165=0,"",IF(Q155>=$R$9,"HABIL","NO HABIL")) ->  | U165: =IF(ISERROR(VLOOKUP(N165,POA!$A$2:$F$25,5,0)),"",VLOOKUP(N165,POA!$A$2:$F$25,5,0)) ->  | Y165: =IF(ISERROR(F165/$Z$9),"",F165/$Z$9) -> 0 | Z165: MIPYME
B166: 15 | C166: CONSORCIO BP LA CALERA | D166: =IF(SUM(D167:D176)=0,"",SUM(D167:D176)) -> 1 | E166: =SUM(E167:E176) -> 3825881396 | F166: =SUM(F167:F176) -> 6605053223 | G166: =SUM(G167:G176) -> 967704971 | H166: =SUM(H167:H176) -> 2533968144 | I166: =+F166-H166 -> 4071085079 | J166: =SUM(J167:J176) -> 850273236 | K166: =SUM(K167:K176) -> 141371539 | L166: 1 | M166: =IF(ISERROR(VLOOKUP(L166,POA!$A$2:$C$25,3,0)),"",VLOOKUP(L166,POA!$A$2:$C$25,3,0)) -> 3 | O166: =+SUM(O167:O176) -> 0 | P166: =IF(ISERROR(VLOOKUP(L166,POA!$A$2:$C$25,2,0)),"",VLOOKUP(L166,POA!$A$2:$C$25,2,0)) -> 4167150295 | Q166: =SUM(E166/G166) -> 3.953561789 | R166: =IF(Q166=0,"",IF(Q166>=$R$9,"HABIL","NO HABIL")) -> HABIL | S166: =SUM(H166/F166) -> 0.3836408366 | T166: =IF(S166=0,"",IF(S166<=$T$9,"HABIL","NO HABIL")) -> HABIL | U166: =+SUM(U167:U176) -> 0 | V166: =SUM(J166/K166) -> 6.01445837 | W166: =IF(V166=0,"",IF(V166>=$W$9,"HABIL","NO HABIL")) -> HABIL | X166: =IF(R166=0,"",IF(R166="NO HABIL","NO HABIL",IF(T166="NO HABIL","NO HABIL",IF(W166="NO HABIL","NO HABIL",IF(W166="NO HABIL","NO HABIL","HABIL"))))) -> HABIL | AA166: =SUM(J166/I166) -> 0.2088566609 | AB166: =IF(AA166=0,"",IF(AA166>=$AB$9,"HABIL","NO HABIL")) -> HABIL | AC166: =SUM(J166/F166) -> 0.1287307168 | AD166: =IF(AC166=0,"",IF(AC166>=$AD$9,"HABIL","NO HABIL")) -> HABIL | AE166: =IF(AB166=0,"",IF(AB166="NO HABIL","NO HABIL",IF(AD166="NO HABIL","NO HABIL",IF(AD166="NO HABIL","NO HABIL","HABIL")))) -> HABIL
B167: =IF(C167="","",B166+0.1) -> 15.1 | C167: PEDRO NAVARRO RODRIGUEZ | D167: 0.25 | E167: 309959284 | F167: 691063484 | G167: 31948000 | H167: 31948000 | I167: =IF(ISERROR(F167-H167),"",F167-H167) -> 659115484 | J167: 36064110 | K167: 0 | M167: =IF(ISERROR(VLOOKUP(L167,POA!$A$2:$C$25,3,0)),"",VLOOKUP(L167,POA!$A$2:$C$25,3,0)) ->  | O167: =IF(ISERROR(VLOOKUP(N167,POA!$A$2:$F$25,4,0)),"",VLOOKUP(N167,POA!$A$2:$F$25,4,0)) ->  | P167: =IF(ISERROR(VLOOKUP(L167,POA!$A$2:$C$25,2,0)),"",VLOOKUP(L167,POA!$A$2:$C$25,2,0)) ->  | R167: =IF(Q167=0,"",IF(Q166>=$R$9,"HABIL","NO HABIL")) ->  | T167: =IF(S167=0,"",IF(S167<=$T$9,"HABIL","NO HABIL")) ->  | U167: =IF(ISERROR(VLOOKUP(N167,POA!$A$2:$F$25,5,0)),"",VLOOKUP(N167,POA!$A$2:$F$25,5,0)) ->  | W167: =IF(V167=0,"",IF(V167>=$W$9,"HABIL","NO HABIL")) ->  | Y167: =IF(ISERROR(F167/$Z$9),"",F167/$Z$9) -> 1219.452063 | Z167: =+IF(Y167<$Z$10,"MIPYME","NO CUMPLE") -> MIPYME | AB167: =IF(AA167=0,"",IF(AA167>=$AB$9,"HABIL","NO HABIL")) ->  | AD167: =IF(AC167=0,"",IF(AC167>=$AD$9,"HABIL","NO HABIL")) -> 
A168: PROC. AD. FIRM. RUP | B168: 15.2 | C168: PAVIOBRAS S.A.S. | D168: 0.25 | E168: 1433877421 | F168: 2128733246 | G168: 480788162 | H168: 480788162 | I168: 1647945084 | J168: 161339306 | K168: 0 | M168: =IF(ISERROR(VLOOKUP(L168,POA!$A$2:$C$25,3,0)),"",VLOOKUP(L168,POA!$A$2:$C$25,3,0)) ->  | O168: =IF(ISERROR(VLOOKUP(N168,POA!$A$2:$F$25,4,0)),"",VLOOKUP(N168,POA!$A$2:$F$25,4,0)) ->  | P168: =IF(ISERROR(VLOOKUP(L168,POA!$A$2:$C$25,2,0)),"",VLOOKUP(L168,POA!$A$2:$C$25,2,0)) ->  | R168: =IF(Q168=0,"",IF(Q166>=$R$9,"HABIL","NO HABIL")) ->  | U168: =IF(ISERROR(VLOOKUP(N168,POA!$A$2:$F$25,5,0)),"",VLOOKUP(N168,POA!$A$2:$F$25,5,0)) ->  | Y168: =IF(ISERROR(F168/$Z$9),"",F168/$Z$9) -> 3756.367118 | Z168: =+IF(Y168<$Z$10,"MIPYME","NO CUMPLE") -> MIPYME
B169: 15.3 | C169: BALLEN B Y CIA S.A.S. | D169: 0.5 | E169: 2082044691 | F169: 3785256493 | G169: 454968809 | H169: 2021231982 | I169: 1764024511 | J169: 652869820 | K169: 141371539 | M169: =IF(ISERROR(VLOOKUP(L169,POA!$A$2:$C$25,3,0)),"",VLOOKUP(L169,POA!$A$2:$C$25,3,0)) ->  | O169: =IF(ISERROR(VLOOKUP(N169,POA!$A$2:$F$25,4,0)),"",VLOOKUP(N169,POA!$A$2:$F$25,4,0)) ->  | P169: =IF(ISERROR(VLOOKUP(L169,POA!$A$2:$C$25,2,0)),"",VLOOKUP(L169,POA!$A$2:$C$25,2,0)) ->  | R169: =IF(Q169=0,"",IF(Q166>=$R$9,"HABIL","NO HABIL")) ->  | U169: =IF(ISERROR(VLOOKUP(N169,POA!$A$2:$F$25,5,0)),"",VLOOKUP(N169,POA!$A$2:$F$25,5,0)) ->  | Y169: 6679.471489 | Z169: MIPYME
E170: =IF(ISERROR(VLOOKUP(C170,#REF!,2,0)),"",VLOOKUP(C170,#REF!,2,0)) ->  | G170: =IF(ISERROR(VLOOKUP(C170,#REF!,4,0)),"",VLOOKUP(C170,#REF!,4,0)) ->  | I170: =IF(ISERROR(F170-H170),"",F170-H170) -> 0 | M170: =IF(ISERROR(VLOOKUP(L170,POA!$A$2:$C$25,3,0)),"",VLOOKUP(L170,POA!$A$2:$C$25,3,0)) ->  | O170: =IF(ISERROR(VLOOKUP(N170,POA!$A$2:$F$25,4,0)),"",VLOOKUP(N170,POA!$A$2:$F$25,4,0)) ->  | P170: =IF(ISERROR(VLOOKUP(L170,POA!$A$2:$C$25,2,0)),"",VLOOKUP(L170,POA!$A$2:$C$25,2,0)) ->  | R170: =IF(L170=0,"",IF(Q166>=$R$9,"HABIL","NO HABIL")) ->  | U170: =IF(ISERROR(VLOOKUP(N170,POA!$A$2:$F$25,5,0)),"",VLOOKUP(N170,POA!$A$2:$F$25,5,0)) ->  | Y170: 0 | Z170: MIPYME
E171: =IF(ISERROR(VLOOKUP(C171,#REF!,2,0)),"",VLOOKUP(C171,#REF!,2,0)) ->  | G171: =IF(ISERROR(VLOOKUP(C171,#REF!,4,0)),"",VLOOKUP(C171,#REF!,4,0)) ->  | I171: 0 | M171: =IF(ISERROR(VLOOKUP(L171,POA!$A$2:$C$25,3,0)),"",VLOOKUP(L171,POA!$A$2:$C$25,3,0)) ->  | O171: =IF(ISERROR(VLOOKUP(N171,POA!$A$2:$F$25,4,0)),"",VLOOKUP(N171,POA!$A$2:$F$25,4,0)) ->  | P171: =IF(ISERROR(VLOOKUP(L171,POA!$A$2:$C$25,2,0)),"",VLOOKUP(L171,POA!$A$2:$C$25,2,0)) ->  | R171: =IF(L171=0,"",IF(Q166>=$R$9,"HABIL","NO HABIL")) ->  | U171: =IF(ISERROR(VLOOKUP(N171,POA!$A$2:$F$25,5,0)),"",VLOOKUP(N171,POA!$A$2:$F$25,5,0)) ->  | Y171: 0 | Z171: MIPYME
E172: =IF(ISERROR(VLOOKUP(C172,#REF!,2,0)),"",VLOOKUP(C172,#REF!,2,0)) ->  | G172: =IF(ISERROR(VLOOKUP(C172,#REF!,4,0)),"",VLOOKUP(C172,#REF!,4,0)) ->  | I172: 0 | M172: =IF(ISERROR(VLOOKUP(L172,POA!$A$2:$C$25,3,0)),"",VLOOKUP(L172,POA!$A$2:$C$25,3,0)) ->  | O172: =IF(ISERROR(VLOOKUP(N172,POA!$A$2:$F$25,4,0)),"",VLOOKUP(N172,POA!$A$2:$F$25,4,0)) ->  | P172: =IF(ISERROR(VLOOKUP(L172,POA!$A$2:$C$25,2,0)),"",VLOOKUP(L172,POA!$A$2:$C$25,2,0)) ->  | R172: =IF(L172=0,"",IF(Q166>=$R$9,"HABIL","NO HABIL")) ->  | U172: =IF(ISERROR(VLOOKUP(N172,POA!$A$2:$F$25,5,0)),"",VLOOKUP(N172,POA!$A$2:$F$25,5,0)) ->  | Y172: 0 | Z172: MIPYME
B173: =IF(C173="","",B172+0.1) ->  | E173: =IF(ISERROR(VLOOKUP(C173,#REF!,2,0)),"",VLOOKUP(C173,#REF!,2,0)) ->  | G173: =IF(ISERROR(VLOOKUP(C173,#REF!,4,0)),"",VLOOKUP(C173,#REF!,4,0)) ->  | I173: =IF(ISERROR(F173-H173),"",F173-H173) -> 0 | M173: =IF(ISERROR(VLOOKUP(L173,POA!$A$2:$C$25,3,0)),"",VLOOKUP(L173,POA!$A$2:$C$25,3,0)) ->  | O173: =IF(ISERROR(VLOOKUP(N173,POA!$A$2:$F$25,4,0)),"",VLOOKUP(N173,POA!$A$2:$F$25,4,0)) ->  | P173: =IF(ISERROR(VLOOKUP(L173,POA!$A$2:$C$25,2,0)),"",VLOOKUP(L173,POA!$A$2:$C$25,2,0)) ->  | R173: =IF(L173=0,"",IF(Q166>=$R$9,"HABIL","NO HABIL")) ->  | U173: =IF(ISERROR(VLOOKUP(N173,POA!$A$2:$F$25,5,0)),"",VLOOKUP(N173,POA!$A$2:$F$25,5,0)) ->  | Y173: 0 | Z173: MIPYME
B174: =IF(C174="","",B173+0.1) ->  | E174: =IF(ISERROR(VLOOKUP(C174,#REF!,2,0)),"",VLOOKUP(C174,#REF!,2,0)) ->  | G174: =IF(ISERROR(VLOOKUP(C174,#REF!,4,0)),"",VLOOKUP(C174,#REF!,4,0)) ->  | I174: =IF(ISERROR(F174-H174),"",F174-H174) -> 0 | M174: =IF(ISERROR(VLOOKUP(L174,POA!$A$2:$C$25,3,0)),"",VLOOKUP(L174,POA!$A$2:$C$25,3,0)) ->  | O174: =IF(ISERROR(VLOOKUP(N174,POA!$A$2:$F$25,4,0)),"",VLOOKUP(N174,POA!$A$2:$F$25,4,0)) ->  | P174: =IF(ISERROR(VLOOKUP(L174,POA!$A$2:$C$25,2,0)),"",VLOOKUP(L174,POA!$A$2:$C$25,2,0)) ->  | R174: =IF(L174=0,"",IF(Q166>=$R$9,"HABIL","NO HABIL")) ->  | U174: =IF(ISERROR(VLOOKUP(N174,POA!$A$2:$F$25,5,0)),"",VLOOKUP(N174,POA!$A$2:$F$25,5,0)) ->  | Y174: 0 | Z174: MIPYME
B175: =IF(C175="","",B174+0.1) ->  | E175: =IF(ISERROR(VLOOKUP(C175,#REF!,2,0)),"",VLOOKUP(C175,#REF!,2,0)) ->  | G175: =IF(ISERROR(VLOOKUP(C175,#REF!,4,0)),"",VLOOKUP(C175,#REF!,4,0)) ->  | I175: =IF(ISERROR(F175-H175),"",F175-H175) -> 0 | M175: =IF(ISERROR(VLOOKUP(L175,POA!$A$2:$C$25,3,0)),"",VLOOKUP(L175,POA!$A$2:$C$25,3,0)) ->  | O175: =IF(ISERROR(VLOOKUP(N175,POA!$A$2:$F$25,4,0)),"",VLOOKUP(N175,POA!$A$2:$F$25,4,0)) ->  | P175: =IF(ISERROR(VLOOKUP(L175,POA!$A$2:$C$25,2,0)),"",VLOOKUP(L175,POA!$A$2:$C$25,2,0)) ->  | R175: =IF(L175=0,"",IF(Q166>=$R$9,"HABIL","NO HABIL")) ->  | U175: =IF(ISERROR(VLOOKUP(N175,POA!$A$2:$F$25,5,0)),"",VLOOKUP(N175,POA!$A$2:$F$25,5,0)) ->  | Y175: 0 | Z175: MIPYME
B176: =IF(C176="","",B175+0.1) ->  | E176: =IF(ISERROR(VLOOKUP(C176,#REF!,2,0)),"",VLOOKUP(C176,#REF!,2,0)) ->  | G176: =IF(ISERROR(VLOOKUP(C176,#REF!,4,0)),"",VLOOKUP(C176,#REF!,4,0)) ->  | I176: =IF(ISERROR(F176-H176),"",F176-H176) -> 0 | M176: =IF(ISERROR(VLOOKUP(L176,POA!$A$2:$C$25,3,0)),"",VLOOKUP(L176,POA!$A$2:$C$25,3,0)) ->  | O176: =IF(ISERROR(VLOOKUP(N176,POA!$A$2:$F$25,4,0)),"",VLOOKUP(N176,POA!$A$2:$F$25,4,0)) ->  | P176: =IF(ISERROR(VLOOKUP(L176,POA!$A$2:$C$25,2,0)),"",VLOOKUP(L176,POA!$A$2:$C$25,2,0)) ->  | R176: =IF(L176=0,"",IF(Q166>=$R$9,"HABIL","NO HABIL")) ->  | U176: =IF(ISERROR(VLOOKUP(N176,POA!$A$2:$F$25,5,0)),"",VLOOKUP(N176,POA!$A$2:$F$25,5,0)) ->  | Y176: =IF(ISERROR(F176/$Z$9),"",F176/$Z$9) -> 0 | Z176: MIPYME
B177: 16 | C177: CONSORCIO SAN PABLO | D177: =IF(SUM(D178:D187)=0,"",SUM(D178:D187)) -> 1 | E177: =SUM(E178:E187) -> 114478871615 | F177: =SUM(F178:F187) -> 151820944418 | G177: =SUM(G178:G187) -> 52750978245 | H177: =SUM(H178:H187) -> 89368120494 | I177: =+F177-H177 -> 62452823924 | J177: =SUM(J178:J187) -> 5400407808 | K177: =SUM(K178:K187) -> 2341098317 | L177: 1 | M177: =IF(ISERROR(VLOOKUP(L177,POA!$A$2:$C$25,3,0)),"",VLOOKUP(L177,POA!$A$2:$C$25,3,0)) -> 3 | O177: =+SUM(O178:O187) -> 0 | P177: =IF(ISERROR(VLOOKUP(L177,POA!$A$2:$C$25,2,0)),"",VLOOKUP(L177,POA!$A$2:$C$25,2,0)) -> 4167150295 | Q177: =SUM(E177/G177) -> 2.17017533 | R177: =IF(Q177=0,"",IF(Q177>=$R$9,"HABIL","NO HABIL")) -> HABIL | S177: =SUM(H177/F177) -> 0.5886415793 | T177: =IF(S177=0,"",IF(S177<=$T$9,"HABIL","NO HABIL")) -> HABIL | U177: =+SUM(U178:U187) -> 0 | V177: =SUM(J177/K177) -> 2.306783858 | W177: =IF(V177=0,"",IF(V177>=$W$9,"HABIL","NO HABIL")) -> HABIL | X177: =IF(R177=0,"",IF(R177="NO HABIL","NO HABIL",IF(T177="NO HABIL","NO HABIL",IF(W177="NO HABIL","NO HABIL",IF(W177="NO HABIL","NO HABIL","HABIL"))))) -> HABIL | AA177: =SUM(J177/I177) -> 0.08647179533 | AB177: =IF(AA177=0,"",IF(AA177>=$AB$9,"HABIL","NO HABIL")) -> HABIL | AC177: =SUM(J177/F177) -> 0.03557090116 | AD177: =IF(AC177=0,"",IF(AC177>=$AD$9,"HABIL","NO HABIL")) -> HABIL | AE177: =IF(AB177=0,"",IF(AB177="NO HABIL","NO HABIL",IF(AD177="NO HABIL","NO HABIL",IF(AD177="NO HABIL","NO HABIL","HABIL")))) -> HABIL
B178: =IF(C178="","",B177+0.1) -> 16.1 | C178: ALCA INGENIERIA S.A.S. | D178: 0.6 | E178: 16669734107 | F178: 29085486224 | G178: 8282217822 | H178: 17158922672 | I178: =IF(ISERROR(F178-H178),"",F178-H178) -> 11926563552 | J178: 2256803930 | K178: 207261263 | M178: =IF(ISERROR(VLOOKUP(L178,POA!$A$2:$C$25,3,0)),"",VLOOKUP(L178,POA!$A$2:$C$25,3,0)) ->  | O178: =IF(ISERROR(VLOOKUP(N178,POA!$A$2:$F$25,4,0)),"",VLOOKUP(N178,POA!$A$2:$F$25,4,0)) ->  | P178: =IF(ISERROR(VLOOKUP(L178,POA!$A$2:$C$25,2,0)),"",VLOOKUP(L178,POA!$A$2:$C$25,2,0)) ->  | R178: =IF(Q178=0,"",IF(Q177>=$R$9,"HABIL","NO HABIL")) ->  | T178: =IF(S178=0,"",IF(S178<=$T$9,"HABIL","NO HABIL")) ->  | U178: =IF(ISERROR(VLOOKUP(N178,POA!$A$2:$F$25,5,0)),"",VLOOKUP(N178,POA!$A$2:$F$25,5,0)) ->  | W178: =IF(V178=0,"",IF(V178>=$W$9,"HABIL","NO HABIL")) ->  | Y178: =IF(ISERROR(F178/$Z$9),"",F178/$Z$9) -> 51324.30955 | Z178: =+IF(Y178<$Z$10,"MIPYME","NO CUMPLE") -> NO CUMPLE | AB178: =IF(AA178=0,"",IF(AA178>=$AB$9,"HABIL","NO HABIL")) ->  | AD178: =IF(AC178=0,"",IF(AC178>=$AD$9,"HABIL","NO HABIL")) -> 
B179: 16.2 | C179: TORRESCAMARA Y CIA DE OBRAS S.A. SUCURSAL COLOMBIA | D179: 0.4 | E179: 97809137508 | F179: 122735458194 | G179: 44468760423 | H179: 72209197822 | I179: 50526260372 | J179: 3143603878 | K179: 2133837054 | M179: =IF(ISERROR(VLOOKUP(L179,POA!$A$2:$C$25,3,0)),"",VLOOKUP(L179,POA!$A$2:$C$25,3,0)) ->  | O179: =IF(ISERROR(VLOOKUP(N179,POA!$A$2:$F$25,4,0)),"",VLOOKUP(N179,POA!$A$2:$F$25,4,0)) ->  | P179: =IF(ISERROR(VLOOKUP(L179,POA!$A$2:$C$25,2,0)),"",VLOOKUP(L179,POA!$A$2:$C$25,2,0)) ->  | R179: =IF(Q179=0,"",IF(Q177>=$R$9,"HABIL","NO HABIL")) ->  | U179: =IF(ISERROR(VLOOKUP(N179,POA!$A$2:$F$25,5,0)),"",VLOOKUP(N179,POA!$A$2:$F$25,5,0)) ->  | Y179: =IF(ISERROR(F179/$Z$9),"",F179/$Z$9) -> 216579.2451 | Z179: =+IF(Y179<$Z$10,"MIPYME","NO CUMPLE") -> NO CUMPLE
I180: =IF(ISERROR(F180-H180),"",F180-H180) -> 0 | M180: =IF(ISERROR(VLOOKUP(L180,POA!$A$2:$C$25,3,0)),"",VLOOKUP(L180,POA!$A$2:$C$25,3,0)) ->  | O180: =IF(ISERROR(VLOOKUP(N180,POA!$A$2:$F$25,4,0)),"",VLOOKUP(N180,POA!$A$2:$F$25,4,0)) ->  | P180: =IF(ISERROR(VLOOKUP(L180,POA!$A$2:$C$25,2,0)),"",VLOOKUP(L180,POA!$A$2:$C$25,2,0)) ->  | R180: =IF(Q180=0,"",IF(Q177>=$R$9,"HABIL","NO HABIL")) ->  | U180: =IF(ISERROR(VLOOKUP(N180,POA!$A$2:$F$25,5,0)),"",VLOOKUP(N180,POA!$A$2:$F$25,5,0)) ->  | Y180: 0 | Z180: MIPYME
E181: =IF(ISERROR(VLOOKUP(C181,#REF!,2,0)),"",VLOOKUP(C181,#REF!,2,0)) ->  | G181: =IF(ISERROR(VLOOKUP(C181,#REF!,4,0)),"",VLOOKUP(C181,#REF!,4,0)) ->  | I181: 0 | M181: =IF(ISERROR(VLOOKUP(L181,POA!$A$2:$C$25,3,0)),"",VLOOKUP(L181,POA!$A$2:$C$25,3,0)) ->  | O181: =IF(ISERROR(VLOOKUP(N181,POA!$A$2:$F$25,4,0)),"",VLOOKUP(N181,POA!$A$2:$F$25,4,0)) ->  | P181: =IF(ISERROR(VLOOKUP(L181,POA!$A$2:$C$25,2,0)),"",VLOOKUP(L181,POA!$A$2:$C$25,2,0)) ->  | R181: =IF(L181=0,"",IF(Q177>=$R$9,"HABIL","NO HABIL")) ->  | U181: =IF(ISERROR(VLOOKUP(N181,POA!$A$2:$F$25,5,0)),"",VLOOKUP(N181,POA!$A$2:$F$25,5,0)) ->  | Y181: 0 | Z181: MIPYME
E182: =IF(ISERROR(VLOOKUP(C182,#REF!,2,0)),"",VLOOKUP(C182,#REF!,2,0)) ->  | G182: =IF(ISERROR(VLOOKUP(C182,#REF!,4,0)),"",VLOOKUP(C182,#REF!,4,0)) ->  | I182: 0 | M182: =IF(ISERROR(VLOOKUP(L182,POA!$A$2:$C$25,3,0)),"",VLOOKUP(L182,POA!$A$2:$C$25,3,0)) ->  | O182: =IF(ISERROR(VLOOKUP(N182,POA!$A$2:$F$25,4,0)),"",VLOOKUP(N182,POA!$A$2:$F$25,4,0)) ->  | P182: =IF(ISERROR(VLOOKUP(L182,POA!$A$2:$C$25,2,0)),"",VLOOKUP(L182,POA!$A$2:$C$25,2,0)) ->  | R182: =IF(L182=0,"",IF(Q177>=$R$9,"HABIL","NO HABIL")) ->  | U182: =IF(ISERROR(VLOOKUP(N182,POA!$A$2:$F$25,5,0)),"",VLOOKUP(N182,POA!$A$2:$F$25,5,0)) ->  | Y182: 0 | Z182: MIPYME
E183: =IF(ISERROR(VLOOKUP(C183,#REF!,2,0)),"",VLOOKUP(C183,#REF!,2,0)) ->  | G183: =IF(ISERROR(VLOOKUP(C183,#REF!,4,0)),"",VLOOKUP(C183,#REF!,4,0)) ->  | I183: 0 | M183: =IF(ISERROR(VLOOKUP(L183,POA!$A$2:$C$25,3,0)),"",VLOOKUP(L183,POA!$A$2:$C$25,3,0)) ->  | O183: =IF(ISERROR(VLOOKUP(N183,POA!$A$2:$F$25,4,0)),"",VLOOKUP(N183,POA!$A$2:$F$25,4,0)) ->  | P183: =IF(ISERROR(VLOOKUP(L183,POA!$A$2:$C$25,2,0)),"",VLOOKUP(L183,POA!$A$2:$C$25,2,0)) ->  | R183: =IF(L183=0,"",IF(Q177>=$R$9,"HABIL","NO HABIL")) ->  | U183: =IF(ISERROR(VLOOKUP(N183,POA!$A$2:$F$25,5,0)),"",VLOOKUP(N183,POA!$A$2:$F$25,5,0)) ->  | Y183: 0 | Z183: MIPYME
B184: =IF(C184="","",B183+0.1) ->  | E184: =IF(ISERROR(VLOOKUP(C184,#REF!,2,0)),"",VLOOKUP(C184,#REF!,2,0)) ->  | G184: =IF(ISERROR(VLOOKUP(C184,#REF!,4,0)),"",VLOOKUP(C184,#REF!,4,0)) ->  | I184: =IF(ISERROR(F184-H184),"",F184-H184) -> 0 | M184: =IF(ISERROR(VLOOKUP(L184,POA!$A$2:$C$25,3,0)),"",VLOOKUP(L184,POA!$A$2:$C$25,3,0)) ->  | O184: =IF(ISERROR(VLOOKUP(N184,POA!$A$2:$F$25,4,0)),"",VLOOKUP(N184,POA!$A$2:$F$25,4,0)) ->  | P184: =IF(ISERROR(VLOOKUP(L184,POA!$A$2:$C$25,2,0)),"",VLOOKUP(L184,POA!$A$2:$C$25,2,0)) ->  | R184: =IF(L184=0,"",IF(Q177>=$R$9,"HABIL","NO HABIL")) ->  | U184: =IF(ISERROR(VLOOKUP(N184,POA!$A$2:$F$25,5,0)),"",VLOOKUP(N184,POA!$A$2:$F$25,5,0)) ->  | Y184: 0 | Z184: MIPYME
B185: =IF(C185="","",B184+0.1) ->  | E185: =IF(ISERROR(VLOOKUP(C185,#REF!,2,0)),"",VLOOKUP(C185,#REF!,2,0)) ->  | G185: =IF(ISERROR(VLOOKUP(C185,#REF!,4,0)),"",VLOOKUP(C185,#REF!,4,0)) ->  | I185: =IF(ISERROR(F185-H185),"",F185-H185) -> 0 | M185: =IF(ISERROR(VLOOKUP(L185,POA!$A$2:$C$25,3,0)),"",VLOOKUP(L185,POA!$A$2:$C$25,3,0)) ->  | O185: =IF(ISERROR(VLOOKUP(N185,POA!$A$2:$F$25,4,0)),"",VLOOKUP(N185,POA!$A$2:$F$25,4,0)) ->  | P185: =IF(ISERROR(VLOOKUP(L185,POA!$A$2:$C$25,2,0)),"",VLOOKUP(L185,POA!$A$2:$C$25,2,0)) ->  | R185: =IF(L185=0,"",IF(Q177>=$R$9,"HABIL","NO HABIL")) ->  | U185: =IF(ISERROR(VLOOKUP(N185,POA!$A$2:$F$25,5,0)),"",VLOOKUP(N185,POA!$A$2:$F$25,5,0)) ->  | Y185: 0 | Z185: MIPYME
B186: =IF(C186="","",B185+0.1) ->  | E186: =IF(ISERROR(VLOOKUP(C186,#REF!,2,0)),"",VLOOKUP(C186,#REF!,2,0)) ->  | G186: =IF(ISERROR(VLOOKUP(C186,#REF!,4,0)),"",VLOOKUP(C186,#REF!,4,0)) ->  | I186: =IF(ISERROR(F186-H186),"",F186-H186) -> 0 | M186: =IF(ISERROR(VLOOKUP(L186,POA!$A$2:$C$25,3,0)),"",VLOOKUP(L186,POA!$A$2:$C$25,3,0)) ->  | O186: =IF(ISERROR(VLOOKUP(N186,POA!$A$2:$F$25,4,0)),"",VLOOKUP(N186,POA!$A$2:$F$25,4,0)) ->  | P186: =IF(ISERROR(VLOOKUP(L186,POA!$A$2:$C$25,2,0)),"",VLOOKUP(L186,POA!$A$2:$C$25,2,0)) ->  | R186: =IF(L186=0,"",IF(Q177>=$R$9,"HABIL","NO HABIL")) ->  | U186: =IF(ISERROR(VLOOKUP(N186,POA!$A$2:$F$25,5,0)),"",VLOOKUP(N186,POA!$A$2:$F$25,5,0)) ->  | Y186: 0 | Z186: MIPYME
B187: =IF(C187="","",B186+0.1) ->  | E187: =IF(ISERROR(VLOOKUP(C187,#REF!,2,0)),"",VLOOKUP(C187,#REF!,2,0)) ->  | G187: =IF(ISERROR(VLOOKUP(C187,#REF!,4,0)),"",VLOOKUP(C187,#REF!,4,0)) ->  | I187: =IF(ISERROR(F187-H187),"",F187-H187) -> 0 | M187: =IF(ISERROR(VLOOKUP(L187,POA!$A$2:$C$25,3,0)),"",VLOOKUP(L187,POA!$A$2:$C$25,3,0)) ->  | O187: =IF(ISERROR(VLOOKUP(N187,POA!$A$2:$F$25,4,0)),"",VLOOKUP(N187,POA!$A$2:$F$25,4,0)) ->  | P187: =IF(ISERROR(VLOOKUP(L187,POA!$A$2:$C$25,2,0)),"",VLOOKUP(L187,POA!$A$2:$C$25,2,0)) ->  | R187: =IF(L187=0,"",IF(Q177>=$R$9,"HABIL","NO HABIL")) ->  | U187: =IF(ISERROR(VLOOKUP(N187,POA!$A$2:$F$25,5,0)),"",VLOOKUP(N187,POA!$A$2:$F$25,5,0)) ->  | Y187: =IF(ISERROR(F187/$Z$9),"",F187/$Z$9) -> 0 | Z187: MIPYME
B188: 17 | C188: CONSORCIO LA CALERA CUNDINAMARCA | D188: =IF(SUM(D189:D198)=0,"",SUM(D189:D198)) -> 1 | E188: =SUM(E189:E198) -> 7733546759 | F188: =SUM(F189:F198) -> 15056086091 | G188: =SUM(G189:G198) -> 662438548 | H188: =SUM(H189:H198) -> 6125999246 | I188: =+F188-H188 -> 8930086845 | J188: =SUM(J189:J198) -> 1406901344 | K188: =SUM(K189:K198) -> 255551190 | L188: 1 | M188: =IF(ISERROR(VLOOKUP(L188,POA!$A$2:$C$25,3,0)),"",VLOOKUP(L188,POA!$A$2:$C$25,3,0)) -> 3 | O188: =+SUM(O189:O198) -> 0 | P188: =IF(ISERROR(VLOOKUP(L188,POA!$A$2:$C$25,2,0)),"",VLOOKUP(L188,POA!$A$2:$C$25,2,0)) -> 4167150295 | Q188: =SUM(E188/G188) -> 11.67436101 | R188: =IF(Q188=0,"",IF(Q188>=$R$9,"HABIL","NO HABIL")) -> HABIL | S188: =SUM(H188/F188) -> 0.4068786011 | T188: =IF(S188=0,"",IF(S188<=$T$9,"HABIL","NO HABIL")) -> HABIL | U188: =+SUM(U189:U198) -> 0 | V188: =SUM(J188/K188) -> 5.505360175 | W188: =IF(V188=0,"",IF(V188>=$W$9,"HABIL","NO HABIL")) -> HABIL | X188: =IF(R188=0,"",IF(R188="NO HABIL","NO HABIL",IF(T188="NO HABIL","NO HABIL",IF(W188="NO HABIL","NO HABIL",IF(W188="NO HABIL","NO HABIL","HABIL"))))) -> HABIL | AA188: =SUM(J188/I188) -> 0.1575462107 | AB188: =IF(AA188=0,"",IF(AA188>=$AB$9,"HABIL","NO HABIL")) -> HABIL | AC188: =SUM(J188/F188) -> 0.09344402891 | AD188: =IF(AC188=0,"",IF(AC188>=$AD$9,"HABIL","NO HABIL")) -> HABIL | AE188: =IF(AB188=0,"",IF(AB188="NO HABIL","NO HABIL",IF(AD188="NO HABIL","NO HABIL",IF(AD188="NO HABIL","NO HABIL","HABIL")))) -> HABIL
B189: =IF(C189="","",B188+0.1) -> 17.1 | C189: JUAN SILVA RODRIGUEZ | D189: 0.5 | E189: 3946319652 | F189: 7245031905 | G189: 209147914 | H189: 2418482838 | I189: =IF(ISERROR(F189-H189),"",F189-H189) -> 4826549067 | J189: 658416814 | K189: 108990375 | M189: =IF(ISERROR(VLOOKUP(L189,POA!$A$2:$C$25,3,0)),"",VLOOKUP(L189,POA!$A$2:$C$25,3,0)) ->  | O189: =IF(ISERROR(VLOOKUP(N189,POA!$A$2:$F$25,4,0)),"",VLOOKUP(N189,POA!$A$2:$F$25,4,0)) ->  | P189: =IF(ISERROR(VLOOKUP(L189,POA!$A$2:$C$25,2,0)),"",VLOOKUP(L189,POA!$A$2:$C$25,2,0)) ->  | R189: =IF(Q189=0,"",IF(Q188>=$R$9,"HABIL","NO HABIL")) ->  | T189: =IF(S189=0,"",IF(S189<=$T$9,"HABIL","NO HABIL")) ->  | U189: =IF(ISERROR(VLOOKUP(N189,POA!$A$2:$F$25,5,0)),"",VLOOKUP(N189,POA!$A$2:$F$25,5,0)) ->  | W189: =IF(V189=0,"",IF(V189>=$W$9,"HABIL","NO HABIL")) ->  | Y189: =IF(ISERROR(F189/$Z$9),"",F189/$Z$9) -> 12784.59839 | Z189: =+IF(Y189<$Z$10,"MIPYME","NO CUMPLE") -> MIPYME | AB189: =IF(AA189=0,"",IF(AA189>=$AB$9,"HABIL","NO HABIL")) ->  | AD189: =IF(AC189=0,"",IF(AC189>=$AD$9,"HABIL","NO HABIL")) -> 
B190: 17.2 | C190: FERNANDO JIMENEZ ROA | D190: 0.5 | E190: 3787227107 | F190: 7811054186 | G190: 453290634 | H190: 3707516408 | I190: 4103537778 | J190: 748484530 | K190: 146560815 | M190: =IF(ISERROR(VLOOKUP(L190,POA!$A$2:$C$25,3,0)),"",VLOOKUP(L190,POA!$A$2:$C$25,3,0)) ->  | O190: =IF(ISERROR(VLOOKUP(N190,POA!$A$2:$F$25,4,0)),"",VLOOKUP(N190,POA!$A$2:$F$25,4,0)) ->  | P190: =IF(ISERROR(VLOOKUP(L190,POA!$A$2:$C$25,2,0)),"",VLOOKUP(L190,POA!$A$2:$C$25,2,0)) ->  | R190: =IF(Q190=0,"",IF(Q188>=$R$9,"HABIL","NO HABIL")) ->  | U190: =IF(ISERROR(VLOOKUP(N190,POA!$A$2:$F$25,5,0)),"",VLOOKUP(N190,POA!$A$2:$F$25,5,0)) ->  | Y190: =IF(ISERROR(F190/$Z$9),"",F190/$Z$9) -> 13783.40248 | Z190: =+IF(Y190<$Z$10,"MIPYME","NO CUMPLE") -> MIPYME
I191: =IF(ISERROR(F191-H191),"",F191-H191) -> 0 | M191: =IF(ISERROR(VLOOKUP(L191,POA!$A$2:$C$25,3,0)),"",VLOOKUP(L191,POA!$A$2:$C$25,3,0)) ->  | O191: =IF(ISERROR(VLOOKUP(N191,POA!$A$2:$F$25,4,0)),"",VLOOKUP(N191,POA!$A$2:$F$25,4,0)) ->  | P191: =IF(ISERROR(VLOOKUP(L191,POA!$A$2:$C$25,2,0)),"",VLOOKUP(L191,POA!$A$2:$C$25,2,0)) ->  | R191: =IF(Q191=0,"",IF(Q188>=$R$9,"HABIL","NO HABIL")) ->  | U191: =IF(ISERROR(VLOOKUP(N191,POA!$A$2:$F$25,5,0)),"",VLOOKUP(N191,POA!$A$2:$F$25,5,0)) ->  | Y191: 0 | Z191: MIPYME
E192: =IF(ISERROR(VLOOKUP(C192,#REF!,2,0)),"",VLOOKUP(C192,#REF!,2,0)) ->  | G192: =IF(ISERROR(VLOOKUP(C192,#REF!,4,0)),"",VLOOKUP(C192,#REF!,4,0)) ->  | I192: 0 | M192: =IF(ISERROR(VLOOKUP(L192,POA!$A$2:$C$25,3,0)),"",VLOOKUP(L192,POA!$A$2:$C$25,3,0)) ->  | O192: =IF(ISERROR(VLOOKUP(N192,POA!$A$2:$F$25,4,0)),"",VLOOKUP(N192,POA!$A$2:$F$25,4,0)) ->  | P192: =IF(ISERROR(VLOOKUP(L192,POA!$A$2:$C$25,2,0)),"",VLOOKUP(L192,POA!$A$2:$C$25,2,0)) ->  | R192: =IF(L192=0,"",IF(Q188>=$R$9,"HABIL","NO HABIL")) ->  | U192: =IF(ISERROR(VLOOKUP(N192,POA!$A$2:$F$25,5,0)),"",VLOOKUP(N192,POA!$A$2:$F$25,5,0)) ->  | Y192: 0 | Z192: MIPYME
E193: =IF(ISERROR(VLOOKUP(C193,#REF!,2,0)),"",VLOOKUP(C193,#REF!,2,0)) ->  | G193: =IF(ISERROR(VLOOKUP(C193,#REF!,4,0)),"",VLOOKUP(C193,#REF!,4,0)) ->  | I193: 0 | M193: =IF(ISERROR(VLOOKUP(L193,POA!$A$2:$C$25,3,0)),"",VLOOKUP(L193,POA!$A$2:$C$25,3,0)) ->  | O193: =IF(ISERROR(VLOOKUP(N193,POA!$A$2:$F$25,4,0)),"",VLOOKUP(N193,POA!$A$2:$F$25,4,0)) ->  | P193: =IF(ISERROR(VLOOKUP(L193,POA!$A$2:$C$25,2,0)),"",VLOOKUP(L193,POA!$A$2:$C$25,2,0)) ->  | R193: =IF(L193=0,"",IF(Q188>=$R$9,"HABIL","NO HABIL")) ->  | U193: =IF(ISERROR(VLOOKUP(N193,POA!$A$2:$F$25,5,0)),"",VLOOKUP(N193,POA!$A$2:$F$25,5,0)) ->  | Y193: 0 | Z193: MIPYME
E194: =IF(ISERROR(VLOOKUP(C194,#REF!,2,0)),"",VLOOKUP(C194,#REF!,2,0)) ->  | G194: =IF(ISERROR(VLOOKUP(C194,#REF!,4,0)),"",VLOOKUP(C194,#REF!,4,0)) ->  | I194: 0 | M194: =IF(ISERROR(VLOOKUP(L194,POA!$A$2:$C$25,3,0)),"",VLOOKUP(L194,POA!$A$2:$C$25,3,0)) ->  | O194: =IF(ISERROR(VLOOKUP(N194,POA!$A$2:$F$25,4,0)),"",VLOOKUP(N194,POA!$A$2:$F$25,4,0)) ->  | P194: =IF(ISERROR(VLOOKUP(L194,POA!$A$2:$C$25,2,0)),"",VLOOKUP(L194,POA!$A$2:$C$25,2,0)) ->  | R194: =IF(L194=0,"",IF(Q188>=$R$9,"HABIL","NO HABIL")) ->  | U194: =IF(ISERROR(VLOOKUP(N194,POA!$A$2:$F$25,5,0)),"",VLOOKUP(N194,POA!$A$2:$F$25,5,0)) ->  | Y194: 0 | Z194: MIPYME
B195: =IF(C195="","",B194+0.1) ->  | E195: =IF(ISERROR(VLOOKUP(C195,#REF!,2,0)),"",VLOOKUP(C195,#REF!,2,0)) ->  | G195: =IF(ISERROR(VLOOKUP(C195,#REF!,4,0)),"",VLOOKUP(C195,#REF!,4,0)) ->  | I195: =IF(ISERROR(F195-H195),"",F195-H195) -> 0 | M195: =IF(ISERROR(VLOOKUP(L195,POA!$A$2:$C$25,3,0)),"",VLOOKUP(L195,POA!$A$2:$C$25,3,0)) ->  | O195: =IF(ISERROR(VLOOKUP(N195,POA!$A$2:$F$25,4,0)),"",VLOOKUP(N195,POA!$A$2:$F$25,4,0)) ->  | P195: =IF(ISERROR(VLOOKUP(L195,POA!$A$2:$C$25,2,0)),"",VLOOKUP(L195,POA!$A$2:$C$25,2,0)) ->  | R195: =IF(L195=0,"",IF(Q188>=$R$9,"HABIL","NO HABIL")) ->  | U195: =IF(ISERROR(VLOOKUP(N195,POA!$A$2:$F$25,5,0)),"",VLOOKUP(N195,POA!$A$2:$F$25,5,0)) ->  | Y195: 0 | Z195: MIPYME
B196: =IF(C196="","",B195+0.1) ->  | E196: =IF(ISERROR(VLOOKUP(C196,#REF!,2,0)),"",VLOOKUP(C196,#REF!,2,0)) ->  | G196: =IF(ISERROR(VLOOKUP(C196,#REF!,4,0)),"",VLOOKUP(C196,#REF!,4,0)) ->  | I196: =IF(ISERROR(F196-H196),"",F196-H196) -> 0 | M196: =IF(ISERROR(VLOOKUP(L196,POA!$A$2:$C$25,3,0)),"",VLOOKUP(L196,POA!$A$2:$C$25,3,0)) ->  | O196: =IF(ISERROR(VLOOKUP(N196,POA!$A$2:$F$25,4,0)),"",VLOOKUP(N196,POA!$A$2:$F$25,4,0)) ->  | P196: =IF(ISERROR(VLOOKUP(L196,POA!$A$2:$C$25,2,0)),"",VLOOKUP(L196,POA!$A$2:$C$25,2,0)) ->  | R196: =IF(L196=0,"",IF(Q188>=$R$9,"HABIL","NO HABIL")) ->  | U196: =IF(ISERROR(VLOOKUP(N196,POA!$A$2:$F$25,5,0)),"",VLOOKUP(N196,POA!$A$2:$F$25,5,0)) ->  | Y196: 0 | Z196: MIPYME
B197: =IF(C197="","",B196+0.1) ->  | E197: =IF(ISERROR(VLOOKUP(C197,#REF!,2,0)),"",VLOOKUP(C197,#REF!,2,0)) ->  | G197: =IF(ISERROR(VLOOKUP(C197,#REF!,4,0)),"",VLOOKUP(C197,#REF!,4,0)) ->  | I197: =IF(ISERROR(F197-H197),"",F197-H197) -> 0 | M197: =IF(ISERROR(VLOOKUP(L197,POA!$A$2:$C$25,3,0)),"",VLOOKUP(L197,POA!$A$2:$C$25,3,0)) ->  | O197: =IF(ISERROR(VLOOKUP(N197,POA!$A$2:$F$25,4,0)),"",VLOOKUP(N197,POA!$A$2:$F$25,4,0)) ->  | P197: =IF(ISERROR(VLOOKUP(L197,POA!$A$2:$C$25,2,0)),"",VLOOKUP(L197,POA!$A$2:$C$25,2,0)) ->  | R197: =IF(L197=0,"",IF(Q188>=$R$9,"HABIL","NO HABIL")) ->  | U197: =IF(ISERROR(VLOOKUP(N197,POA!$A$2:$F$25,5,0)),"",VLOOKUP(N197,POA!$A$2:$F$25,5,0)) ->  | Y197: 0 | Z197: MIPYME
B198: =IF(C198="","",B197+0.1) ->  | E198: =IF(ISERROR(VLOOKUP(C198,#REF!,2,0)),"",VLOOKUP(C198,#REF!,2,0)) ->  | G198: =IF(ISERROR(VLOOKUP(C198,#REF!,4,0)),"",VLOOKUP(C198,#REF!,4,0)) ->  | I198: =IF(ISERROR(F198-H198),"",F198-H198) -> 0 | M198: =IF(ISERROR(VLOOKUP(L198,POA!$A$2:$C$25,3,0)),"",VLOOKUP(L198,POA!$A$2:$C$25,3,0)) ->  | O198: =IF(ISERROR(VLOOKUP(N198,POA!$A$2:$F$25,4,0)),"",VLOOKUP(N198,POA!$A$2:$F$25,4,0)) ->  | P198: =IF(ISERROR(VLOOKUP(L198,POA!$A$2:$C$25,2,0)),"",VLOOKUP(L198,POA!$A$2:$C$25,2,0)) ->  | R198: =IF(L198=0,"",IF(Q188>=$R$9,"HABIL","NO HABIL")) ->  | U198: =IF(ISERROR(VLOOKUP(N198,POA!$A$2:$F$25,5,0)),"",VLOOKUP(N198,POA!$A$2:$F$25,5,0)) ->  | Y198: =IF(ISERROR(F198/$Z$9),"",F198/$Z$9) -> 0 | Z198: MIPYME
B199: 18 | C199: CONSORCIO VIAS HN | D199: =IF(SUM(D200:D209)=0,"",SUM(D200:D209)) -> 1 | E199: =SUM(E200:E209) -> 3057443404 | F199: =SUM(F200:F209) -> 3871581393 | G199: =SUM(G200:G209) -> 171481447 | H199: =SUM(H200:H209) -> 1005557786 | I199: =+F199-H199 -> 2866023607 | J199: =SUM(J200:J209) -> 962920323 | K199: =SUM(K200:K209) -> 104446419 | L199: 1 | M199: =IF(ISERROR(VLOOKUP(L199,POA!$A$2:$C$25,3,0)),"",VLOOKUP(L199,POA!$A$2:$C$25,3,0)) -> 3 | O199: =+SUM(O200:O209) -> 0 | P199: =IF(ISERROR(VLOOKUP(L199,POA!$A$2:$C$25,2,0)),"",VLOOKUP(L199,POA!$A$2:$C$25,2,0)) -> 4167150295 | Q199: =SUM(E199/G199) -> 17.82958715 | R199: =IF(Q199=0,"",IF(Q199>=$R$9,"HABIL","NO HABIL")) -> HABIL | S199: =SUM(H199/F199) -> 0.259727921 | T199: =IF(S199=0,"",IF(S199<=$T$9,"HABIL","NO HABIL")) -> HABIL | U199: =+SUM(U200:U209) -> 0 | V199: =SUM(J199/K199) -> 9.219275608 | W199: =IF(V199=0,"",IF(V199>=$W$9,"HABIL","NO HABIL")) -> HABIL | X199: =IF(R199=0,"",IF(R199="NO HABIL","NO HABIL",IF(T199="NO HABIL","NO HABIL",IF(W199="NO HABIL","NO HABIL",IF(W199="NO HABIL","NO HABIL","HABIL"))))) -> HABIL | AA199: =SUM(J199/I199) -> 0.3359778059 | AB199: =IF(AA199=0,"",IF(AA199>=$AB$9,"HABIL","NO HABIL")) -> HABIL | AC199: =SUM(J199/F199) -> 0.2487149889 | AD199: =IF(AC199=0,"",IF(AC199>=$AD$9,"HABIL","NO HABIL")) -> HABIL | AE199: =IF(AB199=0,"",IF(AB199="NO HABIL","NO HABIL",IF(AD199="NO HABIL","NO HABIL",IF(AD199="NO HABIL","NO HABIL","HABIL")))) -> HABIL
B200: =IF(C200="","",B199+0.1) -> 18.1 | C200: LUIS FERNANDO HOYOS PEREZ | D200: 0.6 | E200: =IF(ISERROR(VLOOKUP(C200,[1]TD!$4:$65536,2,0)),"",VLOOKUP(C200,[1]TD!$4:$65536,2,0)) -> 2255677333 | F200: =IF(ISERROR(VLOOKUP(C200,[1]TD!$4:$65536,3,0)),"",VLOOKUP(C200,[1]TD!$4:$65536,3,0)) -> 2447443322 | G200: =IF(ISERROR(VLOOKUP(C200,[1]TD!$4:$65536,4,0)),"",VLOOKUP(C200,[1]TD!$4:$65536,4,0)) -> 139077085 | H200: =IF(ISERROR(VLOOKUP(C200,[1]TD!$4:$65536,5,0)),"",VLOOKUP(C200,[1]TD!$4:$65536,5,0)) -> 627632642 | I200: =IF(ISERROR(F200-H200),"",F200-H200) -> 1819810680 | J200: =IF(ISERROR(VLOOKUP(C200,[1]TD!$4:$65536,6,0)),"",VLOOKUP(C200,[1]TD!$4:$65536,6,0)) -> 659966876 | K200: =IF(ISERROR(VLOOKUP(C200,[1]TD!$4:$65536,7,0)),"",VLOOKUP(C200,[1]TD!$4:$65536,7,0)) -> 94569876 | M200: =IF(ISERROR(VLOOKUP(L200,POA!$A$2:$C$25,3,0)),"",VLOOKUP(L200,POA!$A$2:$C$25,3,0)) ->  | O200: =IF(ISERROR(VLOOKUP(N200,POA!$A$2:$F$25,4,0)),"",VLOOKUP(N200,POA!$A$2:$F$25,4,0)) ->  | P200: =IF(ISERROR(VLOOKUP(L200,POA!$A$2:$C$25,2,0)),"",VLOOKUP(L200,POA!$A$2:$C$25,2,0)) ->  | R200: =IF(Q200=0,"",IF(Q199>=$R$9,"HABIL","NO HABIL")) ->  | T200: =IF(S200=0,"",IF(S200<=$T$9,"HABIL","NO HABIL")) ->  | U200: =IF(ISERROR(VLOOKUP(N200,POA!$A$2:$F$25,5,0)),"",VLOOKUP(N200,POA!$A$2:$F$25,5,0)) ->  | W200: =IF(V200=0,"",IF(V200>=$W$9,"HABIL","NO HABIL")) ->  | Y200: =IF(ISERROR(F200/$Z$9),"",F200/$Z$9) -> 4318.763582 | Z200: =+IF(Y200<$Z$10,"MIPYME","NO CUMPLE") -> MIPYME | AB200: =IF(AA200=0,"",IF(AA200>=$AB$9,"HABIL","NO HABIL")) ->  | AD200: =IF(AC200=0,"",IF(AC200>=$AD$9,"HABIL","NO HABIL")) -> 
B201: 18.2 | C201: VICTOR RAUL NEIRA DELBASTO | D201: 0.4 | E201: =IF(ISERROR(VLOOKUP(C201,[1]TD!$4:$65536,2,0)),"",VLOOKUP(C201,[1]TD!$4:$65536,2,0)) -> 801766071 | F201: =IF(ISERROR(VLOOKUP(C201,[1]TD!$4:$65536,3,0)),"",VLOOKUP(C201,[1]TD!$4:$65536,3,0)) -> 1424138071 | G201: =IF(ISERROR(VLOOKUP(C201,[1]TD!$4:$65536,4,0)),"",VLOOKUP(C201,[1]TD!$4:$65536,4,0)) -> 32404362 | H201: =IF(ISERROR(VLOOKUP(C201,[1]TD!$4:$65536,5,0)),"",VLOOKUP(C201,[1]TD!$4:$65536,5,0)) -> 377925144 | I201: 1046212927 | J201: =IF(ISERROR(VLOOKUP(C201,[1]TD!$4:$65536,6,0)),"",VLOOKUP(C201,[1]TD!$4:$65536,6,0)) -> 302953447 | K201: =IF(ISERROR(VLOOKUP(C201,[1]TD!$4:$65536,7,0)),"",VLOOKUP(C201,[1]TD!$4:$65536,7,0)) -> 9876543 | M201: =IF(ISERROR(VLOOKUP(L201,POA!$A$2:$C$25,3,0)),"",VLOOKUP(L201,POA!$A$2:$C$25,3,0)) ->  | O201: =IF(ISERROR(VLOOKUP(N201,POA!$A$2:$F$25,4,0)),"",VLOOKUP(N201,POA!$A$2:$F$25,4,0)) ->  | P201: =IF(ISERROR(VLOOKUP(L201,POA!$A$2:$C$25,2,0)),"",VLOOKUP(L201,POA!$A$2:$C$25,2,0)) ->  | R201: =IF(Q201=0,"",IF(Q199>=$R$9,"HABIL","NO HABIL")) ->  | U201: =IF(ISERROR(VLOOKUP(N201,POA!$A$2:$F$25,5,0)),"",VLOOKUP(N201,POA!$A$2:$F$25,5,0)) ->  | Y201: =IF(ISERROR(F201/$Z$9),"",F201/$Z$9) -> 2513.037005 | Z201: =+IF(Y201<$Z$10,"MIPYME","NO CUMPLE") -> MIPYME
I202: =IF(ISERROR(F202-H202),"",F202-H202) -> 0 | M202: =IF(ISERROR(VLOOKUP(L202,POA!$A$2:$C$25,3,0)),"",VLOOKUP(L202,POA!$A$2:$C$25,3,0)) ->  | O202: =IF(ISERROR(VLOOKUP(N202,POA!$A$2:$F$25,4,0)),"",VLOOKUP(N202,POA!$A$2:$F$25,4,0)) ->  | P202: =IF(ISERROR(VLOOKUP(L202,POA!$A$2:$C$25,2,0)),"",VLOOKUP(L202,POA!$A$2:$C$25,2,0)) ->  | R202: =IF(Q202=0,"",IF(Q199>=$R$9,"HABIL","NO HABIL")) ->  | U202: =IF(ISERROR(VLOOKUP(N202,POA!$A$2:$F$25,5,0)),"",VLOOKUP(N202,POA!$A$2:$F$25,5,0)) ->  | Y202: 0 | Z202: MIPYME
E203: =IF(ISERROR(VLOOKUP(C203,#REF!,2,0)),"",VLOOKUP(C203,#REF!,2,0)) ->  | G203: =IF(ISERROR(VLOOKUP(C203,#REF!,4,0)),"",VLOOKUP(C203,#REF!,4,0)) ->  | I203: 0 | M203: =IF(ISERROR(VLOOKUP(L203,POA!$A$2:$C$25,3,0)),"",VLOOKUP(L203,POA!$A$2:$C$25,3,0)) ->  | O203: =IF(ISERROR(VLOOKUP(N203,POA!$A$2:$F$25,4,0)),"",VLOOKUP(N203,POA!$A$2:$F$25,4,0)) ->  | P203: =IF(ISERROR(VLOOKUP(L203,POA!$A$2:$C$25,2,0)),"",VLOOKUP(L203,POA!$A$2:$C$25,2,0)) ->  | R203: =IF(L203=0,"",IF(Q199>=$R$9,"HABIL","NO HABIL")) ->  | U203: =IF(ISERROR(VLOOKUP(N203,POA!$A$2:$F$25,5,0)),"",VLOOKUP(N203,POA!$A$2:$F$25,5,0)) ->  | Y203: 0 | Z203: MIPYME
... 578 more rows

Sheet Puntaje Exp
C2: INSTITUTO NACIONAL DE VIAS
C3: DIRECCIÓN DE CONTRATACIÓN
C4: ='Capacidad Financiera'!B4 -> LICITACIÓN PÚBLICA No. LP-DO-SRN-XXX-2014
C5: PUNTAJE POR EXPERIENCIA
C7: OFERTA | D7: PROPONENTE | E7: Porcentaje de Participación para este Proceso (A) | F7: VALOR TOTAL DE LOS CONTRATOS EJECUTADOS (B) | G7: PRESUPUESTO OFICIAL ESTIMADO (POE) (C) | H7: PUNTAJE POR EXPERIENCIA
H8: RESULTADO B / (C * A) | I8: Rangos: Mayor a 0 y Menor o Igual a 3 = 60 Puntos Mayor a 3 y Menor o Igual a 6 = 80 Puntos Mayor a 6 y Menor o Igual a 10 = 100 Puntos Mayor a 10 y Mayores = 120 Puntos
A9: Módulo | C9: =+'Capacidad Financiera'!B12 -> 1 | D9: =IF(ISERROR(VLOOKUP(C9,'Capacidad Financiera'!$B$12:$X$62720,2,0)),"",VLOOKUP(C9,'Capacidad Financiera'!$B$12:$X$3580,2,0)) -> CONVIAL S.A.S. | E9: =IF(ISERROR(VLOOKUP(C9,'Capacidad Financiera'!$B$12:$X$62720,3,0)),"",VLOOKUP(C9,'Capacidad Financiera'!$B$12:$X$62720,3,0)) -> 1 | G9: =IF(OR(D9="",E9="",F9=""),"",IF(C10="",IF(C9<>"",IF(ISERROR(VLOOKUP($A$10,POA!$A$2:$D$25,2,0)),"",VLOOKUP($A$10,POA!$A$2:$D$25,2,0)),""),"")) ->  | H9: =IF(OR(D9="",E9="",F9=""),"",IF(C10="",IF(C9<>"",F9/G9,""),"")) ->  | I9: =IF(C10="",IF(F9="","",IF(AND(H9>0,H9<=Experiencia1),Puntajes!$D$4,IF(AND(H9>Experiencia1,H9<=Experiencia2),Puntajes!$D$5,IF(AND(H9>Experiencia2,H9<=Experiencia3),Puntajes!$D$6,IF(H9>Experiencia3,Puntajes!$D$7,0))))),"") -> 
A10: 1 | C10: =+'Capacidad Financiera'!B13 -> 1.1 | D10: =IF(ISERROR(VLOOKUP(C10,'Capacidad Financiera'!$B$12:$X$62720,2,0)),"",VLOOKUP(C10,'Capacidad Financiera'!$B$12:$X$3580,2,0)) -> CONVIAL S.A.S. | E10: =IF(ISERROR(VLOOKUP(C10,'Capacidad Financiera'!$B$12:$X$62720,3,0)),"",VLOOKUP(C10,'Capacidad Financiera'!$B$12:$X$62720,3,0)) -> 1 | F10: 62343031828 | G10: =IF(OR(D10="",E10="",F10=""),"",IF(C10<>"",IF(ISERROR(VLOOKUP($A$10,POA!$A$2:$D$25,2,0)),"",VLOOKUP($A$10,POA!$A$2:$D$25,2,0)),"")) -> 4167150295 | H10: =IF(OR(D10="",E10="",F10=""),"",IF(C10<>"",F10/(G10*E10),"")) -> 14.96059115 | I10: =IF(OR(D10="",E10="",F10=""),"",IF(AND(H10>0,H10<=Experiencia1),Puntajes!$D$4,IF(AND(H10>Experiencia1,H10<=Experiencia2),Puntajes!$D$5,IF(AND(H10>Experiencia2,H10<=Experiencia3),Puntajes!$D$6,IF(H10>Experiencia3,Puntajes!$D$7,0))))) -> 120
C11: =+'Capacidad Financiera'!B14 ->  | D11: =IF(ISERROR(VLOOKUP(C11,'Capacidad Financiera'!$B$12:$X$62720,2,0)),"",VLOOKUP(C11,'Capacidad Financiera'!$B$12:$X$3580,2,0)) -> 0 | E11: =IF(ISERROR(VLOOKUP(C11,'Capacidad Financiera'!$B$12:$X$62720,3,0)),"",VLOOKUP(C11,'Capacidad Financiera'!$B$12:$X$62720,3,0)) -> 0 | G11: =IF(OR(D11="",E11="",F11=""),"",IF(C11<>"",IF(ISERROR(VLOOKUP($A$10,POA!$A$2:$D$25,2,0)),"",VLOOKUP($A$10,POA!$A$2:$D$25,2,0)),"")) ->  | H11: =IF(OR(D11="",E11="",F11=""),"",IF(C11<>"",F11/(G11*E11),"")) ->  | I11: =IF(OR(D11="",E11="",F11=""),"",IF(AND(H11>0,H11<=Experiencia1),Puntajes!$D$4,IF(AND(H11>Experiencia1,H11<=Experiencia2),Puntajes!$D$5,IF(AND(H11>Experiencia2,H11<=Experiencia3),Puntajes!$D$6,IF(H11>Experiencia3,Puntajes!$D$7,0))))) -> 
C12: =+'Capacidad Financiera'!B15 ->  | D12: =IF(ISERROR(VLOOKUP(C12,'Capacidad Financiera'!$B$12:$X$62720,2,0)),"",VLOOKUP(C12,'Capacidad Financiera'!$B$12:$X$3580,2,0)) -> 0 | E12: =IF(ISERROR(VLOOKUP(C12,'Capacidad Financiera'!$B$12:$X$62720,3,0)),"",VLOOKUP(C12,'Capacidad Financiera'!$B$12:$X$62720,3,0)) -> 0 | G12: =IF(OR(D12="",E12="",F12=""),"",IF(C12<>"",IF(ISERROR(VLOOKUP($A$10,POA!$A$2:$D$25,2,0)),"",VLOOKUP($A$10,POA!$A$2:$D$25,2,0)),"")) ->  | I12: =IF(OR(D12="",E12="",F12=""),"",IF(AND(H12>0,H12<=Experiencia1),Puntajes!$D$4,IF(AND(H12>Experiencia1,H12<=Experiencia2),Puntajes!$D$5,IF(AND(H12>Experiencia2,H12<=Experiencia3),Puntajes!$D$6,IF(H12>Experiencia3,Puntajes!$D$7,0))))) -> 
C13: =+'Capacidad Financiera'!B16 ->  | D13: =IF(ISERROR(VLOOKUP(C13,'Capacidad Financiera'!$B$12:$X$62720,2,0)),"",VLOOKUP(C13,'Capacidad Financiera'!$B$12:$X$3580,2,0)) -> 0 | E13: =IF(ISERROR(VLOOKUP(C13,'Capacidad Financiera'!$B$12:$X$62720,3,0)),"",VLOOKUP(C13,'Capacidad Financiera'!$B$12:$X$62720,3,0)) -> 0 | G13: =IF(OR(D13="",E13="",F13=""),"",IF(C13<>"",IF(ISERROR(VLOOKUP($A$10,POA!$A$2:$D$25,2,0)),"",VLOOKUP($A$10,POA!$A$2:$D$25,2,0)),"")) ->  | I13: =IF(OR(D13="",E13="",F13=""),"",IF(AND(H13>0,H13<=Experiencia1),Puntajes!$D$4,IF(AND(H13>Experiencia1,H13<=Experiencia2),Puntajes!$D$5,IF(AND(H13>Experiencia2,H13<=Experiencia3),Puntajes!$D$6,IF(H13>Experiencia3,Puntajes!$D$7,0))))) -> 
C14: =+'Capacidad Financiera'!B17 ->  | D14: =IF(ISERROR(VLOOKUP(C14,'Capacidad Financiera'!$B$12:$X$62720,2,0)),"",VLOOKUP(C14,'Capacidad Financiera'!$B$12:$X$3580,2,0)) -> 0 | E14: =IF(ISERROR(VLOOKUP(C14,'Capacidad Financiera'!$B$12:$X$62720,3,0)),"",VLOOKUP(C14,'Capacidad Financiera'!$B$12:$X$62720,3,0)) -> 0 | G14: =IF(OR(D14="",E14="",F14=""),"",IF(C14<>"",IF(ISERROR(VLOOKUP($A$10,POA!$A$2:$D$25,2,0)),"",VLOOKUP($A$10,POA!$A$2:$D$25,2,0)),"")) ->  | I14: =IF(OR(D14="",E14="",F14=""),"",IF(AND(H14>0,H14<=Experiencia1),Puntajes!$D$4,IF(AND(H14>Experiencia1,H14<=Experiencia2),Puntajes!$D$5,IF(AND(H14>Experiencia2,H14<=Experiencia3),Puntajes!$D$6,IF(H14>Experiencia3,Puntajes!$D$7,0))))) -> 
C15: =+'Capacidad Financiera'!B18 ->  | D15: =IF(ISERROR(VLOOKUP(C15,'Capacidad Financiera'!$B$12:$X$62720,2,0)),"",VLOOKUP(C15,'Capacidad Financiera'!$B$12:$X$3580,2,0)) -> 0 | E15: =IF(ISERROR(VLOOKUP(C15,'Capacidad Financiera'!$B$12:$X$62720,3,0)),"",VLOOKUP(C15,'Capacidad Financiera'!$B$12:$X$62720,3,0)) -> 0 | G15: =IF(OR(D15="",E15="",F15=""),"",IF(C15<>"",IF(ISERROR(VLOOKUP($A$10,POA!$A$2:$D$25,2,0)),"",VLOOKUP($A$10,POA!$A$2:$D$25,2,0)),"")) ->  | I15: =IF(OR(D15="",E15="",F15=""),"",IF(AND(H15>0,H15<=Experiencia1),Puntajes!$D$4,IF(AND(H15>Experiencia1,H15<=Experiencia2),Puntajes!$D$5,IF(AND(H15>Experiencia2,H15<=Experiencia3),Puntajes!$D$6,IF(H15>Experiencia3,Puntajes!$D$7,0))))) -> 
C16: =+'Capacidad Financiera'!B19 ->  | D16: =IF(ISERROR(VLOOKUP(C16,'Capacidad Financiera'!$B$12:$X$62720,2,0)),"",VLOOKUP(C16,'Capacidad Financiera'!$B$12:$X$3580,2,0)) -> 0 | E16: =IF(ISERROR(VLOOKUP(C16,'Capacidad Financiera'!$B$12:$X$62720,3,0)),"",VLOOKUP(C16,'Capacidad Financiera'!$B$12:$X$62720,3,0)) -> 0 | G16: =IF(OR(D16="",E16="",F16=""),"",IF(C16<>"",IF(ISERROR(VLOOKUP($A$10,POA!$A$2:$D$25,2,0)),"",VLOOKUP($A$10,POA!$A$2:$D$25,2,0)),"")) ->  | I16: =IF(OR(D16="",E16="",F16=""),"",IF(AND(H16>0,H16<=Experiencia1),Puntajes!$D$4,IF(AND(H16>Experiencia1,H16<=Experiencia2),Puntajes!$D$5,IF(AND(H16>Experiencia2,H16<=Experiencia3),Puntajes!$D$6,IF(H16>Experiencia3,Puntajes!$D$7,0))))) -> 
C17: =+'Capacidad Financiera'!B20 ->  | D17: =IF(ISERROR(VLOOKUP(C17,'Capacidad Financiera'!$B$12:$X$62720,2,0)),"",VLOOKUP(C17,'Capacidad Financiera'!$B$12:$X$3580,2,0)) -> 0 | E17: =IF(ISERROR(VLOOKUP(C17,'Capacidad Financiera'!$B$12:$X$62720,3,0)),"",VLOOKUP(C17,'Capacidad Financiera'!$B$12:$X$62720,3,0)) -> 0 | G17: =IF(OR(D17="",E17="",F17=""),"",IF(C17<>"",IF(ISERROR(VLOOKUP($A$10,POA!$A$2:$D$25,2,0)),"",VLOOKUP($A$10,POA!$A$2:$D$25,2,0)),"")) ->  | I17: =IF(OR(D17="",E17="",F17=""),"",IF(AND(H17>0,H17<=Experiencia1),Puntajes!$D$4,IF(AND(H17>Experiencia1,H17<=Experiencia2),Puntajes!$D$5,IF(AND(H17>Experiencia2,H17<=Experiencia3),Puntajes!$D$6,IF(H17>Experiencia3,Puntajes!$D$7,0))))) -> 
C18: =+'Capacidad Financiera'!B21 ->  | D18: =IF(ISERROR(VLOOKUP(C18,'Capacidad Financiera'!$B$12:$X$62720,2,0)),"",VLOOKUP(C18,'Capacidad Financiera'!$B$12:$X$3580,2,0)) -> 0 | E18: =IF(ISERROR(VLOOKUP(C18,'Capacidad Financiera'!$B$12:$X$62720,3,0)),"",VLOOKUP(C18,'Capacidad Financiera'!$B$12:$X$62720,3,0)) -> 0 | G18: =IF(OR(D18="",E18="",F18=""),"",IF(C18<>"",IF(ISERROR(VLOOKUP($A$10,POA!$A$2:$D$25,2,0)),"",VLOOKUP($A$10,POA!$A$2:$D$25,2,0)),"")) ->  | I18: =IF(OR(D18="",E18="",F18=""),"",IF(AND(H18>0,H18<=Experiencia1),Puntajes!$D$4,IF(AND(H18>Experiencia1,H18<=Experiencia2),Puntajes!$D$5,IF(AND(H18>Experiencia2,H18<=Experiencia3),Puntajes!$D$6,IF(H18>Experiencia3,Puntajes!$D$7,0))))) -> 
C19: =+'Capacidad Financiera'!B22 ->  | D19: =IF(ISERROR(VLOOKUP(C19,'Capacidad Financiera'!$B$12:$X$62720,2,0)),"",VLOOKUP(C19,'Capacidad Financiera'!$B$12:$X$3580,2,0)) -> 0 | E19: =IF(ISERROR(VLOOKUP(C19,'Capacidad Financiera'!$B$12:$X$62720,3,0)),"",VLOOKUP(C19,'Capacidad Financiera'!$B$12:$X$62720,3,0)) -> 0 | G19: =IF(OR(D19="",E19="",F19=""),"",IF(C19<>"",IF(ISERROR(VLOOKUP($A$10,POA!$A$2:$D$25,2,0)),"",VLOOKUP($A$10,POA!$A$2:$D$25,2,0)),"")) ->  | I19: =IF(OR(D19="",E19="",F19=""),"",IF(AND(H19>0,H19<=Experiencia1),Puntajes!$D$4,IF(AND(H19>Experiencia1,H19<=Experiencia2),Puntajes!$D$5,IF(AND(H19>Experiencia2,H19<=Experiencia3),Puntajes!$D$6,IF(H19>Experiencia3,Puntajes!$D$7,0))))) -> 
C20: 2 | D20: =IF(ISERROR(VLOOKUP(C20,'Capacidad Financiera'!$B$12:$X$62720,2,0)),"",VLOOKUP(C20,'Capacidad Financiera'!$B$12:$X$3580,2,0)) -> CONSORCIO VIC DROMOS | E20: =IF(ISERROR(VLOOKUP(C20,'Capacidad Financiera'!$B$12:$X$62720,3,0)),"",VLOOKUP(C20,'Capacidad Financiera'!$B$12:$X$62720,3,0)) -> 1 | G20: =IF(OR(D20="",E20="",F20=""),"",IF(C21="",IF(C20<>"",IF(ISERROR(VLOOKUP($A$10,POA!$A$2:$D$25,2,0)),"",VLOOKUP($A$10,POA!$A$2:$D$25,2,0)),""),"")) ->  | H20: =IF(OR(D20="",E20="",F20=""),"",IF(C21="",IF(C20<>"",F20/G20,""),"")) ->  | I20: =IF(C21="",IF(F20="","",IF(AND(H20>0,H20<=Experiencia1),Puntajes!$D$4,IF(AND(H20>Experiencia1,H20<=Experiencia2),Puntajes!$D$5,IF(AND(H20>Experiencia2,H20<=Experiencia3),Puntajes!$D$6,IF(H20>Experiencia3,Puntajes!$D$7,0))))),"") -> 
C21: =+'Capacidad Financiera'!B24 -> 2.1 | D21: =IF(ISERROR(VLOOKUP(C21,'Capacidad Financiera'!$B$12:$X$62720,2,0)),"",VLOOKUP(C21,'Capacidad Financiera'!$B$12:$X$3580,2,0)) -> VIC S.A.S. | E21: =IF(ISERROR(VLOOKUP(C21,'Capacidad Financiera'!$B$12:$X$62720,3,0)),"",VLOOKUP(C21,'Capacidad Financiera'!$B$12:$X$62720,3,0)) -> 0.5 | F21: 4.45289533e+10 | G21: =IF(OR(D21="",E21="",F21=""),"",IF(C21<>"",IF(ISERROR(VLOOKUP($A$10,POA!$A$2:$D$25,2,0)),"",VLOOKUP($A$10,POA!$A$2:$D$25,2,0)),"")) -> 4167150295 | H21: =IF(OR(D21="",E21="",F21=""),"",IF(C21<>"",F21/(G21*E21),"")) -> 21.37141699 | I21: =IF(OR(D21="",E21="",F21=""),"",IF(AND(H21>0,H21<=Experiencia1),Puntajes!$D$4,IF(AND(H21>Experiencia1,H21<=Experiencia2),Puntajes!$D$5,IF(AND(H21>Experiencia2,H21<=Experiencia3),Puntajes!$D$6,IF(H21>Experiencia3,Puntajes!$D$7,0))))) -> 120
C22: =+'Capacidad Financiera'!B25 -> 2.2 | D22: =IF(ISERROR(VLOOKUP(C22,'Capacidad Financiera'!$B$12:$X$62720,2,0)),"",VLOOKUP(C22,'Capacidad Financiera'!$B$12:$X$3580,2,0)) -> DROMOS PAVIMENTOS S.A. | E22: =IF(ISERROR(VLOOKUP(C22,'Capacidad Financiera'!$B$12:$X$62720,3,0)),"",VLOOKUP(C22,'Capacidad Financiera'!$B$12:$X$62720,3,0)) -> 0.5 | F22: 154587137360 | G22: =IF(OR(D22="",E22="",F22=""),"",IF(C22<>"",IF(ISERROR(VLOOKUP($A$10,POA!$A$2:$D$25,2,0)),"",VLOOKUP($A$10,POA!$A$2:$D$25,2,0)),"")) -> 4167150295 | H22: =IF(OR(D22="",E22="",F22=""),"",IF(C22<>"",F22/(G22*E22),"")) -> 74.19321427 | I22: =IF(OR(D22="",E22="",F22=""),"",IF(AND(H22>0,H22<=Experiencia1),Puntajes!$D$4,IF(AND(H22>Experiencia1,H22<=Experiencia2),Puntajes!$D$5,IF(AND(H22>Experiencia2,H22<=Experiencia3),Puntajes!$D$6,IF(H22>Experiencia3,Puntajes!$D$7,0))))) -> 120
C23: =+'Capacidad Financiera'!B26 ->  | D23: =IF(ISERROR(VLOOKUP(C23,'Capacidad Financiera'!$B$12:$X$62720,2,0)),"",VLOOKUP(C23,'Capacidad Financiera'!$B$12:$X$3580,2,0)) -> 0 | E23: =IF(ISERROR(VLOOKUP(C23,'Capacidad Financiera'!$B$12:$X$62720,3,0)),"",VLOOKUP(C23,'Capacidad Financiera'!$B$12:$X$62720,3,0)) -> 0 | G23: =IF(OR(D23="",E23="",F23=""),"",IF(C23<>"",IF(ISERROR(VLOOKUP($A$10,POA!$A$2:$D$25,2,0)),"",VLOOKUP($A$10,POA!$A$2:$D$25,2,0)),"")) ->  | I23: =IF(OR(D23="",E23="",F23=""),"",IF(AND(H23>0,H23<=Experiencia1),Puntajes!$D$4,IF(AND(H23>Experiencia1,H23<=Experiencia2),Puntajes!$D$5,IF(AND(H23>Experiencia2,H23<=Experiencia3),Puntajes!$D$6,IF(H23>Experiencia3,Puntajes!$D$7,0))))) -> 
C24: =+'Capacidad Financiera'!B27 ->  | D24: =IF(ISERROR(VLOOKUP(C24,'Capacidad Financiera'!$B$12:$X$62720,2,0)),"",VLOOKUP(C24,'Capacidad Financiera'!$B$12:$X$3580,2,0)) -> 0 | E24: =IF(ISERROR(VLOOKUP(C24,'Capacidad Financiera'!$B$12:$X$62720,3,0)),"",VLOOKUP(C24,'Capacidad Financiera'!$B$12:$X$62720,3,0)) -> 0 | G24: =IF(OR(D24="",E24="",F24=""),"",IF(C24<>"",IF(ISERROR(VLOOKUP($A$10,POA!$A$2:$D$25,2,0)),"",VLOOKUP($A$10,POA!$A$2:$D$25,2,0)),"")) ->  | I24: =IF(OR(D24="",E24="",F24=""),"",IF(AND(H24>0,H24<=Experiencia1),Puntajes!$D$4,IF(AND(H24>Experiencia1,H24<=Experiencia2),Puntajes!$D$5,IF(AND(H24>Experiencia2,H24<=Experiencia3),Puntajes!$D$6,IF(H24>Experiencia3,Puntajes!$D$7,0))))) -> 
C25: =+'Capacidad Financiera'!B28 ->  | D25: =IF(ISERROR(VLOOKUP(C25,'Capacidad Financiera'!$B$12:$X$62720,2,0)),"",VLOOKUP(C25,'Capacidad Financiera'!$B$12:$X$3580,2,0)) -> 0 | E25: =IF(ISERROR(VLOOKUP(C25,'Capacidad Financiera'!$B$12:$X$62720,3,0)),"",VLOOKUP(C25,'Capacidad Financiera'!$B$12:$X$62720,3,0)) -> 0 | G25: =IF(OR(D25="",E25="",F25=""),"",IF(C25<>"",IF(ISERROR(VLOOKUP($A$10,POA!$A$2:$D$25,2,0)),"",VLOOKUP($A$10,POA!$A$2:$D$25,2,0)),"")) ->  | I25: =IF(OR(D25="",E25="",F25=""),"",IF(AND(H25>0,H25<=Experiencia1),Puntajes!$D$4,IF(AND(H25>Experiencia1,H25<=Experiencia2),Puntajes!$D$5,IF(AND(H25>Experiencia2,H25<=Experiencia3),Puntajes!$D$6,IF(H25>Experiencia3,Puntajes!$D$7,0))))) -> 
C26: =+'Capacidad Financiera'!B29 ->  | D26: =IF(ISERROR(VLOOKUP(C26,'Capacidad Financiera'!$B$12:$X$62720,2,0)),"",VLOOKUP(C26,'Capacidad Financiera'!$B$12:$X$3580,2,0)) -> 0 | E26: =IF(ISERROR(VLOOKUP(C26,'Capacidad Financiera'!$B$12:$X$62720,3,0)),"",VLOOKUP(C26,'Capacidad Financiera'!$B$12:$X$62720,3,0)) -> 0 | G26: =IF(OR(D26="",E26="",F26=""),"",IF(C26<>"",IF(ISERROR(VLOOKUP($A$10,POA!$A$2:$D$25,2,0)),"",VLOOKUP($A$10,POA!$A$2:$D$25,2,0)),"")) ->  | I26: =IF(OR(D26="",E26="",F26=""),"",IF(AND(H26>0,H26<=Experiencia1),Puntajes!$D$4,IF(AND(H26>Experiencia1,H26<=Experiencia2),Puntajes!$D$5,IF(AND(H26>Experiencia2,H26<=Experiencia3),Puntajes!$D$6,IF(H26>Experiencia3,Puntajes!$D$7,0))))) -> 
C27: =+'Capacidad Financiera'!B30 ->  | D27: =IF(ISERROR(VLOOKUP(C27,'Capacidad Financiera'!$B$12:$X$62720,2,0)),"",VLOOKUP(C27,'Capacidad Financiera'!$B$12:$X$3580,2,0)) -> 0 | E27: =IF(ISERROR(VLOOKUP(C27,'Capacidad Financiera'!$B$12:$X$62720,3,0)),"",VLOOKUP(C27,'Capacidad Financiera'!$B$12:$X$62720,3,0)) -> 0 | G27: =IF(OR(D27="",E27="",F27=""),"",IF(C27<>"",IF(ISERROR(VLOOKUP($A$10,POA!$A$2:$D$25,2,0)),"",VLOOKUP($A$10,POA!$A$2:$D$25,2,0)),"")) ->  | I27: =IF(OR(D27="",E27="",F27=""),"",IF(AND(H27>0,H27<=Experiencia1),Puntajes!$D$4,IF(AND(H27>Experiencia1,H27<=Experiencia2),Puntajes!$D$5,IF(AND(H27>Experiencia2,H27<=Experiencia3),Puntajes!$D$6,IF(H27>Experiencia3,Puntajes!$D$7,0))))) -> 
C28: =+'Capacidad Financiera'!B31 ->  | D28: =IF(ISERROR(VLOOKUP(C28,'Capacidad Financiera'!$B$12:$X$62720,2,0)),"",VLOOKUP(C28,'Capacidad Financiera'!$B$12:$X$3580,2,0)) -> 0 | E28: =IF(ISERROR(VLOOKUP(C28,'Capacidad Financiera'!$B$12:$X$62720,3,0)),"",VLOOKUP(C28,'Capacidad Financiera'!$B$12:$X$62720,3,0)) -> 0 | G28: =IF(OR(D28="",E28="",F28=""),"",IF(C28<>"",IF(ISERROR(VLOOKUP($A$10,POA!$A$2:$D$25,2,0)),"",VLOOKUP($A$10,POA!$A$2:$D$25,2,0)),"")) ->  | I28: =IF(OR(D28="",E28="",F28=""),"",IF(AND(H28>0,H28<=Experiencia1),Puntajes!$D$4,IF(AND(H28>Experiencia1,H28<=Experiencia2),Puntajes!$D$5,IF(AND(H28>Experiencia2,H28<=Experiencia3),Puntajes!$D$6,IF(H28>Experiencia3,Puntajes!$D$7,0))))) -> 
C29: =+'Capacidad Financiera'!B32 ->  | D29: =IF(ISERROR(VLOOKUP(C29,'Capacidad Financiera'!$B$12:$X$62720,2,0)),"",VLOOKUP(C29,'Capacidad Financiera'!$B$12:$X$3580,2,0)) -> 0 | E29: =IF(ISERROR(VLOOKUP(C29,'Capacidad Financiera'!$B$12:$X$62720,3,0)),"",VLOOKUP(C29,'Capacidad Financiera'!$B$12:$X$62720,3,0)) -> 0 | G29: =IF(OR(D29="",E29="",F29=""),"",IF(C29<>"",IF(ISERROR(VLOOKUP($A$10,POA!$A$2:$D$25,2,0)),"",VLOOKUP($A$10,POA!$A$2:$D$25,2,0)),"")) ->  | I29: =IF(OR(D29="",E29="",F29=""),"",IF(AND(H29>0,H29<=Experiencia1),Puntajes!$D$4,IF(AND(H29>Experiencia1,H29<=Experiencia2),Puntajes!$D$5,IF(AND(H29>Experiencia2,H29<=Experiencia3),Puntajes!$D$6,IF(H29>Experiencia3,Puntajes!$D$7,0))))) -> 
C30: =+'Capacidad Financiera'!B33 ->  | D30: =IF(ISERROR(VLOOKUP(C30,'Capacidad Financiera'!$B$12:$X$62720,2,0)),"",VLOOKUP(C30,'Capacidad Financiera'!$B$12:$X$3580,2,0)) -> 0 | E30: =IF(ISERROR(VLOOKUP(C30,'Capacidad Financiera'!$B$12:$X$62720,3,0)),"",VLOOKUP(C30,'Capacidad Financiera'!$B$12:$X$62720,3,0)) -> 0 | G30: =IF(OR(D30="",E30="",F30=""),"",IF(C30<>"",IF(ISERROR(VLOOKUP($A$10,POA!$A$2:$D$25,2,0)),"",VLOOKUP($A$10,POA!$A$2:$D$25,2,0)),"")) ->  | I30: =IF(OR(D30="",E30="",F30=""),"",IF(AND(H30>0,H30<=Experiencia1),Puntajes!$D$4,IF(AND(H30>Experiencia1,H30<=Experiencia2),Puntajes!$D$5,IF(AND(H30>Experiencia2,H30<=Experiencia3),Puntajes!$D$6,IF(H30>Experiencia3,Puntajes!$D$7,0))))) -> 
C31: 3 | D31: =IF(ISERROR(VLOOKUP(C31,'Capacidad Financiera'!$B$12:$X$62720,2,0)),"",VLOOKUP(C31,'Capacidad Financiera'!$B$12:$X$3580,2,0)) -> EQUIPOS CONSTRUCCIONES Y OBRAS S.A. | E31: =IF(ISERROR(VLOOKUP(C31,'Capacidad Financiera'!$B$12:$X$62720,3,0)),"",VLOOKUP(C31,'Capacidad Financiera'!$B$12:$X$62720,3,0)) -> 1 | G31: =IF(OR(D31="",E31="",F31=""),"",IF(C32="",IF(C31<>"",IF(ISERROR(VLOOKUP($A$10,POA!$A$2:$D$25,2,0)),"",VLOOKUP($A$10,POA!$A$2:$D$25,2,0)),""),"")) ->  | H31: =IF(OR(D31="",E31="",F31=""),"",IF(C32="",IF(C31<>"",F31/G31,""),"")) ->  | I31: =IF(C32="",IF(F31="","",IF(AND(H31>0,H31<=Experiencia1),Puntajes!$D$4,IF(AND(H31>Experiencia1,H31<=Experiencia2),Puntajes!$D$5,IF(AND(H31>Experiencia2,H31<=Experiencia3),Puntajes!$D$6,IF(H31>Experiencia3,Puntajes!$D$7,0))))),"") -> 
A32: req.nuevo anexo 1-a | C32: =+'Capacidad Financiera'!B35 -> 3.1 | D32: =IF(ISERROR(VLOOKUP(C32,'Capacidad Financiera'!$B$12:$X$62720,2,0)),"",VLOOKUP(C32,'Capacidad Financiera'!$B$12:$X$3580,2,0)) -> EQUIPOS CONSTRUCCIONES Y OBRAS S.A. | E32: =IF(ISERROR(VLOOKUP(C32,'Capacidad Financiera'!$B$12:$X$62720,3,0)),"",VLOOKUP(C32,'Capacidad Financiera'!$B$12:$X$62720,3,0)) -> 1 | F32: 117103540400 | G32: =IF(OR(D32="",E32="",F32=""),"",IF(C32<>"",IF(ISERROR(VLOOKUP($A$10,POA!$A$2:$D$25,2,0)),"",VLOOKUP($A$10,POA!$A$2:$D$25,2,0)),"")) -> 4167150295 | H32: =IF(OR(D32="",E32="",F32=""),"",IF(C32<>"",F32/(G32*E32),"")) -> 28.10158792 | I32: =IF(OR(D32="",E32="",F32=""),"",IF(AND(H32>0,H32<=Experiencia1),Puntajes!$D$4,IF(AND(H32>Experiencia1,H32<=Experiencia2),Puntajes!$D$5,IF(AND(H32>Experiencia2,H32<=Experiencia3),Puntajes!$D$6,IF(H32>Experiencia3,Puntajes!$D$7,0))))) -> 120
C33: =+'Capacidad Financiera'!B36 ->  | D33: =IF(ISERROR(VLOOKUP(C33,'Capacidad Financiera'!$B$12:$X$62720,2,0)),"",VLOOKUP(C33,'Capacidad Financiera'!$B$12:$X$3580,2,0)) -> 0 | E33: =IF(ISERROR(VLOOKUP(C33,'Capacidad Financiera'!$B$12:$X$62720,3,0)),"",VLOOKUP(C33,'Capacidad Financiera'!$B$12:$X$62720,3,0)) -> 0 | G33: =IF(OR(D33="",E33="",F33=""),"",IF(C33<>"",IF(ISERROR(VLOOKUP($A$10,POA!$A$2:$D$25,2,0)),"",VLOOKUP($A$10,POA!$A$2:$D$25,2,0)),"")) ->  | H33: =IF(OR(D33="",E33="",F33=""),"",IF(C33<>"",F33/(G33*E33),"")) ->  | I33: =IF(OR(D33="",E33="",F33=""),"",IF(AND(H33>0,H33<=Experiencia1),Puntajes!$D$4,IF(AND(H33>Experiencia1,H33<=Experiencia2),Puntajes!$D$5,IF(AND(H33>Experiencia2,H33<=Experiencia3),Puntajes!$D$6,IF(H33>Experiencia3,Puntajes!$D$7,0))))) -> 
C34: =+'Capacidad Financiera'!B37 ->  | D34: =IF(ISERROR(VLOOKUP(C34,'Capacidad Financiera'!$B$12:$X$62720,2,0)),"",VLOOKUP(C34,'Capacidad Financiera'!$B$12:$X$3580,2,0)) -> 0 | E34: =IF(ISERROR(VLOOKUP(C34,'Capacidad Financiera'!$B$12:$X$62720,3,0)),"",VLOOKUP(C34,'Capacidad Financiera'!$B$12:$X$62720,3,0)) -> 0 | G34: =IF(OR(D34="",E34="",F34=""),"",IF(C34<>"",IF(ISERROR(VLOOKUP($A$10,POA!$A$2:$D$25,2,0)),"",VLOOKUP($A$10,POA!$A$2:$D$25,2,0)),"")) ->  | I34: =IF(OR(D34="",E34="",F34=""),"",IF(AND(H34>0,H34<=Experiencia1),Puntajes!$D$4,IF(AND(H34>Experiencia1,H34<=Experiencia2),Puntajes!$D$5,IF(AND(H34>Experiencia2,H34<=Experiencia3),Puntajes!$D$6,IF(H34>Experiencia3,Puntajes!$D$7,0))))) -> 
C35: =+'Capacidad Financiera'!B38 ->  | D35: =IF(ISERROR(VLOOKUP(C35,'Capacidad Financiera'!$B$12:$X$62720,2,0)),"",VLOOKUP(C35,'Capacidad Financiera'!$B$12:$X$3580,2,0)) -> 0 | E35: =IF(ISERROR(VLOOKUP(C35,'Capacidad Financiera'!$B$12:$X$62720,3,0)),"",VLOOKUP(C35,'Capacidad Financiera'!$B$12:$X$62720,3,0)) -> 0 | G35: =IF(OR(D35="",E35="",F35=""),"",IF(C35<>"",IF(ISERROR(VLOOKUP($A$10,POA!$A$2:$D$25,2,0)),"",VLOOKUP($A$10,POA!$A$2:$D$25,2,0)),"")) ->  | I35: =IF(OR(D35="",E35="",F35=""),"",IF(AND(H35>0,H35<=Experiencia1),Puntajes!$D$4,IF(AND(H35>Experiencia1,H35<=Experiencia2),Puntajes!$D$5,IF(AND(H35>Experiencia2,H35<=Experiencia3),Puntajes!$D$6,IF(H35>Experiencia3,Puntajes!$D$7,0))))) -> 
C36: =+'Capacidad Financiera'!B39 ->  | D36: =IF(ISERROR(VLOOKUP(C36,'Capacidad Financiera'!$B$12:$X$62720,2,0)),"",VLOOKUP(C36,'Capacidad Financiera'!$B$12:$X$3580,2,0)) -> 0 | E36: =IF(ISERROR(VLOOKUP(C36,'Capacidad Financiera'!$B$12:$X$62720,3,0)),"",VLOOKUP(C36,'Capacidad Financiera'!$B$12:$X$62720,3,0)) -> 0 | G36: =IF(OR(D36="",E36="",F36=""),"",IF(C36<>"",IF(ISERROR(VLOOKUP($A$10,POA!$A$2:$D$25,2,0)),"",VLOOKUP($A$10,POA!$A$2:$D$25,2,0)),"")) ->  | I36: =IF(OR(D36="",E36="",F36=""),"",IF(AND(H36>0,H36<=Experiencia1),Puntajes!$D$4,IF(AND(H36>Experiencia1,H36<=Experiencia2),Puntajes!$D$5,IF(AND(H36>Experiencia2,H36<=Experiencia3),Puntajes!$D$6,IF(H36>Experiencia3,Puntajes!$D$7,0))))) -> 
C37: =+'Capacidad Financiera'!B40 ->  | D37: =IF(ISERROR(VLOOKUP(C37,'Capacidad Financiera'!$B$12:$X$62720,2,0)),"",VLOOKUP(C37,'Capacidad Financiera'!$B$12:$X$3580,2,0)) -> 0 | E37: =IF(ISERROR(VLOOKUP(C37,'Capacidad Financiera'!$B$12:$X$62720,3,0)),"",VLOOKUP(C37,'Capacidad Financiera'!$B$12:$X$62720,3,0)) -> 0 | G37: =IF(OR(D37="",E37="",F37=""),"",IF(C37<>"",IF(ISERROR(VLOOKUP($A$10,POA!$A$2:$D$25,2,0)),"",VLOOKUP($A$10,POA!$A$2:$D$25,2,0)),"")) ->  | I37: =IF(OR(D37="",E37="",F37=""),"",IF(AND(H37>0,H37<=Experiencia1),Puntajes!$D$4,IF(AND(H37>Experiencia1,H37<=Experiencia2),Puntajes!$D$5,IF(AND(H37>Experiencia2,H37<=Experiencia3),Puntajes!$D$6,IF(H37>Experiencia3,Puntajes!$D$7,0))))) -> 
C38: =+'Capacidad Financiera'!B41 ->  | D38: =IF(ISERROR(VLOOKUP(C38,'Capacidad Financiera'!$B$12:$X$62720,2,0)),"",VLOOKUP(C38,'Capacidad Financiera'!$B$12:$X$3580,2,0)) -> 0 | E38: =IF(ISERROR(VLOOKUP(C38,'Capacidad Financiera'!$B$12:$X$62720,3,0)),"",VLOOKUP(C38,'Capacidad Financiera'!$B$12:$X$62720,3,0)) -> 0 | G38: =IF(OR(D38="",E38="",F38=""),"",IF(C38<>"",IF(ISERROR(VLOOKUP($A$10,POA!$A$2:$D$25,2,0)),"",VLOOKUP($A$10,POA!$A$2:$D$25,2,0)),"")) ->  | I38: =IF(OR(D38="",E38="",F38=""),"",IF(AND(H38>0,H38<=Experiencia1),Puntajes!$D$4,IF(AND(H38>Experiencia1,H38<=Experiencia2),Puntajes!$D$5,IF(AND(H38>Experiencia2,H38<=Experiencia3),Puntajes!$D$6,IF(H38>Experiencia3,Puntajes!$D$7,0))))) -> 
C39: =+'Capacidad Financiera'!B42 ->  | D39: =IF(ISERROR(VLOOKUP(C39,'Capacidad Financiera'!$B$12:$X$62720,2,0)),"",VLOOKUP(C39,'Capacidad Financiera'!$B$12:$X$3580,2,0)) -> 0 | E39: =IF(ISERROR(VLOOKUP(C39,'Capacidad Financiera'!$B$12:$X$62720,3,0)),"",VLOOKUP(C39,'Capacidad Financiera'!$B$12:$X$62720,3,0)) -> 0 | G39: =IF(OR(D39="",E39="",F39=""),"",IF(C39<>"",IF(ISERROR(VLOOKUP($A$10,POA!$A$2:$D$25,2,0)),"",VLOOKUP($A$10,POA!$A$2:$D$25,2,0)),"")) ->  | I39: =IF(OR(D39="",E39="",F39=""),"",IF(AND(H39>0,H39<=Experiencia1),Puntajes!$D$4,IF(AND(H39>Experiencia1,H39<=Experiencia2),Puntajes!$D$5,IF(AND(H39>Experiencia2,H39<=Experiencia3),Puntajes!$D$6,IF(H39>Experiencia3,Puntajes!$D$7,0))))) -> 
C40: =+'Capacidad Financiera'!B43 ->  | D40: =IF(ISERROR(VLOOKUP(C40,'Capacidad Financiera'!$B$12:$X$62720,2,0)),"",VLOOKUP(C40,'Capacidad Financiera'!$B$12:$X$3580,2,0)) -> 0 | E40: =IF(ISERROR(VLOOKUP(C40,'Capacidad Financiera'!$B$12:$X$62720,3,0)),"",VLOOKUP(C40,'Capacidad Financiera'!$B$12:$X$62720,3,0)) -> 0 | G40: =IF(OR(D40="",E40="",F40=""),"",IF(C40<>"",IF(ISERROR(VLOOKUP($A$10,POA!$A$2:$D$25,2,0)),"",VLOOKUP($A$10,POA!$A$2:$D$25,2,0)),"")) ->  | I40: =IF(OR(D40="",E40="",F40=""),"",IF(AND(H40>0,H40<=Experiencia1),Puntajes!$D$4,IF(AND(H40>Experiencia1,H40<=Experiencia2),Puntajes!$D$5,IF(AND(H40>Experiencia2,H40<=Experiencia3),Puntajes!$D$6,IF(H40>Experiencia3,Puntajes!$D$7,0))))) -> 
C41: =+'Capacidad Financiera'!B44 ->  | D41: =IF(ISERROR(VLOOKUP(C41,'Capacidad Financiera'!$B$12:$X$62720,2,0)),"",VLOOKUP(C41,'Capacidad Financiera'!$B$12:$X$3580,2,0)) -> 0 | E41: =IF(ISERROR(VLOOKUP(C41,'Capacidad Financiera'!$B$12:$X$62720,3,0)),"",VLOOKUP(C41,'Capacidad Financiera'!$B$12:$X$62720,3,0)) -> 0 | G41: =IF(OR(D41="",E41="",F41=""),"",IF(C41<>"",IF(ISERROR(VLOOKUP($A$10,POA!$A$2:$D$25,2,0)),"",VLOOKUP($A$10,POA!$A$2:$D$25,2,0)),"")) ->  | I41: =IF(OR(D41="",E41="",F41=""),"",IF(AND(H41>0,H41<=Experiencia1),Puntajes!$D$4,IF(AND(H41>Experiencia1,H41<=Experiencia2),Puntajes!$D$5,IF(AND(H41>Experiencia2,H41<=Experiencia3),Puntajes!$D$6,IF(H41>Experiencia3,Puntajes!$D$7,0))))) -> 
C42: 4 | D42: =IF(ISERROR(VLOOKUP(C42,'Capacidad Financiera'!$B$12:$X$62720,2,0)),"",VLOOKUP(C42,'Capacidad Financiera'!$B$12:$X$3580,2,0)) -> CONSORCIO IPV | E42: =IF(ISERROR(VLOOKUP(C42,'Capacidad Financiera'!$B$12:$X$62720,3,0)),"",VLOOKUP(C42,'Capacidad Financiera'!$B$12:$X$62720,3,0)) -> 1 | G42: =IF(OR(D42="",E42="",F42=""),"",IF(C43="",IF(C42<>"",IF(ISERROR(VLOOKUP($A$10,POA!$A$2:$D$25,2,0)),"",VLOOKUP($A$10,POA!$A$2:$D$25,2,0)),""),"")) ->  | H42: =IF(OR(D42="",E42="",F42=""),"",IF(C43="",IF(C42<>"",F42/G42,""),"")) ->  | I42: =IF(C43="",IF(F42="","",IF(AND(H42>0,H42<=Experiencia1),Puntajes!$D$4,IF(AND(H42>Experiencia1,H42<=Experiencia2),Puntajes!$D$5,IF(AND(H42>Experiencia2,H42<=Experiencia3),Puntajes!$D$6,IF(H42>Experiencia3,Puntajes!$D$7,0))))),"") -> 
C43: =+'Capacidad Financiera'!B46 -> 4.1 | D43: =IF(ISERROR(VLOOKUP(C43,'Capacidad Financiera'!$B$12:$X$62720,2,0)),"",VLOOKUP(C43,'Capacidad Financiera'!$B$12:$X$3580,2,0)) -> INGENIERIA DE PUENTES Y VIAS S.A.S. | E43: =IF(ISERROR(VLOOKUP(C43,'Capacidad Financiera'!$B$12:$X$62720,3,0)),"",VLOOKUP(C43,'Capacidad Financiera'!$B$12:$X$62720,3,0)) -> 0.3 | F43: 2.397095603e+10 | G43: =IF(OR(D43="",E43="",F43=""),"",IF(C43<>"",IF(ISERROR(VLOOKUP($A$10,POA!$A$2:$D$25,2,0)),"",VLOOKUP($A$10,POA!$A$2:$D$25,2,0)),"")) -> 4167150295 | H43: =IF(OR(D43="",E43="",F43=""),"",IF(C43<>"",F43/(G43*E43),"")) -> 19.17453922 | I43: =IF(OR(D43="",E43="",F43=""),"",IF(AND(H43>0,H43<=Experiencia1),Puntajes!$D$4,IF(AND(H43>Experiencia1,H43<=Experiencia2),Puntajes!$D$5,IF(AND(H43>Experiencia2,H43<=Experiencia3),Puntajes!$D$6,IF(H43>Experiencia3,Puntajes!$D$7,0))))) -> 120
C44: =+'Capacidad Financiera'!B47 -> 4.2 | D44: =IF(ISERROR(VLOOKUP(C44,'Capacidad Financiera'!$B$12:$X$62720,2,0)),"",VLOOKUP(C44,'Capacidad Financiera'!$B$12:$X$3580,2,0)) -> RENAN CARDOZO CARDOZO | E44: =IF(ISERROR(VLOOKUP(C44,'Capacidad Financiera'!$B$12:$X$62720,3,0)),"",VLOOKUP(C44,'Capacidad Financiera'!$B$12:$X$62720,3,0)) -> 0.2 | F44: 2.325457816e+10 | G44: =IF(OR(D44="",E44="",F44=""),"",IF(C44<>"",IF(ISERROR(VLOOKUP($A$10,POA!$A$2:$D$25,2,0)),"",VLOOKUP($A$10,POA!$A$2:$D$25,2,0)),"")) -> 4167150295 | H44: =IF(OR(D44="",E44="",F44=""),"",IF(C44<>"",F44/(G44*E44),"")) -> 27.90225515 | I44: =IF(OR(D44="",E44="",F44=""),"",IF(AND(H44>0,H44<=Experiencia1),Puntajes!$D$4,IF(AND(H44>Experiencia1,H44<=Experiencia2),Puntajes!$D$5,IF(AND(H44>Experiencia2,H44<=Experiencia3),Puntajes!$D$6,IF(H44>Experiencia3,Puntajes!$D$7,0))))) -> 120
C45: =+'Capacidad Financiera'!B48 -> 4.3 | D45: =IF(ISERROR(VLOOKUP(C45,'Capacidad Financiera'!$B$12:$X$62720,2,0)),"",VLOOKUP(C45,'Capacidad Financiera'!$B$12:$X$3580,2,0)) -> OMAR CARDOZO CARDOZO | E45: =IF(ISERROR(VLOOKUP(C45,'Capacidad Financiera'!$B$12:$X$62720,3,0)),"",VLOOKUP(C45,'Capacidad Financiera'!$B$12:$X$62720,3,0)) -> 0.2 | F45: 1201911234 | G45: =IF(OR(D45="",E45="",F45=""),"",IF(C45<>"",IF(ISERROR(VLOOKUP($A$10,POA!$A$2:$D$25,2,0)),"",VLOOKUP($A$10,POA!$A$2:$D$25,2,0)),"")) -> 4167150295 | H45: 1.442126092 | I45: =IF(OR(D45="",E45="",F45=""),"",IF(AND(H45>0,H45<=Experiencia1),Puntajes!$D$4,IF(AND(H45>Experiencia1,H45<=Experiencia2),Puntajes!$D$5,IF(AND(H45>Experiencia2,H45<=Experiencia3),Puntajes!$D$6,IF(H45>Experiencia3,Puntajes!$D$7,0))))) -> 60
C46: =+'Capacidad Financiera'!B49 -> 4.4 | D46: =IF(ISERROR(VLOOKUP(C46,'Capacidad Financiera'!$B$12:$X$62720,2,0)),"",VLOOKUP(C46,'Capacidad Financiera'!$B$12:$X$3580,2,0)) -> LUIS MORENO RUBIO | E46: =IF(ISERROR(VLOOKUP(C46,'Capacidad Financiera'!$B$12:$X$62720,3,0)),"",VLOOKUP(C46,'Capacidad Financiera'!$B$12:$X$62720,3,0)) -> 0.3 | F46: 2.207268715e+10 | G46: =IF(OR(D46="",E46="",F46=""),"",IF(C46<>"",IF(ISERROR(VLOOKUP($A$10,POA!$A$2:$D$25,2,0)),"",VLOOKUP($A$10,POA!$A$2:$D$25,2,0)),"")) -> 4167150295 | H46: 17.65610036 | I46: =IF(OR(D46="",E46="",F46=""),"",IF(AND(H46>0,H46<=Experiencia1),Puntajes!$D$4,IF(AND(H46>Experiencia1,H46<=Experiencia2),Puntajes!$D$5,IF(AND(H46>Experiencia2,H46<=Experiencia3),Puntajes!$D$6,IF(H46>Experiencia3,Puntajes!$D$7,0))))) -> 120
C47: =+'Capacidad Financiera'!B50 ->  | D47: =IF(ISERROR(VLOOKUP(C47,'Capacidad Financiera'!$B$12:$X$62720,2,0)),"",VLOOKUP(C47,'Capacidad Financiera'!$B$12:$X$3580,2,0)) -> 0 | E47: =IF(ISERROR(VLOOKUP(C47,'Capacidad Financiera'!$B$12:$X$62720,3,0)),"",VLOOKUP(C47,'Capacidad Financiera'!$B$12:$X$62720,3,0)) -> 0 | G47: =IF(OR(D47="",E47="",F47=""),"",IF(C47<>"",IF(ISERROR(VLOOKUP($A$10,POA!$A$2:$D$25,2,0)),"",VLOOKUP($A$10,POA!$A$2:$D$25,2,0)),"")) ->  | I47: =IF(OR(D47="",E47="",F47=""),"",IF(AND(H47>0,H47<=Experiencia1),Puntajes!$D$4,IF(AND(H47>Experiencia1,H47<=Experiencia2),Puntajes!$D$5,IF(AND(H47>Experiencia2,H47<=Experiencia3),Puntajes!$D$6,IF(H47>Experiencia3,Puntajes!$D$7,0))))) -> 
C48: =+'Capacidad Financiera'!B51 ->  | D48: =IF(ISERROR(VLOOKUP(C48,'Capacidad Financiera'!$B$12:$X$62720,2,0)),"",VLOOKUP(C48,'Capacidad Financiera'!$B$12:$X$3580,2,0)) -> 0 | E48: =IF(ISERROR(VLOOKUP(C48,'Capacidad Financiera'!$B$12:$X$62720,3,0)),"",VLOOKUP(C48,'Capacidad Financiera'!$B$12:$X$62720,3,0)) -> 0 | G48: =IF(OR(D48="",E48="",F48=""),"",IF(C48<>"",IF(ISERROR(VLOOKUP($A$10,POA!$A$2:$D$25,2,0)),"",VLOOKUP($A$10,POA!$A$2:$D$25,2,0)),"")) ->  | I48: =IF(OR(D48="",E48="",F48=""),"",IF(AND(H48>0,H48<=Experiencia1),Puntajes!$D$4,IF(AND(H48>Experiencia1,H48<=Experiencia2),Puntajes!$D$5,IF(AND(H48>Experiencia2,H48<=Experiencia3),Puntajes!$D$6,IF(H48>Experiencia3,Puntajes!$D$7,0))))) -> 
C49: =+'Capacidad Financiera'!B52 ->  | D49: =IF(ISERROR(VLOOKUP(C49,'Capacidad Financiera'!$B$12:$X$62720,2,0)),"",VLOOKUP(C49,'Capacidad Financiera'!$B$12:$X$3580,2,0)) -> 0 | E49: =IF(ISERROR(VLOOKUP(C49,'Capacidad Financiera'!$B$12:$X$62720,3,0)),"",VLOOKUP(C49,'Capacidad Financiera'!$B$12:$X$62720,3,0)) -> 0 | G49: =IF(OR(D49="",E49="",F49=""),"",IF(C49<>"",IF(ISERROR(VLOOKUP($A$10,POA!$A$2:$D$25,2,0)),"",VLOOKUP($A$10,POA!$A$2:$D$25,2,0)),"")) ->  | I49: =IF(OR(D49="",E49="",F49=""),"",IF(AND(H49>0,H49<=Experiencia1),Puntajes!$D$4,IF(AND(H49>Experiencia1,H49<=Experiencia2),Puntajes!$D$5,IF(AND(H49>Experiencia2,H49<=Experiencia3),Puntajes!$D$6,IF(H49>Experiencia3,Puntajes!$D$7,0))))) -> 
C50: =+'Capacidad Financiera'!B53 ->  | D50: =IF(ISERROR(VLOOKUP(C50,'Capacidad Financiera'!$B$12:$X$62720,2,0)),"",VLOOKUP(C50,'Capacidad Financiera'!$B$12:$X$3580,2,0)) -> 0 | E50: =IF(ISERROR(VLOOKUP(C50,'Capacidad Financiera'!$B$12:$X$62720,3,0)),"",VLOOKUP(C50,'Capacidad Financiera'!$B$12:$X$62720,3,0)) -> 0 | G50: =IF(OR(D50="",E50="",F50=""),"",IF(C50<>"",IF(ISERROR(VLOOKUP($A$10,POA!$A$2:$D$25,2,0)),"",VLOOKUP($A$10,POA!$A$2:$D$25,2,0)),"")) ->  | I50: =IF(OR(D50="",E50="",F50=""),"",IF(AND(H50>0,H50<=Experiencia1),Puntajes!$D$4,IF(AND(H50>Experiencia1,H50<=Experiencia2),Puntajes!$D$5,IF(AND(H50>Experiencia2,H50<=Experiencia3),Puntajes!$D$6,IF(H50>Experiencia3,Puntajes!$D$7,0))))) -> 
C51: =+'Capacidad Financiera'!B54 ->  | D51: =IF(ISERROR(VLOOKUP(C51,'Capacidad Financiera'!$B$12:$X$62720,2,0)),"",VLOOKUP(C51,'Capacidad Financiera'!$B$12:$X$3580,2,0)) -> 0 | E51: =IF(ISERROR(VLOOKUP(C51,'Capacidad Financiera'!$B$12:$X$62720,3,0)),"",VLOOKUP(C51,'Capacidad Financiera'!$B$12:$X$62720,3,0)) -> 0 | G51: =IF(OR(D51="",E51="",F51=""),"",IF(C51<>"",IF(ISERROR(VLOOKUP($A$10,POA!$A$2:$D$25,2,0)),"",VLOOKUP($A$10,POA!$A$2:$D$25,2,0)),"")) ->  | I51: =IF(OR(D51="",E51="",F51=""),"",IF(AND(H51>0,H51<=Experiencia1),Puntajes!$D$4,IF(AND(H51>Experiencia1,H51<=Experiencia2),Puntajes!$D$5,IF(AND(H51>Experiencia2,H51<=Experiencia3),Puntajes!$D$6,IF(H51>Experiencia3,Puntajes!$D$7,0))))) -> 
C52: =+'Capacidad Financiera'!B55 ->  | D52: =IF(ISERROR(VLOOKUP(C52,'Capacidad Financiera'!$B$12:$X$62720,2,0)),"",VLOOKUP(C52,'Capacidad Financiera'!$B$12:$X$3580,2,0)) -> 0 | E52: =IF(ISERROR(VLOOKUP(C52,'Capacidad Financiera'!$B$12:$X$62720,3,0)),"",VLOOKUP(C52,'Capacidad Financiera'!$B$12:$X$62720,3,0)) -> 0 | G52: =IF(OR(D52="",E52="",F52=""),"",IF(C52<>"",IF(ISERROR(VLOOKUP($A$10,POA!$A$2:$D$25,2,0)),"",VLOOKUP($A$10,POA!$A$2:$D$25,2,0)),"")) ->  | I52: =IF(OR(D52="",E52="",F52=""),"",IF(AND(H52>0,H52<=Experiencia1),Puntajes!$D$4,IF(AND(H52>Experiencia1,H52<=Experiencia2),Puntajes!$D$5,IF(AND(H52>Experiencia2,H52<=Experiencia3),Puntajes!$D$6,IF(H52>Experiencia3,Puntajes!$D$7,0))))) -> 
C53: 5 | D53: =IF(ISERROR(VLOOKUP(C53,'Capacidad Financiera'!$B$12:$X$62720,2,0)),"",VLOOKUP(C53,'Capacidad Financiera'!$B$12:$X$3580,2,0)) -> CONSORCIO VIAS COLOMBIA | E53: =IF(ISERROR(VLOOKUP(C53,'Capacidad Financiera'!$B$12:$X$62720,3,0)),"",VLOOKUP(C53,'Capacidad Financiera'!$B$12:$X$62720,3,0)) -> 1 | G53: =IF(OR(D53="",E53="",F53=""),"",IF(C54="",IF(C53<>"",IF(ISERROR(VLOOKUP($A$10,POA!$A$2:$D$25,2,0)),"",VLOOKUP($A$10,POA!$A$2:$D$25,2,0)),""),"")) ->  | H53: =IF(OR(D53="",E53="",F53=""),"",IF(C54="",IF(C53<>"",F53/G53,""),"")) ->  | I53: =IF(C54="",IF(F53="","",IF(AND(H53>0,H53<=Experiencia1),Puntajes!$D$4,IF(AND(H53>Experiencia1,H53<=Experiencia2),Puntajes!$D$5,IF(AND(H53>Experiencia2,H53<=Experiencia3),Puntajes!$D$6,IF(H53>Experiencia3,Puntajes!$D$7,0))))),"") -> 
C54: =+'Capacidad Financiera'!B57 -> 5.1 | D54: =IF(ISERROR(VLOOKUP(C54,'Capacidad Financiera'!$B$12:$X$62720,2,0)),"",VLOOKUP(C54,'Capacidad Financiera'!$B$12:$X$3580,2,0)) -> JV INGENIERIA Y CONSTRUCCIONES S.A.S. | E54: =IF(ISERROR(VLOOKUP(C54,'Capacidad Financiera'!$B$12:$X$62720,3,0)),"",VLOOKUP(C54,'Capacidad Financiera'!$B$12:$X$62720,3,0)) -> 0.6 | F54: 16071327272 | G54: =IF(OR(D54="",E54="",F54=""),"",IF(C54<>"",IF(ISERROR(VLOOKUP($A$10,POA!$A$2:$D$25,2,0)),"",VLOOKUP($A$10,POA!$A$2:$D$25,2,0)),"")) -> 4167150295 | H54: =IF(OR(D54="",E54="",F54=""),"",IF(C54<>"",F54/(G54*E54),"")) -> 6.427784831 | I54: =IF(OR(D54="",E54="",F54=""),"",IF(AND(H54>0,H54<=Experiencia1),Puntajes!$D$4,IF(AND(H54>Experiencia1,H54<=Experiencia2),Puntajes!$D$5,IF(AND(H54>Experiencia2,H54<=Experiencia3),Puntajes!$D$6,IF(H54>Experiencia3,Puntajes!$D$7,0))))) -> 100
C55: =+'Capacidad Financiera'!B58 -> 5.2 | D55: =IF(ISERROR(VLOOKUP(C55,'Capacidad Financiera'!$B$12:$X$62720,2,0)),"",VLOOKUP(C55,'Capacidad Financiera'!$B$12:$X$3580,2,0)) -> EXCAVACIONES JOBEPA SL SUCURSAL COLOMBIA | E55: =IF(ISERROR(VLOOKUP(C55,'Capacidad Financiera'!$B$12:$X$62720,3,0)),"",VLOOKUP(C55,'Capacidad Financiera'!$B$12:$X$62720,3,0)) -> 0.2 | F55: 14660461816 | G55: =IF(OR(D55="",E55="",F55=""),"",IF(C55<>"",IF(ISERROR(VLOOKUP($A$10,POA!$A$2:$D$25,2,0)),"",VLOOKUP($A$10,POA!$A$2:$D$25,2,0)),"")) -> 4167150295 | H55: =IF(OR(D55="",E55="",F55=""),"",IF(C55<>"",F55/(G55*E55),"")) -> 17.59051243 | I55: =IF(OR(D55="",E55="",F55=""),"",IF(AND(H55>0,H55<=Experiencia1),Puntajes!$D$4,IF(AND(H55>Experiencia1,H55<=Experiencia2),Puntajes!$D$5,IF(AND(H55>Experiencia2,H55<=Experiencia3),Puntajes!$D$6,IF(H55>Experiencia3,Puntajes!$D$7,0))))) -> 120
C56: =+'Capacidad Financiera'!B59 -> 5.3 | D56: =IF(ISERROR(VLOOKUP(C56,'Capacidad Financiera'!$B$12:$X$62720,2,0)),"",VLOOKUP(C56,'Capacidad Financiera'!$B$12:$X$3580,2,0)) -> VIALOBRA SL SUCURSAL COLOMBIA | E56: =IF(ISERROR(VLOOKUP(C56,'Capacidad Financiera'!$B$12:$X$62720,3,0)),"",VLOOKUP(C56,'Capacidad Financiera'!$B$12:$X$62720,3,0)) -> 0.2 | F56: 9.324426401e+10 | G56: =IF(OR(D56="",E56="",F56=""),"",IF(C56<>"",IF(ISERROR(VLOOKUP($A$10,POA!$A$2:$D$25,2,0)),"",VLOOKUP($A$10,POA!$A$2:$D$25,2,0)),"")) -> 4167150295 | H56: 111.8801308 | I56: =IF(OR(D56="",E56="",F56=""),"",IF(AND(H56>0,H56<=Experiencia1),Puntajes!$D$4,IF(AND(H56>Experiencia1,H56<=Experiencia2),Puntajes!$D$5,IF(AND(H56>Experiencia2,H56<=Experiencia3),Puntajes!$D$6,IF(H56>Experiencia3,Puntajes!$D$7,0))))) -> 120
C57: =+'Capacidad Financiera'!B60 ->  | D57: =IF(ISERROR(VLOOKUP(C57,'Capacidad Financiera'!$B$12:$X$62720,2,0)),"",VLOOKUP(C57,'Capacidad Financiera'!$B$12:$X$3580,2,0)) -> 0 | E57: =IF(ISERROR(VLOOKUP(C57,'Capacidad Financiera'!$B$12:$X$62720,3,0)),"",VLOOKUP(C57,'Capacidad Financiera'!$B$12:$X$62720,3,0)) -> 0 | G57: =IF(OR(D57="",E57="",F57=""),"",IF(C57<>"",IF(ISERROR(VLOOKUP($A$10,POA!$A$2:$D$25,2,0)),"",VLOOKUP($A$10,POA!$A$2:$D$25,2,0)),"")) ->  | I57: =IF(OR(D57="",E57="",F57=""),"",IF(AND(H57>0,H57<=Experiencia1),Puntajes!$D$4,IF(AND(H57>Experiencia1,H57<=Experiencia2),Puntajes!$D$5,IF(AND(H57>Experiencia2,H57<=Experiencia3),Puntajes!$D$6,IF(H57>Experiencia3,Puntajes!$D$7,0))))) -> 
C58: =+'Capacidad Financiera'!B61 ->  | D58: =IF(ISERROR(VLOOKUP(C58,'Capacidad Financiera'!$B$12:$X$62720,2,0)),"",VLOOKUP(C58,'Capacidad Financiera'!$B$12:$X$3580,2,0)) -> 0 | E58: =IF(ISERROR(VLOOKUP(C58,'Capacidad Financiera'!$B$12:$X$62720,3,0)),"",VLOOKUP(C58,'Capacidad Financiera'!$B$12:$X$62720,3,0)) -> 0 | G58: =IF(OR(D58="",E58="",F58=""),"",IF(C58<>"",IF(ISERROR(VLOOKUP($A$10,POA!$A$2:$D$25,2,0)),"",VLOOKUP($A$10,POA!$A$2:$D$25,2,0)),"")) ->  | I58: =IF(OR(D58="",E58="",F58=""),"",IF(AND(H58>0,H58<=Experiencia1),Puntajes!$D$4,IF(AND(H58>Experiencia1,H58<=Experiencia2),Puntajes!$D$5,IF(AND(H58>Experiencia2,H58<=Experiencia3),Puntajes!$D$6,IF(H58>Experiencia3,Puntajes!$D$7,0))))) -> 
C59: =+'Capacidad Financiera'!B62 ->  | D59: =IF(ISERROR(VLOOKUP(C59,'Capacidad Financiera'!$B$12:$X$62720,2,0)),"",VLOOKUP(C59,'Capacidad Financiera'!$B$12:$X$3580,2,0)) -> 0 | E59: =IF(ISERROR(VLOOKUP(C59,'Capacidad Financiera'!$B$12:$X$62720,3,0)),"",VLOOKUP(C59,'Capacidad Financiera'!$B$12:$X$62720,3,0)) -> 0 | G59: =IF(OR(D59="",E59="",F59=""),"",IF(C59<>"",IF(ISERROR(VLOOKUP($A$10,POA!$A$2:$D$25,2,0)),"",VLOOKUP($A$10,POA!$A$2:$D$25,2,0)),"")) ->  | I59: =IF(OR(D59="",E59="",F59=""),"",IF(AND(H59>0,H59<=Experiencia1),Puntajes!$D$4,IF(AND(H59>Experiencia1,H59<=Experiencia2),Puntajes!$D$5,IF(AND(H59>Experiencia2,H59<=Experiencia3),Puntajes!$D$6,IF(H59>Experiencia3,Puntajes!$D$7,0))))) -> 
C60: =+'Capacidad Financiera'!B63 ->  | D60: =IF(ISERROR(VLOOKUP(C60,'Capacidad Financiera'!$B$12:$X$62720,2,0)),"",VLOOKUP(C60,'Capacidad Financiera'!$B$12:$X$3580,2,0)) -> 0 | E60: =IF(ISERROR(VLOOKUP(C60,'Capacidad Financiera'!$B$12:$X$62720,3,0)),"",VLOOKUP(C60,'Capacidad Financiera'!$B$12:$X$62720,3,0)) -> 0 | G60: =IF(OR(D60="",E60="",F60=""),"",IF(C60<>"",IF(ISERROR(VLOOKUP($A$10,POA!$A$2:$D$25,2,0)),"",VLOOKUP($A$10,POA!$A$2:$D$25,2,0)),"")) ->  | I60: =IF(OR(D60="",E60="",F60=""),"",IF(AND(H60>0,H60<=Experiencia1),Puntajes!$D$4,IF(AND(H60>Experiencia1,H60<=Experiencia2),Puntajes!$D$5,IF(AND(H60>Experiencia2,H60<=Experiencia3),Puntajes!$D$6,IF(H60>Experiencia3,Puntajes!$D$7,0))))) -> 
C61: =+'Capacidad Financiera'!B64 ->  | D61: =IF(ISERROR(VLOOKUP(C61,'Capacidad Financiera'!$B$12:$X$62720,2,0)),"",VLOOKUP(C61,'Capacidad Financiera'!$B$12:$X$3580,2,0)) -> 0 | E61: =IF(ISERROR(VLOOKUP(C61,'Capacidad Financiera'!$B$12:$X$62720,3,0)),"",VLOOKUP(C61,'Capacidad Financiera'!$B$12:$X$62720,3,0)) -> 0 | G61: =IF(OR(D61="",E61="",F61=""),"",IF(C61<>"",IF(ISERROR(VLOOKUP($A$10,POA!$A$2:$D$25,2,0)),"",VLOOKUP($A$10,POA!$A$2:$D$25,2,0)),"")) ->  | I61: =IF(OR(D61="",E61="",F61=""),"",IF(AND(H61>0,H61<=Experiencia1),Puntajes!$D$4,IF(AND(H61>Experiencia1,H61<=Experiencia2),Puntajes!$D$5,IF(AND(H61>Experiencia2,H61<=Experiencia3),Puntajes!$D$6,IF(H61>Experiencia3,Puntajes!$D$7,0))))) -> 
C62: =+'Capacidad Financiera'!B65 ->  | D62: =IF(ISERROR(VLOOKUP(C62,'Capacidad Financiera'!$B$12:$X$62720,2,0)),"",VLOOKUP(C62,'Capacidad Financiera'!$B$12:$X$3580,2,0)) -> 0 | E62: =IF(ISERROR(VLOOKUP(C62,'Capacidad Financiera'!$B$12:$X$62720,3,0)),"",VLOOKUP(C62,'Capacidad Financiera'!$B$12:$X$62720,3,0)) -> 0 | G62: =IF(OR(D62="",E62="",F62=""),"",IF(C62<>"",IF(ISERROR(VLOOKUP($A$10,POA!$A$2:$D$25,2,0)),"",VLOOKUP($A$10,POA!$A$2:$D$25,2,0)),"")) ->  | I62: =IF(OR(D62="",E62="",F62=""),"",IF(AND(H62>0,H62<=Experiencia1),Puntajes!$D$4,IF(AND(H62>Experiencia1,H62<=Experiencia2),Puntajes!$D$5,IF(AND(H62>Experiencia2,H62<=Experiencia3),Puntajes!$D$6,IF(H62>Experiencia3,Puntajes!$D$7,0))))) -> 
C63: =+'Capacidad Financiera'!B66 ->  | D63: =IF(ISERROR(VLOOKUP(C63,'Capacidad Financiera'!$B$12:$X$62720,2,0)),"",VLOOKUP(C63,'Capacidad Financiera'!$B$12:$X$3580,2,0)) -> 0 | E63: =IF(ISERROR(VLOOKUP(C63,'Capacidad Financiera'!$B$12:$X$62720,3,0)),"",VLOOKUP(C63,'Capacidad Financiera'!$B$12:$X$62720,3,0)) -> 0 | G63: =IF(OR(D63="",E63="",F63=""),"",IF(C63<>"",IF(ISERROR(VLOOKUP($A$10,POA!$A$2:$D$25,2,0)),"",VLOOKUP($A$10,POA!$A$2:$D$25,2,0)),"")) ->  | I63: =IF(OR(D63="",E63="",F63=""),"",IF(AND(H63>0,H63<=Experiencia1),Puntajes!$D$4,IF(AND(H63>Experiencia1,H63<=Experiencia2),Puntajes!$D$5,IF(AND(H63>Experiencia2,H63<=Experiencia3),Puntajes!$D$6,IF(H63>Experiencia3,Puntajes!$D$7,0))))) -> 
C64: 6 | D64: =IF(ISERROR(VLOOKUP(C64,'Capacidad Financiera'!$B$12:$X$62720,2,0)),"",VLOOKUP(C64,'Capacidad Financiera'!$B$12:$X$3580,2,0)) -> CONSORCIO SALITRE BRICEÑO | E64: =IF(ISERROR(VLOOKUP(C64,'Capacidad Financiera'!$B$12:$X$62720,3,0)),"",VLOOKUP(C64,'Capacidad Financiera'!$B$12:$X$62720,3,0)) -> 1 | G64: =IF(OR(D64="",E64="",F64=""),"",IF(C65="",IF(C64<>"",IF(ISERROR(VLOOKUP($A$10,POA!$A$2:$D$25,2,0)),"",VLOOKUP($A$10,POA!$A$2:$D$25,2,0)),""),"")) ->  | H64: =IF(OR(D64="",E64="",F64=""),"",IF(C65="",IF(C64<>"",F64/G64,""),"")) ->  | I64: =IF(C65="",IF(F64="","",IF(AND(H64>0,H64<=Experiencia1),Puntajes!$D$4,IF(AND(H64>Experiencia1,H64<=Experiencia2),Puntajes!$D$5,IF(AND(H64>Experiencia2,H64<=Experiencia3),Puntajes!$D$6,IF(H64>Experiencia3,Puntajes!$D$7,0))))),"") -> 
A65: req anexo 1a | C65: =+'Capacidad Financiera'!B68 -> 6.1 | D65: =IF(ISERROR(VLOOKUP(C65,'Capacidad Financiera'!$B$12:$X$62720,2,0)),"",VLOOKUP(C65,'Capacidad Financiera'!$B$12:$X$3580,2,0)) -> GEOCING S.A.S. | E65: =IF(ISERROR(VLOOKUP(C65,'Capacidad Financiera'!$B$12:$X$62720,3,0)),"",VLOOKUP(C65,'Capacidad Financiera'!$B$12:$X$62720,3,0)) -> 0.5 | G65: =IF(OR(D65="",E65="",F65=""),"",IF(C65<>"",IF(ISERROR(VLOOKUP($A$10,POA!$A$2:$D$25,2,0)),"",VLOOKUP($A$10,POA!$A$2:$D$25,2,0)),"")) ->  | H65: =IF(OR(D65="",E65="",F65=""),"",IF(C65<>"",F65/(G65*E65),"")) ->  | I65: =IF(OR(D65="",E65="",F65=""),"",IF(AND(H65>0,H65<=Experiencia1),Puntajes!$D$4,IF(AND(H65>Experiencia1,H65<=Experiencia2),Puntajes!$D$5,IF(AND(H65>Experiencia2,H65<=Experiencia3),Puntajes!$D$6,IF(H65>Experiencia3,Puntajes!$D$7,0))))) -> 
A66: req anexo 1a | C66: =+'Capacidad Financiera'!B69 -> 6.2 | D66: =IF(ISERROR(VLOOKUP(C66,'Capacidad Financiera'!$B$12:$X$62720,2,0)),"",VLOOKUP(C66,'Capacidad Financiera'!$B$12:$X$3580,2,0)) -> URBAMED INFRAESTRUCTURAS SLU | E66: =IF(ISERROR(VLOOKUP(C66,'Capacidad Financiera'!$B$12:$X$62720,3,0)),"",VLOOKUP(C66,'Capacidad Financiera'!$B$12:$X$62720,3,0)) -> 0.5 | G66: =IF(OR(D66="",E66="",F66=""),"",IF(C66<>"",IF(ISERROR(VLOOKUP($A$10,POA!$A$2:$D$25,2,0)),"",VLOOKUP($A$10,POA!$A$2:$D$25,2,0)),"")) ->  | H66: =IF(OR(D66="",E66="",F66=""),"",IF(C66<>"",F66/(G66*E66),"")) ->  | I66: =IF(OR(D66="",E66="",F66=""),"",IF(AND(H66>0,H66<=Experiencia1),Puntajes!$D$4,IF(AND(H66>Experiencia1,H66<=Experiencia2),Puntajes!$D$5,IF(AND(H66>Experiencia2,H66<=Experiencia3),Puntajes!$D$6,IF(H66>Experiencia3,Puntajes!$D$7,0))))) -> 
C67: =+'Capacidad Financiera'!B70 ->  | D67: =IF(ISERROR(VLOOKUP(C67,'Capacidad Financiera'!$B$12:$X$62720,2,0)),"",VLOOKUP(C67,'Capacidad Financiera'!$B$12:$X$3580,2,0)) -> 0 | E67: =IF(ISERROR(VLOOKUP(C67,'Capacidad Financiera'!$B$12:$X$62720,3,0)),"",VLOOKUP(C67,'Capacidad Financiera'!$B$12:$X$62720,3,0)) -> 0 | G67: =IF(OR(D67="",E67="",F67=""),"",IF(C67<>"",IF(ISERROR(VLOOKUP($A$10,POA!$A$2:$D$25,2,0)),"",VLOOKUP($A$10,POA!$A$2:$D$25,2,0)),"")) ->  | I67: =IF(OR(D67="",E67="",F67=""),"",IF(AND(H67>0,H67<=Experiencia1),Puntajes!$D$4,IF(AND(H67>Experiencia1,H67<=Experiencia2),Puntajes!$D$5,IF(AND(H67>Experiencia2,H67<=Experiencia3),Puntajes!$D$6,IF(H67>Experiencia3,Puntajes!$D$7,0))))) -> 
C68: =+'Capacidad Financiera'!B71 ->  | D68: =IF(ISERROR(VLOOKUP(C68,'Capacidad Financiera'!$B$12:$X$62720,2,0)),"",VLOOKUP(C68,'Capacidad Financiera'!$B$12:$X$3580,2,0)) -> 0 | E68: =IF(ISERROR(VLOOKUP(C68,'Capacidad Financiera'!$B$12:$X$62720,3,0)),"",VLOOKUP(C68,'Capacidad Financiera'!$B$12:$X$62720,3,0)) -> 0 | G68: =IF(OR(D68="",E68="",F68=""),"",IF(C68<>"",IF(ISERROR(VLOOKUP($A$10,POA!$A$2:$D$25,2,0)),"",VLOOKUP($A$10,POA!$A$2:$D$25,2,0)),"")) ->  | I68: =IF(OR(D68="",E68="",F68=""),"",IF(AND(H68>0,H68<=Experiencia1),Puntajes!$D$4,IF(AND(H68>Experiencia1,H68<=Experiencia2),Puntajes!$D$5,IF(AND(H68>Experiencia2,H68<=Experiencia3),Puntajes!$D$6,IF(H68>Experiencia3,Puntajes!$D$7,0))))) -> 
C69: =+'Capacidad Financiera'!B72 ->  | D69: =IF(ISERROR(VLOOKUP(C69,'Capacidad Financiera'!$B$12:$X$62720,2,0)),"",VLOOKUP(C69,'Capacidad Financiera'!$B$12:$X$3580,2,0)) -> 0 | E69: =IF(ISERROR(VLOOKUP(C69,'Capacidad Financiera'!$B$12:$X$62720,3,0)),"",VLOOKUP(C69,'Capacidad Financiera'!$B$12:$X$62720,3,0)) -> 0 | G69: =IF(OR(D69="",E69="",F69=""),"",IF(C69<>"",IF(ISERROR(VLOOKUP($A$10,POA!$A$2:$D$25,2,0)),"",VLOOKUP($A$10,POA!$A$2:$D$25,2,0)),"")) ->  | I69: =IF(OR(D69="",E69="",F69=""),"",IF(AND(H69>0,H69<=Experiencia1),Puntajes!$D$4,IF(AND(H69>Experiencia1,H69<=Experiencia2),Puntajes!$D$5,IF(AND(H69>Experiencia2,H69<=Experiencia3),Puntajes!$D$6,IF(H69>Experiencia3,Puntajes!$D$7,0))))) -> 
C70: =+'Capacidad Financiera'!B73 ->  | D70: =IF(ISERROR(VLOOKUP(C70,'Capacidad Financiera'!$B$12:$X$62720,2,0)),"",VLOOKUP(C70,'Capacidad Financiera'!$B$12:$X$3580,2,0)) -> 0 | E70: =IF(ISERROR(VLOOKUP(C70,'Capacidad Financiera'!$B$12:$X$62720,3,0)),"",VLOOKUP(C70,'Capacidad Financiera'!$B$12:$X$62720,3,0)) -> 0 | G70: =IF(OR(D70="",E70="",F70=""),"",IF(C70<>"",IF(ISERROR(VLOOKUP($A$10,POA!$A$2:$D$25,2,0)),"",VLOOKUP($A$10,POA!$A$2:$D$25,2,0)),"")) ->  | I70: =IF(OR(D70="",E70="",F70=""),"",IF(AND(H70>0,H70<=Experiencia1),Puntajes!$D$4,IF(AND(H70>Experiencia1,H70<=Experiencia2),Puntajes!$D$5,IF(AND(H70>Experiencia2,H70<=Experiencia3),Puntajes!$D$6,IF(H70>Experiencia3,Puntajes!$D$7,0))))) -> 
C71: =+'Capacidad Financiera'!B74 ->  | D71: =IF(ISERROR(VLOOKUP(C71,'Capacidad Financiera'!$B$12:$X$62720,2,0)),"",VLOOKUP(C71,'Capacidad Financiera'!$B$12:$X$3580,2,0)) -> 0 | E71: =IF(ISERROR(VLOOKUP(C71,'Capacidad Financiera'!$B$12:$X$62720,3,0)),"",VLOOKUP(C71,'Capacidad Financiera'!$B$12:$X$62720,3,0)) -> 0 | G71: =IF(OR(D71="",E71="",F71=""),"",IF(C71<>"",IF(ISERROR(VLOOKUP($A$10,POA!$A$2:$D$25,2,0)),"",VLOOKUP($A$10,POA!$A$2:$D$25,2,0)),"")) ->  | I71: =IF(OR(D71="",E71="",F71=""),"",IF(AND(H71>0,H71<=Experiencia1),Puntajes!$D$4,IF(AND(H71>Experiencia1,H71<=Experiencia2),Puntajes!$D$5,IF(AND(H71>Experiencia2,H71<=Experiencia3),Puntajes!$D$6,IF(H71>Experiencia3,Puntajes!$D$7,0))))) -> 
C72: =+'Capacidad Financiera'!B75 ->  | D72: =IF(ISERROR(VLOOKUP(C72,'Capacidad Financiera'!$B$12:$X$62720,2,0)),"",VLOOKUP(C72,'Capacidad Financiera'!$B$12:$X$3580,2,0)) -> 0 | E72: =IF(ISERROR(VLOOKUP(C72,'Capacidad Financiera'!$B$12:$X$62720,3,0)),"",VLOOKUP(C72,'Capacidad Financiera'!$B$12:$X$62720,3,0)) -> 0 | G72: =IF(OR(D72="",E72="",F72=""),"",IF(C72<>"",IF(ISERROR(VLOOKUP($A$10,POA!$A$2:$D$25,2,0)),"",VLOOKUP($A$10,POA!$A$2:$D$25,2,0)),"")) ->  | I72: =IF(OR(D72="",E72="",F72=""),"",IF(AND(H72>0,H72<=Experiencia1),Puntajes!$D$4,IF(AND(H72>Experiencia1,H72<=Experiencia2),Puntajes!$D$5,IF(AND(H72>Experiencia2,H72<=Experiencia3),Puntajes!$D$6,IF(H72>Experiencia3,Puntajes!$D$7,0))))) -> 
C73: =+'Capacidad Financiera'!B76 ->  | D73: =IF(ISERROR(VLOOKUP(C73,'Capacidad Financiera'!$B$12:$X$62720,2,0)),"",VLOOKUP(C73,'Capacidad Financiera'!$B$12:$X$3580,2,0)) -> 0 | E73: =IF(ISERROR(VLOOKUP(C73,'Capacidad Financiera'!$B$12:$X$62720,3,0)),"",VLOOKUP(C73,'Capacidad Financiera'!$B$12:$X$62720,3,0)) -> 0 | G73: =IF(OR(D73="",E73="",F73=""),"",IF(C73<>"",IF(ISERROR(VLOOKUP($A$10,POA!$A$2:$D$25,2,0)),"",VLOOKUP($A$10,POA!$A$2:$D$25,2,0)),"")) ->  | I73: =IF(OR(D73="",E73="",F73=""),"",IF(AND(H73>0,H73<=Experiencia1),Puntajes!$D$4,IF(AND(H73>Experiencia1,H73<=Experiencia2),Puntajes!$D$5,IF(AND(H73>Experiencia2,H73<=Experiencia3),Puntajes!$D$6,IF(H73>Experiencia3,Puntajes!$D$7,0))))) -> 
C74: =+'Capacidad Financiera'!B77 ->  | D74: =IF(ISERROR(VLOOKUP(C74,'Capacidad Financiera'!$B$12:$X$62720,2,0)),"",VLOOKUP(C74,'Capacidad Financiera'!$B$12:$X$3580,2,0)) -> 0 | E74: =IF(ISERROR(VLOOKUP(C74,'Capacidad Financiera'!$B$12:$X$62720,3,0)),"",VLOOKUP(C74,'Capacidad Financiera'!$B$12:$X$62720,3,0)) -> 0 | G74: =IF(OR(D74="",E74="",F74=""),"",IF(C74<>"",IF(ISERROR(VLOOKUP($A$10,POA!$A$2:$D$25,2,0)),"",VLOOKUP($A$10,POA!$A$2:$D$25,2,0)),"")) ->  | I74: =IF(OR(D74="",E74="",F74=""),"",IF(AND(H74>0,H74<=Experiencia1),Puntajes!$D$4,IF(AND(H74>Experiencia1,H74<=Experiencia2),Puntajes!$D$5,IF(AND(H74>Experiencia2,H74<=Experiencia3),Puntajes!$D$6,IF(H74>Experiencia3,Puntajes!$D$7,0))))) -> 
C75: 7 | D75: =IF(ISERROR(VLOOKUP(C75,'Capacidad Financiera'!$B$12:$X$62720,2,0)),"",VLOOKUP(C75,'Capacidad Financiera'!$B$12:$X$3580,2,0)) -> CONSORCIO AC - AINCOL | E75: =IF(ISERROR(VLOOKUP(C75,'Capacidad Financiera'!$B$12:$X$62720,3,0)),"",VLOOKUP(C75,'Capacidad Financiera'!$B$12:$X$62720,3,0)) -> 1 | G75: =IF(OR(D75="",E75="",F75=""),"",IF(C76="",IF(C75<>"",IF(ISERROR(VLOOKUP($A$10,POA!$A$2:$D$25,2,0)),"",VLOOKUP($A$10,POA!$A$2:$D$25,2,0)),""),"")) ->  | H75: =IF(OR(D75="",E75="",F75=""),"",IF(C76="",IF(C75<>"",F75/G75,""),"")) ->  | I75: =IF(C76="",IF(F75="","",IF(AND(H75>0,H75<=Experiencia1),Puntajes!$D$4,IF(AND(H75>Experiencia1,H75<=Experiencia2),Puntajes!$D$5,IF(AND(H75>Experiencia2,H75<=Experiencia3),Puntajes!$D$6,IF(H75>Experiencia3,Puntajes!$D$7,0))))),"") -> 
A76: req anexo 1a | C76: =+'Capacidad Financiera'!B79 -> 7.1 | D76: =IF(ISERROR(VLOOKUP(C76,'Capacidad Financiera'!$B$12:$X$62720,2,0)),"",VLOOKUP(C76,'Capacidad Financiera'!$B$12:$X$3580,2,0)) -> AINCOL S.A.S. | E76: =IF(ISERROR(VLOOKUP(C76,'Capacidad Financiera'!$B$12:$X$62720,3,0)),"",VLOOKUP(C76,'Capacidad Financiera'!$B$12:$X$62720,3,0)) -> 0.3 | G76: =IF(OR(D76="",E76="",F76=""),"",IF(C76<>"",IF(ISERROR(VLOOKUP($A$10,POA!$A$2:$D$25,2,0)),"",VLOOKUP($A$10,POA!$A$2:$D$25,2,0)),"")) ->  | H76: =IF(OR(D76="",E76="",F76=""),"",IF(C76<>"",F76/(G76*E76),"")) ->  | I76: =IF(OR(D76="",E76="",F76=""),"",IF(AND(H76>0,H76<=Experiencia1),Puntajes!$D$4,IF(AND(H76>Experiencia1,H76<=Experiencia2),Puntajes!$D$5,IF(AND(H76>Experiencia2,H76<=Experiencia3),Puntajes!$D$6,IF(H76>Experiencia3,Puntajes!$D$7,0))))) -> 
A77: req anexo 1a | C77: =+'Capacidad Financiera'!B80 -> 7.2 | D77: =IF(ISERROR(VLOOKUP(C77,'Capacidad Financiera'!$B$12:$X$62720,2,0)),"",VLOOKUP(C77,'Capacidad Financiera'!$B$12:$X$3580,2,0)) -> AC INGENIERIA Y CONSTRUCCIONES S.A.S. | E77: =IF(ISERROR(VLOOKUP(C77,'Capacidad Financiera'!$B$12:$X$62720,3,0)),"",VLOOKUP(C77,'Capacidad Financiera'!$B$12:$X$62720,3,0)) -> 0.7 | G77: =IF(OR(D77="",E77="",F77=""),"",IF(C77<>"",IF(ISERROR(VLOOKUP($A$10,POA!$A$2:$D$25,2,0)),"",VLOOKUP($A$10,POA!$A$2:$D$25,2,0)),"")) ->  | H77: =IF(OR(D77="",E77="",F77=""),"",IF(C77<>"",F77/(G77*E77),"")) ->  | I77: =IF(OR(D77="",E77="",F77=""),"",IF(AND(H77>0,H77<=Experiencia1),Puntajes!$D$4,IF(AND(H77>Experiencia1,H77<=Experiencia2),Puntajes!$D$5,IF(AND(H77>Experiencia2,H77<=Experiencia3),Puntajes!$D$6,IF(H77>Experiencia3,Puntajes!$D$7,0))))) -> 
C78: =+'Capacidad Financiera'!B81 ->  | D78: =IF(ISERROR(VLOOKUP(C78,'Capacidad Financiera'!$B$12:$X$62720,2,0)),"",VLOOKUP(C78,'Capacidad Financiera'!$B$12:$X$3580,2,0)) -> 0 | E78: =IF(ISERROR(VLOOKUP(C78,'Capacidad Financiera'!$B$12:$X$62720,3,0)),"",VLOOKUP(C78,'Capacidad Financiera'!$B$12:$X$62720,3,0)) -> 0 | G78: =IF(OR(D78="",E78="",F78=""),"",IF(C78<>"",IF(ISERROR(VLOOKUP($A$10,POA!$A$2:$D$25,2,0)),"",VLOOKUP($A$10,POA!$A$2:$D$25,2,0)),"")) ->  | I78: =IF(OR(D78="",E78="",F78=""),"",IF(AND(H78>0,H78<=Experiencia1),Puntajes!$D$4,IF(AND(H78>Experiencia1,H78<=Experiencia2),Puntajes!$D$5,IF(AND(H78>Experiencia2,H78<=Experiencia3),Puntajes!$D$6,IF(H78>Experiencia3,Puntajes!$D$7,0))))) -> 
C79: =+'Capacidad Financiera'!B82 ->  | D79: =IF(ISERROR(VLOOKUP(C79,'Capacidad Financiera'!$B$12:$X$62720,2,0)),"",VLOOKUP(C79,'Capacidad Financiera'!$B$12:$X$3580,2,0)) -> 0 | E79: =IF(ISERROR(VLOOKUP(C79,'Capacidad Financiera'!$B$12:$X$62720,3,0)),"",VLOOKUP(C79,'Capacidad Financiera'!$B$12:$X$62720,3,0)) -> 0 | G79: =IF(OR(D79="",E79="",F79=""),"",IF(C79<>"",IF(ISERROR(VLOOKUP($A$10,POA!$A$2:$D$25,2,0)),"",VLOOKUP($A$10,POA!$A$2:$D$25,2,0)),"")) ->  | I79: =IF(OR(D79="",E79="",F79=""),"",IF(AND(H79>0,H79<=Experiencia1),Puntajes!$D$4,IF(AND(H79>Experiencia1,H79<=Experiencia2),Puntajes!$D$5,IF(AND(H79>Experiencia2,H79<=Experiencia3),Puntajes!$D$6,IF(H79>Experiencia3,Puntajes!$D$7,0))))) -> 
C80: =+'Capacidad Financiera'!B83 ->  | D80: =IF(ISERROR(VLOOKUP(C80,'Capacidad Financiera'!$B$12:$X$62720,2,0)),"",VLOOKUP(C80,'Capacidad Financiera'!$B$12:$X$3580,2,0)) -> 0 | E80: =IF(ISERROR(VLOOKUP(C80,'Capacidad Financiera'!$B$12:$X$62720,3,0)),"",VLOOKUP(C80,'Capacidad Financiera'!$B$12:$X$62720,3,0)) -> 0 | G80: =IF(OR(D80="",E80="",F80=""),"",IF(C80<>"",IF(ISERROR(VLOOKUP($A$10,POA!$A$2:$D$25,2,0)),"",VLOOKUP($A$10,POA!$A$2:$D$25,2,0)),"")) ->  | I80: =IF(OR(D80="",E80="",F80=""),"",IF(AND(H80>0,H80<=Experiencia1),Puntajes!$D$4,IF(AND(H80>Experiencia1,H80<=Experiencia2),Puntajes!$D$5,IF(AND(H80>Experiencia2,H80<=Experiencia3),Puntajes!$D$6,IF(H80>Experiencia3,Puntajes!$D$7,0))))) -> 
C81: =+'Capacidad Financiera'!B84 ->  | D81: =IF(ISERROR(VLOOKUP(C81,'Capacidad Financiera'!$B$12:$X$62720,2,0)),"",VLOOKUP(C81,'Capacidad Financiera'!$B$12:$X$3580,2,0)) -> 0 | E81: =IF(ISERROR(VLOOKUP(C81,'Capacidad Financiera'!$B$12:$X$62720,3,0)),"",VLOOKUP(C81,'Capacidad Financiera'!$B$12:$X$62720,3,0)) -> 0 | G81: =IF(OR(D81="",E81="",F81=""),"",IF(C81<>"",IF(ISERROR(VLOOKUP($A$10,POA!$A$2:$D$25,2,0)),"",VLOOKUP($A$10,POA!$A$2:$D$25,2,0)),"")) ->  | I81: =IF(OR(D81="",E81="",F81=""),"",IF(AND(H81>0,H81<=Experiencia1),Puntajes!$D$4,IF(AND(H81>Experiencia1,H81<=Experiencia2),Puntajes!$D$5,IF(AND(H81>Experiencia2,H81<=Experiencia3),Puntajes!$D$6,IF(H81>Experiencia3,Puntajes!$D$7,0))))) -> 
C82: =+'Capacidad Financiera'!B85 ->  | D82: =IF(ISERROR(VLOOKUP(C82,'Capacidad Financiera'!$B$12:$X$62720,2,0)),"",VLOOKUP(C82,'Capacidad Financiera'!$B$12:$X$3580,2,0)) -> 0 | E82: =IF(ISERROR(VLOOKUP(C82,'Capacidad Financiera'!$B$12:$X$62720,3,0)),"",VLOOKUP(C82,'Capacidad Financiera'!$B$12:$X$62720,3,0)) -> 0 | G82: =IF(OR(D82="",E82="",F82=""),"",IF(C82<>"",IF(ISERROR(VLOOKUP($A$10,POA!$A$2:$D$25,2,0)),"",VLOOKUP($A$10,POA!$A$2:$D$25,2,0)),"")) ->  | I82: =IF(OR(D82="",E82="",F82=""),"",IF(AND(H82>0,H82<=Experiencia1),Puntajes!$D$4,IF(AND(H82>Experiencia1,H82<=Experiencia2),Puntajes!$D$5,IF(AND(H82>Experiencia2,H82<=Experiencia3),Puntajes!$D$6,IF(H82>Experiencia3,Puntajes!$D$7,0))))) -> 
C83: =+'Capacidad Financiera'!B86 ->  | D83: =IF(ISERROR(VLOOKUP(C83,'Capacidad Financiera'!$B$12:$X$62720,2,0)),"",VLOOKUP(C83,'Capacidad Financiera'!$B$12:$X$3580,2,0)) -> 0 | E83: =IF(ISERROR(VLOOKUP(C83,'Capacidad Financiera'!$B$12:$X$62720,3,0)),"",VLOOKUP(C83,'Capacidad Financiera'!$B$12:$X$62720,3,0)) -> 0 | G83: =IF(OR(D83="",E83="",F83=""),"",IF(C83<>"",IF(ISERROR(VLOOKUP($A$10,POA!$A$2:$D$25,2,0)),"",VLOOKUP($A$10,POA!$A$2:$D$25,2,0)),"")) ->  | I83: =IF(OR(D83="",E83="",F83=""),"",IF(AND(H83>0,H83<=Experiencia1),Puntajes!$D$4,IF(AND(H83>Experiencia1,H83<=Experiencia2),Puntajes!$D$5,IF(AND(H83>Experiencia2,H83<=Experiencia3),Puntajes!$D$6,IF(H83>Experiencia3,Puntajes!$D$7,0))))) -> 
C84: =+'Capacidad Financiera'!B87 ->  | D84: =IF(ISERROR(VLOOKUP(C84,'Capacidad Financiera'!$B$12:$X$62720,2,0)),"",VLOOKUP(C84,'Capacidad Financiera'!$B$12:$X$3580,2,0)) -> 0 | E84: =IF(ISERROR(VLOOKUP(C84,'Capacidad Financiera'!$B$12:$X$62720,3,0)),"",VLOOKUP(C84,'Capacidad Financiera'!$B$12:$X$62720,3,0)) -> 0 | G84: =IF(OR(D84="",E84="",F84=""),"",IF(C84<>"",IF(ISERROR(VLOOKUP($A$10,POA!$A$2:$D$25,2,0)),"",VLOOKUP($A$10,POA!$A$2:$D$25,2,0)),"")) ->  | I84: =IF(OR(D84="",E84="",F84=""),"",IF(AND(H84>0,H84<=Experiencia1),Puntajes!$D$4,IF(AND(H84>Experiencia1,H84<=Experiencia2),Puntajes!$D$5,IF(AND(H84>Experiencia2,H84<=Experiencia3),Puntajes!$D$6,IF(H84>Experiencia3,Puntajes!$D$7,0))))) -> 
C85: =+'Capacidad Financiera'!B88 ->  | D85: =IF(ISERROR(VLOOKUP(C85,'Capacidad Financiera'!$B$12:$X$62720,2,0)),"",VLOOKUP(C85,'Capacidad Financiera'!$B$12:$X$3580,2,0)) -> 0 | E85: =IF(ISERROR(VLOOKUP(C85,'Capacidad Financiera'!$B$12:$X$62720,3,0)),"",VLOOKUP(C85,'Capacidad Financiera'!$B$12:$X$62720,3,0)) -> 0 | G85: =IF(OR(D85="",E85="",F85=""),"",IF(C85<>"",IF(ISERROR(VLOOKUP($A$10,POA!$A$2:$D$25,2,0)),"",VLOOKUP($A$10,POA!$A$2:$D$25,2,0)),"")) ->  | I85: =IF(OR(D85="",E85="",F85=""),"",IF(AND(H85>0,H85<=Experiencia1),Puntajes!$D$4,IF(AND(H85>Experiencia1,H85<=Experiencia2),Puntajes!$D$5,IF(AND(H85>Experiencia2,H85<=Experiencia3),Puntajes!$D$6,IF(H85>Experiencia3,Puntajes!$D$7,0))))) -> 
C86: 8 | D86: =IF(ISERROR(VLOOKUP(C86,'Capacidad Financiera'!$B$12:$X$62720,2,0)),"",VLOOKUP(C86,'Capacidad Financiera'!$B$12:$X$3580,2,0)) -> CONSULTORIA Y CONSTRUCCION LTDA. | E86: =IF(ISERROR(VLOOKUP(C86,'Capacidad Financiera'!$B$12:$X$62720,3,0)),"",VLOOKUP(C86,'Capacidad Financiera'!$B$12:$X$62720,3,0)) -> 1 | G86: =IF(OR(D86="",E86="",F86=""),"",IF(C87="",IF(C86<>"",IF(ISERROR(VLOOKUP($A$10,POA!$A$2:$D$25,2,0)),"",VLOOKUP($A$10,POA!$A$2:$D$25,2,0)),""),"")) ->  | H86: =IF(OR(D86="",E86="",F86=""),"",IF(C87="",IF(C86<>"",F86/G86,""),"")) ->  | I86: =IF(C87="",IF(F86="","",IF(AND(H86>0,H86<=Experiencia1),Puntajes!$D$4,IF(AND(H86>Experiencia1,H86<=Experiencia2),Puntajes!$D$5,IF(AND(H86>Experiencia2,H86<=Experiencia3),Puntajes!$D$6,IF(H86>Experiencia3,Puntajes!$D$7,0))))),"") -> 
C87: =+'Capacidad Financiera'!B90 -> 8.1 | D87: =IF(ISERROR(VLOOKUP(C87,'Capacidad Financiera'!$B$12:$X$62720,2,0)),"",VLOOKUP(C87,'Capacidad Financiera'!$B$12:$X$3580,2,0)) -> CONSULTORIA Y CONSTRUCCION LTDA. | E87: =IF(ISERROR(VLOOKUP(C87,'Capacidad Financiera'!$B$12:$X$62720,3,0)),"",VLOOKUP(C87,'Capacidad Financiera'!$B$12:$X$62720,3,0)) -> 1 | F87: 88987888836 | G87: =IF(OR(D87="",E87="",F87=""),"",IF(C87<>"",IF(ISERROR(VLOOKUP($A$10,POA!$A$2:$D$25,2,0)),"",VLOOKUP($A$10,POA!$A$2:$D$25,2,0)),"")) -> 4167150295 | H87: =IF(OR(D87="",E87="",F87=""),"",IF(C87<>"",F87/(G87*E87),"")) -> 21.35461467 | I87: =IF(OR(D87="",E87="",F87=""),"",IF(AND(H87>0,H87<=Experiencia1),Puntajes!$D$4,IF(AND(H87>Experiencia1,H87<=Experiencia2),Puntajes!$D$5,IF(AND(H87>Experiencia2,H87<=Experiencia3),Puntajes!$D$6,IF(H87>Experiencia3,Puntajes!$D$7,0))))) -> 120
C88: =+'Capacidad Financiera'!B91 ->  | D88: =IF(ISERROR(VLOOKUP(C88,'Capacidad Financiera'!$B$12:$X$62720,2,0)),"",VLOOKUP(C88,'Capacidad Financiera'!$B$12:$X$3580,2,0)) -> 0 | E88: =IF(ISERROR(VLOOKUP(C88,'Capacidad Financiera'!$B$12:$X$62720,3,0)),"",VLOOKUP(C88,'Capacidad Financiera'!$B$12:$X$62720,3,0)) -> 0 | G88: =IF(OR(D88="",E88="",F88=""),"",IF(C88<>"",IF(ISERROR(VLOOKUP($A$10,POA!$A$2:$D$25,2,0)),"",VLOOKUP($A$10,POA!$A$2:$D$25,2,0)),"")) ->  | H88: =IF(OR(D88="",E88="",F88=""),"",IF(C88<>"",F88/(G88*E88),"")) ->  | I88: =IF(OR(D88="",E88="",F88=""),"",IF(AND(H88>0,H88<=Experiencia1),Puntajes!$D$4,IF(AND(H88>Experiencia1,H88<=Experiencia2),Puntajes!$D$5,IF(AND(H88>Experiencia2,H88<=Experiencia3),Puntajes!$D$6,IF(H88>Experiencia3,Puntajes!$D$7,0))))) -> 
C89: =+'Capacidad Financiera'!B92 ->  | D89: =IF(ISERROR(VLOOKUP(C89,'Capacidad Financiera'!$B$12:$X$62720,2,0)),"",VLOOKUP(C89,'Capacidad Financiera'!$B$12:$X$3580,2,0)) -> 0 | E89: =IF(ISERROR(VLOOKUP(C89,'Capacidad Financiera'!$B$12:$X$62720,3,0)),"",VLOOKUP(C89,'Capacidad Financiera'!$B$12:$X$62720,3,0)) -> 0 | G89: =IF(OR(D89="",E89="",F89=""),"",IF(C89<>"",IF(ISERROR(VLOOKUP($A$10,POA!$A$2:$D$25,2,0)),"",VLOOKUP($A$10,POA!$A$2:$D$25,2,0)),"")) ->  | I89: =IF(OR(D89="",E89="",F89=""),"",IF(AND(H89>0,H89<=Experiencia1),Puntajes!$D$4,IF(AND(H89>Experiencia1,H89<=Experiencia2),Puntajes!$D$5,IF(AND(H89>Experiencia2,H89<=Experiencia3),Puntajes!$D$6,IF(H89>Experiencia3,Puntajes!$D$7,0))))) -> 
C90: =+'Capacidad Financiera'!B93 ->  | D90: =IF(ISERROR(VLOOKUP(C90,'Capacidad Financiera'!$B$12:$X$62720,2,0)),"",VLOOKUP(C90,'Capacidad Financiera'!$B$12:$X$3580,2,0)) -> 0 | E90: =IF(ISERROR(VLOOKUP(C90,'Capacidad Financiera'!$B$12:$X$62720,3,0)),"",VLOOKUP(C90,'Capacidad Financiera'!$B$12:$X$62720,3,0)) -> 0 | G90: =IF(OR(D90="",E90="",F90=""),"",IF(C90<>"",IF(ISERROR(VLOOKUP($A$10,POA!$A$2:$D$25,2,0)),"",VLOOKUP($A$10,POA!$A$2:$D$25,2,0)),"")) ->  | I90: =IF(OR(D90="",E90="",F90=""),"",IF(AND(H90>0,H90<=Experiencia1),Puntajes!$D$4,IF(AND(H90>Experiencia1,H90<=Experiencia2),Puntajes!$D$5,IF(AND(H90>Experiencia2,H90<=Experiencia3),Puntajes!$D$6,IF(H90>Experiencia3,Puntajes!$D$7,0))))) -> 
C91: =+'Capacidad Financiera'!B94 ->  | D91: =IF(ISERROR(VLOOKUP(C91,'Capacidad Financiera'!$B$12:$X$62720,2,0)),"",VLOOKUP(C91,'Capacidad Financiera'!$B$12:$X$3580,2,0)) -> 0 | E91: =IF(ISERROR(VLOOKUP(C91,'Capacidad Financiera'!$B$12:$X$62720,3,0)),"",VLOOKUP(C91,'Capacidad Financiera'!$B$12:$X$62720,3,0)) -> 0 | G91: =IF(OR(D91="",E91="",F91=""),"",IF(C91<>"",IF(ISERROR(VLOOKUP($A$10,POA!$A$2:$D$25,2,0)),"",VLOOKUP($A$10,POA!$A$2:$D$25,2,0)),"")) ->  | I91: =IF(OR(D91="",E91="",F91=""),"",IF(AND(H91>0,H91<=Experiencia1),Puntajes!$D$4,IF(AND(H91>Experiencia1,H91<=Experiencia2),Puntajes!$D$5,IF(AND(H91>Experiencia2,H91<=Experiencia3),Puntajes!$D$6,IF(H91>Experiencia3,Puntajes!$D$7,0))))) -> 
C92: =+'Capacidad Financiera'!B95 ->  | D92: =IF(ISERROR(VLOOKUP(C92,'Capacidad Financiera'!$B$12:$X$62720,2,0)),"",VLOOKUP(C92,'Capacidad Financiera'!$B$12:$X$3580,2,0)) -> 0 | E92: =IF(ISERROR(VLOOKUP(C92,'Capacidad Financiera'!$B$12:$X$62720,3,0)),"",VLOOKUP(C92,'Capacidad Financiera'!$B$12:$X$62720,3,0)) -> 0 | G92: =IF(OR(D92="",E92="",F92=""),"",IF(C92<>"",IF(ISERROR(VLOOKUP($A$10,POA!$A$2:$D$25,2,0)),"",VLOOKUP($A$10,POA!$A$2:$D$25,2,0)),"")) ->  | I92: =IF(OR(D92="",E92="",F92=""),"",IF(AND(H92>0,H92<=Experiencia1),Puntajes!$D$4,IF(AND(H92>Experiencia1,H92<=Experiencia2),Puntajes!$D$5,IF(AND(H92>Experiencia2,H92<=Experiencia3),Puntajes!$D$6,IF(H92>Experiencia3,Puntajes!$D$7,0))))) -> 
C93: =+'Capacidad Financiera'!B96 ->  | D93: =IF(ISERROR(VLOOKUP(C93,'Capacidad Financiera'!$B$12:$X$62720,2,0)),"",VLOOKUP(C93,'Capacidad Financiera'!$B$12:$X$3580,2,0)) -> 0 | E93: =IF(ISERROR(VLOOKUP(C93,'Capacidad Financiera'!$B$12:$X$62720,3,0)),"",VLOOKUP(C93,'Capacidad Financiera'!$B$12:$X$62720,3,0)) -> 0 | G93: =IF(OR(D93="",E93="",F93=""),"",IF(C93<>"",IF(ISERROR(VLOOKUP($A$10,POA!$A$2:$D$25,2,0)),"",VLOOKUP($A$10,POA!$A$2:$D$25,2,0)),"")) ->  | I93: =IF(OR(D93="",E93="",F93=""),"",IF(AND(H93>0,H93<=Experiencia1),Puntajes!$D$4,IF(AND(H93>Experiencia1,H93<=Experiencia2),Puntajes!$D$5,IF(AND(H93>Experiencia2,H93<=Experiencia3),Puntajes!$D$6,IF(H93>Experiencia3,Puntajes!$D$7,0))))) -> 
C94: =+'Capacidad Financiera'!B97 ->  | D94: =IF(ISERROR(VLOOKUP(C94,'Capacidad Financiera'!$B$12:$X$62720,2,0)),"",VLOOKUP(C94,'Capacidad Financiera'!$B$12:$X$3580,2,0)) -> 0 | E94: =IF(ISERROR(VLOOKUP(C94,'Capacidad Financiera'!$B$12:$X$62720,3,0)),"",VLOOKUP(C94,'Capacidad Financiera'!$B$12:$X$62720,3,0)) -> 0 | G94: =IF(OR(D94="",E94="",F94=""),"",IF(C94<>"",IF(ISERROR(VLOOKUP($A$10,POA!$A$2:$D$25,2,0)),"",VLOOKUP($A$10,POA!$A$2:$D$25,2,0)),"")) ->  | I94: =IF(OR(D94="",E94="",F94=""),"",IF(AND(H94>0,H94<=Experiencia1),Puntajes!$D$4,IF(AND(H94>Experiencia1,H94<=Experiencia2),Puntajes!$D$5,IF(AND(H94>Experiencia2,H94<=Experiencia3),Puntajes!$D$6,IF(H94>Experiencia3,Puntajes!$D$7,0))))) -> 
C95: =+'Capacidad Financiera'!B98 ->  | D95: =IF(ISERROR(VLOOKUP(C95,'Capacidad Financiera'!$B$12:$X$62720,2,0)),"",VLOOKUP(C95,'Capacidad Financiera'!$B$12:$X$3580,2,0)) -> 0 | E95: =IF(ISERROR(VLOOKUP(C95,'Capacidad Financiera'!$B$12:$X$62720,3,0)),"",VLOOKUP(C95,'Capacidad Financiera'!$B$12:$X$62720,3,0)) -> 0 | G95: =IF(OR(D95="",E95="",F95=""),"",IF(C95<>"",IF(ISERROR(VLOOKUP($A$10,POA!$A$2:$D$25,2,0)),"",VLOOKUP($A$10,POA!$A$2:$D$25,2,0)),"")) ->  | I95: =IF(OR(D95="",E95="",F95=""),"",IF(AND(H95>0,H95<=Experiencia1),Puntajes!$D$4,IF(AND(H95>Experiencia1,H95<=Experiencia2),Puntajes!$D$5,IF(AND(H95>Experiencia2,H95<=Experiencia3),Puntajes!$D$6,IF(H95>Experiencia3,Puntajes!$D$7,0))))) -> 
C96: =+'Capacidad Financiera'!B99 ->  | D96: =IF(ISERROR(VLOOKUP(C96,'Capacidad Financiera'!$B$12:$X$62720,2,0)),"",VLOOKUP(C96,'Capacidad Financiera'!$B$12:$X$3580,2,0)) -> 0 | E96: =IF(ISERROR(VLOOKUP(C96,'Capacidad Financiera'!$B$12:$X$62720,3,0)),"",VLOOKUP(C96,'Capacidad Financiera'!$B$12:$X$62720,3,0)) -> 0 | G96: =IF(OR(D96="",E96="",F96=""),"",IF(C96<>"",IF(ISERROR(VLOOKUP($A$10,POA!$A$2:$D$25,2,0)),"",VLOOKUP($A$10,POA!$A$2:$D$25,2,0)),"")) ->  | I96: =IF(OR(D96="",E96="",F96=""),"",IF(AND(H96>0,H96<=Experiencia1),Puntajes!$D$4,IF(AND(H96>Experiencia1,H96<=Experiencia2),Puntajes!$D$5,IF(AND(H96>Experiencia2,H96<=Experiencia3),Puntajes!$D$6,IF(H96>Experiencia3,Puntajes!$D$7,0))))) -> 
C97: 9 | D97: =IF(ISERROR(VLOOKUP(C97,'Capacidad Financiera'!$B$12:$X$62720,2,0)),"",VLOOKUP(C97,'Capacidad Financiera'!$B$12:$X$3580,2,0)) -> CONSORCIO INFRAESTRUCUTRA VIAL | E97: =IF(ISERROR(VLOOKUP(C97,'Capacidad Financiera'!$B$12:$X$62720,3,0)),"",VLOOKUP(C97,'Capacidad Financiera'!$B$12:$X$62720,3,0)) -> 1 | G97: =IF(OR(D97="",E97="",F97=""),"",IF(C98="",IF(C97<>"",IF(ISERROR(VLOOKUP($A$10,POA!$A$2:$D$25,2,0)),"",VLOOKUP($A$10,POA!$A$2:$D$25,2,0)),""),"")) ->  | H97: =IF(OR(D97="",E97="",F97=""),"",IF(C98="",IF(C97<>"",F97/G97,""),"")) ->  | I97: =IF(C98="",IF(F97="","",IF(AND(H97>0,H97<=Experiencia1),Puntajes!$D$4,IF(AND(H97>Experiencia1,H97<=Experiencia2),Puntajes!$D$5,IF(AND(H97>Experiencia2,H97<=Experiencia3),Puntajes!$D$6,IF(H97>Experiencia3,Puntajes!$D$7,0))))),"") -> 
C98: =+'Capacidad Financiera'!B101 -> 9.1 | D98: =IF(ISERROR(VLOOKUP(C98,'Capacidad Financiera'!$B$12:$X$62720,2,0)),"",VLOOKUP(C98,'Capacidad Financiera'!$B$12:$X$3580,2,0)) -> VNF S.A.S | E98: =IF(ISERROR(VLOOKUP(C98,'Capacidad Financiera'!$B$12:$X$62720,3,0)),"",VLOOKUP(C98,'Capacidad Financiera'!$B$12:$X$62720,3,0)) -> 0.8 | F98: 7397992756 | G98: =IF(OR(D98="",E98="",F98=""),"",IF(C98<>"",IF(ISERROR(VLOOKUP($A$10,POA!$A$2:$D$25,2,0)),"",VLOOKUP($A$10,POA!$A$2:$D$25,2,0)),"")) -> 4167150295 | H98: =IF(OR(D98="",E98="",F98=""),"",IF(C98<>"",F98/(G98*E98),"")) -> 2.219140249 | I98: =IF(OR(D98="",E98="",F98=""),"",IF(AND(H98>0,H98<=Experiencia1),Puntajes!$D$4,IF(AND(H98>Experiencia1,H98<=Experiencia2),Puntajes!$D$5,IF(AND(H98>Experiencia2,H98<=Experiencia3),Puntajes!$D$6,IF(H98>Experiencia3,Puntajes!$D$7,0))))) -> 60
C99: =+'Capacidad Financiera'!B102 -> 9.2 | D99: =IF(ISERROR(VLOOKUP(C99,'Capacidad Financiera'!$B$12:$X$62720,2,0)),"",VLOOKUP(C99,'Capacidad Financiera'!$B$12:$X$3580,2,0)) -> HORACIO VEGA CARDENAS | E99: =IF(ISERROR(VLOOKUP(C99,'Capacidad Financiera'!$B$12:$X$62720,3,0)),"",VLOOKUP(C99,'Capacidad Financiera'!$B$12:$X$62720,3,0)) -> 0.2 | F99: 1.164522675e+11 | G99: =IF(OR(D99="",E99="",F99=""),"",IF(C99<>"",IF(ISERROR(VLOOKUP($A$10,POA!$A$2:$D$25,2,0)),"",VLOOKUP($A$10,POA!$A$2:$D$25,2,0)),"")) -> 4167150295 | H99: =IF(OR(D99="",E99="",F99=""),"",IF(C99<>"",F99/(G99*E99),"")) -> 139.7265028 | I99: =IF(OR(D99="",E99="",F99=""),"",IF(AND(H99>0,H99<=Experiencia1),Puntajes!$D$4,IF(AND(H99>Experiencia1,H99<=Experiencia2),Puntajes!$D$5,IF(AND(H99>Experiencia2,H99<=Experiencia3),Puntajes!$D$6,IF(H99>Experiencia3,Puntajes!$D$7,0))))) -> 120
C100: =+'Capacidad Financiera'!B103 ->  | D100: =IF(ISERROR(VLOOKUP(C100,'Capacidad Financiera'!$B$12:$X$62720,2,0)),"",VLOOKUP(C100,'Capacidad Financiera'!$B$12:$X$3580,2,0)) -> 0 | E100: =IF(ISERROR(VLOOKUP(C100,'Capacidad Financiera'!$B$12:$X$62720,3,0)),"",VLOOKUP(C100,'Capacidad Financiera'!$B$12:$X$62720,3,0)) -> 0 | G100: =IF(OR(D100="",E100="",F100=""),"",IF(C100<>"",IF(ISERROR(VLOOKUP($A$10,POA!$A$2:$D$25,2,0)),"",VLOOKUP($A$10,POA!$A$2:$D$25,2,0)),"")) ->  | I100: =IF(OR(D100="",E100="",F100=""),"",IF(AND(H100>0,H100<=Experiencia1),Puntajes!$D$4,IF(AND(H100>Experiencia1,H100<=Experiencia2),Puntajes!$D$5,IF(AND(H100>Experiencia2,H100<=Experiencia3),Puntajes!$D$6,IF(H100>Experiencia3,Puntajes!$D$7,0))))) -> 
C101: =+'Capacidad Financiera'!B104 ->  | D101: =IF(ISERROR(VLOOKUP(C101,'Capacidad Financiera'!$B$12:$X$62720,2,0)),"",VLOOKUP(C101,'Capacidad Financiera'!$B$12:$X$3580,2,0)) -> 0 | E101: =IF(ISERROR(VLOOKUP(C101,'Capacidad Financiera'!$B$12:$X$62720,3,0)),"",VLOOKUP(C101,'Capacidad Financiera'!$B$12:$X$62720,3,0)) -> 0 | G101: =IF(OR(D101="",E101="",F101=""),"",IF(C101<>"",IF(ISERROR(VLOOKUP($A$10,POA!$A$2:$D$25,2,0)),"",VLOOKUP($A$10,POA!$A$2:$D$25,2,0)),"")) ->  | I101: =IF(OR(D101="",E101="",F101=""),"",IF(AND(H101>0,H101<=Experiencia1),Puntajes!$D$4,IF(AND(H101>Experiencia1,H101<=Experiencia2),Puntajes!$D$5,IF(AND(H101>Experiencia2,H101<=Experiencia3),Puntajes!$D$6,IF(H101>Experiencia3,Puntajes!$D$7,0))))) -> 
C102: =+'Capacidad Financiera'!B105 ->  | D102: =IF(ISERROR(VLOOKUP(C102,'Capacidad Financiera'!$B$12:$X$62720,2,0)),"",VLOOKUP(C102,'Capacidad Financiera'!$B$12:$X$3580,2,0)) -> 0 | E102: =IF(ISERROR(VLOOKUP(C102,'Capacidad Financiera'!$B$12:$X$62720,3,0)),"",VLOOKUP(C102,'Capacidad Financiera'!$B$12:$X$62720,3,0)) -> 0 | G102: =IF(OR(D102="",E102="",F102=""),"",IF(C102<>"",IF(ISERROR(VLOOKUP($A$10,POA!$A$2:$D$25,2,0)),"",VLOOKUP($A$10,POA!$A$2:$D$25,2,0)),"")) ->  | I102: =IF(OR(D102="",E102="",F102=""),"",IF(AND(H102>0,H102<=Experiencia1),Puntajes!$D$4,IF(AND(H102>Experiencia1,H102<=Experiencia2),Puntajes!$D$5,IF(AND(H102>Experiencia2,H102<=Experiencia3),Puntajes!$D$6,IF(H102>Experiencia3,Puntajes!$D$7,0))))) -> 
C103: =+'Capacidad Financiera'!B106 ->  | D103: =IF(ISERROR(VLOOKUP(C103,'Capacidad Financiera'!$B$12:$X$62720,2,0)),"",VLOOKUP(C103,'Capacidad Financiera'!$B$12:$X$3580,2,0)) -> 0 | E103: =IF(ISERROR(VLOOKUP(C103,'Capacidad Financiera'!$B$12:$X$62720,3,0)),"",VLOOKUP(C103,'Capacidad Financiera'!$B$12:$X$62720,3,0)) -> 0 | G103: =IF(OR(D103="",E103="",F103=""),"",IF(C103<>"",IF(ISERROR(VLOOKUP($A$10,POA!$A$2:$D$25,2,0)),"",VLOOKUP($A$10,POA!$A$2:$D$25,2,0)),"")) ->  | I103: =IF(OR(D103="",E103="",F103=""),"",IF(AND(H103>0,H103<=Experiencia1),Puntajes!$D$4,IF(AND(H103>Experiencia1,H103<=Experiencia2),Puntajes!$D$5,IF(AND(H103>Experiencia2,H103<=Experiencia3),Puntajes!$D$6,IF(H103>Experiencia3,Puntajes!$D$7,0))))) -> 
C104: =+'Capacidad Financiera'!B107 ->  | D104: =IF(ISERROR(VLOOKUP(C104,'Capacidad Financiera'!$B$12:$X$62720,2,0)),"",VLOOKUP(C104,'Capacidad Financiera'!$B$12:$X$3580,2,0)) -> 0 | E104: =IF(ISERROR(VLOOKUP(C104,'Capacidad Financiera'!$B$12:$X$62720,3,0)),"",VLOOKUP(C104,'Capacidad Financiera'!$B$12:$X$62720,3,0)) -> 0 | G104: =IF(OR(D104="",E104="",F104=""),"",IF(C104<>"",IF(ISERROR(VLOOKUP($A$10,POA!$A$2:$D$25,2,0)),"",VLOOKUP($A$10,POA!$A$2:$D$25,2,0)),"")) ->  | I104: =IF(OR(D104="",E104="",F104=""),"",IF(AND(H104>0,H104<=Experiencia1),Puntajes!$D$4,IF(AND(H104>Experiencia1,H104<=Experiencia2),Puntajes!$D$5,IF(AND(H104>Experiencia2,H104<=Experiencia3),Puntajes!$D$6,IF(H104>Experiencia3,Puntajes!$D$7,0))))) -> 
C105: =+'Capacidad Financiera'!B108 ->  | D105: =IF(ISERROR(VLOOKUP(C105,'Capacidad Financiera'!$B$12:$X$62720,2,0)),"",VLOOKUP(C105,'Capacidad Financiera'!$B$12:$X$3580,2,0)) -> 0 | E105: =IF(ISERROR(VLOOKUP(C105,'Capacidad Financiera'!$B$12:$X$62720,3,0)),"",VLOOKUP(C105,'Capacidad Financiera'!$B$12:$X$62720,3,0)) -> 0 | G105: =IF(OR(D105="",E105="",F105=""),"",IF(C105<>"",IF(ISERROR(VLOOKUP($A$10,POA!$A$2:$D$25,2,0)),"",VLOOKUP($A$10,POA!$A$2:$D$25,2,0)),"")) ->  | I105: =IF(OR(D105="",E105="",F105=""),"",IF(AND(H105>0,H105<=Experiencia1),Puntajes!$D$4,IF(AND(H105>Experiencia1,H105<=Experiencia2),Puntajes!$D$5,IF(AND(H105>Experiencia2,H105<=Experiencia3),Puntajes!$D$6,IF(H105>Experiencia3,Puntajes!$D$7,0))))) -> 
C106: =+'Capacidad Financiera'!B109 ->  | D106: =IF(ISERROR(VLOOKUP(C106,'Capacidad Financiera'!$B$12:$X$62720,2,0)),"",VLOOKUP(C106,'Capacidad Financiera'!$B$12:$X$3580,2,0)) -> 0 | E106: =IF(ISERROR(VLOOKUP(C106,'Capacidad Financiera'!$B$12:$X$62720,3,0)),"",VLOOKUP(C106,'Capacidad Financiera'!$B$12:$X$62720,3,0)) -> 0 | G106: =IF(OR(D106="",E106="",F106=""),"",IF(C106<>"",IF(ISERROR(VLOOKUP($A$10,POA!$A$2:$D$25,2,0)),"",VLOOKUP($A$10,POA!$A$2:$D$25,2,0)),"")) ->  | I106: =IF(OR(D106="",E106="",F106=""),"",IF(AND(H106>0,H106<=Experiencia1),Puntajes!$D$4,IF(AND(H106>Experiencia1,H106<=Experiencia2),Puntajes!$D$5,IF(AND(H106>Experiencia2,H106<=Experiencia3),Puntajes!$D$6,IF(H106>Experiencia3,Puntajes!$D$7,0))))) -> 
C107: =+'Capacidad Financiera'!B110 ->  | D107: =IF(ISERROR(VLOOKUP(C107,'Capacidad Financiera'!$B$12:$X$62720,2,0)),"",VLOOKUP(C107,'Capacidad Financiera'!$B$12:$X$3580,2,0)) -> 0 | E107: =IF(ISERROR(VLOOKUP(C107,'Capacidad Financiera'!$B$12:$X$62720,3,0)),"",VLOOKUP(C107,'Capacidad Financiera'!$B$12:$X$62720,3,0)) -> 0 | G107: =IF(OR(D107="",E107="",F107=""),"",IF(C107<>"",IF(ISERROR(VLOOKUP($A$10,POA!$A$2:$D$25,2,0)),"",VLOOKUP($A$10,POA!$A$2:$D$25,2,0)),"")) ->  | I107: =IF(OR(D107="",E107="",F107=""),"",IF(AND(H107>0,H107<=Experiencia1),Puntajes!$D$4,IF(AND(H107>Experiencia1,H107<=Experiencia2),Puntajes!$D$5,IF(AND(H107>Experiencia2,H107<=Experiencia3),Puntajes!$D$6,IF(H107>Experiencia3,Puntajes!$D$7,0))))) -> 
C108: 10 | D108: =IF(ISERROR(VLOOKUP(C108,'Capacidad Financiera'!$B$12:$X$62720,2,0)),"",VLOOKUP(C108,'Capacidad Financiera'!$B$12:$X$3580,2,0)) -> CONSORCIO AM 034 | E108: =IF(ISERROR(VLOOKUP(C108,'Capacidad Financiera'!$B$12:$X$62720,3,0)),"",VLOOKUP(C108,'Capacidad Financiera'!$B$12:$X$62720,3,0)) -> 1 | G108: =IF(OR(D108="",E108="",F108=""),"",IF(C109="",IF(C108<>"",IF(ISERROR(VLOOKUP($A$10,POA!$A$2:$D$25,2,0)),"",VLOOKUP($A$10,POA!$A$2:$D$25,2,0)),""),"")) ->  | H108: =IF(OR(D108="",E108="",F108=""),"",IF(C109="",IF(C108<>"",F108/G108,""),"")) ->  | I108: =IF(C109="",IF(F108="","",IF(AND(H108>0,H108<=Experiencia1),Puntajes!$D$4,IF(AND(H108>Experiencia1,H108<=Experiencia2),Puntajes!$D$5,IF(AND(H108>Experiencia2,H108<=Experiencia3),Puntajes!$D$6,IF(H108>Experiencia3,Puntajes!$D$7,0))))),"") -> 
C109: =+'Capacidad Financiera'!B112 -> 10.1 | D109: =IF(ISERROR(VLOOKUP(C109,'Capacidad Financiera'!$B$12:$X$62720,2,0)),"",VLOOKUP(C109,'Capacidad Financiera'!$B$12:$X$3580,2,0)) -> ROGELIO ARDILA TORRES | E109: =IF(ISERROR(VLOOKUP(C109,'Capacidad Financiera'!$B$12:$X$62720,3,0)),"",VLOOKUP(C109,'Capacidad Financiera'!$B$12:$X$62720,3,0)) -> 0.5 | F109: 3.196001461e+10 | G109: =IF(OR(D109="",E109="",F109=""),"",IF(C109<>"",IF(ISERROR(VLOOKUP($A$10,POA!$A$2:$D$25,2,0)),"",VLOOKUP($A$10,POA!$A$2:$D$25,2,0)),"")) -> 4167150295 | H109: =IF(OR(D109="",E109="",F109=""),"",IF(C109<>"",F109/(G109*E109),"")) -> 15.3390266 | I109: =IF(OR(D109="",E109="",F109=""),"",IF(AND(H109>0,H109<=Experiencia1),Puntajes!$D$4,IF(AND(H109>Experiencia1,H109<=Experiencia2),Puntajes!$D$5,IF(AND(H109>Experiencia2,H109<=Experiencia3),Puntajes!$D$6,IF(H109>Experiencia3,Puntajes!$D$7,0))))) -> 120
C110: =+'Capacidad Financiera'!B113 -> 10.2 | D110: =IF(ISERROR(VLOOKUP(C110,'Capacidad Financiera'!$B$12:$X$62720,2,0)),"",VLOOKUP(C110,'Capacidad Financiera'!$B$12:$X$3580,2,0)) -> PAVIMENTACIONES MORALES SL | E110: =IF(ISERROR(VLOOKUP(C110,'Capacidad Financiera'!$B$12:$X$62720,3,0)),"",VLOOKUP(C110,'Capacidad Financiera'!$B$12:$X$62720,3,0)) -> 0.5 | F110: 267365806862 | G110: =IF(OR(D110="",E110="",F110=""),"",IF(C110<>"",IF(ISERROR(VLOOKUP($A$10,POA!$A$2:$D$25,2,0)),"",VLOOKUP($A$10,POA!$A$2:$D$25,2,0)),"")) -> 4167150295 | H110: =IF(OR(D110="",E110="",F110=""),"",IF(C110<>"",F110/(G110*E110),"")) -> 128.320693 | I110: =IF(OR(D110="",E110="",F110=""),"",IF(AND(H110>0,H110<=Experiencia1),Puntajes!$D$4,IF(AND(H110>Experiencia1,H110<=Experiencia2),Puntajes!$D$5,IF(AND(H110>Experiencia2,H110<=Experiencia3),Puntajes!$D$6,IF(H110>Experiencia3,Puntajes!$D$7,0))))) -> 120
C111: =+'Capacidad Financiera'!B114 ->  | D111: =IF(ISERROR(VLOOKUP(C111,'Capacidad Financiera'!$B$12:$X$62720,2,0)),"",VLOOKUP(C111,'Capacidad Financiera'!$B$12:$X$3580,2,0)) -> 0 | E111: =IF(ISERROR(VLOOKUP(C111,'Capacidad Financiera'!$B$12:$X$62720,3,0)),"",VLOOKUP(C111,'Capacidad Financiera'!$B$12:$X$62720,3,0)) -> 0 | G111: =IF(OR(D111="",E111="",F111=""),"",IF(C111<>"",IF(ISERROR(VLOOKUP($A$10,POA!$A$2:$D$25,2,0)),"",VLOOKUP($A$10,POA!$A$2:$D$25,2,0)),"")) ->  | I111: =IF(OR(D111="",E111="",F111=""),"",IF(AND(H111>0,H111<=Experiencia1),Puntajes!$D$4,IF(AND(H111>Experiencia1,H111<=Experiencia2),Puntajes!$D$5,IF(AND(H111>Experiencia2,H111<=Experiencia3),Puntajes!$D$6,IF(H111>Experiencia3,Puntajes!$D$7,0))))) -> 
C112: =+'Capacidad Financiera'!B115 ->  | D112: =IF(ISERROR(VLOOKUP(C112,'Capacidad Financiera'!$B$12:$X$62720,2,0)),"",VLOOKUP(C112,'Capacidad Financiera'!$B$12:$X$3580,2,0)) -> 0 | E112: =IF(ISERROR(VLOOKUP(C112,'Capacidad Financiera'!$B$12:$X$62720,3,0)),"",VLOOKUP(C112,'Capacidad Financiera'!$B$12:$X$62720,3,0)) -> 0 | G112: =IF(OR(D112="",E112="",F112=""),"",IF(C112<>"",IF(ISERROR(VLOOKUP($A$10,POA!$A$2:$D$25,2,0)),"",VLOOKUP($A$10,POA!$A$2:$D$25,2,0)),"")) ->  | I112: =IF(OR(D112="",E112="",F112=""),"",IF(AND(H112>0,H112<=Experiencia1),Puntajes!$D$4,IF(AND(H112>Experiencia1,H112<=Experiencia2),Puntajes!$D$5,IF(AND(H112>Experiencia2,H112<=Experiencia3),Puntajes!$D$6,IF(H112>Experiencia3,Puntajes!$D$7,0))))) -> 
C113: =+'Capacidad Financiera'!B116 ->  | D113: =IF(ISERROR(VLOOKUP(C113,'Capacidad Financiera'!$B$12:$X$62720,2,0)),"",VLOOKUP(C113,'Capacidad Financiera'!$B$12:$X$3580,2,0)) -> 0 | E113: =IF(ISERROR(VLOOKUP(C113,'Capacidad Financiera'!$B$12:$X$62720,3,0)),"",VLOOKUP(C113,'Capacidad Financiera'!$B$12:$X$62720,3,0)) -> 0 | G113: =IF(OR(D113="",E113="",F113=""),"",IF(C113<>"",IF(ISERROR(VLOOKUP($A$10,POA!$A$2:$D$25,2,0)),"",VLOOKUP($A$10,POA!$A$2:$D$25,2,0)),"")) ->  | I113: =IF(OR(D113="",E113="",F113=""),"",IF(AND(H113>0,H113<=Experiencia1),Puntajes!$D$4,IF(AND(H113>Experiencia1,H113<=Experiencia2),Puntajes!$D$5,IF(AND(H113>Experiencia2,H113<=Experiencia3),Puntajes!$D$6,IF(H113>Experiencia3,Puntajes!$D$7,0))))) -> 
C114: =+'Capacidad Financiera'!B117 ->  | D114: =IF(ISERROR(VLOOKUP(C114,'Capacidad Financiera'!$B$12:$X$62720,2,0)),"",VLOOKUP(C114,'Capacidad Financiera'!$B$12:$X$3580,2,0)) -> 0 | E114: =IF(ISERROR(VLOOKUP(C114,'Capacidad Financiera'!$B$12:$X$62720,3,0)),"",VLOOKUP(C114,'Capacidad Financiera'!$B$12:$X$62720,3,0)) -> 0 | G114: =IF(OR(D114="",E114="",F114=""),"",IF(C114<>"",IF(ISERROR(VLOOKUP($A$10,POA!$A$2:$D$25,2,0)),"",VLOOKUP($A$10,POA!$A$2:$D$25,2,0)),"")) ->  | I114: =IF(OR(D114="",E114="",F114=""),"",IF(AND(H114>0,H114<=Experiencia1),Puntajes!$D$4,IF(AND(H114>Experiencia1,H114<=Experiencia2),Puntajes!$D$5,IF(AND(H114>Experiencia2,H114<=Experiencia3),Puntajes!$D$6,IF(H114>Experiencia3,Puntajes!$D$7,0))))) -> 
C115: =+'Capacidad Financiera'!B118 ->  | D115: =IF(ISERROR(VLOOKUP(C115,'Capacidad Financiera'!$B$12:$X$62720,2,0)),"",VLOOKUP(C115,'Capacidad Financiera'!$B$12:$X$3580,2,0)) -> 0 | E115: =IF(ISERROR(VLOOKUP(C115,'Capacidad Financiera'!$B$12:$X$62720,3,0)),"",VLOOKUP(C115,'Capacidad Financiera'!$B$12:$X$62720,3,0)) -> 0 | G115: =IF(OR(D115="",E115="",F115=""),"",IF(C115<>"",IF(ISERROR(VLOOKUP($A$10,POA!$A$2:$D$25,2,0)),"",VLOOKUP($A$10,POA!$A$2:$D$25,2,0)),"")) ->  | I115: =IF(OR(D115="",E115="",F115=""),"",IF(AND(H115>0,H115<=Experiencia1),Puntajes!$D$4,IF(AND(H115>Experiencia1,H115<=Experiencia2),Puntajes!$D$5,IF(AND(H115>Experiencia2,H115<=Experiencia3),Puntajes!$D$6,IF(H115>Experiencia3,Puntajes!$D$7,0))))) -> 
C116: =+'Capacidad Financiera'!B119 ->  | D116: =IF(ISERROR(VLOOKUP(C116,'Capacidad Financiera'!$B$12:$X$62720,2,0)),"",VLOOKUP(C116,'Capacidad Financiera'!$B$12:$X$3580,2,0)) -> 0 | E116: =IF(ISERROR(VLOOKUP(C116,'Capacidad Financiera'!$B$12:$X$62720,3,0)),"",VLOOKUP(C116,'Capacidad Financiera'!$B$12:$X$62720,3,0)) -> 0 | G116: =IF(OR(D116="",E116="",F116=""),"",IF(C116<>"",IF(ISERROR(VLOOKUP($A$10,POA!$A$2:$D$25,2,0)),"",VLOOKUP($A$10,POA!$A$2:$D$25,2,0)),"")) ->  | I116: =IF(OR(D116="",E116="",F116=""),"",IF(AND(H116>0,H116<=Experiencia1),Puntajes!$D$4,IF(AND(H116>Experiencia1,H116<=Experiencia2),Puntajes!$D$5,IF(AND(H116>Experiencia2,H116<=Experiencia3),Puntajes!$D$6,IF(H116>Experiencia3,Puntajes!$D$7,0))))) -> 
C117: =+'Capacidad Financiera'!B120 ->  | D117: =IF(ISERROR(VLOOKUP(C117,'Capacidad Financiera'!$B$12:$X$62720,2,0)),"",VLOOKUP(C117,'Capacidad Financiera'!$B$12:$X$3580,2,0)) -> 0 | E117: =IF(ISERROR(VLOOKUP(C117,'Capacidad Financiera'!$B$12:$X$62720,3,0)),"",VLOOKUP(C117,'Capacidad Financiera'!$B$12:$X$62720,3,0)) -> 0 | G117: =IF(OR(D117="",E117="",F117=""),"",IF(C117<>"",IF(ISERROR(VLOOKUP($A$10,POA!$A$2:$D$25,2,0)),"",VLOOKUP($A$10,POA!$A$2:$D$25,2,0)),"")) ->  | I117: =IF(OR(D117="",E117="",F117=""),"",IF(AND(H117>0,H117<=Experiencia1),Puntajes!$D$4,IF(AND(H117>Experiencia1,H117<=Experiencia2),Puntajes!$D$5,IF(AND(H117>Experiencia2,H117<=Experiencia3),Puntajes!$D$6,IF(H117>Experiencia3,Puntajes!$D$7,0))))) -> 
C118: =+'Capacidad Financiera'!B121 ->  | D118: =IF(ISERROR(VLOOKUP(C118,'Capacidad Financiera'!$B$12:$X$62720,2,0)),"",VLOOKUP(C118,'Capacidad Financiera'!$B$12:$X$3580,2,0)) -> 0 | E118: =IF(ISERROR(VLOOKUP(C118,'Capacidad Financiera'!$B$12:$X$62720,3,0)),"",VLOOKUP(C118,'Capacidad Financiera'!$B$12:$X$62720,3,0)) -> 0 | G118: =IF(OR(D118="",E118="",F118=""),"",IF(C118<>"",IF(ISERROR(VLOOKUP($A$10,POA!$A$2:$D$25,2,0)),"",VLOOKUP($A$10,POA!$A$2:$D$25,2,0)),"")) ->  | I118: =IF(OR(D118="",E118="",F118=""),"",IF(AND(H118>0,H118<=Experiencia1),Puntajes!$D$4,IF(AND(H118>Experiencia1,H118<=Experiencia2),Puntajes!$D$5,IF(AND(H118>Experiencia2,H118<=Experiencia3),Puntajes!$D$6,IF(H118>Experiencia3,Puntajes!$D$7,0))))) -> 
C119: 11 | D119: =IF(ISERROR(VLOOKUP(C119,'Capacidad Financiera'!$B$12:$X$62720,2,0)),"",VLOOKUP(C119,'Capacidad Financiera'!$B$12:$X$3580,2,0)) -> CONSORCIO INTERVIAS CUNDINAMARCA 2014 | E119: =IF(ISERROR(VLOOKUP(C119,'Capacidad Financiera'!$B$12:$X$62720,3,0)),"",VLOOKUP(C119,'Capacidad Financiera'!$B$12:$X$62720,3,0)) -> 1 | G119: =IF(OR(D119="",E119="",F119=""),"",IF(C120="",IF(C119<>"",IF(ISERROR(VLOOKUP($A$10,POA!$A$2:$D$25,2,0)),"",VLOOKUP($A$10,POA!$A$2:$D$25,2,0)),""),"")) ->  | H119: =IF(OR(D119="",E119="",F119=""),"",IF(C120="",IF(C119<>"",F119/G119,""),"")) ->  | I119: =IF(C120="",IF(F119="","",IF(AND(H119>0,H119<=Experiencia1),Puntajes!$D$4,IF(AND(H119>Experiencia1,H119<=Experiencia2),Puntajes!$D$5,IF(AND(H119>Experiencia2,H119<=Experiencia3),Puntajes!$D$6,IF(H119>Experiencia3,Puntajes!$D$7,0))))),"") -> 
C120: =+'Capacidad Financiera'!B123 -> 11.1 | D120: =IF(ISERROR(VLOOKUP(C120,'Capacidad Financiera'!$B$12:$X$62720,2,0)),"",VLOOKUP(C120,'Capacidad Financiera'!$B$12:$X$3580,2,0)) -> MBM INGENIERIA S.A.S. | E120: =IF(ISERROR(VLOOKUP(C120,'Capacidad Financiera'!$B$12:$X$62720,3,0)),"",VLOOKUP(C120,'Capacidad Financiera'!$B$12:$X$62720,3,0)) -> 0.4 | F120: 668447472 | G120: =IF(OR(D120="",E120="",F120=""),"",IF(C120<>"",IF(ISERROR(VLOOKUP($A$10,POA!$A$2:$D$25,2,0)),"",VLOOKUP($A$10,POA!$A$2:$D$25,2,0)),"")) -> 4167150295 | H120: =IF(OR(D120="",E120="",F120=""),"",IF(C120<>"",F120/(G120*E120),"")) -> 0.4010219363 | I120: =IF(OR(D120="",E120="",F120=""),"",IF(AND(H120>0,H120<=Experiencia1),Puntajes!$D$4,IF(AND(H120>Experiencia1,H120<=Experiencia2),Puntajes!$D$5,IF(AND(H120>Experiencia2,H120<=Experiencia3),Puntajes!$D$6,IF(H120>Experiencia3,Puntajes!$D$7,0))))) -> 60
C121: =+'Capacidad Financiera'!B124 -> 11.2 | D121: =IF(ISERROR(VLOOKUP(C121,'Capacidad Financiera'!$B$12:$X$62720,2,0)),"",VLOOKUP(C121,'Capacidad Financiera'!$B$12:$X$3580,2,0)) -> GUEVARA BAQUERO CIA LTDA. | E121: =IF(ISERROR(VLOOKUP(C121,'Capacidad Financiera'!$B$12:$X$62720,3,0)),"",VLOOKUP(C121,'Capacidad Financiera'!$B$12:$X$62720,3,0)) -> 0.4 | F121: 5.027581192e+10 | G121: =IF(OR(D121="",E121="",F121=""),"",IF(C121<>"",IF(ISERROR(VLOOKUP($A$10,POA!$A$2:$D$25,2,0)),"",VLOOKUP($A$10,POA!$A$2:$D$25,2,0)),"")) -> 4167150295 | H121: =IF(OR(D121="",E121="",F121=""),"",IF(C121<>"",F121/(G121*E121),"")) -> 30.16198623 | I121: =IF(OR(D121="",E121="",F121=""),"",IF(AND(H121>0,H121<=Experiencia1),Puntajes!$D$4,IF(AND(H121>Experiencia1,H121<=Experiencia2),Puntajes!$D$5,IF(AND(H121>Experiencia2,H121<=Experiencia3),Puntajes!$D$6,IF(H121>Experiencia3,Puntajes!$D$7,0))))) -> 120
C122: =+'Capacidad Financiera'!B125 -> 11.3 | D122: =IF(ISERROR(VLOOKUP(C122,'Capacidad Financiera'!$B$12:$X$62720,2,0)),"",VLOOKUP(C122,'Capacidad Financiera'!$B$12:$X$3580,2,0)) -> VIGA INGENIERIA S.A.S. | E122: =IF(ISERROR(VLOOKUP(C122,'Capacidad Financiera'!$B$12:$X$62720,3,0)),"",VLOOKUP(C122,'Capacidad Financiera'!$B$12:$X$62720,3,0)) -> 0.2 | F122: 844421424 | G122: =IF(OR(D122="",E122="",F122=""),"",IF(C122<>"",IF(ISERROR(VLOOKUP($A$10,POA!$A$2:$D$25,2,0)),"",VLOOKUP($A$10,POA!$A$2:$D$25,2,0)),"")) -> 4167150295 | H122: 1.013188107 | I122: =IF(OR(D122="",E122="",F122=""),"",IF(AND(H122>0,H122<=Experiencia1),Puntajes!$D$4,IF(AND(H122>Experiencia1,H122<=Experiencia2),Puntajes!$D$5,IF(AND(H122>Experiencia2,H122<=Experiencia3),Puntajes!$D$6,IF(H122>Experiencia3,Puntajes!$D$7,0))))) -> 60
C123: =+'Capacidad Financiera'!B126 ->  | D123: =IF(ISERROR(VLOOKUP(C123,'Capacidad Financiera'!$B$12:$X$62720,2,0)),"",VLOOKUP(C123,'Capacidad Financiera'!$B$12:$X$3580,2,0)) -> 0 | E123: =IF(ISERROR(VLOOKUP(C123,'Capacidad Financiera'!$B$12:$X$62720,3,0)),"",VLOOKUP(C123,'Capacidad Financiera'!$B$12:$X$62720,3,0)) -> 0 | G123: =IF(OR(D123="",E123="",F123=""),"",IF(C123<>"",IF(ISERROR(VLOOKUP($A$10,POA!$A$2:$D$25,2,0)),"",VLOOKUP($A$10,POA!$A$2:$D$25,2,0)),"")) ->  | I123: =IF(OR(D123="",E123="",F123=""),"",IF(AND(H123>0,H123<=Experiencia1),Puntajes!$D$4,IF(AND(H123>Experiencia1,H123<=Experiencia2),Puntajes!$D$5,IF(AND(H123>Experiencia2,H123<=Experiencia3),Puntajes!$D$6,IF(H123>Experiencia3,Puntajes!$D$7,0))))) -> 
C124: =+'Capacidad Financiera'!B127 ->  | D124: =IF(ISERROR(VLOOKUP(C124,'Capacidad Financiera'!$B$12:$X$62720,2,0)),"",VLOOKUP(C124,'Capacidad Financiera'!$B$12:$X$3580,2,0)) -> 0 | E124: =IF(ISERROR(VLOOKUP(C124,'Capacidad Financiera'!$B$12:$X$62720,3,0)),"",VLOOKUP(C124,'Capacidad Financiera'!$B$12:$X$62720,3,0)) -> 0 | G124: =IF(OR(D124="",E124="",F124=""),"",IF(C124<>"",IF(ISERROR(VLOOKUP($A$10,POA!$A$2:$D$25,2,0)),"",VLOOKUP($A$10,POA!$A$2:$D$25,2,0)),"")) ->  | I124: =IF(OR(D124="",E124="",F124=""),"",IF(AND(H124>0,H124<=Experiencia1),Puntajes!$D$4,IF(AND(H124>Experiencia1,H124<=Experiencia2),Puntajes!$D$5,IF(AND(H124>Experiencia2,H124<=Experiencia3),Puntajes!$D$6,IF(H124>Experiencia3,Puntajes!$D$7,0))))) -> 
C125: =+'Capacidad Financiera'!B128 ->  | D125: =IF(ISERROR(VLOOKUP(C125,'Capacidad Financiera'!$B$12:$X$62720,2,0)),"",VLOOKUP(C125,'Capacidad Financiera'!$B$12:$X$3580,2,0)) -> 0 | E125: =IF(ISERROR(VLOOKUP(C125,'Capacidad Financiera'!$B$12:$X$62720,3,0)),"",VLOOKUP(C125,'Capacidad Financiera'!$B$12:$X$62720,3,0)) -> 0 | G125: =IF(OR(D125="",E125="",F125=""),"",IF(C125<>"",IF(ISERROR(VLOOKUP($A$10,POA!$A$2:$D$25,2,0)),"",VLOOKUP($A$10,POA!$A$2:$D$25,2,0)),"")) ->  | I125: =IF(OR(D125="",E125="",F125=""),"",IF(AND(H125>0,H125<=Experiencia1),Puntajes!$D$4,IF(AND(H125>Experiencia1,H125<=Experiencia2),Puntajes!$D$5,IF(AND(H125>Experiencia2,H125<=Experiencia3),Puntajes!$D$6,IF(H125>Experiencia3,Puntajes!$D$7,0))))) -> 
C126: =+'Capacidad Financiera'!B129 ->  | D126: =IF(ISERROR(VLOOKUP(C126,'Capacidad Financiera'!$B$12:$X$62720,2,0)),"",VLOOKUP(C126,'Capacidad Financiera'!$B$12:$X$3580,2,0)) -> 0 | E126: =IF(ISERROR(VLOOKUP(C126,'Capacidad Financiera'!$B$12:$X$62720,3,0)),"",VLOOKUP(C126,'Capacidad Financiera'!$B$12:$X$62720,3,0)) -> 0 | G126: =IF(OR(D126="",E126="",F126=""),"",IF(C126<>"",IF(ISERROR(VLOOKUP($A$10,POA!$A$2:$D$25,2,0)),"",VLOOKUP($A$10,POA!$A$2:$D$25,2,0)),"")) ->  | I126: =IF(OR(D126="",E126="",F126=""),"",IF(AND(H126>0,H126<=Experiencia1),Puntajes!$D$4,IF(AND(H126>Experiencia1,H126<=Experiencia2),Puntajes!$D$5,IF(AND(H126>Experiencia2,H126<=Experiencia3),Puntajes!$D$6,IF(H126>Experiencia3,Puntajes!$D$7,0))))) -> 
C127: =+'Capacidad Financiera'!B130 ->  | D127: =IF(ISERROR(VLOOKUP(C127,'Capacidad Financiera'!$B$12:$X$62720,2,0)),"",VLOOKUP(C127,'Capacidad Financiera'!$B$12:$X$3580,2,0)) -> 0 | E127: =IF(ISERROR(VLOOKUP(C127,'Capacidad Financiera'!$B$12:$X$62720,3,0)),"",VLOOKUP(C127,'Capacidad Financiera'!$B$12:$X$62720,3,0)) -> 0 | G127: =IF(OR(D127="",E127="",F127=""),"",IF(C127<>"",IF(ISERROR(VLOOKUP($A$10,POA!$A$2:$D$25,2,0)),"",VLOOKUP($A$10,POA!$A$2:$D$25,2,0)),"")) ->  | I127: =IF(OR(D127="",E127="",F127=""),"",IF(AND(H127>0,H127<=Experiencia1),Puntajes!$D$4,IF(AND(H127>Experiencia1,H127<=Experiencia2),Puntajes!$D$5,IF(AND(H127>Experiencia2,H127<=Experiencia3),Puntajes!$D$6,IF(H127>Experiencia3,Puntajes!$D$7,0))))) -> 
C128: =+'Capacidad Financiera'!B131 ->  | D128: =IF(ISERROR(VLOOKUP(C128,'Capacidad Financiera'!$B$12:$X$62720,2,0)),"",VLOOKUP(C128,'Capacidad Financiera'!$B$12:$X$3580,2,0)) -> 0 | E128: =IF(ISERROR(VLOOKUP(C128,'Capacidad Financiera'!$B$12:$X$62720,3,0)),"",VLOOKUP(C128,'Capacidad Financiera'!$B$12:$X$62720,3,0)) -> 0 | G128: =IF(OR(D128="",E128="",F128=""),"",IF(C128<>"",IF(ISERROR(VLOOKUP($A$10,POA!$A$2:$D$25,2,0)),"",VLOOKUP($A$10,POA!$A$2:$D$25,2,0)),"")) ->  | I128: =IF(OR(D128="",E128="",F128=""),"",IF(AND(H128>0,H128<=Experiencia1),Puntajes!$D$4,IF(AND(H128>Experiencia1,H128<=Experiencia2),Puntajes!$D$5,IF(AND(H128>Experiencia2,H128<=Experiencia3),Puntajes!$D$6,IF(H128>Experiencia3,Puntajes!$D$7,0))))) -> 
C129: =+'Capacidad Financiera'!B132 ->  | D129: =IF(ISERROR(VLOOKUP(C129,'Capacidad Financiera'!$B$12:$X$62720,2,0)),"",VLOOKUP(C129,'Capacidad Financiera'!$B$12:$X$3580,2,0)) -> 0 | E129: =IF(ISERROR(VLOOKUP(C129,'Capacidad Financiera'!$B$12:$X$62720,3,0)),"",VLOOKUP(C129,'Capacidad Financiera'!$B$12:$X$62720,3,0)) -> 0 | G129: =IF(OR(D129="",E129="",F129=""),"",IF(C129<>"",IF(ISERROR(VLOOKUP($A$10,POA!$A$2:$D$25,2,0)),"",VLOOKUP($A$10,POA!$A$2:$D$25,2,0)),"")) ->  | I129: =IF(OR(D129="",E129="",F129=""),"",IF(AND(H129>0,H129<=Experiencia1),Puntajes!$D$4,IF(AND(H129>Experiencia1,H129<=Experiencia2),Puntajes!$D$5,IF(AND(H129>Experiencia2,H129<=Experiencia3),Puntajes!$D$6,IF(H129>Experiencia3,Puntajes!$D$7,0))))) -> 
C130: 12 | D130: =IF(ISERROR(VLOOKUP(C130,'Capacidad Financiera'!$B$12:$X$62720,2,0)),"",VLOOKUP(C130,'Capacidad Financiera'!$B$12:$X$3580,2,0)) -> UNION TEMPORALSANTA MONICA | E130: =IF(ISERROR(VLOOKUP(C130,'Capacidad Financiera'!$B$12:$X$62720,3,0)),"",VLOOKUP(C130,'Capacidad Financiera'!$B$12:$X$62720,3,0)) -> 1 | G130: =IF(OR(D130="",E130="",F130=""),"",IF(C131="",IF(C130<>"",IF(ISERROR(VLOOKUP($A$10,POA!$A$2:$D$25,2,0)),"",VLOOKUP($A$10,POA!$A$2:$D$25,2,0)),""),"")) ->  | H130: =IF(OR(D130="",E130="",F130=""),"",IF(C131="",IF(C130<>"",F130/G130,""),"")) ->  | I130: =IF(C131="",IF(F130="","",IF(AND(H130>0,H130<=Experiencia1),Puntajes!$D$4,IF(AND(H130>Experiencia1,H130<=Experiencia2),Puntajes!$D$5,IF(AND(H130>Experiencia2,H130<=Experiencia3),Puntajes!$D$6,IF(H130>Experiencia3,Puntajes!$D$7,0))))),"") -> 
C131: =+'Capacidad Financiera'!B134 -> 12.1 | D131: =IF(ISERROR(VLOOKUP(C131,'Capacidad Financiera'!$B$12:$X$62720,2,0)),"",VLOOKUP(C131,'Capacidad Financiera'!$B$12:$X$3580,2,0)) -> EQUIPOS Y CONSTRUCCIONES VAREGO S.A.S. | E131: =IF(ISERROR(VLOOKUP(C131,'Capacidad Financiera'!$B$12:$X$62720,3,0)),"",VLOOKUP(C131,'Capacidad Financiera'!$B$12:$X$62720,3,0)) -> 0.3 | F131: 6.960558236e+10 | G131: =IF(OR(D131="",E131="",F131=""),"",IF(C131<>"",IF(ISERROR(VLOOKUP($A$10,POA!$A$2:$D$25,2,0)),"",VLOOKUP($A$10,POA!$A$2:$D$25,2,0)),"")) -> 4167150295 | H131: =IF(OR(D131="",E131="",F131=""),"",IF(C131<>"",F131/(G131*E131),"")) -> 55.6780033 | I131: =IF(OR(D131="",E131="",F131=""),"",IF(AND(H131>0,H131<=Experiencia1),Puntajes!$D$4,IF(AND(H131>Experiencia1,H131<=Experiencia2),Puntajes!$D$5,IF(AND(H131>Experiencia2,H131<=Experiencia3),Puntajes!$D$6,IF(H131>Experiencia3,Puntajes!$D$7,0))))) -> 120
C132: =+'Capacidad Financiera'!B135 -> 12.2 | D132: =IF(ISERROR(VLOOKUP(C132,'Capacidad Financiera'!$B$12:$X$62720,2,0)),"",VLOOKUP(C132,'Capacidad Financiera'!$B$12:$X$3580,2,0)) -> VAREGO S.A.S. | E132: =IF(ISERROR(VLOOKUP(C132,'Capacidad Financiera'!$B$12:$X$62720,3,0)),"",VLOOKUP(C132,'Capacidad Financiera'!$B$12:$X$62720,3,0)) -> 0.3 | F132: 627785312 | G132: =IF(OR(D132="",E132="",F132=""),"",IF(C132<>"",IF(ISERROR(VLOOKUP($A$10,POA!$A$2:$D$25,2,0)),"",VLOOKUP($A$10,POA!$A$2:$D$25,2,0)),"")) -> 4167150295 | H132: =IF(OR(D132="",E132="",F132=""),"",IF(C132<>"",F132/(G132*E132),"")) -> 0.5021699623 | I132: =IF(OR(D132="",E132="",F132=""),"",IF(AND(H132>0,H132<=Experiencia1),Puntajes!$D$4,IF(AND(H132>Experiencia1,H132<=Experiencia2),Puntajes!$D$5,IF(AND(H132>Experiencia2,H132<=Experiencia3),Puntajes!$D$6,IF(H132>Experiencia3,Puntajes!$D$7,0))))) -> 60
C133: =+'Capacidad Financiera'!B136 -> 12.3 | D133: =IF(ISERROR(VLOOKUP(C133,'Capacidad Financiera'!$B$12:$X$62720,2,0)),"",VLOOKUP(C133,'Capacidad Financiera'!$B$12:$X$3580,2,0)) -> INCIVIAS LTDA. | E133: =IF(ISERROR(VLOOKUP(C133,'Capacidad Financiera'!$B$12:$X$62720,3,0)),"",VLOOKUP(C133,'Capacidad Financiera'!$B$12:$X$62720,3,0)) -> 0.4 | F133: 2.061233248e+10 | G133: =IF(OR(D133="",E133="",F133=""),"",IF(C133<>"",IF(ISERROR(VLOOKUP($A$10,POA!$A$2:$D$25,2,0)),"",VLOOKUP($A$10,POA!$A$2:$D$25,2,0)),"")) -> 4167150295 | H133: 12.36596416 | I133: =IF(OR(D133="",E133="",F133=""),"",IF(AND(H133>0,H133<=Experiencia1),Puntajes!$D$4,IF(AND(H133>Experiencia1,H133<=Experiencia2),Puntajes!$D$5,IF(AND(H133>Experiencia2,H133<=Experiencia3),Puntajes!$D$6,IF(H133>Experiencia3,Puntajes!$D$7,0))))) -> 120
C134: =+'Capacidad Financiera'!B137 ->  | D134: =IF(ISERROR(VLOOKUP(C134,'Capacidad Financiera'!$B$12:$X$62720,2,0)),"",VLOOKUP(C134,'Capacidad Financiera'!$B$12:$X$3580,2,0)) -> 0 | E134: =IF(ISERROR(VLOOKUP(C134,'Capacidad Financiera'!$B$12:$X$62720,3,0)),"",VLOOKUP(C134,'Capacidad Financiera'!$B$12:$X$62720,3,0)) -> 0 | G134: =IF(OR(D134="",E134="",F134=""),"",IF(C134<>"",IF(ISERROR(VLOOKUP($A$10,POA!$A$2:$D$25,2,0)),"",VLOOKUP($A$10,POA!$A$2:$D$25,2,0)),"")) ->  | I134: =IF(OR(D134="",E134="",F134=""),"",IF(AND(H134>0,H134<=Experiencia1),Puntajes!$D$4,IF(AND(H134>Experiencia1,H134<=Experiencia2),Puntajes!$D$5,IF(AND(H134>Experiencia2,H134<=Experiencia3),Puntajes!$D$6,IF(H134>Experiencia3,Puntajes!$D$7,0))))) -> 
C135: =+'Capacidad Financiera'!B138 ->  | D135: =IF(ISERROR(VLOOKUP(C135,'Capacidad Financiera'!$B$12:$X$62720,2,0)),"",VLOOKUP(C135,'Capacidad Financiera'!$B$12:$X$3580,2,0)) -> 0 | E135: =IF(ISERROR(VLOOKUP(C135,'Capacidad Financiera'!$B$12:$X$62720,3,0)),"",VLOOKUP(C135,'Capacidad Financiera'!$B$12:$X$62720,3,0)) -> 0 | G135: =IF(OR(D135="",E135="",F135=""),"",IF(C135<>"",IF(ISERROR(VLOOKUP($A$10,POA!$A$2:$D$25,2,0)),"",VLOOKUP($A$10,POA!$A$2:$D$25,2,0)),"")) ->  | I135: =IF(OR(D135="",E135="",F135=""),"",IF(AND(H135>0,H135<=Experiencia1),Puntajes!$D$4,IF(AND(H135>Experiencia1,H135<=Experiencia2),Puntajes!$D$5,IF(AND(H135>Experiencia2,H135<=Experiencia3),Puntajes!$D$6,IF(H135>Experiencia3,Puntajes!$D$7,0))))) -> 
C136: =+'Capacidad Financiera'!B139 ->  | D136: =IF(ISERROR(VLOOKUP(C136,'Capacidad Financiera'!$B$12:$X$62720,2,0)),"",VLOOKUP(C136,'Capacidad Financiera'!$B$12:$X$3580,2,0)) -> 0 | E136: =IF(ISERROR(VLOOKUP(C136,'Capacidad Financiera'!$B$12:$X$62720,3,0)),"",VLOOKUP(C136,'Capacidad Financiera'!$B$12:$X$62720,3,0)) -> 0 | G136: =IF(OR(D136="",E136="",F136=""),"",IF(C136<>"",IF(ISERROR(VLOOKUP($A$10,POA!$A$2:$D$25,2,0)),"",VLOOKUP($A$10,POA!$A$2:$D$25,2,0)),"")) ->  | I136: =IF(OR(D136="",E136="",F136=""),"",IF(AND(H136>0,H136<=Experiencia1),Puntajes!$D$4,IF(AND(H136>Experiencia1,H136<=Experiencia2),Puntajes!$D$5,IF(AND(H136>Experiencia2,H136<=Experiencia3),Puntajes!$D$6,IF(H136>Experiencia3,Puntajes!$D$7,0))))) -> 
C137: =+'Capacidad Financiera'!B140 ->  | D137: =IF(ISERROR(VLOOKUP(C137,'Capacidad Financiera'!$B$12:$X$62720,2,0)),"",VLOOKUP(C137,'Capacidad Financiera'!$B$12:$X$3580,2,0)) -> 0 | E137: =IF(ISERROR(VLOOKUP(C137,'Capacidad Financiera'!$B$12:$X$62720,3,0)),"",VLOOKUP(C137,'Capacidad Financiera'!$B$12:$X$62720,3,0)) -> 0 | G137: =IF(OR(D137="",E137="",F137=""),"",IF(C137<>"",IF(ISERROR(VLOOKUP($A$10,POA!$A$2:$D$25,2,0)),"",VLOOKUP($A$10,POA!$A$2:$D$25,2,0)),"")) ->  | I137: =IF(OR(D137="",E137="",F137=""),"",IF(AND(H137>0,H137<=Experiencia1),Puntajes!$D$4,IF(AND(H137>Experiencia1,H137<=Experiencia2),Puntajes!$D$5,IF(AND(H137>Experiencia2,H137<=Experiencia3),Puntajes!$D$6,IF(H137>Experiencia3,Puntajes!$D$7,0))))) -> 
C138: =+'Capacidad Financiera'!B141 ->  | D138: =IF(ISERROR(VLOOKUP(C138,'Capacidad Financiera'!$B$12:$X$62720,2,0)),"",VLOOKUP(C138,'Capacidad Financiera'!$B$12:$X$3580,2,0)) -> 0 | E138: =IF(ISERROR(VLOOKUP(C138,'Capacidad Financiera'!$B$12:$X$62720,3,0)),"",VLOOKUP(C138,'Capacidad Financiera'!$B$12:$X$62720,3,0)) -> 0 | G138: =IF(OR(D138="",E138="",F138=""),"",IF(C138<>"",IF(ISERROR(VLOOKUP($A$10,POA!$A$2:$D$25,2,0)),"",VLOOKUP($A$10,POA!$A$2:$D$25,2,0)),"")) ->  | I138: =IF(OR(D138="",E138="",F138=""),"",IF(AND(H138>0,H138<=Experiencia1),Puntajes!$D$4,IF(AND(H138>Experiencia1,H138<=Experiencia2),Puntajes!$D$5,IF(AND(H138>Experiencia2,H138<=Experiencia3),Puntajes!$D$6,IF(H138>Experiencia3,Puntajes!$D$7,0))))) -> 
C139: =+'Capacidad Financiera'!B142 ->  | D139: =IF(ISERROR(VLOOKUP(C139,'Capacidad Financiera'!$B$12:$X$62720,2,0)),"",VLOOKUP(C139,'Capacidad Financiera'!$B$12:$X$3580,2,0)) -> 0 | E139: =IF(ISERROR(VLOOKUP(C139,'Capacidad Financiera'!$B$12:$X$62720,3,0)),"",VLOOKUP(C139,'Capacidad Financiera'!$B$12:$X$62720,3,0)) -> 0 | G139: =IF(OR(D139="",E139="",F139=""),"",IF(C139<>"",IF(ISERROR(VLOOKUP($A$10,POA!$A$2:$D$25,2,0)),"",VLOOKUP($A$10,POA!$A$2:$D$25,2,0)),"")) ->  | I139: =IF(OR(D139="",E139="",F139=""),"",IF(AND(H139>0,H139<=Experiencia1),Puntajes!$D$4,IF(AND(H139>Experiencia1,H139<=Experiencia2),Puntajes!$D$5,IF(AND(H139>Experiencia2,H139<=Experiencia3),Puntajes!$D$6,IF(H139>Experiencia3,Puntajes!$D$7,0))))) -> 
C140: =+'Capacidad Financiera'!B143 ->  | D140: =IF(ISERROR(VLOOKUP(C140,'Capacidad Financiera'!$B$12:$X$62720,2,0)),"",VLOOKUP(C140,'Capacidad Financiera'!$B$12:$X$3580,2,0)) -> 0 | E140: =IF(ISERROR(VLOOKUP(C140,'Capacidad Financiera'!$B$12:$X$62720,3,0)),"",VLOOKUP(C140,'Capacidad Financiera'!$B$12:$X$62720,3,0)) -> 0 | G140: =IF(OR(D140="",E140="",F140=""),"",IF(C140<>"",IF(ISERROR(VLOOKUP($A$10,POA!$A$2:$D$25,2,0)),"",VLOOKUP($A$10,POA!$A$2:$D$25,2,0)),"")) ->  | I140: =IF(OR(D140="",E140="",F140=""),"",IF(AND(H140>0,H140<=Experiencia1),Puntajes!$D$4,IF(AND(H140>Experiencia1,H140<=Experiencia2),Puntajes!$D$5,IF(AND(H140>Experiencia2,H140<=Experiencia3),Puntajes!$D$6,IF(H140>Experiencia3,Puntajes!$D$7,0))))) -> 
C141: 13 | D141: =IF(ISERROR(VLOOKUP(C141,'Capacidad Financiera'!$B$12:$X$62720,2,0)),"",VLOOKUP(C141,'Capacidad Financiera'!$B$12:$X$3580,2,0)) -> CONSORCIO HD | E141: =IF(ISERROR(VLOOKUP(C141,'Capacidad Financiera'!$B$12:$X$62720,3,0)),"",VLOOKUP(C141,'Capacidad Financiera'!$B$12:$X$62720,3,0)) -> 1 | G141: =IF(OR(D141="",E141="",F141=""),"",IF(C142="",IF(C141<>"",IF(ISERROR(VLOOKUP($A$10,POA!$A$2:$D$25,2,0)),"",VLOOKUP($A$10,POA!$A$2:$D$25,2,0)),""),"")) ->  | H141: =IF(OR(D141="",E141="",F141=""),"",IF(C142="",IF(C141<>"",F141/G141,""),"")) ->  | I141: =IF(C142="",IF(F141="","",IF(AND(H141>0,H141<=Experiencia1),Puntajes!$D$4,IF(AND(H141>Experiencia1,H141<=Experiencia2),Puntajes!$D$5,IF(AND(H141>Experiencia2,H141<=Experiencia3),Puntajes!$D$6,IF(H141>Experiencia3,Puntajes!$D$7,0))))),"") -> 
C142: =+'Capacidad Financiera'!B145 -> 13.1 | D142: =IF(ISERROR(VLOOKUP(C142,'Capacidad Financiera'!$B$12:$X$62720,2,0)),"",VLOOKUP(C142,'Capacidad Financiera'!$B$12:$X$3580,2,0)) -> OLMEDA S.A.S | E142: =IF(ISERROR(VLOOKUP(C142,'Capacidad Financiera'!$B$12:$X$62720,3,0)),"",VLOOKUP(C142,'Capacidad Financiera'!$B$12:$X$62720,3,0)) -> 0.33 | F142: 6843014948 | G142: =IF(OR(D142="",E142="",F142=""),"",IF(C142<>"",IF(ISERROR(VLOOKUP($A$10,POA!$A$2:$D$25,2,0)),"",VLOOKUP($A$10,POA!$A$2:$D$25,2,0)),"")) -> 4167150295 | H142: =IF(OR(D142="",E142="",F142=""),"",IF(C142<>"",F142/(G142*E142),"")) -> 4.976160557 | I142: =IF(OR(D142="",E142="",F142=""),"",IF(AND(H142>0,H142<=Experiencia1),Puntajes!$D$4,IF(AND(H142>Experiencia1,H142<=Experiencia2),Puntajes!$D$5,IF(AND(H142>Experiencia2,H142<=Experiencia3),Puntajes!$D$6,IF(H142>Experiencia3,Puntajes!$D$7,0))))) -> 80
C143: =+'Capacidad Financiera'!B146 -> 13.2 | D143: =IF(ISERROR(VLOOKUP(C143,'Capacidad Financiera'!$B$12:$X$62720,2,0)),"",VLOOKUP(C143,'Capacidad Financiera'!$B$12:$X$3580,2,0)) -> HD CONSTRUCCIONES S.A.S. | E143: =IF(ISERROR(VLOOKUP(C143,'Capacidad Financiera'!$B$12:$X$62720,3,0)),"",VLOOKUP(C143,'Capacidad Financiera'!$B$12:$X$62720,3,0)) -> 0.33 | F143: 16973146960 | G143: =IF(OR(D143="",E143="",F143=""),"",IF(C143<>"",IF(ISERROR(VLOOKUP($A$10,POA!$A$2:$D$25,2,0)),"",VLOOKUP($A$10,POA!$A$2:$D$25,2,0)),"")) -> 4167150295 | H143: =IF(OR(D143="",E143="",F143=""),"",IF(C143<>"",F143/(G143*E143),"")) -> 12.34267426 | I143: =IF(OR(D143="",E143="",F143=""),"",IF(AND(H143>0,H143<=Experiencia1),Puntajes!$D$4,IF(AND(H143>Experiencia1,H143<=Experiencia2),Puntajes!$D$5,IF(AND(H143>Experiencia2,H143<=Experiencia3),Puntajes!$D$6,IF(H143>Experiencia3,Puntajes!$D$7,0))))) -> 120
C144: =+'Capacidad Financiera'!B147 -> 13.3 | D144: =IF(ISERROR(VLOOKUP(C144,'Capacidad Financiera'!$B$12:$X$62720,2,0)),"",VLOOKUP(C144,'Capacidad Financiera'!$B$12:$X$3580,2,0)) -> HECTOR GIRALDO JARAMILLO | E144: =IF(ISERROR(VLOOKUP(C144,'Capacidad Financiera'!$B$12:$X$62720,3,0)),"",VLOOKUP(C144,'Capacidad Financiera'!$B$12:$X$62720,3,0)) -> 0.34 | F144: 17978957920 | G144: =IF(OR(D144="",E144="",F144=""),"",IF(C144<>"",IF(ISERROR(VLOOKUP($A$10,POA!$A$2:$D$25,2,0)),"",VLOOKUP($A$10,POA!$A$2:$D$25,2,0)),"")) -> 4167150295 | H144: 12.68955623 | I144: =IF(OR(D144="",E144="",F144=""),"",IF(AND(H144>0,H144<=Experiencia1),Puntajes!$D$4,IF(AND(H144>Experiencia1,H144<=Experiencia2),Puntajes!$D$5,IF(AND(H144>Experiencia2,H144<=Experiencia3),Puntajes!$D$6,IF(H144>Experiencia3,Puntajes!$D$7,0))))) -> 120
C145: =+'Capacidad Financiera'!B148 ->  | D145: =IF(ISERROR(VLOOKUP(C145,'Capacidad Financiera'!$B$12:$X$62720,2,0)),"",VLOOKUP(C145,'Capacidad Financiera'!$B$12:$X$3580,2,0)) -> 0 | E145: =IF(ISERROR(VLOOKUP(C145,'Capacidad Financiera'!$B$12:$X$62720,3,0)),"",VLOOKUP(C145,'Capacidad Financiera'!$B$12:$X$62720,3,0)) -> 0 | G145: =IF(OR(D145="",E145="",F145=""),"",IF(C145<>"",IF(ISERROR(VLOOKUP($A$10,POA!$A$2:$D$25,2,0)),"",VLOOKUP($A$10,POA!$A$2:$D$25,2,0)),"")) ->  | I145: =IF(OR(D145="",E145="",F145=""),"",IF(AND(H145>0,H145<=Experiencia1),Puntajes!$D$4,IF(AND(H145>Experiencia1,H145<=Experiencia2),Puntajes!$D$5,IF(AND(H145>Experiencia2,H145<=Experiencia3),Puntajes!$D$6,IF(H145>Experiencia3,Puntajes!$D$7,0))))) -> 
C146: =+'Capacidad Financiera'!B149 ->  | D146: =IF(ISERROR(VLOOKUP(C146,'Capacidad Financiera'!$B$12:$X$62720,2,0)),"",VLOOKUP(C146,'Capacidad Financiera'!$B$12:$X$3580,2,0)) -> 0 | E146: =IF(ISERROR(VLOOKUP(C146,'Capacidad Financiera'!$B$12:$X$62720,3,0)),"",VLOOKUP(C146,'Capacidad Financiera'!$B$12:$X$62720,3,0)) -> 0 | G146: =IF(OR(D146="",E146="",F146=""),"",IF(C146<>"",IF(ISERROR(VLOOKUP($A$10,POA!$A$2:$D$25,2,0)),"",VLOOKUP($A$10,POA!$A$2:$D$25,2,0)),"")) ->  | I146: =IF(OR(D146="",E146="",F146=""),"",IF(AND(H146>0,H146<=Experiencia1),Puntajes!$D$4,IF(AND(H146>Experiencia1,H146<=Experiencia2),Puntajes!$D$5,IF(AND(H146>Experiencia2,H146<=Experiencia3),Puntajes!$D$6,IF(H146>Experiencia3,Puntajes!$D$7,0))))) -> 
C147: =+'Capacidad Financiera'!B150 ->  | D147: =IF(ISERROR(VLOOKUP(C147,'Capacidad Financiera'!$B$12:$X$62720,2,0)),"",VLOOKUP(C147,'Capacidad Financiera'!$B$12:$X$3580,2,0)) -> 0 | E147: =IF(ISERROR(VLOOKUP(C147,'Capacidad Financiera'!$B$12:$X$62720,3,0)),"",VLOOKUP(C147,'Capacidad Financiera'!$B$12:$X$62720,3,0)) -> 0 | G147: =IF(OR(D147="",E147="",F147=""),"",IF(C147<>"",IF(ISERROR(VLOOKUP($A$10,POA!$A$2:$D$25,2,0)),"",VLOOKUP($A$10,POA!$A$2:$D$25,2,0)),"")) ->  | I147: =IF(OR(D147="",E147="",F147=""),"",IF(AND(H147>0,H147<=Experiencia1),Puntajes!$D$4,IF(AND(H147>Experiencia1,H147<=Experiencia2),Puntajes!$D$5,IF(AND(H147>Experiencia2,H147<=Experiencia3),Puntajes!$D$6,IF(H147>Experiencia3,Puntajes!$D$7,0))))) -> 
C148: =+'Capacidad Financiera'!B151 ->  | D148: =IF(ISERROR(VLOOKUP(C148,'Capacidad Financiera'!$B$12:$X$62720,2,0)),"",VLOOKUP(C148,'Capacidad Financiera'!$B$12:$X$3580,2,0)) -> 0 | E148: =IF(ISERROR(VLOOKUP(C148,'Capacidad Financiera'!$B$12:$X$62720,3,0)),"",VLOOKUP(C148,'Capacidad Financiera'!$B$12:$X$62720,3,0)) -> 0 | G148: =IF(OR(D148="",E148="",F148=""),"",IF(C148<>"",IF(ISERROR(VLOOKUP($A$10,POA!$A$2:$D$25,2,0)),"",VLOOKUP($A$10,POA!$A$2:$D$25,2,0)),"")) ->  | I148: =IF(OR(D148="",E148="",F148=""),"",IF(AND(H148>0,H148<=Experiencia1),Puntajes!$D$4,IF(AND(H148>Experiencia1,H148<=Experiencia2),Puntajes!$D$5,IF(AND(H148>Experiencia2,H148<=Experiencia3),Puntajes!$D$6,IF(H148>Experiencia3,Puntajes!$D$7,0))))) -> 
C149: =+'Capacidad Financiera'!B152 ->  | D149: =IF(ISERROR(VLOOKUP(C149,'Capacidad Financiera'!$B$12:$X$62720,2,0)),"",VLOOKUP(C149,'Capacidad Financiera'!$B$12:$X$3580,2,0)) -> 0 | E149: =IF(ISERROR(VLOOKUP(C149,'Capacidad Financiera'!$B$12:$X$62720,3,0)),"",VLOOKUP(C149,'Capacidad Financiera'!$B$12:$X$62720,3,0)) -> 0 | G149: =IF(OR(D149="",E149="",F149=""),"",IF(C149<>"",IF(ISERROR(VLOOKUP($A$10,POA!$A$2:$D$25,2,0)),"",VLOOKUP($A$10,POA!$A$2:$D$25,2,0)),"")) ->  | I149: =IF(OR(D149="",E149="",F149=""),"",IF(AND(H149>0,H149<=Experiencia1),Puntajes!$D$4,IF(AND(H149>Experiencia1,H149<=Experiencia2),Puntajes!$D$5,IF(AND(H149>Experiencia2,H149<=Experiencia3),Puntajes!$D$6,IF(H149>Experiencia3,Puntajes!$D$7,0))))) -> 
C150: =+'Capacidad Financiera'!B153 ->  | D150: =IF(ISERROR(VLOOKUP(C150,'Capacidad Financiera'!$B$12:$X$62720,2,0)),"",VLOOKUP(C150,'Capacidad Financiera'!$B$12:$X$3580,2,0)) -> 0 | E150: =IF(ISERROR(VLOOKUP(C150,'Capacidad Financiera'!$B$12:$X$62720,3,0)),"",VLOOKUP(C150,'Capacidad Financiera'!$B$12:$X$62720,3,0)) -> 0 | G150: =IF(OR(D150="",E150="",F150=""),"",IF(C150<>"",IF(ISERROR(VLOOKUP($A$10,POA!$A$2:$D$25,2,0)),"",VLOOKUP($A$10,POA!$A$2:$D$25,2,0)),"")) ->  | I150: =IF(OR(D150="",E150="",F150=""),"",IF(AND(H150>0,H150<=Experiencia1),Puntajes!$D$4,IF(AND(H150>Experiencia1,H150<=Experiencia2),Puntajes!$D$5,IF(AND(H150>Experiencia2,H150<=Experiencia3),Puntajes!$D$6,IF(H150>Experiencia3,Puntajes!$D$7,0))))) -> 
C151: =+'Capacidad Financiera'!B154 ->  | D151: =IF(ISERROR(VLOOKUP(C151,'Capacidad Financiera'!$B$12:$X$62720,2,0)),"",VLOOKUP(C151,'Capacidad Financiera'!$B$12:$X$3580,2,0)) -> 0 | E151: =IF(ISERROR(VLOOKUP(C151,'Capacidad Financiera'!$B$12:$X$62720,3,0)),"",VLOOKUP(C151,'Capacidad Financiera'!$B$12:$X$62720,3,0)) -> 0 | G151: =IF(OR(D151="",E151="",F151=""),"",IF(C151<>"",IF(ISERROR(VLOOKUP($A$10,POA!$A$2:$D$25,2,0)),"",VLOOKUP($A$10,POA!$A$2:$D$25,2,0)),"")) ->  | I151: =IF(OR(D151="",E151="",F151=""),"",IF(AND(H151>0,H151<=Experiencia1),Puntajes!$D$4,IF(AND(H151>Experiencia1,H151<=Experiencia2),Puntajes!$D$5,IF(AND(H151>Experiencia2,H151<=Experiencia3),Puntajes!$D$6,IF(H151>Experiencia3,Puntajes!$D$7,0))))) -> 
C152: 14 | D152: =IF(ISERROR(VLOOKUP(C152,'Capacidad Financiera'!$B$12:$X$62720,2,0)),"",VLOOKUP(C152,'Capacidad Financiera'!$B$12:$X$3580,2,0)) -> CONSORCIO CONXIE 034-14 | E152: =IF(ISERROR(VLOOKUP(C152,'Capacidad Financiera'!$B$12:$X$62720,3,0)),"",VLOOKUP(C152,'Capacidad Financiera'!$B$12:$X$62720,3,0)) -> 1 | G152: =IF(OR(D152="",E152="",F152=""),"",IF(C153="",IF(C152<>"",IF(ISERROR(VLOOKUP($A$10,POA!$A$2:$D$25,2,0)),"",VLOOKUP($A$10,POA!$A$2:$D$25,2,0)),""),"")) ->  | H152: =IF(OR(D152="",E152="",F152=""),"",IF(C153="",IF(C152<>"",F152/G152,""),"")) ->  | I152: =IF(C153="",IF(F152="","",IF(AND(H152>0,H152<=Experiencia1),Puntajes!$D$4,IF(AND(H152>Experiencia1,H152<=Experiencia2),Puntajes!$D$5,IF(AND(H152>Experiencia2,H152<=Experiencia3),Puntajes!$D$6,IF(H152>Experiencia3,Puntajes!$D$7,0))))),"") -> 
C153: =+'Capacidad Financiera'!B156 -> 14.1 | D153: =IF(ISERROR(VLOOKUP(C153,'Capacidad Financiera'!$B$12:$X$62720,2,0)),"",VLOOKUP(C153,'Capacidad Financiera'!$B$12:$X$3580,2,0)) -> CONCREARMADO LTDA. | E153: =IF(ISERROR(VLOOKUP(C153,'Capacidad Financiera'!$B$12:$X$62720,3,0)),"",VLOOKUP(C153,'Capacidad Financiera'!$B$12:$X$62720,3,0)) -> 0.5 | F153: 4.522014691e+10 | G153: =IF(OR(D153="",E153="",F153=""),"",IF(C153<>"",IF(ISERROR(VLOOKUP($A$10,POA!$A$2:$D$25,2,0)),"",VLOOKUP($A$10,POA!$A$2:$D$25,2,0)),"")) -> 4167150295 | H153: =IF(OR(D153="",E153="",F153=""),"",IF(C153<>"",F153/(G153*E153),"")) -> 21.70315141 | I153: =IF(OR(D153="",E153="",F153=""),"",IF(AND(H153>0,H153<=Experiencia1),Puntajes!$D$4,IF(AND(H153>Experiencia1,H153<=Experiencia2),Puntajes!$D$5,IF(AND(H153>Experiencia2,H153<=Experiencia3),Puntajes!$D$6,IF(H153>Experiencia3,Puntajes!$D$7,0))))) -> 120
C154: =+'Capacidad Financiera'!B157 -> 14.2 | D154: =IF(ISERROR(VLOOKUP(C154,'Capacidad Financiera'!$B$12:$X$62720,2,0)),"",VLOOKUP(C154,'Capacidad Financiera'!$B$12:$X$3580,2,0)) -> JAIME VARGAS GALINDO | E154: =IF(ISERROR(VLOOKUP(C154,'Capacidad Financiera'!$B$12:$X$62720,3,0)),"",VLOOKUP(C154,'Capacidad Financiera'!$B$12:$X$62720,3,0)) -> 0.5 | F154: 3.035772312e+10 | G154: =IF(OR(D154="",E154="",F154=""),"",IF(C154<>"",IF(ISERROR(VLOOKUP($A$10,POA!$A$2:$D$25,2,0)),"",VLOOKUP($A$10,POA!$A$2:$D$25,2,0)),"")) -> 4167150295 | H154: =IF(OR(D154="",E154="",F154=""),"",IF(C154<>"",F154/(G154*E154),"")) -> 14.57001594 | I154: =IF(OR(D154="",E154="",F154=""),"",IF(AND(H154>0,H154<=Experiencia1),Puntajes!$D$4,IF(AND(H154>Experiencia1,H154<=Experiencia2),Puntajes!$D$5,IF(AND(H154>Experiencia2,H154<=Experiencia3),Puntajes!$D$6,IF(H154>Experiencia3,Puntajes!$D$7,0))))) -> 120
C155: =+'Capacidad Financiera'!B158 ->  | D155: =IF(ISERROR(VLOOKUP(C155,'Capacidad Financiera'!$B$12:$X$62720,2,0)),"",VLOOKUP(C155,'Capacidad Financiera'!$B$12:$X$3580,2,0)) -> 0 | E155: =IF(ISERROR(VLOOKUP(C155,'Capacidad Financiera'!$B$12:$X$62720,3,0)),"",VLOOKUP(C155,'Capacidad Financiera'!$B$12:$X$62720,3,0)) -> 0 | G155: =IF(OR(D155="",E155="",F155=""),"",IF(C155<>"",IF(ISERROR(VLOOKUP($A$10,POA!$A$2:$D$25,2,0)),"",VLOOKUP($A$10,POA!$A$2:$D$25,2,0)),"")) ->  | I155: =IF(OR(D155="",E155="",F155=""),"",IF(AND(H155>0,H155<=Experiencia1),Puntajes!$D$4,IF(AND(H155>Experiencia1,H155<=Experiencia2),Puntajes!$D$5,IF(AND(H155>Experiencia2,H155<=Experiencia3),Puntajes!$D$6,IF(H155>Experiencia3,Puntajes!$D$7,0))))) -> 
C156: =+'Capacidad Financiera'!B159 ->  | D156: =IF(ISERROR(VLOOKUP(C156,'Capacidad Financiera'!$B$12:$X$62720,2,0)),"",VLOOKUP(C156,'Capacidad Financiera'!$B$12:$X$3580,2,0)) -> 0 | E156: =IF(ISERROR(VLOOKUP(C156,'Capacidad Financiera'!$B$12:$X$62720,3,0)),"",VLOOKUP(C156,'Capacidad Financiera'!$B$12:$X$62720,3,0)) -> 0 | G156: =IF(OR(D156="",E156="",F156=""),"",IF(C156<>"",IF(ISERROR(VLOOKUP($A$10,POA!$A$2:$D$25,2,0)),"",VLOOKUP($A$10,POA!$A$2:$D$25,2,0)),"")) ->  | I156: =IF(OR(D156="",E156="",F156=""),"",IF(AND(H156>0,H156<=Experiencia1),Puntajes!$D$4,IF(AND(H156>Experiencia1,H156<=Experiencia2),Puntajes!$D$5,IF(AND(H156>Experiencia2,H156<=Experiencia3),Puntajes!$D$6,IF(H156>Experiencia3,Puntajes!$D$7,0))))) -> 
C157: =+'Capacidad Financiera'!B160 ->  | D157: =IF(ISERROR(VLOOKUP(C157,'Capacidad Financiera'!$B$12:$X$62720,2,0)),"",VLOOKUP(C157,'Capacidad Financiera'!$B$12:$X$3580,2,0)) -> 0 | E157: =IF(ISERROR(VLOOKUP(C157,'Capacidad Financiera'!$B$12:$X$62720,3,0)),"",VLOOKUP(C157,'Capacidad Financiera'!$B$12:$X$62720,3,0)) -> 0 | G157: =IF(OR(D157="",E157="",F157=""),"",IF(C157<>"",IF(ISERROR(VLOOKUP($A$10,POA!$A$2:$D$25,2,0)),"",VLOOKUP($A$10,POA!$A$2:$D$25,2,0)),"")) ->  | I157: =IF(OR(D157="",E157="",F157=""),"",IF(AND(H157>0,H157<=Experiencia1),Puntajes!$D$4,IF(AND(H157>Experiencia1,H157<=Experiencia2),Puntajes!$D$5,IF(AND(H157>Experiencia2,H157<=Experiencia3),Puntajes!$D$6,IF(H157>Experiencia3,Puntajes!$D$7,0))))) -> 
C158: =+'Capacidad Financiera'!B161 ->  | D158: =IF(ISERROR(VLOOKUP(C158,'Capacidad Financiera'!$B$12:$X$62720,2,0)),"",VLOOKUP(C158,'Capacidad Financiera'!$B$12:$X$3580,2,0)) -> 0 | E158: =IF(ISERROR(VLOOKUP(C158,'Capacidad Financiera'!$B$12:$X$62720,3,0)),"",VLOOKUP(C158,'Capacidad Financiera'!$B$12:$X$62720,3,0)) -> 0 | G158: =IF(OR(D158="",E158="",F158=""),"",IF(C158<>"",IF(ISERROR(VLOOKUP($A$10,POA!$A$2:$D$25,2,0)),"",VLOOKUP($A$10,POA!$A$2:$D$25,2,0)),"")) ->  | I158: =IF(OR(D158="",E158="",F158=""),"",IF(AND(H158>0,H158<=Experiencia1),Puntajes!$D$4,IF(AND(H158>Experiencia1,H158<=Experiencia2),Puntajes!$D$5,IF(AND(H158>Experiencia2,H158<=Experiencia3),Puntajes!$D$6,IF(H158>Experiencia3,Puntajes!$D$7,0))))) -> 
C159: =+'Capacidad Financiera'!B162 ->  | D159: =IF(ISERROR(VLOOKUP(C159,'Capacidad Financiera'!$B$12:$X$62720,2,0)),"",VLOOKUP(C159,'Capacidad Financiera'!$B$12:$X$3580,2,0)) -> 0 | E159: =IF(ISERROR(VLOOKUP(C159,'Capacidad Financiera'!$B$12:$X$62720,3,0)),"",VLOOKUP(C159,'Capacidad Financiera'!$B$12:$X$62720,3,0)) -> 0 | G159: =IF(OR(D159="",E159="",F159=""),"",IF(C159<>"",IF(ISERROR(VLOOKUP($A$10,POA!$A$2:$D$25,2,0)),"",VLOOKUP($A$10,POA!$A$2:$D$25,2,0)),"")) ->  | I159: =IF(OR(D159="",E159="",F159=""),"",IF(AND(H159>0,H159<=Experiencia1),Puntajes!$D$4,IF(AND(H159>Experiencia1,H159<=Experiencia2),Puntajes!$D$5,IF(AND(H159>Experiencia2,H159<=Experiencia3),Puntajes!$D$6,IF(H159>Experiencia3,Puntajes!$D$7,0))))) -> 
C160: =+'Capacidad Financiera'!B163 ->  | D160: =IF(ISERROR(VLOOKUP(C160,'Capacidad Financiera'!$B$12:$X$62720,2,0)),"",VLOOKUP(C160,'Capacidad Financiera'!$B$12:$X$3580,2,0)) -> 0 | E160: =IF(ISERROR(VLOOKUP(C160,'Capacidad Financiera'!$B$12:$X$62720,3,0)),"",VLOOKUP(C160,'Capacidad Financiera'!$B$12:$X$62720,3,0)) -> 0 | G160: =IF(OR(D160="",E160="",F160=""),"",IF(C160<>"",IF(ISERROR(VLOOKUP($A$10,POA!$A$2:$D$25,2,0)),"",VLOOKUP($A$10,POA!$A$2:$D$25,2,0)),"")) ->  | I160: =IF(OR(D160="",E160="",F160=""),"",IF(AND(H160>0,H160<=Experiencia1),Puntajes!$D$4,IF(AND(H160>Experiencia1,H160<=Experiencia2),Puntajes!$D$5,IF(AND(H160>Experiencia2,H160<=Experiencia3),Puntajes!$D$6,IF(H160>Experiencia3,Puntajes!$D$7,0))))) -> 
C161: =+'Capacidad Financiera'!B164 ->  | D161: =IF(ISERROR(VLOOKUP(C161,'Capacidad Financiera'!$B$12:$X$62720,2,0)),"",VLOOKUP(C161,'Capacidad Financiera'!$B$12:$X$3580,2,0)) -> 0 | E161: =IF(ISERROR(VLOOKUP(C161,'Capacidad Financiera'!$B$12:$X$62720,3,0)),"",VLOOKUP(C161,'Capacidad Financiera'!$B$12:$X$62720,3,0)) -> 0 | G161: =IF(OR(D161="",E161="",F161=""),"",IF(C161<>"",IF(ISERROR(VLOOKUP($A$10,POA!$A$2:$D$25,2,0)),"",VLOOKUP($A$10,POA!$A$2:$D$25,2,0)),"")) ->  | I161: =IF(OR(D161="",E161="",F161=""),"",IF(AND(H161>0,H161<=Experiencia1),Puntajes!$D$4,IF(AND(H161>Experiencia1,H161<=Experiencia2),Puntajes!$D$5,IF(AND(H161>Experiencia2,H161<=Experiencia3),Puntajes!$D$6,IF(H161>Experiencia3,Puntajes!$D$7,0))))) -> 
C162: =+'Capacidad Financiera'!B165 ->  | D162: =IF(ISERROR(VLOOKUP(C162,'Capacidad Financiera'!$B$12:$X$62720,2,0)),"",VLOOKUP(C162,'Capacidad Financiera'!$B$12:$X$3580,2,0)) -> 0 | E162: =IF(ISERROR(VLOOKUP(C162,'Capacidad Financiera'!$B$12:$X$62720,3,0)),"",VLOOKUP(C162,'Capacidad Financiera'!$B$12:$X$62720,3,0)) -> 0 | G162: =IF(OR(D162="",E162="",F162=""),"",IF(C162<>"",IF(ISERROR(VLOOKUP($A$10,POA!$A$2:$D$25,2,0)),"",VLOOKUP($A$10,POA!$A$2:$D$25,2,0)),"")) ->  | I162: =IF(OR(D162="",E162="",F162=""),"",IF(AND(H162>0,H162<=Experiencia1),Puntajes!$D$4,IF(AND(H162>Experiencia1,H162<=Experiencia2),Puntajes!$D$5,IF(AND(H162>Experiencia2,H162<=Experiencia3),Puntajes!$D$6,IF(H162>Experiencia3,Puntajes!$D$7,0))))) -> 
C163: 15 | D163: =IF(ISERROR(VLOOKUP(C163,'Capacidad Financiera'!$B$12:$X$62720,2,0)),"",VLOOKUP(C163,'Capacidad Financiera'!$B$12:$X$3580,2,0)) -> CONSORCIO BP LA CALERA | E163: =IF(ISERROR(VLOOKUP(C163,'Capacidad Financiera'!$B$12:$X$62720,3,0)),"",VLOOKUP(C163,'Capacidad Financiera'!$B$12:$X$62720,3,0)) -> 1 | G163: =IF(OR(D163="",E163="",F163=""),"",IF(C164="",IF(C163<>"",IF(ISERROR(VLOOKUP($A$10,POA!$A$2:$D$25,2,0)),"",VLOOKUP($A$10,POA!$A$2:$D$25,2,0)),""),"")) ->  | H163: =IF(OR(D163="",E163="",F163=""),"",IF(C164="",IF(C163<>"",F163/G163,""),"")) ->  | I163: =IF(C164="",IF(F163="","",IF(AND(H163>0,H163<=Experiencia1),Puntajes!$D$4,IF(AND(H163>Experiencia1,H163<=Experiencia2),Puntajes!$D$5,IF(AND(H163>Experiencia2,H163<=Experiencia3),Puntajes!$D$6,IF(H163>Experiencia3,Puntajes!$D$7,0))))),"") -> 
C164: =+'Capacidad Financiera'!B167 -> 15.1 | D164: =IF(ISERROR(VLOOKUP(C164,'Capacidad Financiera'!$B$12:$X$62720,2,0)),"",VLOOKUP(C164,'Capacidad Financiera'!$B$12:$X$3580,2,0)) -> PEDRO NAVARRO RODRIGUEZ | E164: =IF(ISERROR(VLOOKUP(C164,'Capacidad Financiera'!$B$12:$X$62720,3,0)),"",VLOOKUP(C164,'Capacidad Financiera'!$B$12:$X$62720,3,0)) -> 0.25 | F164: 19160967056 | G164: =IF(OR(D164="",E164="",F164=""),"",IF(C164<>"",IF(ISERROR(VLOOKUP($A$10,POA!$A$2:$D$25,2,0)),"",VLOOKUP($A$10,POA!$A$2:$D$25,2,0)),"")) -> 4167150295 | H164: =IF(OR(D164="",E164="",F164=""),"",IF(C164<>"",F164/(G164*E164),"")) -> 18.39239355 | I164: =IF(OR(D164="",E164="",F164=""),"",IF(AND(H164>0,H164<=Experiencia1),Puntajes!$D$4,IF(AND(H164>Experiencia1,H164<=Experiencia2),Puntajes!$D$5,IF(AND(H164>Experiencia2,H164<=Experiencia3),Puntajes!$D$6,IF(H164>Experiencia3,Puntajes!$D$7,0))))) -> 120
C165: =+'Capacidad Financiera'!B168 -> 15.2 | D165: =IF(ISERROR(VLOOKUP(C165,'Capacidad Financiera'!$B$12:$X$62720,2,0)),"",VLOOKUP(C165,'Capacidad Financiera'!$B$12:$X$3580,2,0)) -> PAVIOBRAS S.A.S. | E165: =IF(ISERROR(VLOOKUP(C165,'Capacidad Financiera'!$B$12:$X$62720,3,0)),"",VLOOKUP(C165,'Capacidad Financiera'!$B$12:$X$62720,3,0)) -> 0.25 | F165: 22008312480 | G165: =IF(OR(D165="",E165="",F165=""),"",IF(C165<>"",IF(ISERROR(VLOOKUP($A$10,POA!$A$2:$D$25,2,0)),"",VLOOKUP($A$10,POA!$A$2:$D$25,2,0)),"")) -> 4167150295 | H165: =IF(OR(D165="",E165="",F165=""),"",IF(C165<>"",F165/(G165*E165),"")) -> 21.12552792 | I165: =IF(OR(D165="",E165="",F165=""),"",IF(AND(H165>0,H165<=Experiencia1),Puntajes!$D$4,IF(AND(H165>Experiencia1,H165<=Experiencia2),Puntajes!$D$5,IF(AND(H165>Experiencia2,H165<=Experiencia3),Puntajes!$D$6,IF(H165>Experiencia3,Puntajes!$D$7,0))))) -> 120
C166: =+'Capacidad Financiera'!B169 -> 15.3 | D166: =IF(ISERROR(VLOOKUP(C166,'Capacidad Financiera'!$B$12:$X$62720,2,0)),"",VLOOKUP(C166,'Capacidad Financiera'!$B$12:$X$3580,2,0)) -> BALLEN B Y CIA S.A.S. | E166: =IF(ISERROR(VLOOKUP(C166,'Capacidad Financiera'!$B$12:$X$62720,3,0)),"",VLOOKUP(C166,'Capacidad Financiera'!$B$12:$X$62720,3,0)) -> 0.5 | F166: 26045907580 | G166: =IF(OR(D166="",E166="",F166=""),"",IF(C166<>"",IF(ISERROR(VLOOKUP($A$10,POA!$A$2:$D$25,2,0)),"",VLOOKUP($A$10,POA!$A$2:$D$25,2,0)),"")) -> 4167150295 | H166: 12.50058469 | I166: =IF(OR(D166="",E166="",F166=""),"",IF(AND(H166>0,H166<=Experiencia1),Puntajes!$D$4,IF(AND(H166>Experiencia1,H166<=Experiencia2),Puntajes!$D$5,IF(AND(H166>Experiencia2,H166<=Experiencia3),Puntajes!$D$6,IF(H166>Experiencia3,Puntajes!$D$7,0))))) -> 120
